Workbook

Sheet District
D2: 2023-2024 | E2: 2022-23 | F2: 2022-23 | G2: 2021-22 | H2: 2021-22 | I2: 2020-21 | J2: 2020-21 | K2: 2019-20 | L2: 2019-20 | M2: 2018-19 | N2: 2017-18 | O2: 2016-17 | P2: 2015-16 | Q2: 2014-15
D3: Revised Final | E3: Final | F3: Preliminary | G3: Final | H3: Preliminary | I3: Final | J3: Preliminary | K3: Final | L3: Preliminary | M3: Final | N3: 2nd Revised | O3: Revised
C4: Select District Name | D4: ABERDEEN
C5: District Code (CCDDD) | D5: =VLOOKUP(D4,CCDDD!D:F,3,FALSE) -> 14005
C7: Eisenhower 2001-02 Allocations | D7: =VLOOKUP($D$5,'Allocation 2023-24 Final'!$A$7:$L$322,4,FALSE) -> 0 | E7: =VLOOKUP($D$5,'Allocation 2022-23 F'!$A$7:$M$321,3,FALSE) -> 0 | F7: =VLOOKUP($D$5,'[1]Allocation 2022-23 P'!$A$7:$M$321,3,FALSE) -> 0 | G7: =VLOOKUP($D$5,'[2]Allocation 2021-22 Final'!$A$7:$U$321,3,FALSE) -> 0 | H7: =VLOOKUP($D$5,'[1]Allocation 2021-22 Preliminary'!$A$7:$M$321,3,FALSE) -> 0 | I7: =IFERROR(VLOOKUP($D$5,'[1]Allocation 2020-21 Final'!$A$7:$M$317,3,FALSE),0) -> 0 | J7: =IFERROR(VLOOKUP($D$5,'[1]Allocation 2020-21 Preliminary'!$A$7:$M$318,3,FALSE),0) -> 0 | K7: =IFERROR(VLOOKUP($D$5,'[1]Allocation 2019-20 Final'!$A$7:$M$314,3,FALSE),0) -> 0 | L7: =IFERROR(VLOOKUP($D$5,'[1]Allocation 2019-20 Preliminary'!$A$7:$M$316,3,FALSE),0) -> 0 | M7: =IFERROR(VLOOKUP($D$5,'[1]Allocation 2018-19 Final'!$A$7:$M$316,3,FALSE),0) -> 0 | N7: =VLOOKUP($D$5,'[1]Allocation 2017-18 2ndRev_Final'!$A$7:$M$315,3,FALSE) -> 0 | O7: =VLOOKUP($D$5,'[1]Allocation 2016-17 rev_Final'!$A$7:$M$314,3,FALSE) -> 24422 | P7: =VLOOKUP($D$5,'[1]Allocation 2015-16 Final'!$A$7:$M$313,3,FALSE) -> 24422 | Q7: =VLOOKUP($D$5,'[1]Allocation 2014-15 Final'!$A$7:$M$304,3,FALSE) -> 24422
C8: Class Size Reduction allocations 2001-02 | D8: =VLOOKUP($D$5,'Allocation 2023-24 Final'!$A$7:$L$322,5,FALSE) -> 0 | E8: =VLOOKUP($D$5,'Allocation 2022-23 F'!$A$7:$M$321,4,FALSE) -> 0 | F8: =VLOOKUP($D$5,'[1]Allocation 2022-23 P'!$A$7:$M$321,4,FALSE) -> 0 | G8: =VLOOKUP($D$5,'[2]Allocation 2021-22 Final'!$A$7:$U$321,4,FALSE) -> 0 | H8: =VLOOKUP($D$5,'[1]Allocation 2021-22 Preliminary'!$A$7:$M$321,4,FALSE) -> 0 | I8: =IFERROR(VLOOKUP($D$5,'[1]Allocation 2020-21 Final'!$A$7:$M$317,4,FALSE),0) -> 0 | J8: =IFERROR(VLOOKUP($D$5,'[1]Allocation 2020-21 Preliminary'!$A$7:$M$318,4,FALSE),0) -> 0 | K8: =IFERROR(VLOOKUP($D$5,'[1]Allocation 2019-20 Final'!$A$7:$M$314,4,FALSE),0) -> 0 | L8: =IFERROR(VLOOKUP($D$5,'[1]Allocation 2019-20 Preliminary'!$A$7:$M$316,4,FALSE),0) -> 0 | M8: =IFERROR(VLOOKUP($D$5,'[1]Allocation 2018-19 Final'!$A$7:$M$316,4,FALSE),0) -> 0 | N8: =VLOOKUP($D$5,'[1]Allocation 2017-18 2ndRev_Final'!$A$7:$M$315,4,FALSE) -> 0 | O8: =VLOOKUP($D$5,'[1]Allocation 2016-17 rev_Final'!$A$7:$M$314,4,FALSE) -> 128290 | P8: =VLOOKUP($D$5,'[1]Allocation 2015-16 Final'!$A$7:$M$313,4,FALSE) -> 128290 | Q8: =VLOOKUP($D$5,'[1]Allocation 2014-15 Final'!$A$7:$M$304,4,FALSE) -> 128290
C10: Census Population Ages 5-17 | D10: =VLOOKUP($D$5,'Allocation 2023-24 Final'!$A$7:$L$322,6,FALSE) -> 3541 | E10: =VLOOKUP($D$5,'Allocation 2022-23 F'!$A$7:$M$321,5,FALSE) -> 3445 | F10: =VLOOKUP($D$5,'[1]Allocation 2022-23 P'!$A$7:$M$321,5,FALSE) -> 3433 | G10: =VLOOKUP($D$5,'[2]Allocation 2021-22 Final'!$A$7:$U$321,5,FALSE) -> 3402 | H10: =VLOOKUP($D$5,'[1]Allocation 2021-22 Preliminary'!$A$7:$M$321,5,FALSE) -> 3384 | I10: =IFERROR(VLOOKUP($D$5,'[1]Allocation 2020-21 Final'!$A$7:$M$317,5,FALSE),0) -> 3343 | J10: =IFERROR(VLOOKUP($D$5,'[1]Allocation 2020-21 Preliminary'!$A$7:$M$318,5,FALSE),0) -> 3341 | K10: =IFERROR(VLOOKUP($D$5,'[1]Allocation 2019-20 Final'!$A$7:$M$314,5,FALSE),0) -> 3269 | L10: =IFERROR(VLOOKUP($D$5,'[1]Allocation 2019-20 Preliminary'!$A$7:$M$316,5,FALSE),0) -> 3269 | M10: =IFERROR(VLOOKUP($D$5,'[1]Allocation 2018-19 Final'!$A$7:$M$315,5,FALSE),0) -> 3257 | N10: =VLOOKUP($D$5,'[1]Allocation 2017-18 2ndRev_Final'!$A$7:$M$315,5,FALSE) -> 3229 | O10: =VLOOKUP($D$5,'[1]Allocation 2016-17 rev_Final'!$A$7:$M$314,5,FALSE) -> 3239 | P10: =VLOOKUP($D$5,'[1]Allocation 2015-16 Final'!$A$7:$M$313,5,FALSE) -> 3253 | Q10: =VLOOKUP($D$5,'[1]Allocation 2014-15 Final'!$A$7:$M$304,5,FALSE) -> 3252
C11: 20% based on Total Pop | D11: =VLOOKUP($D$5,'Allocation 2023-24 Final'!$A$7:$L$322,7,FALSE) -> 19084 | E11: =VLOOKUP($D$5,'Allocation 2022-23 F'!$A$7:$M$321,6,FALSE) -> 18373 | F11: =VLOOKUP($D$5,'[1]Allocation 2022-23 P'!$A$7:$M$321,6,FALSE) -> 18229 | G11: =VLOOKUP($D$5,'[2]Allocation 2021-22 Final'!$A$7:$U$321,6,FALSE) -> 18525 | H11: =VLOOKUP($D$5,'[1]Allocation 2021-22 Preliminary'!$A$7:$M$321,6,FALSE) -> 18415 | I11: =IFERROR(VLOOKUP($D$5,'[1]Allocation 2020-21 Final'!$A$7:$M$317,6,FALSE),0) -> 17964 | J11: =IFERROR(VLOOKUP($D$5,'[1]Allocation 2020-21 Preliminary'!$A$7:$M$318,6,FALSE),0) -> 17933 | K11: =IFERROR(VLOOKUP($D$5,'[1]Allocation 2019-20 Final'!$A$7:$M$314,6,FALSE),0) -> 17854 | L11: =IFERROR(VLOOKUP($D$5,'[1]Allocation 2019-20 Preliminary'!$A$7:$M$316,6,FALSE),0) -> 17810 | M11: =IFERROR(VLOOKUP($D$5,'[1]Allocation 2018-19 Final'!$A$7:$M$315,6,FALSE),0) -> 17567 | N11: =VLOOKUP($D$5,'[1]Allocation 2017-18 Rev_Final'!$A$7:$M$315,6,FALSE) -> 17590 | O11: =VLOOKUP($D$5,'[1]Allocation 2016-17 rev_Final'!$A$7:$M$314,6,FALSE) -> 1386 | P11: =VLOOKUP($D$5,'[1]Allocation 2015-16 Final'!$A$7:$M$313,6,FALSE) -> 1880 | Q11: =VLOOKUP($D$5,'[1]Allocation 2014-15 Final'!$A$7:$M$304,6,FALSE) -> 1883
C12: Census Poverty Ages 5-17 | D12: =VLOOKUP($D$5,'Allocation 2023-24 Final'!$A$7:$L$322,8,FALSE) -> 728 | E12: =VLOOKUP($D$5,'Allocation 2022-23 F'!$A$7:$M$321,7,FALSE) -> 663 | F12: =VLOOKUP($D$5,'[1]Allocation 2022-23 P'!$A$7:$M$321,7,FALSE) -> 663 | G12: =VLOOKUP($D$5,'[2]Allocation 2021-22 Final'!$A$7:$U$321,7,FALSE) -> 736 | H12: =VLOOKUP($D$5,'[1]Allocation 2021-22 Preliminary'!$A$7:$M$321,7,FALSE) -> 736 | I12: =IFERROR(VLOOKUP($D$5,'[1]Allocation 2020-21 Final'!$A$7:$M$317,7,FALSE),0) -> 871 | J12: =IFERROR(VLOOKUP($D$5,'[1]Allocation 2020-21 Preliminary'!$A$7:$M$318,7,FALSE),0) -> 871 | K12: =IFERROR(VLOOKUP($D$5,'[1]Allocation 2019-20 Final'!$A$7:$M$314,7,FALSE),0) -> 996 | L12: =IFERROR(VLOOKUP($D$5,'[1]Allocation 2019-20 Preliminary'!$A$7:$M$316,7,FALSE),0) -> 996 | M12: =IFERROR(VLOOKUP($D$5,'[1]Allocation 2018-19 Final'!$A$7:$M$316,7,FALSE),0) -> 835 | N12: =VLOOKUP($D$5,'[1]Allocation 2017-18 2ndRev_Final'!$A$7:$M$315,7,FALSE) -> 859 | O12: =VLOOKUP($D$5,'[1]Allocation 2016-17 rev_Final'!$A$7:$M$314,7,FALSE) -> 941 | P12: =VLOOKUP($D$5,'[1]Allocation 2015-16 Final'!$A$7:$M$313,7,FALSE) -> 964 | Q12: =VLOOKUP($D$5,'[1]Allocation 2014-15 Final'!$A$7:$M$304,7,FALSE) -> 1012
C13: 80% based on Low Inc Pop | D13: =VLOOKUP($D$5,'Allocation 2023-24 Final'!$A$7:$L$322,9,FALSE) -> 142441 | E13: =VLOOKUP($D$5,'Allocation 2022-23 F'!$A$7:$M$321,8,FALSE) -> 143970 | F13: =VLOOKUP($D$5,'[1]Allocation 2022-23 P'!$A$7:$M$321,8,FALSE) -> 148102 | G13: =VLOOKUP($D$5,'[2]Allocation 2021-22 Final'!$A$7:$U$321,8,FALSE) -> 146202 | H13: =VLOOKUP($D$5,'[1]Allocation 2021-22 Preliminary'!$A$7:$M$321,8,FALSE) -> 146008 | I13: =IFERROR(VLOOKUP($D$5,'[1]Allocation 2020-21 Final'!$A$7:$M$317,8,FALSE),0) -> 162759 | J13: =IFERROR(VLOOKUP($D$5,'[1]Allocation 2020-21 Preliminary'!$A$7:$M$318,8,FALSE),0) -> 162570 | K13: =IFERROR(VLOOKUP($D$5,'[1]Allocation 2019-20 Final'!$A$7:$M$314,8,FALSE),0) -> 165895 | L13: =IFERROR(VLOOKUP($D$5,'[1]Allocation 2019-20 Preliminary'!$A$7:$M$316,8,FALSE),0) -> 165487 | M13: =IFERROR(VLOOKUP($D$5,'[1]Allocation 2018-19 Final'!$A$7:$M$316,8,FALSE),0) -> 143714 | N13: =VLOOKUP($D$5,'[1]Allocation 2017-18 2ndRev_Final'!$A$7:$M$315,8,FALSE) -> 132230 | O13: =VLOOKUP($D$5,'[1]Allocation 2016-17 rev_Final'!$A$7:$M$314,8,FALSE) -> 10197 | P13: =VLOOKUP($D$5,'[1]Allocation 2015-16 Final'!$A$7:$M$313,8,FALSE) -> 13166 | Q13: =VLOOKUP($D$5,'[1]Allocation 2014-15 Final'!$A$7:$M$304,8,FALSE) -> 13862
C15: Total Allocation | D15: =VLOOKUP($D$5,'Allocation 2023-24 Final'!A7:S322,11,FALSE) -> 161525 | E15: =VLOOKUP($D$5,'Allocation 2022-23 F'!$A$7:$R$321,18,FALSE) -> 162343 | F15: =VLOOKUP($D$5,'[1]Allocation 2022-23 P'!$A$7:$R$321,18,FALSE) -> 166331 | G15: =VLOOKUP($D$5,'[2]Allocation 2021-22 Final'!$A$7:$U$321,10,FALSE) -> 164727 | H15: =VLOOKUP($D$5,'[1]Allocation 2021-22 Preliminary'!$A$7:$R$321,18,FALSE) -> 164423 | I15: =IFERROR(VLOOKUP($D$5,'[1]Allocation 2020-21 Final'!$A$7:$R$317,18,FALSE),0) -> 180723 | J15: =IFERROR(VLOOKUP($D$5,'[1]Allocation 2020-21 Preliminary'!$A$7:$R$318,18,FALSE),0) -> 180503 | K15: =IFERROR(VLOOKUP($D$5,'[1]Allocation 2019-20 Final'!$A$7:$R$314,18,FALSE),0) -> 183749 | L15: =IFERROR(VLOOKUP($D$5,'[1]Allocation 2019-20 Preliminary'!$A$7:$R$316,18,FALSE),0) -> 183297 | M15: =IFERROR(VLOOKUP($D$5,'[1]Allocation 2018-19 Final'!$A$7:$R$316,18,FALSE),0) -> 161281 | N15: =VLOOKUP($D$5,'[1]Allocation 2017-18 2ndRev_Final'!$A$7:$R$315,18,FALSE) -> 149921 | O15: =VLOOKUP($D$5,'[1]Allocation 2016-17 rev_Final'!$A$7:$R$314,18,FALSE)-IF(D4="Seattle",11,0) -> 164277 | P15: =VLOOKUP($D$5,'[1]Allocation 2015-16 Final'!$A$7:$R$313,18,FALSE)-IF(D4="Seattle",6,0) -> 167716 | Q15: =VLOOKUP($D$5,'[1]Allocation 2014-15 Final'!$A$7:$R$304,18,FALSE) -> 168415
C16: Poverty Percentage | D16: =IF(D10=0,0,D12/D10) -> 0.2055916408 | E16: 0.1924528302 | F16: 0.1931255462 | G16: 0.2163433275 | H16: 0.2174940898 | I16: 0.2605444212 | J16: 0.2607003891 | K16: 0.3046803304 | L16: 0.3046803304 | M16: 0.2563708935 | N16: 0.2660266336 | O16: 0.290521766 | P16: 0.2963418383 | Q16: 0.3111931119
C18: MOE Reduction Percentage | D18: =VLOOKUP($D$5,'Allocation 2023-24 Final'!$A$7:$S$322,17,FALSE) -> 0 | E18: 0 | F18: 0 | G18: =VLOOKUP($D$5,'[2]Allocation 2021-22 Final'!$A$7:$U$321,19,FALSE) -> 0 | H18: =IF(VLOOKUP($D$5,'[1]Allocation 2021-22 Preliminary'!$A$7:$T$321,19,FALSE)=0,0,VLOOKUP($D$5,'[1]Allocation 2021-22 Preliminary'!$A$7:$T$321,19,FALSE)-0.9) -> 0 | I18: =IFERROR(IF(VLOOKUP($D$5,'[1]Allocation 2020-21 Final'!$A$7:$T$317,19,FALSE)=0,0,VLOOKUP($D$5,'[1]Allocation 2020-21 Final'!$A$7:$T$317,19,FALSE)-0.9),0) -> 0 | J18: =IFERROR(IF(VLOOKUP($D$5,'[1]Allocation 2020-21 Preliminary'!$A$7:$T$318,19,FALSE)=0,0,VLOOKUP($D$5,'[1]Allocation 2020-21 Preliminary'!$A$7:$T$318,19,FALSE)-0.9),0) -> 0 | K18: =IFERROR(IF(VLOOKUP($D$5,'[1]Allocation 2019-20 Final'!$A$7:$T$314,19,FALSE)=0,0,VLOOKUP($J$5,'[1]Allocation 2019-20 Final'!$A$7:$T$314,19,FALSE)-0.9),0) -> 0 | L18: =IFERROR(IF(VLOOKUP($D$5,'[1]Allocation 2019-20 Preliminary'!$A$7:$T$316,19,FALSE)=0,0,VLOOKUP($D$5,'[1]Allocation 2019-20 Preliminary'!$A$7:$T$316,19,FALSE)-0.9),0) -> 0 | M18: =IFERROR(IF(VLOOKUP($D$5,'[1]Allocation 2018-19 Final'!$A$7:$T$316,19,FALSE)=0,0,VLOOKUP($D$5,'[1]Allocation 2018-19 Final'!$A$7:$T$316,19,FALSE)-0.9),0) -> 0 | N18: =IF(VLOOKUP($D$5,'[1]Allocation 2017-18 2ndRev_Final'!$A$7:$T$315,19,FALSE)=0,0,VLOOKUP($D$5,'[1]Allocation 2017-18 2ndRev_Final'!$A$7:$T$315,19,FALSE)-0.9) -> 0 | O18: =IF(VLOOKUP($D$5,'[1]Allocation 2016-17 rev_Final'!$A$7:$T$314,19,FALSE)=0,0,VLOOKUP($D$5,'[1]Allocation 2016-17 rev_Final'!$A$7:$T$314,19,FALSE)-0.9) -> 0 | P18: =IF(VLOOKUP($D$5,'[1]Allocation 2015-16 Final'!$A$7:$T$313,19,FALSE)=0,0,VLOOKUP($D$5,'[1]Allocation 2015-16 Final'!$A$7:$T$313,19,FALSE)-0.9) -> 0 | Q18: =IF(VLOOKUP($D$5,'[1]Allocation 2014-15 Final'!$A$7:$T$304,19,FALSE)=0,0,VLOOKUP($D$5,'[1]Allocation 2014-15 Final'!$A$7:$T$304,19,FALSE)-0.9) -> 0
C19: MOE Reduction Amount | D19: =VLOOKUP($D$5,'Allocation 2023-24 Final'!$A$7:$S$322,18,FALSE) -> 0 | E19: =VLOOKUP($D$5,'Allocation 2022-23 F'!$A$7:$T$321,20,FALSE) -> 0 | F19: =VLOOKUP($D$5,'[1]Allocation 2022-23 P'!$A$7:$T$321,20,FALSE) -> 0 | G19: =VLOOKUP($D$5,'[2]Allocation 2021-22 Final'!$A$7:$U$321,20,FALSE) -> 0 | H19: =VLOOKUP($D$5,'[1]Allocation 2021-22 Preliminary'!$A$7:$T$321,20,FALSE) -> 0 | I19: =IFERROR(VLOOKUP($D$5,'[1]Allocation 2020-21 Final'!$A$7:$T$317,20,FALSE),0) -> 0 | J19: =IFERROR(VLOOKUP($D$5,'[1]Allocation 2020-21 Preliminary'!$A$7:$T$318,20,FALSE),0) -> 0 | K19: =IFERROR(VLOOKUP($D$5,'[1]Allocation 2019-20 Final'!$A$7:$T$314,20,FALSE),0) -> 0 | L19: =IFERROR(VLOOKUP($D$5,'[1]Allocation 2019-20 Preliminary'!$A$7:$T$316,20,FALSE),0) -> 0 | M19: =IFERROR(VLOOKUP($D$5,'[1]Allocation 2018-19 Preliminary'!$A$7:$T$316,20,FALSE),0) -> 0 | N19: =VLOOKUP($D$5,'[1]Allocation 2017-18 2ndRev_Final'!$A$7:$T$315,20,FALSE) -> 0 | O19: =VLOOKUP($D$5,'[1]Allocation 2016-17 rev_Final'!$A$7:$T$314,20,FALSE) -> 0 | P19: =VLOOKUP($D$5,'[1]Allocation 2015-16 Final'!$A$7:$T$313,20,FALSE) -> 0 | Q19: =VLOOKUP($D$5,'[1]Allocation 2014-15 Final'!$A$7:$T$304,20,FALSE) -> 0
C20: Prior Year Adjustment (reallocation) | D20: =VLOOKUP($D$5,'Allocation 2023-24 Final'!$A$7:$S$322,15,FALSE) -> 0 | G20: =VLOOKUP($D$5,'[2]Allocation 2021-22 Final'!$A$7:$U$321,17,FALSE) -> 0
C21: Final Allocation | D21: =+D15+D19+D20 -> 161525 | E21: =+E15+E19+E20 -> 162343 | F21: =+F15+F19+F20 -> 166331 | G21: =VLOOKUP($D$5,'[2]Allocation 2021-22 Final'!$A$7:$U$321,21,FALSE) -> 164727 | H21: =+H15+H19+H20 -> 164423 | I21: 180723 | J21: 180503 | K21: 183749 | L21: 183297 | M21: 161281 | N21: 149921 | O21: =+O15+O19 -> 164277 | P21: =+P15+P19 -> 167716 | Q21: =+Q15+Q19 -> 168415
C23: Increase (Decrease) from Prior Year | D23: =D21-E21 -> -818 | F23: =F21-G15 -> 1604 | G23: =G21-I15 -> -15996 | H23: =H21-I15 -> -16300 | I23: =I21-K15 -> -3026 | J23: =J21-K15 -> -3246 | K23: =K21-L15 -> 452 | L23: =L21-M15 -> 22016 | M23: =IFERROR(M21-N15,0) -> 11360 | N23: =N21-O15 -> -14356 | O23: =O15-P15 -> -3439 | P23: =P15-Q15 -> -699
C24: % Change from Prior Year | D24: =IFERROR(D23/E21,"") -> -0.005038714327 | F24: =IFERROR(F23/G15,"") -> 0.009737322965 | G24: =IFERROR(G23/I15,"") -> -0.08851114689 | H24: =IFERROR(H23/I15,"") -> -0.09019327922 | I24: =IFERROR(I23/K15,"") -> -0.01646811683 | J24: =IFERROR(J23/K15,"") -> -0.01766540226 | K24: =IFERROR(K23/L15,"") -> 0.002465943251 | L24: =IFERROR(L23/M15,"") -> 0.1365070901 | M24: =IFERROR(M23/N15,"") -> 0.07577324057 | N24: =N23/O15 -> -0.08738898324 | O24: =O23/P15 -> -0.02050490114 | P24: =P23/Q15 -> -0.004150461657

Sheet Allocation 2023-24 Final (hidden)
B1: 2023-24 | K1: =IF(K5=Assumptions!$C$14+J5,"Rounding OK","Rounding Error = "&FIXED(K5-Assumptions!$C$14-J5,TRUE)) -> Rounding OK | R1: =R5 -> -685.4276 | S1: =IF(S5=Assumptions!$C14+R5,"Rounding OK","Rounding Error = "&FIXED(S5-(Assumptions!$C14+R5),TRUE)) -> Rounding OK
B2: ESEA -- Title 2 Distributions | K2: Allocation including private participation | S2: \
A3: 1 | B3: 2 | C3: 3 | D3: 4 | E3: 5 | F3: 6 | G3: 7 | H3: 8 | I3: 9 | J3: 10 | L3: 12 | M3: 13 | N3: 14 | O3: 15 | P3: 16 | Q3: 17 | R3: 18 | S3: 19 | U3: 18
A4: CCDDD | B4: LEAID | C4: District Name | D4: Eisenhower 2001-02 Allocations | E4: Class Size Reduction Allocations 2001-02 | F4: Census Population Ages 5-17 | G4: 20% based on Total Pop | H4: Census Poverty Ages 5-17 | I4: 80% based on Low Inc Pop | J4: MOE | K4: Total Final Allocation | M4: Alloc to non-Census LEA | N4: Realloc Pool | O4: Realloc | P4: Final Alloc Before MOE | Q4: MOE | R4: MOE Reduction | S4: Final Alloc | U4: Prior Year Allocation | Y4: Rank Order | AB4: do not delete Y & Z
C5: State Totals | D5: =SUM(D7:D308) -> 0 | E5: =SUM(E7:E308) -> 0 | F5: =SUM(F7:F322) -> 1241385 | G5: =SUM(G7:G322) -> 6690244 | H5: =SUM(H7:H322) -> 136772 | I5: =SUM(I7:I322) -> 26760948 | K5: =SUM(K7:K322) -> 33451183 | M5: =SUM(M7:M322) -> 0 | N5: =SUM(N7:N322) -> 33451183 | O5: =SUM(O7:O322) -> 0 | P5: =SUM(P7:P322) -> 33451183 | R5: =SUM(R7:R322) -> -685.4276 | S5: =SUM(S7:S322) -> 33450497.57 | U5: =SUM(U7:U322) -> 32409953 | W5: =SUM(W7:W320) -> 1034511.572 | X5: =MIN(X7:X316) -> -0.5680805733 | Y5: ="Lose = "& PROPER(VLOOKUP(X5,$X$7:$AC$316,6,FALSE)) -> Lose = Lacrosse | AB5: =+B5 -> 0 | AC5: =+C5 -> State Totals
X6: =MAX(X7:X309) -> 3.220614828 | Y6: ="Win = "&PROPER(VLOOKUP(X6,$X$7:$AC$309,6,FALSE)) -> Win = Skykomish
A7: =VLOOKUP(B7,CCDDD!$A$3:$B$319,2,FALSE) -> 14005 | B7: 5300030 | C7: ABERDEEN | D7: 0 | E7: 0 | F7: =VLOOKUP(B7,'23-24 Adjusted Formula counts'!$A$2:$L$319,8,FALSE) -> 3541 | G7: =ROUND((F7/$F$5*Assumptions!$C$14*Assumptions!$C$29),0) -> 19084 | H7: =VLOOKUP(B7,'23-24 Adjusted Formula counts'!$A$2:$L$319,9,FALSE) -> 728 | I7: =ROUND((H7/$H$5*Assumptions!$C$14*Assumptions!$C$30),0) -> 142441 | K7: =ROUNDDOWN(+I7+G7+E7+D7+J7,0) -> 161525 | N7: =K7 -> 161525 | O7: =-ROUND(N7/$N$5*$M$5,0) -> 0 | P7: =+K7+O7+M7 -> 161525 | R7: =-1*(P7*Q7) -> 0 | S7: =+P7+R7 -> 161525 | U7: =IFERROR(VLOOKUP($A7, 'Allocation 2022-23 F'!$A$7:$U$321,21,FALSE),0) -> 162343 | W7: =+S7-U7 -> -818 | X7: =IF(U7>0,W7/U7,0) -> -0.005038714327 | Y7: =RANK(W7,$W$7:$W$322,0) -> 215 | Z7: =(SUM(D7:E7)/S7) -> 0 | AB7: =+B7 -> 5300030 | AC7: =+C7 -> ABERDEEN
A8: =VLOOKUP(B8,CCDDD!$A$3:$B$319,2,FALSE) -> 21226 | B8: 5300060 | C8: ADNA | D8: 0 | E8: 0 | F8: =VLOOKUP(B8,'23-24 Adjusted Formula counts'!$A$2:$L$319,8,FALSE) -> 736 | G8: =ROUND((F8/$F$5*Assumptions!$C$14*Assumptions!$C$29),0) -> 3967 | H8: =VLOOKUP(B8,'23-24 Adjusted Formula counts'!$A$2:$L$319,9,FALSE) -> 43 | I8: =ROUND((H8/$H$5*Assumptions!$C$14*Assumptions!$C$30),0) -> 8413 | K8: 12380 | N8: 12380 | O8: 0 | P8: =+K8+O8+M9 -> 12380 | R8: 0 | S8: 12380 | U8: =IFERROR(VLOOKUP($A8, 'Allocation 2022-23 F'!$A$7:$U$321,21,FALSE),0) -> 13556 | W8: -1176 | X8: -0.08675125406 | Y8: =RANK(W8,$W$7:$W$322,0) -> 219 | Z8: 0 | AB8: 5300060 | AC8: ADNA
A9: =VLOOKUP(B9,CCDDD!$A$3:$B$319,2,FALSE) -> 22017 | B9: 5300090 | C9: ALMIRA | D9: 0 | E9: 0 | F9: =VLOOKUP(B9,'23-24 Adjusted Formula counts'!$A$2:$L$319,8,FALSE) -> 95 | G9: =ROUND((F9/$F$5*Assumptions!$C$14*Assumptions!$C$29),0) -> 512 | H9: =VLOOKUP(B9,'23-24 Adjusted Formula counts'!$A$2:$L$319,9,FALSE) -> 8 | I9: =ROUND((H9/$H$5*Assumptions!$C$14*Assumptions!$C$30),0) -> 1565 | K9: 2077 | N9: 2077 | O9: 0 | P9: =+K9+O9+M10 -> 2077 | R9: 0 | S9: 2077 | U9: =IFERROR(VLOOKUP($A9, 'Allocation 2022-23 F'!$A$7:$U$321,21,FALSE),0) -> 2651 | W9: -574 | X9: -0.2165220671 | Y9: 206 | Z9: 0 | AB9: 5300090 | AC9: ALMIRA
A10: =VLOOKUP(B10,CCDDD!$A$3:$B$319,2,FALSE) -> 29103 | B10: 5300150 | C10: ANACORTES | D10: 0 | E10: 0 | F10: =VLOOKUP(B10,'23-24 Adjusted Formula counts'!$A$2:$L$319,8,FALSE) -> 2866 | G10: =ROUND((F10/$F$5*Assumptions!$C$14*Assumptions!$C$29),0) -> 15446 | H10: =VLOOKUP(B10,'23-24 Adjusted Formula counts'!$A$2:$L$319,9,FALSE) -> 281 | I10: =ROUND((H10/$H$5*Assumptions!$C$14*Assumptions!$C$30),0) -> 54981 | K10: 70427 | N10: 70427 | O10: 0 | P10: =+K10+O10+M11 -> 70427 | R10: 0 | S10: 70427 | U10: =IFERROR(VLOOKUP($A10, 'Allocation 2022-23 F'!$A$7:$U$321,21,FALSE),0) -> 62082 | W10: 8345 | X10: 0.1344189942 | Y10: 64 | Z10: 0 | AB10: 5300150 | AC10: ANACORTES
A11: =VLOOKUP(B11,CCDDD!$A$3:$B$319,2,FALSE) -> 31016 | B11: 5300240 | C11: ARLINGTON | D11: 0 | E11: 0 | F11: =VLOOKUP(B11,'23-24 Adjusted Formula counts'!$A$2:$L$319,8,FALSE) -> 5998 | G11: =ROUND((F11/$F$5*Assumptions!$C$14*Assumptions!$C$29),0) -> 32325 | H11: =VLOOKUP(B11,'23-24 Adjusted Formula counts'!$A$2:$L$319,9,FALSE) -> 465 | I11: =ROUND((H11/$H$5*Assumptions!$C$14*Assumptions!$C$30),0) -> 90982 | K11: 123307 | N11: 123307 | O11: 0 | P11: 123307 | R11: 0 | S11: 123307 | U11: =IFERROR(VLOOKUP($A11, 'Allocation 2022-23 F'!$A$7:$U$321,21,FALSE),0) -> 112342 | W11: 10965 | X11: 0.09760374571 | Y11: 48 | Z11: 0 | AB11: 5300240 | AC11: ARLINGTON
A12: =VLOOKUP(B12,CCDDD!$A$3:$B$319,2,FALSE) -> 02420 | B12: 5300280 | C12: ASOTIN-ANATONE | D12: 0 | E12: 0 | F12: =VLOOKUP(B12,'23-24 Adjusted Formula counts'!$A$2:$L$319,8,FALSE) -> 508 | G12: =ROUND((F12/$F$5*Assumptions!$C$14*Assumptions!$C$29),0) -> 2738 | H12: =VLOOKUP(B12,'23-24 Adjusted Formula counts'!$A$2:$L$319,9,FALSE) -> 64 | I12: =ROUND((H12/$H$5*Assumptions!$C$14*Assumptions!$C$30),0) -> 12522 | K12: 15260 | N12: 15260 | O12: 0 | P12: 15260 | R12: 0 | S12: 15260 | U12: =IFERROR(VLOOKUP($A12, 'Allocation 2022-23 F'!$A$7:$U$321,21,FALSE),0) -> 14099 | W12: 1161 | X12: 0.08234626569 | Y12: 143 | Z12: 0 | AB12: 5300280 | AC12: ASOTIN-ANATONE
A13: =VLOOKUP(B13,CCDDD!$A$3:$B$319,2,FALSE) -> 17408 | B13: 5300300 | C13: AUBURN | D13: 0 | E13: 0 | F13: =VLOOKUP(B13,'23-24 Adjusted Formula counts'!$A$2:$L$319,8,FALSE) -> 18711 | G13: =ROUND((F13/$F$5*Assumptions!$C$14*Assumptions!$C$29),0) -> 100840 | H13: =VLOOKUP(B13,'23-24 Adjusted Formula counts'!$A$2:$L$319,9,FALSE) -> 2786 | I13: =ROUND((H13/$H$5*Assumptions!$C$14*Assumptions!$C$30),0) -> 545112 | K13: 645952 | N13: 645952 | O13: 0 | P13: 645952 | R13: 0 | S13: 645952 | U13: =IFERROR(VLOOKUP($A13, 'Allocation 2022-23 F'!$A$7:$U$321,21,FALSE),0) -> 509143 | W13: 136809 | X13: 0.2687044701 | Y13: 2 | Z13: 0 | AB13: 5300300 | AC13: AUBURN
A14: =VLOOKUP(B14,CCDDD!$A$3:$B$319,2,FALSE) -> 18303 | B14: 5300330 | C14: BAINBRIDGE ISLAND | D14: 0 | E14: 0 | F14: =VLOOKUP(B14,'23-24 Adjusted Formula counts'!$A$2:$L$319,8,FALSE) -> 4038 | G14: =ROUND((F14/$F$5*Assumptions!$C$14*Assumptions!$C$29),0) -> 21762 | H14: =VLOOKUP(B14,'23-24 Adjusted Formula counts'!$A$2:$L$319,9,FALSE) -> 159 | I14: =ROUND((H14/$H$5*Assumptions!$C$14*Assumptions!$C$30),0) -> 31110 | K14: 52872 | N14: 52872 | O14: 0 | P14: 52872 | R14: 0 | S14: 52872 | U14: =IFERROR(VLOOKUP($A14, 'Allocation 2022-23 F'!$A$7:$U$321,21,FALSE),0) -> 54774 | W14: -1902 | X14: -0.03472450433 | Y14: 232 | Z14: 0 | AB14: 5300330 | AC14: BAINBRIDGE ISLAND
A15: =VLOOKUP(B15,CCDDD!$A$3:$B$319,2,FALSE) -> 06119 | B15: 5300380 | C15: BATTLE GROUND | D15: 0 | E15: 0 | F15: =VLOOKUP(B15,'23-24 Adjusted Formula counts'!$A$2:$L$319,8,FALSE) -> 16174 | G15: =ROUND((F15/$F$5*Assumptions!$C$14*Assumptions!$C$29),0) -> 87167 | H15: =VLOOKUP(B15,'23-24 Adjusted Formula counts'!$A$2:$L$319,9,FALSE) -> 1098 | I15: =ROUND((H15/$H$5*Assumptions!$C$14*Assumptions!$C$30),0) -> 214836 | K15: 302003 | N15: 302003 | O15: 0 | P15: 302003 | R15: 0 | S15: 302003 | U15: =IFERROR(VLOOKUP($A15, 'Allocation 2022-23 F'!$A$7:$U$321,21,FALSE),0) -> 284436 | W15: 17567 | X15: 0.0617608179 | Y15: 36 | Z15: 0 | AB15: 5300380 | AC15: BATTLE GROUND
A16: =VLOOKUP(B16,CCDDD!$A$3:$B$319,2,FALSE) -> 17405 | B16: 5300390 | C16: BELLEVUE | D16: 0 | E16: 0 | F16: =VLOOKUP(B16,'23-24 Adjusted Formula counts'!$A$2:$L$319,8,FALSE) -> 22916 | G16: =ROUND((F16/$F$5*Assumptions!$C$14*Assumptions!$C$29),0) -> 123502 | H16: =VLOOKUP(B16,'23-24 Adjusted Formula counts'!$A$2:$L$319,9,FALSE) -> 1597 | I16: =ROUND((H16/$H$5*Assumptions!$C$14*Assumptions!$C$30),0) -> 312471 | K16: 435973 | N16: 435973 | O16: 0 | P16: 435973 | R16: 0 | S16: 435973 | U16: =IFERROR(VLOOKUP($A16, 'Allocation 2022-23 F'!$A$7:$U$321,21,FALSE),0) -> 346937 | W16: 89036 | X16: 0.2566344898 | Y16: 6 | Z16: 0 | AB16: 5300390 | AC16: BELLEVUE
A17: =VLOOKUP(B17,CCDDD!$A$3:$B$319,2,FALSE) -> 37501 | B17: 5300420 | C17: BELLINGHAM | D17: 0 | E17: 0 | F17: =VLOOKUP(B17,'23-24 Adjusted Formula counts'!$A$2:$L$319,8,FALSE) -> 12702.39702 | G17: =ROUND((F17/$F$5*Assumptions!$C$14*Assumptions!$C$29),0) -> 68457 | H17: =VLOOKUP(B17,'23-24 Adjusted Formula counts'!$A$2:$L$319,9,FALSE) -> 1763.099536 | I17: =ROUND((H17/$H$5*Assumptions!$C$14*Assumptions!$C$30),0) -> 344970 | K17: 413427 | N17: 413427 | O17: 0 | P17: 413427 | R17: 0 | S17: 413427 | U17: =IFERROR(VLOOKUP($A17, 'Allocation 2022-23 F'!$A$7:$U$321,21,FALSE),0) -> 332129 | W17: 81298 | X17: 0.2447783843 | Y17: 8 | Z17: 0 | AB17: 5300420 | AC17: BELLINGHAM
A18: =VLOOKUP(B18,CCDDD!$A$3:$B$319,2,FALSE) -> 01122 | B18: 5300450 | C18: BENGE | D18: 0 | E18: 0 | F18: =VLOOKUP(B18,'23-24 Adjusted Formula counts'!$A$2:$L$319,8,FALSE) -> 16 | G18: =ROUND((F18/$F$5*Assumptions!$C$14*Assumptions!$C$29),0) -> 86 | H18: =VLOOKUP(B18,'23-24 Adjusted Formula counts'!$A$2:$L$319,9,FALSE) -> 1 | I18: =ROUND((H18/$H$5*Assumptions!$C$14*Assumptions!$C$30),0) -> 196 | K18: 282 | N18: 282 | O18: 0 | P18: 282 | R18: 0 | S18: 282 | U18: =IFERROR(VLOOKUP($A18, 'Allocation 2022-23 F'!$A$7:$U$321,21,FALSE),0) -> 249 | W18: 33 | X18: 0.1325301205 | Y18: 182 | Z18: 0 | AB18: 5300450 | AC18: BENGE
A19: =VLOOKUP(B19,CCDDD!$A$3:$B$319,2,FALSE) -> 27403 | B19: 5300480 | C19: BETHEL | D19: 0 | E19: 0 | F19: =VLOOKUP(B19,'23-24 Adjusted Formula counts'!$A$2:$L$319,8,FALSE) -> 24535 | G19: =ROUND((F19/$F$5*Assumptions!$C$14*Assumptions!$C$29),0) -> 132227 | H19: =VLOOKUP(B19,'23-24 Adjusted Formula counts'!$A$2:$L$319,9,FALSE) -> 2251 | I19: =ROUND((H19/$H$5*Assumptions!$C$14*Assumptions!$C$30),0) -> 440433 | K19: 572660 | N19: 572660 | O19: 0 | P19: 572660 | R19: 0 | S19: 572660 | U19: =IFERROR(VLOOKUP($A19, 'Allocation 2022-23 F'!$A$7:$U$321,21,FALSE),0) -> 488476 | W19: 84184 | X19: 0.1723400945 | Y19: 7 | Z19: 0 | AB19: 5300480 | AC19: BETHEL
A20: =VLOOKUP(B20,CCDDD!$A$3:$B$319,2,FALSE) -> 20203 | B20: 5300510 | C20: BICKLETON | D20: 0 | E20: 0 | F20: =VLOOKUP(B20,'23-24 Adjusted Formula counts'!$A$2:$L$319,8,FALSE) -> 79 | G20: =ROUND((F20/$F$5*Assumptions!$C$14*Assumptions!$C$29),0) -> 426 | H20: =VLOOKUP(B20,'23-24 Adjusted Formula counts'!$A$2:$L$319,9,FALSE) -> 15 | I20: =ROUND((H20/$H$5*Assumptions!$C$14*Assumptions!$C$30),0) -> 2935 | K20: 3361 | N20: 3361 | O20: 0 | P20: 3361 | R20: 0 | S20: 3361 | U20: =IFERROR(VLOOKUP($A20, 'Allocation 2022-23 F'!$A$7:$U$321,21,FALSE),0) -> 1639 | W20: 1722 | X20: 1.050640635 | Y20: 129 | Z20: 0 | AB20: 5300510 | AC20: BICKLETON
A21: =VLOOKUP(B21,CCDDD!$A$3:$B$319,2,FALSE) -> 37503 | B21: 5300570 | C21: BLAINE | D21: 0 | E21: 0 | F21: =VLOOKUP(B21,'23-24 Adjusted Formula counts'!$A$2:$L$319,8,FALSE) -> 2520 | G21: =ROUND((F21/$F$5*Assumptions!$C$14*Assumptions!$C$29),0) -> 13581 | H21: =VLOOKUP(B21,'23-24 Adjusted Formula counts'!$A$2:$L$319,9,FALSE) -> 385 | I21: =ROUND((H21/$H$5*Assumptions!$C$14*Assumptions!$C$30),0) -> 75329 | K21: 88910 | N21: 88910 | O21: 0 | P21: 88910 | R21: 0 | S21: 88910 | U21: =IFERROR(VLOOKUP($A21, 'Allocation 2022-23 F'!$A$7:$U$321,21,FALSE),0) -> 69995 | W21: 18915 | X21: 0.2702335881 | Y21: 30 | Z21: 0 | AB21: 5300570 | AC21: BLAINE
A22: =VLOOKUP(B22,CCDDD!$A$3:$B$319,2,FALSE) -> 21234 | B22: 5300630 | C22: BOISTFORT | D22: 0 | E22: 0 | F22: =VLOOKUP(B22,'23-24 Adjusted Formula counts'!$A$2:$L$319,8,FALSE) -> 215 | G22: =ROUND((F22/$F$5*Assumptions!$C$14*Assumptions!$C$29),0) -> 1159 | H22: =VLOOKUP(B22,'23-24 Adjusted Formula counts'!$A$2:$L$319,9,FALSE) -> 27 | I22: =ROUND((H22/$H$5*Assumptions!$C$14*Assumptions!$C$30),0) -> 5283 | K22: 6442 | N22: 6442 | O22: 0 | P22: 6442 | R22: 0 | S22: 6442 | U22: =IFERROR(VLOOKUP($A22, 'Allocation 2022-23 F'!$A$7:$U$321,21,FALSE),0) -> 4301 | W22: 2141 | X22: 0.4977912113 | Y22: 117 | Z22: 0 | AB22: 5300630 | AC22: BOISTFORT
A23: =VLOOKUP(B23,CCDDD!$A$3:$B$319,2,FALSE) -> 18100 | B23: 5300660 | C23: BREMERTON | D23: 0 | E23: 0 | F23: =VLOOKUP(B23,'23-24 Adjusted Formula counts'!$A$2:$L$319,8,FALSE) -> 5044.808397 | G23: =ROUND((F23/$F$5*Assumptions!$C$14*Assumptions!$C$29),0) -> 27188 | H23: =VLOOKUP(B23,'23-24 Adjusted Formula counts'!$A$2:$L$319,9,FALSE) -> 809.1450276 | I23: =ROUND((H23/$H$5*Assumptions!$C$14*Assumptions!$C$30),0) -> 158318 | K23: 185506 | N23: 185506 | O23: 0 | P23: 185506 | R23: 0 | S23: 185506 | U23: =IFERROR(VLOOKUP($A23, 'Allocation 2022-23 F'!$A$7:$U$321,21,FALSE),0) -> 199370 | W23: -13864 | X23: -0.069539048 | Y23: 289 | Z23: 0 | AB23: 5300660 | AC23: BREMERTON
A24: =VLOOKUP(B24,CCDDD!$A$3:$B$319,2,FALSE) -> 24111 | B24: 5300690 | C24: BREWSTER | D24: 0 | E24: 0 | F24: =VLOOKUP(B24,'23-24 Adjusted Formula counts'!$A$2:$L$319,8,FALSE) -> 975 | G24: =ROUND((F24/$F$5*Assumptions!$C$14*Assumptions!$C$29),0) -> 5255 | H24: =VLOOKUP(B24,'23-24 Adjusted Formula counts'!$A$2:$L$319,9,FALSE) -> 185 | I24: =ROUND((H24/$H$5*Assumptions!$C$14*Assumptions!$C$30),0) -> 36197 | K24: 41452 | N24: 41452 | O24: 0 | P24: 41452 | R24: 0 | S24: 41452 | U24: =IFERROR(VLOOKUP($A24, 'Allocation 2022-23 F'!$A$7:$U$321,21,FALSE),0) -> 65629 | W24: -24177 | X24: -0.3683889744 | Y24: 304 | Z24: 0 | AB24: 5300690 | AC24: BREWSTER
A25: =VLOOKUP(B25,CCDDD!$A$3:$B$319,2,FALSE) -> 09075 | B25: 5300720 | C25: BRIDGEPORT | D25: 0 | E25: 0 | F25: =VLOOKUP(B25,'23-24 Adjusted Formula counts'!$A$2:$L$319,8,FALSE) -> 700 | G25: =ROUND((F25/$F$5*Assumptions!$C$14*Assumptions!$C$29),0) -> 3773 | H25: =VLOOKUP(B25,'23-24 Adjusted Formula counts'!$A$2:$L$319,9,FALSE) -> 204 | I25: =ROUND((H25/$H$5*Assumptions!$C$14*Assumptions!$C$30),0) -> 39915 | K25: 43688 | N25: 43688 | O25: 0 | P25: 43688 | R25: 0 | S25: 43688 | U25: =IFERROR(VLOOKUP($A25, 'Allocation 2022-23 F'!$A$7:$U$321,21,FALSE),0) -> 49145 | W25: -5457 | X25: -0.1110387628 | Y25: 266 | Z25: 0 | AB25: 5300720 | AC25: BRIDGEPORT
A26: =VLOOKUP(B26,CCDDD!$A$3:$B$319,2,FALSE) -> 16046 | B26: 5300750 | C26: BRINNON | D26: 0 | E26: 0 | F26: =VLOOKUP(B26,'23-24 Adjusted Formula counts'!$A$2:$L$319,8,FALSE) -> 118 | G26: =ROUND((F26/$F$5*Assumptions!$C$14*Assumptions!$C$29),0) -> 636 | H26: =VLOOKUP(B26,'23-24 Adjusted Formula counts'!$A$2:$L$319,9,FALSE) -> 32 | I26: =ROUND((H26/$H$5*Assumptions!$C$14*Assumptions!$C$30),0) -> 6261 | K26: 6897 | N26: 6897 | O26: 0 | P26: 6897 | R26: 0 | S26: 6897 | U26: =IFERROR(VLOOKUP($A26, 'Allocation 2022-23 F'!$A$7:$U$321,21,FALSE),0) -> 5671 | W26: 1226 | X26: 0.2161876212 | Y26: 140 | Z26: 0 | AB26: 5300750 | AC26: BRINNON
A27: =VLOOKUP(B27,CCDDD!$A$3:$B$319,2,FALSE) -> 29100 | B27: 5300780 | C27: BURLINGTON-EDISON | D27: 0 | E27: 0 | F27: =VLOOKUP(B27,'23-24 Adjusted Formula counts'!$A$2:$L$319,8,FALSE) -> 3771 | G27: =ROUND((F27/$F$5*Assumptions!$C$14*Assumptions!$C$29),0) -> 20323 | H27: =VLOOKUP(B27,'23-24 Adjusted Formula counts'!$A$2:$L$319,9,FALSE) -> 496 | I27: =ROUND((H27/$H$5*Assumptions!$C$14*Assumptions!$C$30),0) -> 97048 | K27: 117371 | N27: 117371 | O27: 0 | P27: 117371 | R27: 0 | S27: 117371 | U27: =IFERROR(VLOOKUP($A27, 'Allocation 2022-23 F'!$A$7:$U$321,21,FALSE),0) -> 120863 | W27: -3492 | X27: -0.02889221681 | Y27: 253 | Z27: 0 | AB27: 5300780 | AC27: BURLINGTON-EDISON
A28: =VLOOKUP(B28,CCDDD!$A$3:$B$319,2,FALSE) -> 06117 | B28: 5300810 | C28: CAMAS | D28: 0 | E28: 0 | F28: =VLOOKUP(B28,'23-24 Adjusted Formula counts'!$A$2:$L$319,8,FALSE) -> 7573 | G28: =ROUND((F28/$F$5*Assumptions!$C$14*Assumptions!$C$29),0) -> 40813 | H28: =VLOOKUP(B28,'23-24 Adjusted Formula counts'!$A$2:$L$319,9,FALSE) -> 322 | I28: =ROUND((H28/$H$5*Assumptions!$C$14*Assumptions!$C$30),0) -> 63003 | K28: 103816 | N28: 103816 | O28: 0 | P28: 103816 | R28: 0 | S28: 103816 | U28: =IFERROR(VLOOKUP($A28, 'Allocation 2022-23 F'!$A$7:$U$321,21,FALSE),0) -> 93684 | W28: 10132 | X28: 0.1081508048 | Y28: 52 | Z28: 0 | AB28: 5300810 | AC28: CAMAS
A29: =VLOOKUP(B29,CCDDD!$A$3:$B$319,2,FALSE) -> 05401 | B29: 5300840 | C29: CAPE FLATTERY | D29: 0 | E29: 0 | F29: =VLOOKUP(B29,'23-24 Adjusted Formula counts'!$A$2:$L$319,8,FALSE) -> 569 | G29: =ROUND((F29/$F$5*Assumptions!$C$14*Assumptions!$C$29),0) -> 3067 | H29: =VLOOKUP(B29,'23-24 Adjusted Formula counts'!$A$2:$L$319,9,FALSE) -> 129 | I29: =ROUND((H29/$H$5*Assumptions!$C$14*Assumptions!$C$30),0) -> 25240 | K29: 28307 | N29: 28307 | O29: 0 | P29: 28307 | R29: 0 | S29: 28307 | U29: =IFERROR(VLOOKUP($A29, 'Allocation 2022-23 F'!$A$7:$U$321,21,FALSE),0) -> 19799 | W29: 8508 | X29: 0.4297186727 | Y29: 61 | Z29: 0 | AB29: 5300840 | AC29: CAPE FLATTERY
A30: =VLOOKUP(B30,CCDDD!$A$3:$B$319,2,FALSE) -> 27019 | B30: 5300870 | C30: CARBONADO | D30: 0 | E30: 0 | F30: =VLOOKUP(B30,'23-24 Adjusted Formula counts'!$A$2:$L$319,8,FALSE) -> 212 | G30: =ROUND((F30/$F$5*Assumptions!$C$14*Assumptions!$C$29),0) -> 1143 | H30: =VLOOKUP(B30,'23-24 Adjusted Formula counts'!$A$2:$L$319,9,FALSE) -> 19 | I30: =ROUND((H30/$H$5*Assumptions!$C$14*Assumptions!$C$30),0) -> 3718 | K30: 4861 | N30: 4861 | O30: 0 | P30: 4861 | R30: 0 | S30: 4861 | U30: =IFERROR(VLOOKUP($A30, 'Allocation 2022-23 F'!$A$7:$U$321,21,FALSE),0) -> 3211 | W30: 1650 | X30: 0.513858611 | Y30: 131 | Z30: 0 | AB30: 5300870 | AC30: CARBONADO
A31: =VLOOKUP(B31,CCDDD!$A$3:$B$319,2,FALSE) -> 04228 | B31: 5300950 | C31: CASCADE | D31: 0 | E31: 0 | F31: =VLOOKUP(B31,'23-24 Adjusted Formula counts'!$A$2:$L$319,8,FALSE) -> 1590 | G31: =ROUND((F31/$F$5*Assumptions!$C$14*Assumptions!$C$29),0) -> 8569 | H31: =VLOOKUP(B31,'23-24 Adjusted Formula counts'!$A$2:$L$319,9,FALSE) -> 175 | I31: =ROUND((H31/$H$5*Assumptions!$C$14*Assumptions!$C$30),0) -> 34241 | K31: 42810 | N31: 42810 | O31: 0 | P31: 42810 | R31: 0 | S31: 42810 | U31: =IFERROR(VLOOKUP($A31, 'Allocation 2022-23 F'!$A$7:$U$321,21,FALSE),0) -> 42194 | W31: 616 | X31: 0.01459923212 | Y31: 162 | Z31: 0 | AB31: 5300950 | AC31: CASCADE
A32: =VLOOKUP(B32,CCDDD!$A$3:$B$319,2,FALSE) -> 04222 | B32: 5300960 | C32: CASHMERE | D32: 0 | E32: 0 | F32: =VLOOKUP(B32,'23-24 Adjusted Formula counts'!$A$2:$L$319,8,FALSE) -> 1530 | G32: =ROUND((F32/$F$5*Assumptions!$C$14*Assumptions!$C$29),0) -> 8246 | H32: =VLOOKUP(B32,'23-24 Adjusted Formula counts'!$A$2:$L$319,9,FALSE) -> 193 | I32: =ROUND((H32/$H$5*Assumptions!$C$14*Assumptions!$C$30),0) -> 37763 | K32: 46009 | N32: 46009 | O32: 0 | P32: 46009 | R32: 0 | S32: 46009 | U32: =IFERROR(VLOOKUP($A32, 'Allocation 2022-23 F'!$A$7:$U$321,21,FALSE),0) -> 37868 | W32: 8141 | X32: 0.2149836273 | Y32: 65 | Z32: 0 | AB32: 5300960 | AC32: CASHMERE
A33: =VLOOKUP(B33,CCDDD!$A$3:$B$319,2,FALSE) -> 08401 | B33: 5300990 | C33: CASTLE ROCK | D33: 0 | E33: 0 | F33: =VLOOKUP(B33,'23-24 Adjusted Formula counts'!$A$2:$L$319,8,FALSE) -> 1643 | G33: =ROUND((F33/$F$5*Assumptions!$C$14*Assumptions!$C$29),0) -> 8855 | H33: =VLOOKUP(B33,'23-24 Adjusted Formula counts'!$A$2:$L$319,9,FALSE) -> 195 | I33: =ROUND((H33/$H$5*Assumptions!$C$14*Assumptions!$C$30),0) -> 38154 | K33: 47009 | N33: 47009 | O33: 0 | P33: 47009 | R33: 0 | S33: 47009 | U33: =IFERROR(VLOOKUP($A33, 'Allocation 2022-23 F'!$A$7:$U$321,21,FALSE),0) -> 53313 | W33: -6304 | X33: -0.1182450809 | Y33: 271 | Z33: 0 | AB33: 5300990 | AC33: CASTLE ROCK
A34: =VLOOKUP(B34,CCDDD!$A$3:$B$319,2,FALSE) -> 18901 | B34: 5301000 | C34: CATALYST BREMERTON CHARTER | D34: 0 | E34: 0 | F34: =VLOOKUP(B34,'23-24 Adjusted Formula counts'!$A$2:$L$319,8,FALSE) -> 510.6458119 | G34: =ROUND((F34/$F$5*Assumptions!$C$14*Assumptions!$C$29),0) -> 2752 | H34: =VLOOKUP(B34,'23-24 Adjusted Formula counts'!$A$2:$L$319,9,FALSE) -> 65.29834254 | I34: =ROUND((H34/$H$5*Assumptions!$C$14*Assumptions!$C$30),0) -> 12776 | K34: 15528 | N34: 15528 | O34: 0 | P34: 15528 | R34: 0 | S34: 15528 | U34: =IFERROR(VLOOKUP($A34, 'Allocation 2022-23 F'!$A$7:$U$321,21,FALSE),0) -> 10771 | W34: 4757 | X34: 0.441648872 | Y34: 87 | Z34: 0 | AB34: 5301000 | AC34: CATALYST BREMERTON CHARTER
A35: =VLOOKUP(B35,CCDDD!$A$3:$B$319,2,FALSE) -> 20215 | B35: 5301050 | C35: CENTERVILLE | D35: 0 | E35: 0 | F35: =VLOOKUP(B35,'23-24 Adjusted Formula counts'!$A$2:$L$319,8,FALSE) -> 95 | G35: =ROUND((F35/$F$5*Assumptions!$C$14*Assumptions!$C$29),0) -> 512 | H35: =VLOOKUP(B35,'23-24 Adjusted Formula counts'!$A$2:$L$319,9,FALSE) -> 13 | I35: =ROUND((H35/$H$5*Assumptions!$C$14*Assumptions!$C$30),0) -> 2544 | K35: 3056 | N35: 3056 | O35: 0 | P35: 3056 | R35: 0 | S35: 3056 | U35: =IFERROR(VLOOKUP($A35, 'Allocation 2022-23 F'!$A$7:$U$321,21,FALSE),0) -> 2805 | W35: 251 | X35: 0.08948306595 | Y35: 171 | Z35: 0 | AB35: 5301050 | AC35: CENTERVILLE
A36: =VLOOKUP(B36,CCDDD!$A$3:$B$319,2,FALSE) -> 18401 | B36: 5301080 | C36: CENTRAL KITSAP | D36: 0 | E36: 0 | F36: =VLOOKUP(B36,'23-24 Adjusted Formula counts'!$A$2:$L$319,8,FALSE) -> 11324 | G36: =ROUND((F36/$F$5*Assumptions!$C$14*Assumptions!$C$29),0) -> 61029 | H36: =VLOOKUP(B36,'23-24 Adjusted Formula counts'!$A$2:$L$319,9,FALSE) -> 913 | I36: =ROUND((H36/$H$5*Assumptions!$C$14*Assumptions!$C$30),0) -> 178638 | K36: 239667 | N36: 239667 | O36: 0 | P36: 239667 | R36: 0 | S36: 239667 | U36: =IFERROR(VLOOKUP($A36, 'Allocation 2022-23 F'!$A$7:$U$321,21,FALSE),0) -> 236852 | W36: 2815 | X36: 0.01188505902 | Y36: 104 | Z36: 0 | AB36: 5301080 | AC36: CENTRAL KITSAP
A37: =VLOOKUP(B37,CCDDD!$A$3:$B$319,2,FALSE) -> 32356 | B37: 5301110 | C37: CENTRAL VALLEY | D37: 0 | E37: 0 | F37: =VLOOKUP(B37,'23-24 Adjusted Formula counts'!$A$2:$L$319,8,FALSE) -> 17283 | G37: =ROUND((F37/$F$5*Assumptions!$C$14*Assumptions!$C$29),0) -> 93144 | H37: =VLOOKUP(B37,'23-24 Adjusted Formula counts'!$A$2:$L$319,9,FALSE) -> 1571 | I37: =ROUND((H37/$H$5*Assumptions!$C$14*Assumptions!$C$30),0) -> 307383 | K37: 400527 | N37: 400527 | O37: 0 | P37: 400527 | R37: 0 | S37: 400527 | U37: =IFERROR(VLOOKUP($A37, 'Allocation 2022-23 F'!$A$7:$U$321,21,FALSE),0) -> 396099 | W37: 4428 | X37: 0.01117902343 | Y37: 90 | Z37: 0 | AB37: 5301110 | AC37: CENTRAL VALLEY
A38: =VLOOKUP(B38,CCDDD!$A$3:$B$319,2,FALSE) -> 21401 | B38: 5301140 | C38: CENTRALIA | D38: 0 | E38: 0 | F38: =VLOOKUP(B38,'23-24 Adjusted Formula counts'!$A$2:$L$319,8,FALSE) -> 4272 | G38: =ROUND((F38/$F$5*Assumptions!$C$14*Assumptions!$C$29),0) -> 23023 | H38: =VLOOKUP(B38,'23-24 Adjusted Formula counts'!$A$2:$L$319,9,FALSE) -> 812 | I38: =ROUND((H38/$H$5*Assumptions!$C$14*Assumptions!$C$30),0) -> 158877 | K38: 181900 | N38: 181900 | O38: 0 | P38: 181900 | R38: 0 | S38: 181900 | U38: =IFERROR(VLOOKUP($A38, 'Allocation 2022-23 F'!$A$7:$U$321,21,FALSE),0) -> 174555 | W38: 7345 | X38: 0.042078428 | Y38: 69 | Z38: 0 | AB38: 5301140 | AC38: CENTRALIA
A39: =VLOOKUP(B39,CCDDD!$A$3:$B$319,2,FALSE) -> 21302 | B39: 5301170 | C39: CHEHALIS | D39: 0 | E39: 0 | F39: =VLOOKUP(B39,'23-24 Adjusted Formula counts'!$A$2:$L$319,8,FALSE) -> 2861 | G39: =ROUND((F39/$F$5*Assumptions!$C$14*Assumptions!$C$29),0) -> 15419 | H39: =VLOOKUP(B39,'23-24 Adjusted Formula counts'!$A$2:$L$319,9,FALSE) -> 345 | I39: =ROUND((H39/$H$5*Assumptions!$C$14*Assumptions!$C$30),0) -> 67503 | K39: 82922 | N39: 82922 | O39: 0 | P39: 82922 | R39: 0 | S39: 82922 | U39: =IFERROR(VLOOKUP($A39, 'Allocation 2022-23 F'!$A$7:$U$321,21,FALSE),0) -> 76260 | W39: 6662 | X39: 0.08735903488 | Y39: 74 | Z39: 0 | AB39: 5301170 | AC39: CHEHALIS
A40: =VLOOKUP(B40,CCDDD!$A$3:$B$319,2,FALSE) -> 32360 | B40: 5301230 | C40: CHENEY | D40: 0 | E40: 0 | F40: =VLOOKUP(B40,'23-24 Adjusted Formula counts'!$A$2:$L$319,8,FALSE) -> 6337 | G40: =ROUND((F40/$F$5*Assumptions!$C$14*Assumptions!$C$29),0) -> 34152 | H40: =VLOOKUP(B40,'23-24 Adjusted Formula counts'!$A$2:$L$319,9,FALSE) -> 783 | I40: =ROUND((H40/$H$5*Assumptions!$C$14*Assumptions!$C$30),0) -> 153203 | K40: 187355 | N40: 187355 | O40: 0 | P40: 187355 | R40: 0 | S40: 187355 | U40: =IFERROR(VLOOKUP($A40, 'Allocation 2022-23 F'!$A$7:$U$321,21,FALSE),0) -> 158964 | W40: 28391 | X40: 0.1786001862 | Y40: 21 | Z40: 0 | AB40: 5301230 | AC40: CHENEY
A41: =VLOOKUP(B41,CCDDD!$A$3:$B$319,2,FALSE) -> 33036 | B41: 5301260 | C41: CHEWELAH | D41: 0 | E41: 0 | F41: =VLOOKUP(B41,'23-24 Adjusted Formula counts'!$A$2:$L$319,8,FALSE) -> 947 | G41: =ROUND((F41/$F$5*Assumptions!$C$14*Assumptions!$C$29),0) -> 5104 | H41: =VLOOKUP(B41,'23-24 Adjusted Formula counts'!$A$2:$L$319,9,FALSE) -> 190 | I41: =ROUND((H41/$H$5*Assumptions!$C$14*Assumptions!$C$30),0) -> 37176 | K41: 42280 | N41: 42280 | O41: 0 | P41: 42280 | R41: 0 | S41: 42280 | U41: =IFERROR(VLOOKUP($A41, 'Allocation 2022-23 F'!$A$7:$U$321,21,FALSE),0) -> 46485 | W41: -4205 | X41: -0.09045928794 | Y41: 260 | Z41: 0 | AB41: 5301260 | AC41: CHEWELAH
A42: =VLOOKUP(B42,CCDDD!$A$3:$B$319,2,FALSE) -> 16049 | B42: 5301290 | C42: CHIMACUM | D42: 0 | E42: 0 | F42: =VLOOKUP(B42,'23-24 Adjusted Formula counts'!$A$2:$L$319,8,FALSE) -> 1180 | G42: =ROUND((F42/$F$5*Assumptions!$C$14*Assumptions!$C$29),0) -> 6359 | H42: =VLOOKUP(B42,'23-24 Adjusted Formula counts'!$A$2:$L$319,9,FALSE) -> 204 | I42: =ROUND((H42/$H$5*Assumptions!$C$14*Assumptions!$C$30),0) -> 39915 | K42: 46274 | N42: 46274 | O42: 0 | P42: 46274 | R42: 0 | S42: 46274 | U42: =IFERROR(VLOOKUP($A42, 'Allocation 2022-23 F'!$A$7:$U$321,21,FALSE),0) -> 38635 | W42: 7639 | X42: 0.1977222726 | Y42: 67 | Z42: 0 | AB42: 5301290 | AC42: CHIMACUM
A43: =VLOOKUP(B43,CCDDD!$A$3:$B$319,2,FALSE) -> 02250 | B43: 5301320 | C43: CLARKSTON | D43: 0 | E43: 0 | F43: =VLOOKUP(B43,'23-24 Adjusted Formula counts'!$A$2:$L$319,8,FALSE) -> 2878 | G43: =ROUND((F43/$F$5*Assumptions!$C$14*Assumptions!$C$29),0) -> 15510 | H43: =VLOOKUP(B43,'23-24 Adjusted Formula counts'!$A$2:$L$319,9,FALSE) -> 578 | I43: =ROUND((H43/$H$5*Assumptions!$C$14*Assumptions!$C$30),0) -> 113092 | K43: 128602 | N43: 128602 | O43: 0 | P43: 128602 | R43: 0 | S43: 128602 | U43: =IFERROR(VLOOKUP($A43, 'Allocation 2022-23 F'!$A$7:$U$321,21,FALSE),0) -> 121662 | W43: 6940 | X43: 0.05704328385 | Y43: 72 | Z43: 0 | AB43: 5301320 | AC43: CLARKSTON
A44: =VLOOKUP(B44,CCDDD!$A$3:$B$319,2,FALSE) -> 19404 | B44: 5301350 | C44: CLE ELUM-ROSLYN | D44: 0 | E44: 0 | F44: =VLOOKUP(B44,'23-24 Adjusted Formula counts'!$A$2:$L$319,8,FALSE) -> 1041 | G44: =ROUND((F44/$F$5*Assumptions!$C$14*Assumptions!$C$29),0) -> 5610 | H44: =VLOOKUP(B44,'23-24 Adjusted Formula counts'!$A$2:$L$319,9,FALSE) -> 128 | I44: =ROUND((H44/$H$5*Assumptions!$C$14*Assumptions!$C$30),0) -> 25045 | K44: 30655 | N44: 30655 | O44: 0 | P44: 30655 | R44: 0 | S44: 30655 | U44: =IFERROR(VLOOKUP($A44, 'Allocation 2022-23 F'!$A$7:$U$321,21,FALSE),0) -> 41359 | W44: -10704 | X44: -0.2588070311 | Y44: 281 | Z44: 0 | AB44: 5301350 | AC44: CLE ELUM-ROSLYN
A45: =VLOOKUP(B45,CCDDD!$A$3:$B$319,2,FALSE) -> 27400 | B45: 5301410 | C45: CLOVER PARK | D45: 0 | E45: 0 | F45: =VLOOKUP(B45,'23-24 Adjusted Formula counts'!$A$2:$L$319,8,FALSE) -> 13910 | G45: =ROUND((F45/$F$5*Assumptions!$C$14*Assumptions!$C$29),0) -> 74966 | H45: =VLOOKUP(B45,'23-24 Adjusted Formula counts'!$A$2:$L$319,9,FALSE) -> 1888 | I45: =ROUND((H45/$H$5*Assumptions!$C$14*Assumptions!$C$30),0) -> 369408 | K45: 444374 | N45: 444374 | O45: 0 | P45: 444374 | R45: 0 | S45: 444374 | U45: =IFERROR(VLOOKUP($A45, 'Allocation 2022-23 F'!$A$7:$U$321,21,FALSE),0) -> 458961 | W45: -14587 | X45: -0.03178265691 | Y45: 291 | Z45: 0 | AB45: 5301410 | AC45: CLOVER PARK
A46: =VLOOKUP(B46,CCDDD!$A$3:$B$319,2,FALSE) -> 38300 | B46: 5301440 | C46: COLFAX | D46: 0 | E46: 0 | F46: =VLOOKUP(B46,'23-24 Adjusted Formula counts'!$A$2:$L$319,8,FALSE) -> 604 | G46: =ROUND((F46/$F$5*Assumptions!$C$14*Assumptions!$C$29),0) -> 3255 | H46: =VLOOKUP(B46,'23-24 Adjusted Formula counts'!$A$2:$L$319,9,FALSE) -> 51 | I46: =ROUND((H46/$H$5*Assumptions!$C$14*Assumptions!$C$30),0) -> 9979 | K46: 13234 | N46: 13234 | O46: 0 | P46: 13234 | R46: 0 | S46: 13234 | U46: =IFERROR(VLOOKUP($A46, 'Allocation 2022-23 F'!$A$7:$U$321,21,FALSE),0) -> 15415 | W46: -2181 | X46: -0.141485566 | Y46: 236 | Z46: 0 | AB46: 5301440 | AC46: COLFAX
A47: =VLOOKUP(B47,CCDDD!$A$3:$B$319,2,FALSE) -> 36250 | B47: 5301470 | C47: COLLEGE PLACE | D47: 0 | E47: 0 | F47: =VLOOKUP(B47,'23-24 Adjusted Formula counts'!$A$2:$L$319,8,FALSE) -> 2104 | G47: =ROUND((F47/$F$5*Assumptions!$C$14*Assumptions!$C$29),0) -> 11339 | H47: =VLOOKUP(B47,'23-24 Adjusted Formula counts'!$A$2:$L$319,9,FALSE) -> 244 | I47: =ROUND((H47/$H$5*Assumptions!$C$14*Assumptions!$C$30),0) -> 47741 | K47: 59080 | N47: 59080 | O47: 0 | P47: 59080 | R47: 0 | S47: 59080 | U47: =IFERROR(VLOOKUP($A47, 'Allocation 2022-23 F'!$A$7:$U$321,21,FALSE),0) -> 59618 | W47: -538 | X47: -0.009024120232 | Y47: 203 | Z47: 0 | AB47: 5301470 | AC47: COLLEGE PLACE
A48: =VLOOKUP(B48,CCDDD!$A$3:$B$319,2,FALSE) -> 38306 | B48: 5301500 | C48: COLTON | D48: 0 | E48: 0 | F48: =VLOOKUP(B48,'23-24 Adjusted Formula counts'!$A$2:$L$319,8,FALSE) -> 243 | G48: =ROUND((F48/$F$5*Assumptions!$C$14*Assumptions!$C$29),0) -> 1310 | H48: =VLOOKUP(B48,'23-24 Adjusted Formula counts'!$A$2:$L$319,9,FALSE) -> 20 | I48: =ROUND((H48/$H$5*Assumptions!$C$14*Assumptions!$C$30),0) -> 3913 | K48: 5223 | N48: 5223 | O48: 0 | P48: 5223 | R48: 0 | S48: 5223 | U48: =IFERROR(VLOOKUP($A48, 'Allocation 2022-23 F'!$A$7:$U$321,21,FALSE),0) -> 4373 | W48: 850 | X48: 0.1943745712 | Y48: 151 | Z48: 0 | AB48: 5301500 | AC48: COLTON
A49: =VLOOKUP(B49,CCDDD!$A$3:$B$319,2,FALSE) -> 33206 | B49: 5301560 | C49: COLUMBIA (STEV) | D49: 0 | E49: 0 | F49: =VLOOKUP(B49,'23-24 Adjusted Formula counts'!$A$2:$L$319,8,FALSE) -> 207 | G49: =ROUND((F49/$F$5*Assumptions!$C$14*Assumptions!$C$29),0) -> 1116 | H49: =VLOOKUP(B49,'23-24 Adjusted Formula counts'!$A$2:$L$319,9,FALSE) -> 43 | I49: =ROUND((H49/$H$5*Assumptions!$C$14*Assumptions!$C$30),0) -> 8413 | K49: 9529 | N49: 9529 | O49: 0 | P49: 9529 | R49: 0 | S49: 9529 | U49: =IFERROR(VLOOKUP($A49, 'Allocation 2022-23 F'!$A$7:$U$321,21,FALSE),0) -> 9086 | W49: 443 | X49: 0.04875632842 | Y49: 166 | Z49: 0 | AB49: 5301560 | AC49: COLUMBIA (STEV)
A50: =VLOOKUP(B50,CCDDD!$A$3:$B$319,2,FALSE) -> 36400 | B50: 5301590 | C50: COLUMBIA (WALLA) | D50: 0 | E50: 0 | F50: =VLOOKUP(B50,'23-24 Adjusted Formula counts'!$A$2:$L$319,8,FALSE) -> 781 | G50: =ROUND((F50/$F$5*Assumptions!$C$14*Assumptions!$C$29),0) -> 4209 | H50: =VLOOKUP(B50,'23-24 Adjusted Formula counts'!$A$2:$L$319,9,FALSE) -> 90 | I50: =ROUND((H50/$H$5*Assumptions!$C$14*Assumptions!$C$30),0) -> 17609 | K50: 21818 | N50: 21818 | O50: 0 | P50: 21818 | R50: 0 | S50: 21818 | U50: =IFERROR(VLOOKUP($A50, 'Allocation 2022-23 F'!$A$7:$U$321,21,FALSE),0) -> 31950 | W50: -10132 | X50: -0.3171205008 | Y50: 279 | Z50: 0 | AB50: 5301590 | AC50: COLUMBIA (WALLA)
A51: =VLOOKUP(B51,CCDDD!$A$3:$B$319,2,FALSE) -> 33115 | B51: 5301630 | C51: COLVILLE | D51: 0 | E51: 0 | F51: =VLOOKUP(B51,'23-24 Adjusted Formula counts'!$A$2:$L$319,8,FALSE) -> 2016 | G51: =ROUND((F51/$F$5*Assumptions!$C$14*Assumptions!$C$29),0) -> 10865 | H51: =VLOOKUP(B51,'23-24 Adjusted Formula counts'!$A$2:$L$319,9,FALSE) -> 355 | I51: =ROUND((H51/$H$5*Assumptions!$C$14*Assumptions!$C$30),0) -> 69460 | K51: 80325 | N51: 80325 | O51: 0 | P51: 80325 | R51: 0 | S51: 80325 | U51: =IFERROR(VLOOKUP($A51, 'Allocation 2022-23 F'!$A$7:$U$321,21,FALSE),0) -> 80272 | W51: 53 | X51: 0.0006602551325 | Y51: 180 | Z51: 0 | AB51: 5301630 | AC51: COLVILLE
A52: =VLOOKUP(B52,CCDDD!$A$3:$B$319,2,FALSE) -> 29011 | B52: 5301660 | C52: CONCRETE | D52: 0 | E52: 0 | F52: =VLOOKUP(B52,'23-24 Adjusted Formula counts'!$A$2:$L$319,8,FALSE) -> 726 | G52: =ROUND((F52/$F$5*Assumptions!$C$14*Assumptions!$C$29),0) -> 3913 | H52: =VLOOKUP(B52,'23-24 Adjusted Formula counts'!$A$2:$L$319,9,FALSE) -> 147 | I52: =ROUND((H52/$H$5*Assumptions!$C$14*Assumptions!$C$30),0) -> 28762 | K52: 32675 | N52: 32675 | O52: 0 | P52: 32675 | R52: 0 | S52: 32675 | U52: =IFERROR(VLOOKUP($A52, 'Allocation 2022-23 F'!$A$7:$U$321,21,FALSE),0) -> 26371 | W52: 6304 | X52: 0.2390504721 | Y52: 75 | Z52: 0 | AB52: 5301660 | AC52: CONCRETE
A53: =VLOOKUP(B53,CCDDD!$A$3:$B$319,2,FALSE) -> 29317 | B53: 5301680 | C53: CONWAY | D53: 0 | E53: 0 | F53: =VLOOKUP(B53,'23-24 Adjusted Formula counts'!$A$2:$L$319,8,FALSE) -> 550 | G53: =ROUND((F53/$F$5*Assumptions!$C$14*Assumptions!$C$29),0) -> 2964 | H53: =VLOOKUP(B53,'23-24 Adjusted Formula counts'!$A$2:$L$319,9,FALSE) -> 47 | I53: =ROUND((H53/$H$5*Assumptions!$C$14*Assumptions!$C$30),0) -> 9196 | K53: 12160 | N53: 12160 | O53: 0 | P53: 12160 | R53: 0 | S53: 12160 | U53: =IFERROR(VLOOKUP($A53, 'Allocation 2022-23 F'!$A$7:$U$321,21,FALSE),0) -> 9799 | W53: 2361 | X53: 0.2409429534 | Y53: 115 | Z53: 0 | AB53: 5301680 | AC53: CONWAY
A54: =VLOOKUP(B54,CCDDD!$A$3:$B$319,2,FALSE) -> 14099 | B54: 5301710 | C54: COSMOPOLIS | D54: 0 | E54: 0 | F54: =VLOOKUP(B54,'23-24 Adjusted Formula counts'!$A$2:$L$319,8,FALSE) -> 320 | G54: =ROUND((F54/$F$5*Assumptions!$C$14*Assumptions!$C$29),0) -> 1725 | H54: =VLOOKUP(B54,'23-24 Adjusted Formula counts'!$A$2:$L$319,9,FALSE) -> 27 | I54: =ROUND((H54/$H$5*Assumptions!$C$14*Assumptions!$C$30),0) -> 5283 | K54: 7008 | N54: 7008 | O54: 0 | P54: 7008 | R54: 0 | S54: 7008 | U54: =IFERROR(VLOOKUP($A54, 'Allocation 2022-23 F'!$A$7:$U$321,21,FALSE),0) -> 7221 | W54: -213 | X54: -0.02949729954 | Y54: 193 | Z54: 0 | AB54: 5301710 | AC54: COSMOPOLIS
A55: =VLOOKUP(B55,CCDDD!$A$3:$B$319,2,FALSE) -> 13151 | B55: 5303440 | C55: COULEE-HARTLINE | D55: 0 | E55: 0 | F55: =VLOOKUP(B55,'23-24 Adjusted Formula counts'!$A$2:$L$319,8,FALSE) -> 253 | G55: =ROUND((F55/$F$5*Assumptions!$C$14*Assumptions!$C$29),0) -> 1364 | H55: =VLOOKUP(B55,'23-24 Adjusted Formula counts'!$A$2:$L$319,9,FALSE) -> 32 | I55: =ROUND((H55/$H$5*Assumptions!$C$14*Assumptions!$C$30),0) -> 6261 | K55: 7625 | N55: 7625 | O55: 0 | P55: 7625 | R55: 0 | S55: 7625 | U55: =IFERROR(VLOOKUP($A55, 'Allocation 2022-23 F'!$A$7:$U$321,21,FALSE),0) -> 9817 | W55: -2192 | X55: -0.2232861363 | Y55: 237 | Z55: 0 | AB55: 5303440 | AC55: COULEE-HARTLINE
A56: =VLOOKUP(B56,CCDDD!$A$3:$B$319,2,FALSE) -> 15204 | B56: 5301800 | C56: COUPEVILLE | D56: 0 | E56: 0 | F56: =VLOOKUP(B56,'23-24 Adjusted Formula counts'!$A$2:$L$319,8,FALSE) -> 1115 | G56: =ROUND((F56/$F$5*Assumptions!$C$14*Assumptions!$C$29),0) -> 6009 | H56: =VLOOKUP(B56,'23-24 Adjusted Formula counts'!$A$2:$L$319,9,FALSE) -> 122 | I56: =ROUND((H56/$H$5*Assumptions!$C$14*Assumptions!$C$30),0) -> 23871 | K56: 29880 | N56: 29880 | O56: 0 | P56: 29880 | R56: 0 | S56: 29880 | U56: =IFERROR(VLOOKUP($A56, 'Allocation 2022-23 F'!$A$7:$U$321,21,FALSE),0) -> 28963 | W56: 917 | X56: 0.03166108483 | Y56: 147 | Z56: 0 | AB56: 5301800 | AC56: COUPEVILLE
A57: =VLOOKUP(B57,CCDDD!$A$3:$B$319,2,FALSE) -> 05313 | B57: 5301830 | C57: CRESCENT | D57: 0 | E57: 0 | F57: =VLOOKUP(B57,'23-24 Adjusted Formula counts'!$A$2:$L$319,8,FALSE) -> 357 | G57: =ROUND((F57/$F$5*Assumptions!$C$14*Assumptions!$C$29),0) -> 1924 | H57: =VLOOKUP(B57,'23-24 Adjusted Formula counts'!$A$2:$L$319,9,FALSE) -> 45 | I57: =ROUND((H57/$H$5*Assumptions!$C$14*Assumptions!$C$30),0) -> 8805 | K57: 10729 | N57: 10729 | O57: 0 | P57: 10729 | R57: 0 | S57: 10729 | U57: =IFERROR(VLOOKUP($A57, 'Allocation 2022-23 F'!$A$7:$U$321,21,FALSE),0) -> 14107 | W57: -3378 | X57: -0.2394555894 | Y57: 251 | Z57: 0 | AB57: 5301830 | AC57: CRESCENT
A58: =VLOOKUP(B58,CCDDD!$A$3:$B$319,2,FALSE) -> 22073 | B58: 5301860 | C58: CRESTON | D58: 0 | E58: 0 | F58: =VLOOKUP(B58,'23-24 Adjusted Formula counts'!$A$2:$L$319,8,FALSE) -> 110 | G58: =ROUND((F58/$F$5*Assumptions!$C$14*Assumptions!$C$29),0) -> 593 | H58: =VLOOKUP(B58,'23-24 Adjusted Formula counts'!$A$2:$L$319,9,FALSE) -> 19 | I58: =ROUND((H58/$H$5*Assumptions!$C$14*Assumptions!$C$30),0) -> 3718 | K58: 4311 | N58: 4311 | O58: 0 | P58: 4311 | R58: 0 | S58: 4311 | U58: =IFERROR(VLOOKUP($A58, 'Allocation 2022-23 F'!$A$7:$U$321,21,FALSE),0) -> 1593 | W58: 2718 | X58: 1.706214689 | Y58: 107 | Z58: 0 | AB58: 5301860 | AC58: CRESTON
A59: =VLOOKUP(B59,CCDDD!$A$3:$B$319,2,FALSE) -> 10050 | B59: 5301890 | C59: CURLEW | D59: 0 | E59: 0 | F59: =VLOOKUP(B59,'23-24 Adjusted Formula counts'!$A$2:$L$319,8,FALSE) -> 152 | G59: =ROUND((F59/$F$5*Assumptions!$C$14*Assumptions!$C$29),0) -> 819 | H59: =VLOOKUP(B59,'23-24 Adjusted Formula counts'!$A$2:$L$319,9,FALSE) -> 45 | I59: =ROUND((H59/$H$5*Assumptions!$C$14*Assumptions!$C$30),0) -> 8805 | K59: 9624 | N59: 9624 | O59: 0 | P59: 9624 | R59: 0 | S59: 9624 | U59: =IFERROR(VLOOKUP($A59, 'Allocation 2022-23 F'!$A$7:$U$321,21,FALSE),0) -> 12257 | W59: -2633 | X59: -0.2148160235 | Y59: 244 | Z59: 0 | AB59: 5301890 | AC59: CURLEW
A60: =VLOOKUP(B60,CCDDD!$A$3:$B$319,2,FALSE) -> 26059 | B60: 5301920 | C60: CUSICK | D60: 0 | E60: 0 | F60: =VLOOKUP(B60,'23-24 Adjusted Formula counts'!$A$2:$L$319,8,FALSE) -> 303 | G60: =ROUND((F60/$F$5*Assumptions!$C$14*Assumptions!$C$29),0) -> 1633 | H60: =VLOOKUP(B60,'23-24 Adjusted Formula counts'!$A$2:$L$319,9,FALSE) -> 63 | I60: =ROUND((H60/$H$5*Assumptions!$C$14*Assumptions!$C$30),0) -> 12327 | K60: 13960 | N60: 13960 | O60: 0 | P60: 13960 | R60: 0 | S60: 13960 | U60: =IFERROR(VLOOKUP($A60, 'Allocation 2022-23 F'!$A$7:$U$321,21,FALSE),0) -> 17532 | W60: -3572 | X60: -0.2037417294 | Y60: 255 | Z60: 0 | AB60: 5301920 | AC60: CUSICK
A61: =VLOOKUP(B61,CCDDD!$A$3:$B$319,2,FALSE) -> 19007 | B61: 5301950 | C61: DAMMAN | D61: 0 | E61: 0 | F61: =VLOOKUP(B61,'23-24 Adjusted Formula counts'!$A$2:$L$319,8,FALSE) -> 109 | G61: =ROUND((F61/$F$5*Assumptions!$C$14*Assumptions!$C$29),0) -> 587 | H61: =VLOOKUP(B61,'23-24 Adjusted Formula counts'!$A$2:$L$319,9,FALSE) -> 2 | I61: =ROUND((H61/$H$5*Assumptions!$C$14*Assumptions!$C$30),0) -> 391 | K61: 978 | N61: 978 | O61: 0 | P61: 978 | R61: 0 | S61: 978 | U61: =IFERROR(VLOOKUP($A61, 'Allocation 2022-23 F'!$A$7:$U$321,21,FALSE),0) -> 1547 | W61: -569 | X61: -0.3678086619 | Y61: 205 | Z61: 0 | AB61: 5301950 | AC61: DAMMAN
A62: =VLOOKUP(B62,CCDDD!$A$3:$B$319,2,FALSE) -> 31330 | B62: 5301980 | C62: DARRINGTON | D62: 0 | E62: 0 | F62: =VLOOKUP(B62,'23-24 Adjusted Formula counts'!$A$2:$L$319,8,FALSE) -> 510 | G62: =ROUND((F62/$F$5*Assumptions!$C$14*Assumptions!$C$29),0) -> 2749 | H62: =VLOOKUP(B62,'23-24 Adjusted Formula counts'!$A$2:$L$319,9,FALSE) -> 79 | I62: =ROUND((H62/$H$5*Assumptions!$C$14*Assumptions!$C$30),0) -> 15457 | K62: 18206 | N62: 18206 | O62: 0 | P62: 18206 | R62: 0 | S62: 18206 | U62: =IFERROR(VLOOKUP($A62, 'Allocation 2022-23 F'!$A$7:$U$321,21,FALSE),0) -> 12076 | W62: 6130 | X62: 0.5076184167 | Y62: 77 | Z62: 0 | AB62: 5301980 | AC62: DARRINGTON
A63: =VLOOKUP(B63,CCDDD!$A$3:$B$319,2,FALSE) -> 22207 | B63: 5302010 | C63: DAVENPORT | D63: 0 | E63: 0 | F63: =VLOOKUP(B63,'23-24 Adjusted Formula counts'!$A$2:$L$319,8,FALSE) -> 570 | G63: =ROUND((F63/$F$5*Assumptions!$C$14*Assumptions!$C$29),0) -> 3072 | H63: =VLOOKUP(B63,'23-24 Adjusted Formula counts'!$A$2:$L$319,9,FALSE) -> 67 | I63: =ROUND((H63/$H$5*Assumptions!$C$14*Assumptions!$C$30),0) -> 13109 | K63: 16181 | N63: 16181 | O63: 0 | P63: 16181 | R63: 0 | S63: 16181 | U63: =IFERROR(VLOOKUP($A63, 'Allocation 2022-23 F'!$A$7:$U$321,21,FALSE),0) -> 23406 | W63: -7225 | X63: -0.3086815346 | Y63: 276 | Z63: 0 | AB63: 5302010 | AC63: DAVENPORT
A64: =VLOOKUP(B64,CCDDD!$A$3:$B$319,2,FALSE) -> 07002 | B64: 5302040 | C64: DAYTON | D64: 0 | E64: 0 | F64: =VLOOKUP(B64,'23-24 Adjusted Formula counts'!$A$2:$L$319,8,FALSE) -> 525 | G64: =ROUND((F64/$F$5*Assumptions!$C$14*Assumptions!$C$29),0) -> 2829 | H64: =VLOOKUP(B64,'23-24 Adjusted Formula counts'!$A$2:$L$319,9,FALSE) -> 97 | I64: =ROUND((H64/$H$5*Assumptions!$C$14*Assumptions!$C$30),0) -> 18979 | K64: 21808 | N64: 21808 | O64: 0 | P64: 21808 | R64: 0 | S64: 21808 | U64: =IFERROR(VLOOKUP($A64, 'Allocation 2022-23 F'!$A$7:$U$321,21,FALSE),0) -> 21030 | W64: 778 | X64: 0.03699476938 | Y64: 155 | Z64: 0 | AB64: 5302040 | AC64: DAYTON
A65: =VLOOKUP(B65,CCDDD!$A$3:$B$319,2,FALSE) -> 32414 | B65: 5302070 | C65: DEER PARK | D65: 0 | E65: 0 | F65: =VLOOKUP(B65,'23-24 Adjusted Formula counts'!$A$2:$L$319,8,FALSE) -> 2401 | G65: =ROUND((F65/$F$5*Assumptions!$C$14*Assumptions!$C$29),0) -> 12940 | H65: =VLOOKUP(B65,'23-24 Adjusted Formula counts'!$A$2:$L$319,9,FALSE) -> 346 | I65: =ROUND((H65/$H$5*Assumptions!$C$14*Assumptions!$C$30),0) -> 67699 | K65: 80639 | N65: 80639 | O65: 0 | P65: 80639 | R65: 0 | S65: 80639 | U65: =IFERROR(VLOOKUP($A65, 'Allocation 2022-23 F'!$A$7:$U$321,21,FALSE),0) -> 78877 | W65: 1762 | X65: 0.02233857779 | Y65: 128 | Z65: 0 | AB65: 5302070 | AC65: DEER PARK
A66: =VLOOKUP(B66,CCDDD!$A$3:$B$319,2,FALSE) -> 27343 | B66: 5302130 | C66: DIERINGER | D66: 0 | E66: 0 | F66: =VLOOKUP(B66,'23-24 Adjusted Formula counts'!$A$2:$L$319,8,FALSE) -> 2313 | G66: =ROUND((F66/$F$5*Assumptions!$C$14*Assumptions!$C$29),0) -> 12466 | H66: =VLOOKUP(B66,'23-24 Adjusted Formula counts'!$A$2:$L$319,9,FALSE) -> 99 | I66: =ROUND((H66/$H$5*Assumptions!$C$14*Assumptions!$C$30),0) -> 19370 | K66: 31836 | N66: 31836 | O66: 0 | P66: 31836 | R66: 0 | S66: 31836 | U66: =IFERROR(VLOOKUP($A66, 'Allocation 2022-23 F'!$A$7:$U$321,21,FALSE),0) -> 24293 | W66: 7543 | X66: 0.3105009674 | Y66: 68 | Z66: 0 | AB66: 5302130 | AC66: DIERINGER
A67: =VLOOKUP(B67,CCDDD!$A$3:$B$319,2,FALSE) -> 36101 | B67: 5302160 | C67: DIXIE | D67: 0 | E67: 0 | F67: =VLOOKUP(B67,'23-24 Adjusted Formula counts'!$A$2:$L$319,8,FALSE) -> 77 | G67: =ROUND((F67/$F$5*Assumptions!$C$14*Assumptions!$C$29),0) -> 415 | H67: =VLOOKUP(B67,'23-24 Adjusted Formula counts'!$A$2:$L$319,9,FALSE) -> 10 | I67: =ROUND((H67/$H$5*Assumptions!$C$14*Assumptions!$C$30),0) -> 1957 | K67: 2372 | N67: 2372 | O67: 0 | P67: 2372 | R67: 0 | S67: 2372 | U67: =IFERROR(VLOOKUP($A67, 'Allocation 2022-23 F'!$A$7:$U$321,21,FALSE),0) -> 2311 | W67: 61 | X67: 0.02639549978 | Y67: 179 | Z67: 0 | AB67: 5302160 | AC67: DIXIE
A68: =VLOOKUP(B68,CCDDD!$A$3:$B$319,2,FALSE) -> 32361 | B68: 5302280 | C68: EAST VALLEY (SPK) | D68: 0 | E68: 0 | F68: =VLOOKUP(B68,'23-24 Adjusted Formula counts'!$A$2:$L$319,8,FALSE) -> 4751 | G68: =ROUND((F68/$F$5*Assumptions!$C$14*Assumptions!$C$29),0) -> 25605 | H68: =VLOOKUP(B68,'23-24 Adjusted Formula counts'!$A$2:$L$319,9,FALSE) -> 691 | I68: =ROUND((H68/$H$5*Assumptions!$C$14*Assumptions!$C$30),0) -> 135202 | K68: 160807 | N68: 160807 | O68: 0 | P68: 160807 | R68: 0 | S68: 160807 | U68: =IFERROR(VLOOKUP($A68, 'Allocation 2022-23 F'!$A$7:$U$321,21,FALSE),0) -> 179221 | W68: -18414 | X68: -0.102744656 | Y68: 295 | Z68: 0 | AB68: 5302280 | AC68: EAST VALLEY (SPK)
A69: =VLOOKUP(B69,CCDDD!$A$3:$B$319,2,FALSE) -> 39090 | B69: 5305370 | C69: EAST VALLEY (YAK) | D69: 0 | E69: 0 | F69: =VLOOKUP(B69,'23-24 Adjusted Formula counts'!$A$2:$L$319,8,FALSE) -> 3617 | G69: =ROUND((F69/$F$5*Assumptions!$C$14*Assumptions!$C$29),0) -> 19493 | H69: =VLOOKUP(B69,'23-24 Adjusted Formula counts'!$A$2:$L$319,9,FALSE) -> 451 | I69: =ROUND((H69/$H$5*Assumptions!$C$14*Assumptions!$C$30),0) -> 88243 | K69: 107736 | N69: 107736 | O69: 0 | P69: 107736 | R69: 0 | S69: 107736 | U69: =IFERROR(VLOOKUP($A69, 'Allocation 2022-23 F'!$A$7:$U$321,21,FALSE),0) -> 99036 | W69: 8700 | X69: 0.08784684357 | Y69: 60 | Z69: 0 | AB69: 5305370 | AC69: EAST VALLEY (YAK)
A70: =VLOOKUP(B70,CCDDD!$A$3:$B$319,2,FALSE) -> 09206 | B70: 5302310 | C70: EASTMONT | D70: 0 | E70: 0 | F70: =VLOOKUP(B70,'23-24 Adjusted Formula counts'!$A$2:$L$319,8,FALSE) -> 6551 | G70: =ROUND((F70/$F$5*Assumptions!$C$14*Assumptions!$C$29),0) -> 35306 | H70: =VLOOKUP(B70,'23-24 Adjusted Formula counts'!$A$2:$L$319,9,FALSE) -> 668 | I70: =ROUND((H70/$H$5*Assumptions!$C$14*Assumptions!$C$30),0) -> 130702 | K70: 166008 | N70: 166008 | O70: 0 | P70: 166008 | R70: 0 | S70: 166008 | U70: =IFERROR(VLOOKUP($A70, 'Allocation 2022-23 F'!$A$7:$U$321,21,FALSE),0) -> 178672 | W70: -12664 | X70: -0.07087848124 | Y70: 285 | Z70: 0 | AB70: 5302310 | AC70: EASTMONT
A71: =VLOOKUP(B71,CCDDD!$A$3:$B$319,2,FALSE) -> 19028 | B71: 5302340 | C71: EASTON | D71: 0 | E71: 0 | F71: =VLOOKUP(B71,'23-24 Adjusted Formula counts'!$A$2:$L$319,8,FALSE) -> 146 | G71: =ROUND((F71/$F$5*Assumptions!$C$14*Assumptions!$C$29),0) -> 787 | H71: =VLOOKUP(B71,'23-24 Adjusted Formula counts'!$A$2:$L$319,9,FALSE) -> 12 | I71: =ROUND((H71/$H$5*Assumptions!$C$14*Assumptions!$C$30),0) -> 2348 | K71: =ROUNDDOWN(+I71+G71+E71+D71+J71,0) -> 3135 | N71: =K71 -> 3135 | O71: =-ROUND(N71/$N$5*$M$5,0) -> 0 | P71: =+K71+O71+M71 -> 3135 | R71: =-1*(P71*Q71) -> 0 | S71: =+P71+R71 -> 3135 | U71: =IFERROR(VLOOKUP($A71, 'Allocation 2022-23 F'!$A$7:$U$321,21,FALSE),0) -> 3210 | W71: =+S71-U71 -> -75 | X71: =IF(U71>0,W71/U71,0) -> -0.02336448598 | Y71: 187 | Z71: =(SUM(D71:E71)/S71) -> 0 | AB71: =+B71 -> 5302340 | AC71: =+C71 -> EASTON
A72: =VLOOKUP(B72,CCDDD!$A$3:$B$319,2,FALSE) -> 27404 | B72: 5302370 | C72: EATONVILLE | D72: 0 | E72: 0 | F72: =VLOOKUP(B72,'23-24 Adjusted Formula counts'!$A$2:$L$319,8,FALSE) -> 2240 | G72: =ROUND((F72/$F$5*Assumptions!$C$14*Assumptions!$C$29),0) -> 12072 | H72: =VLOOKUP(B72,'23-24 Adjusted Formula counts'!$A$2:$L$319,9,FALSE) -> 210 | I72: =ROUND((H72/$H$5*Assumptions!$C$14*Assumptions!$C$30),0) -> 41089 | K72: 53161 | N72: 53161 | O72: 0 | P72: 53161 | R72: 0 | S72: 53161 | U72: =IFERROR(VLOOKUP($A72, 'Allocation 2022-23 F'!$A$7:$U$321,21,FALSE),0) -> 49258 | W72: 3903 | X72: 0.07923586016 | Y72: =RANK(W72,$W$7:$W$322,0) -> 96 | Z72: 0 | AB72: 5302370 | AC72: EATONVILLE
A73: =VLOOKUP(B73,CCDDD!$A$3:$B$319,2,FALSE) -> 31015 | B73: 5302400 | C73: EDMONDS | D73: 0 | E73: 0 | F73: =VLOOKUP(B73,'23-24 Adjusted Formula counts'!$A$2:$L$319,8,FALSE) -> 24590 | G73: =ROUND((F73/$F$5*Assumptions!$C$14*Assumptions!$C$29),0) -> 132524 | H73: =VLOOKUP(B73,'23-24 Adjusted Formula counts'!$A$2:$L$319,9,FALSE) -> 1911 | I73: =ROUND((H73/$H$5*Assumptions!$C$14*Assumptions!$C$30),0) -> 373908 | K73: 506432 | N73: 506432 | O73: 0 | P73: 506432 | R73: 0 | S73: 506432 | U73: =IFERROR(VLOOKUP($A73, 'Allocation 2022-23 F'!$A$7:$U$321,21,FALSE),0) -> 522741 | W73: -16309 | X73: -0.03119900677 | Y73: 294 | Z73: 0 | AB73: 5302400 | AC73: EDMONDS
A74: =VLOOKUP(B74,CCDDD!$A$3:$B$319,2,FALSE) -> 19401 | B74: 5302460 | C74: ELLENSBURG | D74: 0 | E74: 0 | F74: =VLOOKUP(B74,'23-24 Adjusted Formula counts'!$A$2:$L$319,8,FALSE) -> 3474 | G74: =ROUND((F74/$F$5*Assumptions!$C$14*Assumptions!$C$29),0) -> 18723 | H74: =VLOOKUP(B74,'23-24 Adjusted Formula counts'!$A$2:$L$319,9,FALSE) -> 433 | I74: =ROUND((H74/$H$5*Assumptions!$C$14*Assumptions!$C$30),0) -> 84721 | K74: 103444 | N74: 103444 | O74: 0 | P74: 103444 | R74: 0 | S74: 103444 | U74: =IFERROR(VLOOKUP($A74, 'Allocation 2022-23 F'!$A$7:$U$321,21,FALSE),0) -> 93047 | W74: 10397 | X74: 0.1117392286 | Y74: 50 | Z74: 0 | AB74: 5302460 | AC74: ELLENSBURG
A75: =VLOOKUP(B75,CCDDD!$A$3:$B$319,2,FALSE) -> 14068 | B75: 5302490 | C75: ELMA | D75: 0 | E75: 0 | F75: =VLOOKUP(B75,'23-24 Adjusted Formula counts'!$A$2:$L$319,8,FALSE) -> 1609 | G75: =ROUND((F75/$F$5*Assumptions!$C$14*Assumptions!$C$29),0) -> 8671 | H75: =VLOOKUP(B75,'23-24 Adjusted Formula counts'!$A$2:$L$319,9,FALSE) -> 284 | I75: =ROUND((H75/$H$5*Assumptions!$C$14*Assumptions!$C$30),0) -> 55568 | K75: 64239 | N75: 64239 | O75: 0 | P75: 64239 | R75: 0 | S75: 64239 | U75: =IFERROR(VLOOKUP($A75, 'Allocation 2022-23 F'!$A$7:$U$321,21,FALSE),0) -> 57079 | W75: 7160 | X75: 0.1254401794 | Y75: 70 | Z75: 0 | AB75: 5302490 | AC75: ELMA
A76: =VLOOKUP(B76,CCDDD!$A$3:$B$319,2,FALSE) -> 38308 | B76: 5302520 | C76: ENDICOTT | D76: 0 | E76: 0 | F76: =VLOOKUP(B76,'23-24 Adjusted Formula counts'!$A$2:$L$319,8,FALSE) -> 87 | G76: =ROUND((F76/$F$5*Assumptions!$C$14*Assumptions!$C$29),0) -> 469 | H76: =VLOOKUP(B76,'23-24 Adjusted Formula counts'!$A$2:$L$319,9,FALSE) -> 18 | I76: =ROUND((H76/$H$5*Assumptions!$C$14*Assumptions!$C$30),0) -> 3522 | K76: 3991 | N76: 3991 | O76: 0 | P76: 3991 | R76: 0 | S76: 3991 | U76: =IFERROR(VLOOKUP($A76, 'Allocation 2022-23 F'!$A$7:$U$321,21,FALSE),0) -> 5198 | W76: -1207 | X76: -0.2322046941 | Y76: 221 | Z76: 0 | AB76: 5302520 | AC76: ENDICOTT
A77: =VLOOKUP(B77,CCDDD!$A$3:$B$319,2,FALSE) -> 04127 | B77: 5302550 | C77: ENTIAT | D77: 0 | E77: 0 | F77: =VLOOKUP(B77,'23-24 Adjusted Formula counts'!$A$2:$L$319,8,FALSE) -> 416 | G77: =ROUND((F77/$F$5*Assumptions!$C$14*Assumptions!$C$29),0) -> 2242 | H77: =VLOOKUP(B77,'23-24 Adjusted Formula counts'!$A$2:$L$319,9,FALSE) -> 61 | I77: =ROUND((H77/$H$5*Assumptions!$C$14*Assumptions!$C$30),0) -> 11935 | K77: 14177 | N77: 14177 | O77: 0 | P77: 14177 | R77: 0 | S77: 14177 | U77: =IFERROR(VLOOKUP($A77, 'Allocation 2022-23 F'!$A$7:$U$321,21,FALSE),0) -> 12080 | W77: 2097 | X77: 0.1735927152 | Y77: 118 | Z77: 0 | AB77: 5302550 | AC77: ENTIAT
A78: =VLOOKUP(B78,CCDDD!$A$3:$B$319,2,FALSE) -> 17216 | B78: 5300001 | C78: ENUMCLAW | D78: 0 | E78: 0 | F78: =VLOOKUP(B78,'23-24 Adjusted Formula counts'!$A$2:$L$319,8,FALSE) -> 4771 | G78: =ROUND((F78/$F$5*Assumptions!$C$14*Assumptions!$C$29),0) -> 25713 | H78: =VLOOKUP(B78,'23-24 Adjusted Formula counts'!$A$2:$L$319,9,FALSE) -> 339 | I78: =ROUND((H78/$H$5*Assumptions!$C$14*Assumptions!$C$30),0) -> 66329 | K78: 92042 | N78: 92042 | O78: 0 | P78: 92042 | R78: 0 | S78: 92042 | U78: =IFERROR(VLOOKUP($A78, 'Allocation 2022-23 F'!$A$7:$U$321,21,FALSE),0) -> 80336 | W78: 11706 | X78: 0.1457130054 | Y78: 46 | Z78: 0 | AB78: 5300001 | AC78: ENUMCLAW
A79: =VLOOKUP(B79,CCDDD!$A$3:$B$319,2,FALSE) -> 13165 | B79: 5302610 | C79: EPHRATA | D79: 0 | E79: 0 | F79: =VLOOKUP(B79,'23-24 Adjusted Formula counts'!$A$2:$L$319,8,FALSE) -> 2954 | G79: =ROUND((F79/$F$5*Assumptions!$C$14*Assumptions!$C$29),0) -> 15920 | H79: =VLOOKUP(B79,'23-24 Adjusted Formula counts'!$A$2:$L$319,9,FALSE) -> 340 | I79: =ROUND((H79/$H$5*Assumptions!$C$14*Assumptions!$C$30),0) -> 66525 | K79: 82445 | N79: 82445 | O79: 0 | P79: 82445 | R79: 0 | S79: 82445 | U79: =IFERROR(VLOOKUP($A79, 'Allocation 2022-23 F'!$A$7:$U$321,21,FALSE),0) -> 91710 | W79: -9265 | X79: -0.10102497 | Y79: 278 | Z79: 0 | AB79: 5302610 | AC79: EPHRATA
A80: =VLOOKUP(B80,CCDDD!$A$3:$B$319,2,FALSE) -> 21036 | B80: 5302640 | C80: EVALINE | D80: 0 | E80: 0 | F80: =VLOOKUP(B80,'23-24 Adjusted Formula counts'!$A$2:$L$319,8,FALSE) -> 128 | G80: =ROUND((F80/$F$5*Assumptions!$C$14*Assumptions!$C$29),0) -> 690 | H80: =VLOOKUP(B80,'23-24 Adjusted Formula counts'!$A$2:$L$319,9,FALSE) -> 18 | I80: =ROUND((H80/$H$5*Assumptions!$C$14*Assumptions!$C$30),0) -> 3522 | K80: 4212 | N80: 4212 | O80: 0 | P80: 4212 | R80: 0 | S80: 4212 | U80: =IFERROR(VLOOKUP($A80, 'Allocation 2022-23 F'!$A$7:$U$321,21,FALSE),0) -> 7950 | W80: -3738 | X80: -0.4701886792 | Y80: 257 | Z80: 0 | AB80: 5302640 | AC80: EVALINE
A81: =VLOOKUP(B81,CCDDD!$A$3:$B$319,2,FALSE) -> 31002 | B81: 5302670 | C81: EVERETT | D81: 0 | E81: 0 | F81: =VLOOKUP(B81,'23-24 Adjusted Formula counts'!$A$2:$L$319,8,FALSE) -> 23124 | G81: =ROUND((F81/$F$5*Assumptions!$C$14*Assumptions!$C$29),0) -> 124623 | H81: =VLOOKUP(B81,'23-24 Adjusted Formula counts'!$A$2:$L$319,9,FALSE) -> 1895 | I81: =ROUND((H81/$H$5*Assumptions!$C$14*Assumptions!$C$30),0) -> 370778 | K81: 495401 | N81: 495401 | O81: 0 | P81: 495401 | R81: 0 | S81: 495401 | U81: =IFERROR(VLOOKUP($A81, 'Allocation 2022-23 F'!$A$7:$U$321,21,FALSE),0) -> 498603 | W81: -3202 | X81: -0.006421942908 | Y81: 249 | Z81: 0 | AB81: 5302670 | AC81: EVERETT
A82: =VLOOKUP(B82,CCDDD!$A$3:$B$319,2,FALSE) -> 06114 | B82: 5302700 | C82: EVERGREEN (CLARK) | D82: 0 | E82: 0 | F82: =VLOOKUP(B82,'23-24 Adjusted Formula counts'!$A$2:$L$319,8,FALSE) -> 27238 | G82: =ROUND((F82/$F$5*Assumptions!$C$14*Assumptions!$C$29),0) -> 146795 | H82: =VLOOKUP(B82,'23-24 Adjusted Formula counts'!$A$2:$L$319,9,FALSE) -> 2969 | I82: =ROUND((H82/$H$5*Assumptions!$C$14*Assumptions!$C$30),0) -> 580918 | K82: 727713 | N82: 727713 | O82: 0 | P82: 727713 | R82: 0 | S82: 727713 | U82: =IFERROR(VLOOKUP($A82, 'Allocation 2022-23 F'!$A$7:$U$321,21,FALSE),0) -> 775410 | W82: -47697 | X82: -0.06151197431 | Y82: 312 | Z82: 0 | AB82: 5302700 | AC82: EVERGREEN (CLARK)
A83: =VLOOKUP(B83,CCDDD!$A$3:$B$319,2,FALSE) -> 33205 | B83: 5302730 | C83: EVERGREEN (STEV) | D83: 0 | E83: 0 | F83: =VLOOKUP(B83,'23-24 Adjusted Formula counts'!$A$2:$L$319,8,FALSE) -> 57 | G83: =ROUND((F83/$F$5*Assumptions!$C$14*Assumptions!$C$29),0) -> 307 | H83: =VLOOKUP(B83,'23-24 Adjusted Formula counts'!$A$2:$L$319,9,FALSE) -> 18 | I83: =ROUND((H83/$H$5*Assumptions!$C$14*Assumptions!$C$30),0) -> 3522 | K83: 3829 | N83: 3829 | O83: 0 | P83: 3829 | R83: 0 | S83: 3829 | U83: =IFERROR(VLOOKUP($A83, 'Allocation 2022-23 F'!$A$7:$U$321,21,FALSE),0) -> 4304 | W83: -475 | X83: -0.1103624535 | Y83: 200 | Z83: 0 | AB83: 5302730 | AC83: EVERGREEN (STEV)
A84: =VLOOKUP(B84,CCDDD!$A$3:$B$319,2,FALSE) -> 17210 | B84: 5302820 | C84: FEDERAL WAY | D84: 0 | E84: 0 | F84: =VLOOKUP(B84,'23-24 Adjusted Formula counts'!$A$2:$L$319,8,FALSE) -> 24624 | G84: =ROUND((F84/$F$5*Assumptions!$C$14*Assumptions!$C$29),0) -> 132707 | H84: =VLOOKUP(B84,'23-24 Adjusted Formula counts'!$A$2:$L$319,9,FALSE) -> 4027 | I84: =ROUND((H84/$H$5*Assumptions!$C$14*Assumptions!$C$30),0) -> 787927 | K84: 920634 | N84: 920634 | O84: 0 | P84: 920634 | R84: 0 | S84: 920634 | U84: =IFERROR(VLOOKUP($A84, 'Allocation 2022-23 F'!$A$7:$U$321,21,FALSE),0) -> 786171 | W84: 134463 | X84: 0.1710353091 | Y84: 3 | Z84: 0 | AB84: 5302820 | AC84: FEDERAL WAY
A85: =VLOOKUP(B85,CCDDD!$A$3:$B$319,2,FALSE) -> 37502 | B85: 5302850 | C85: FERNDALE | D85: 0 | E85: 0 | F85: =VLOOKUP(B85,'23-24 Adjusted Formula counts'!$A$2:$L$319,8,FALSE) -> 6288 | G85: =ROUND((F85/$F$5*Assumptions!$C$14*Assumptions!$C$29),0) -> 33888 | H85: =VLOOKUP(B85,'23-24 Adjusted Formula counts'!$A$2:$L$319,9,FALSE) -> 1010 | I85: =ROUND((H85/$H$5*Assumptions!$C$14*Assumptions!$C$30),0) -> 197618 | K85: 231506 | N85: 231506 | O85: 0 | P85: 231506 | R85: 0 | S85: 231506 | U85: =IFERROR(VLOOKUP($A85, 'Allocation 2022-23 F'!$A$7:$U$321,21,FALSE),0) -> 185033 | W85: 46473 | X85: 0.2511606038 | Y85: 11 | Z85: 0 | AB85: 5302850 | AC85: FERNDALE
A86: =VLOOKUP(B86,CCDDD!$A$3:$B$319,2,FALSE) -> 27417 | B86: 5302880 | C86: FIFE | D86: 0 | E86: 0 | F86: =VLOOKUP(B86,'23-24 Adjusted Formula counts'!$A$2:$L$319,8,FALSE) -> 4139 | G86: =ROUND((F86/$F$5*Assumptions!$C$14*Assumptions!$C$29),0) -> 22306 | H86: =VLOOKUP(B86,'23-24 Adjusted Formula counts'!$A$2:$L$319,9,FALSE) -> 404 | I86: =ROUND((H86/$H$5*Assumptions!$C$14*Assumptions!$C$30),0) -> 79047 | K86: 101353 | N86: 101353 | O86: 0 | P86: 101353 | R86: 0 | S86: 101353 | U86: =IFERROR(VLOOKUP($A86, 'Allocation 2022-23 F'!$A$7:$U$321,21,FALSE),0) -> 89749 | W86: 11604 | X86: 0.1292939197 | Y86: 47 | Z86: 0 | AB86: 5302880 | AC86: FIFE
A87: =VLOOKUP(B87,CCDDD!$A$3:$B$319,2,FALSE) -> 03053 | B87: 5302910 | C87: FINLEY | D87: 0 | E87: 0 | F87: =VLOOKUP(B87,'23-24 Adjusted Formula counts'!$A$2:$L$319,8,FALSE) -> 907 | G87: =ROUND((F87/$F$5*Assumptions!$C$14*Assumptions!$C$29),0) -> 4888 | H87: =VLOOKUP(B87,'23-24 Adjusted Formula counts'!$A$2:$L$319,9,FALSE) -> 135 | I87: =ROUND((H87/$H$5*Assumptions!$C$14*Assumptions!$C$30),0) -> 26414 | K87: 31302 | N87: 31302 | O87: 0 | P87: 31302 | R87: 0 | S87: 31302 | U87: =IFERROR(VLOOKUP($A87, 'Allocation 2022-23 F'!$A$7:$U$321,21,FALSE),0) -> 38479 | W87: -7177 | X87: -0.1865173211 | Y87: 275 | Z87: 0 | AB87: 5302910 | AC87: FINLEY
A88: =VLOOKUP(B88,CCDDD!$A$3:$B$319,2,FALSE) -> 27402 | B88: 5302940 | C88: FRANKLIN PIERCE | D88: 0 | E88: 0 | F88: =VLOOKUP(B88,'23-24 Adjusted Formula counts'!$A$2:$L$319,8,FALSE) -> 9422 | G88: =ROUND((F88/$F$5*Assumptions!$C$14*Assumptions!$C$29),0) -> 50778 | H88: =VLOOKUP(B88,'23-24 Adjusted Formula counts'!$A$2:$L$319,9,FALSE) -> 1236 | I88: =ROUND((H88/$H$5*Assumptions!$C$14*Assumptions!$C$30),0) -> 241837 | K88: 292615 | N88: 292615 | O88: 0 | P88: 292615 | R88: 0 | S88: 292615 | U88: =IFERROR(VLOOKUP($A88, 'Allocation 2022-23 F'!$A$7:$U$321,21,FALSE),0) -> 285840 | W88: 6775 | X88: 0.02370207109 | Y88: 73 | Z88: 0 | AB88: 5302940 | AC88: FRANKLIN PIERCE
A89: =VLOOKUP(B89,CCDDD!$A$3:$B$319,2,FALSE) -> 32358 | B89: 5302970 | C89: FREEMAN | D89: 0 | E89: 0 | F89: =VLOOKUP(B89,'23-24 Adjusted Formula counts'!$A$2:$L$319,8,FALSE) -> 1009 | G89: =ROUND((F89/$F$5*Assumptions!$C$14*Assumptions!$C$29),0) -> 5438 | H89: =VLOOKUP(B89,'23-24 Adjusted Formula counts'!$A$2:$L$319,9,FALSE) -> 57 | I89: =ROUND((H89/$H$5*Assumptions!$C$14*Assumptions!$C$30),0) -> 11153 | K89: 16591 | N89: 16591 | O89: 0 | P89: 16591 | R89: 0 | S89: 16591 | U89: =IFERROR(VLOOKUP($A89, 'Allocation 2022-23 F'!$A$7:$U$321,21,FALSE),0) -> 15493 | W89: 1098 | X89: 0.07087071581 | Y89: 144 | Z89: 0 | AB89: 5302970 | AC89: FREEMAN
A90: =VLOOKUP(B90,CCDDD!$A$3:$B$319,2,FALSE) -> 38302 | B90: 5303000 | C90: GARFIELD | D90: 0 | E90: 0 | F90: =VLOOKUP(B90,'23-24 Adjusted Formula counts'!$A$2:$L$319,8,FALSE) -> 128 | G90: =ROUND((F90/$F$5*Assumptions!$C$14*Assumptions!$C$29),0) -> 690 | H90: =VLOOKUP(B90,'23-24 Adjusted Formula counts'!$A$2:$L$319,9,FALSE) -> 23 | I90: =ROUND((H90/$H$5*Assumptions!$C$14*Assumptions!$C$30),0) -> 4500 | K90: 5190 | N90: 5190 | O90: 0 | P90: 5190 | R90: 0 | S90: 5190 | U90: =IFERROR(VLOOKUP($A90, 'Allocation 2022-23 F'!$A$7:$U$321,21,FALSE),0) -> 6572 | W90: -1382 | X90: -0.2102860621 | Y90: 225 | Z90: 0 | AB90: 5303000 | AC90: GARFIELD
A91: =VLOOKUP(B91,CCDDD!$A$3:$B$319,2,FALSE) -> 20401 | B91: 5303030 | C91: GLENWOOD | D91: 0 | E91: 0 | F91: =VLOOKUP(B91,'23-24 Adjusted Formula counts'!$A$2:$L$319,8,FALSE) -> 62 | G91: =ROUND((F91/$F$5*Assumptions!$C$14*Assumptions!$C$29),0) -> 334 | H91: =VLOOKUP(B91,'23-24 Adjusted Formula counts'!$A$2:$L$319,9,FALSE) -> 16 | I91: =ROUND((H91/$H$5*Assumptions!$C$14*Assumptions!$C$30),0) -> 3131 | K91: 3465 | N91: 3465 | O91: 0 | P91: 3465 | R91: 0 | S91: 3465 | U91: =IFERROR(VLOOKUP($A91, 'Allocation 2022-23 F'!$A$7:$U$321,21,FALSE),0) -> 2279 | W91: 1186 | X91: 0.5204036858 | Y91: 142 | Z91: 0 | AB91: 5303030 | AC91: GLENWOOD
A92: =VLOOKUP(B92,CCDDD!$A$3:$B$319,2,FALSE) -> 20404 | B92: 5303090 | C92: GOLDENDALE | D92: 0 | E92: 0 | F92: =VLOOKUP(B92,'23-24 Adjusted Formula counts'!$A$2:$L$319,8,FALSE) -> 1077 | G92: =ROUND((F92/$F$5*Assumptions!$C$14*Assumptions!$C$29),0) -> 5804 | H92: =VLOOKUP(B92,'23-24 Adjusted Formula counts'!$A$2:$L$319,9,FALSE) -> 241 | I92: =ROUND((H92/$H$5*Assumptions!$C$14*Assumptions!$C$30),0) -> 47154 | K92: 52958 | N92: 52958 | O92: 0 | P92: 52958 | R92: 0 | S92: 52958 | U92: =IFERROR(VLOOKUP($A92, 'Allocation 2022-23 F'!$A$7:$U$321,21,FALSE),0) -> 51112 | W92: 1846 | X92: 0.03611676319 | Y92: 121 | Z92: 0 | AB92: 5303090 | AC92: GOLDENDALE
A93: =VLOOKUP(B93,CCDDD!$A$3:$B$319,2,FALSE) -> 13301 | B93: 5303130 | C93: GRAND COULEE | D93: 0 | E93: 0 | F93: =VLOOKUP(B93,'23-24 Adjusted Formula counts'!$A$2:$L$319,8,FALSE) -> 686 | G93: =ROUND((F93/$F$5*Assumptions!$C$14*Assumptions!$C$29),0) -> 3697 | H93: =VLOOKUP(B93,'23-24 Adjusted Formula counts'!$A$2:$L$319,9,FALSE) -> 88 | I93: =ROUND((H93/$H$5*Assumptions!$C$14*Assumptions!$C$30),0) -> 17218 | K93: 20915 | N93: 20915 | O93: 0 | P93: 20915 | R93: 0 | S93: 20915 | U93: =IFERROR(VLOOKUP($A93, 'Allocation 2022-23 F'!$A$7:$U$321,21,FALSE),0) -> 25155 | W93: -4240 | X93: -0.1685549593 | Y93: 261 | Z93: 0 | AB93: 5303130 | AC93: GRAND COULEE
A94: =VLOOKUP(B94,CCDDD!$A$3:$B$319,2,FALSE) -> 39200 | B94: 5303150 | C94: GRANDVIEW | D94: 0 | E94: 0 | F94: =VLOOKUP(B94,'23-24 Adjusted Formula counts'!$A$2:$L$319,8,FALSE) -> 3793 | G94: =ROUND((F94/$F$5*Assumptions!$C$14*Assumptions!$C$29),0) -> 20442 | H94: =VLOOKUP(B94,'23-24 Adjusted Formula counts'!$A$2:$L$319,9,FALSE) -> 621 | I94: =ROUND((H94/$H$5*Assumptions!$C$14*Assumptions!$C$30),0) -> 121505 | K94: 141947 | N94: 141947 | O94: 0 | P94: 141947 | R94: 0 | S94: 141947 | U94: =IFERROR(VLOOKUP($A94, 'Allocation 2022-23 F'!$A$7:$U$321,21,FALSE),0) -> 144175 | W94: -2228 | X94: -0.015453442 | Y94: 239 | Z94: 0 | AB94: 5303150 | AC94: GRANDVIEW
A95: =VLOOKUP(B95,CCDDD!$A$3:$B$319,2,FALSE) -> 39204 | B95: 5303180 | C95: GRANGER | D95: 0 | E95: 0 | F95: =VLOOKUP(B95,'23-24 Adjusted Formula counts'!$A$2:$L$319,8,FALSE) -> 1614 | G95: =ROUND((F95/$F$5*Assumptions!$C$14*Assumptions!$C$29),0) -> 8698 | H95: =VLOOKUP(B95,'23-24 Adjusted Formula counts'!$A$2:$L$319,9,FALSE) -> 353 | I95: =ROUND((H95/$H$5*Assumptions!$C$14*Assumptions!$C$30),0) -> 69068 | K95: 77766 | N95: 77766 | O95: 0 | P95: 77766 | R95: 0 | S95: 77766 | U95: =IFERROR(VLOOKUP($A95, 'Allocation 2022-23 F'!$A$7:$U$321,21,FALSE),0) -> 88821 | W95: -11055 | X95: -0.1244638092 | Y95: 283 | Z95: 0 | AB95: 5303180 | AC95: GRANGER
A96: =VLOOKUP(B96,CCDDD!$A$3:$B$319,2,FALSE) -> 31332 | B96: 5303210 | C96: GRANITE FALLS | D96: 0 | E96: 0 | F96: =VLOOKUP(B96,'23-24 Adjusted Formula counts'!$A$2:$L$319,8,FALSE) -> 2837 | G96: =ROUND((F96/$F$5*Assumptions!$C$14*Assumptions!$C$29),0) -> 15290 | H96: =VLOOKUP(B96,'23-24 Adjusted Formula counts'!$A$2:$L$319,9,FALSE) -> 209 | I96: =ROUND((H96/$H$5*Assumptions!$C$14*Assumptions!$C$30),0) -> 40893 | K96: 56183 | N96: 56183 | O96: 0 | P96: 56183 | R96: 0 | S96: 56183 | U96: =IFERROR(VLOOKUP($A96, 'Allocation 2022-23 F'!$A$7:$U$321,21,FALSE),0) -> 55717 | W96: 466 | X96: 0.008363695102 | Y96: 165 | Z96: 0 | AB96: 5303210 | AC96: GRANITE FALLS
A97: =VLOOKUP(B97,CCDDD!$A$3:$B$319,2,FALSE) -> 23054 | B97: 5303240 | C97: GRAPEVIEW | D97: 0 | E97: 0 | F97: =VLOOKUP(B97,'23-24 Adjusted Formula counts'!$A$2:$L$319,8,FALSE) -> 341 | G97: =ROUND((F97/$F$5*Assumptions!$C$14*Assumptions!$C$29),0) -> 1838 | H97: =VLOOKUP(B97,'23-24 Adjusted Formula counts'!$A$2:$L$319,9,FALSE) -> 46 | I97: =ROUND((H97/$H$5*Assumptions!$C$14*Assumptions!$C$30),0) -> 9000 | K97: 10838 | N97: 10838 | O97: 0 | P97: 10838 | R97: 0 | S97: 10838 | U97: =IFERROR(VLOOKUP($A97, 'Allocation 2022-23 F'!$A$7:$U$321,21,FALSE),0) -> 8417 | W97: 2421 | X97: 0.287632173 | Y97: 112 | Z97: 0 | AB97: 5303240 | AC97: GRAPEVIEW
A98: =VLOOKUP(B98,CCDDD!$A$3:$B$319,2,FALSE) -> 32312 | B98: 5303270 | C98: GREAT NORTHERN | D98: 0 | E98: 0 | F98: =VLOOKUP(B98,'23-24 Adjusted Formula counts'!$A$2:$L$319,8,FALSE) -> 189 | G98: =ROUND((F98/$F$5*Assumptions!$C$14*Assumptions!$C$29),0) -> 1019 | H98: =VLOOKUP(B98,'23-24 Adjusted Formula counts'!$A$2:$L$319,9,FALSE) -> 44 | I98: =ROUND((H98/$H$5*Assumptions!$C$14*Assumptions!$C$30),0) -> 8609 | K98: 9628 | N98: 9628 | O98: 0 | P98: 9628 | R98: 0 | S98: 9628 | U98: =IFERROR(VLOOKUP($A98, 'Allocation 2022-23 F'!$A$7:$U$321,21,FALSE),0) -> 7239 | W98: 2389 | X98: 0.3300179583 | Y98: 114 | Z98: 0 | AB98: 5303270 | AC98: GREAT NORTHERN
A99: =VLOOKUP(B99,CCDDD!$A$3:$B$319,2,FALSE) -> 17910 | B99: 5303280 | C99: RAINIER VALLEY CHARTER | D99: 0 | E99: 0 | F99: =VLOOKUP(B99,'23-24 Adjusted Formula counts'!$A$2:$L$319,8,FALSE) -> 200.3237432 | G99: =ROUND((F99/$F$5*Assumptions!$C$14*Assumptions!$C$29),0) -> 1080 | H99: =VLOOKUP(B99,'23-24 Adjusted Formula counts'!$A$2:$L$319,9,FALSE) -> 50.21377223 | I99: =ROUND((H99/$H$5*Assumptions!$C$14*Assumptions!$C$30),0) -> 9825 | K99: 10905 | N99: 10905 | O99: 0 | P99: 10905 | R99: 0 | S99: 10905 | U99: =IFERROR(VLOOKUP($A99, 'Allocation 2022-23 F'!$A$7:$U$321,21,FALSE),0) -> 11198 | W99: -293 | X99: -0.02616538668 | Y99: 194 | Z99: 0 | AB99: 5303280 | AC99: RAINIER VALLEY CHARTER
A100: =VLOOKUP(B100,CCDDD!$A$3:$B$319,2,FALSE) -> 06103 | B100: 5303300 | C100: GREEN MOUNTAIN | D100: 0 | E100: 0 | F100: =VLOOKUP(B100,'23-24 Adjusted Formula counts'!$A$2:$L$319,8,FALSE) -> 209 | G100: =ROUND((F100/$F$5*Assumptions!$C$14*Assumptions!$C$29),0) -> 1126 | H100: =VLOOKUP(B100,'23-24 Adjusted Formula counts'!$A$2:$L$319,9,FALSE) -> 18 | I100: =ROUND((H100/$H$5*Assumptions!$C$14*Assumptions!$C$30),0) -> 3522 | K100: 4648 | N100: 4648 | O100: 0 | P100: 4648 | R100: 0 | S100: 4648 | U100: =IFERROR(VLOOKUP($A100, 'Allocation 2022-23 F'!$A$7:$U$321,21,FALSE),0) -> 3566 | W100: 1082 | X100: 0.3034212002 | Y100: 145 | Z100: 0 | AB100: 5303300 | AC100: GREEN MOUNTAIN
A101: =VLOOKUP(B101,CCDDD!$A$3:$B$319,2,FALSE) -> 34324 | B101: 5303330 | C101: GRIFFIN | D101: 0 | E101: 0 | F101: =VLOOKUP(B101,'23-24 Adjusted Formula counts'!$A$2:$L$319,8,FALSE) -> 913 | G101: =ROUND((F101/$F$5*Assumptions!$C$14*Assumptions!$C$29),0) -> 4920 | H101: =VLOOKUP(B101,'23-24 Adjusted Formula counts'!$A$2:$L$319,9,FALSE) -> 66 | I101: =ROUND((H101/$H$5*Assumptions!$C$14*Assumptions!$C$30),0) -> 12914 | K101: 17834 | N101: 17834 | O101: 0 | P101: 17834 | R101: 0 | S101: 17834 | U101: =IFERROR(VLOOKUP($A101, 'Allocation 2022-23 F'!$A$7:$U$321,21,FALSE),0) -> 15289 | W101: 2545 | X101: 0.1664595461 | Y101: 111 | Z101: 0 | AB101: 5303330 | AC101: GRIFFIN
A102: =VLOOKUP(B102,CCDDD!$A$3:$B$319,2,FALSE) -> 22204 | B102: 5303360 | C102: HARRINGTON | D102: 0 | E102: 0 | F102: =VLOOKUP(B102,'23-24 Adjusted Formula counts'!$A$2:$L$319,8,FALSE) -> 141 | G102: =ROUND((F102/$F$5*Assumptions!$C$14*Assumptions!$C$29),0) -> 760 | H102: =VLOOKUP(B102,'23-24 Adjusted Formula counts'!$A$2:$L$319,9,FALSE) -> 18 | I102: =ROUND((H102/$H$5*Assumptions!$C$14*Assumptions!$C$30),0) -> 3522 | K102: 4282 | N102: 4282 | O102: 0 | P102: 4282 | R102: 0 | S102: 4282 | U102: =IFERROR(VLOOKUP($A102, 'Allocation 2022-23 F'!$A$7:$U$321,21,FALSE),0) -> 7415 | W102: -3133 | X102: -0.422521915 | Y102: 248 | Z102: 0 | AB102: 5303360 | AC102: HARRINGTON
A103: =VLOOKUP(B103,CCDDD!$A$3:$B$319,2,FALSE) -> 39203 | B103: 5303510 | C103: HIGHLAND | D103: 0 | E103: 0 | F103: =VLOOKUP(B103,'23-24 Adjusted Formula counts'!$A$2:$L$319,8,FALSE) -> 1293 | G103: =ROUND((F103/$F$5*Assumptions!$C$14*Assumptions!$C$29),0) -> 6968 | H103: =VLOOKUP(B103,'23-24 Adjusted Formula counts'!$A$2:$L$319,9,FALSE) -> 225 | I103: =ROUND((H103/$H$5*Assumptions!$C$14*Assumptions!$C$30),0) -> 44024 | K103: 50992 | N103: 50992 | O103: 0 | P103: 50992 | R103: 0 | S103: 50992 | U103: =IFERROR(VLOOKUP($A103, 'Allocation 2022-23 F'!$A$7:$U$321,21,FALSE),0) -> 38803 | W103: 12189 | X103: 0.3141251965 | Y103: 44 | Z103: 0 | AB103: 5303510 | AC103: HIGHLAND
A104: =VLOOKUP(B104,CCDDD!$A$3:$B$319,2,FALSE) -> 17401 | B104: 5303540 | C104: HIGHLINE | D104: 0 | E104: 0 | F104: =VLOOKUP(B104,'23-24 Adjusted Formula counts'!$A$2:$L$319,8,FALSE) -> 19973.72653 | G104: =ROUND((F104/$F$5*Assumptions!$C$14*Assumptions!$C$29),0) -> 107645 | H104: =VLOOKUP(B104,'23-24 Adjusted Formula counts'!$A$2:$L$319,9,FALSE) -> 3363.278049 | I104: =ROUND((H104/$H$5*Assumptions!$C$14*Assumptions!$C$30),0) -> 658062 | K104: 765707 | N104: 765707 | O104: 0 | P104: 765707 | R104: 0 | S104: 765707 | U104: =IFERROR(VLOOKUP($A104, 'Allocation 2022-23 F'!$A$7:$U$321,21,FALSE),0) -> 736581 | W104: 29126 | X104: 0.0395421549 | Y104: 20 | Z104: 0 | AB104: 5303540 | AC104: HIGHLINE
A105: =VLOOKUP(B105,CCDDD!$A$3:$B$319,2,FALSE) -> 06098 | B105: 5303570 | C105: HOCKINSON | D105: 0 | E105: 0 | F105: =VLOOKUP(B105,'23-24 Adjusted Formula counts'!$A$2:$L$319,8,FALSE) -> 2219 | G105: =ROUND((F105/$F$5*Assumptions!$C$14*Assumptions!$C$29),0) -> 11959 | H105: =VLOOKUP(B105,'23-24 Adjusted Formula counts'!$A$2:$L$319,9,FALSE) -> 143 | I105: =ROUND((H105/$H$5*Assumptions!$C$14*Assumptions!$C$30),0) -> 27980 | K105: 39939 | N105: 39939 | O105: 0 | P105: 39939 | R105: 0 | S105: 39939 | U105: =IFERROR(VLOOKUP($A105, 'Allocation 2022-23 F'!$A$7:$U$321,21,FALSE),0) -> 34657 | W105: 5282 | X105: 0.152407883 | Y105: 82 | Z105: 0 | AB105: 5303570 | AC105: HOCKINSON
A106: =VLOOKUP(B106,CCDDD!$A$3:$B$319,2,FALSE) -> 23404 | B106: 5303600 | C106: HOOD CANAL | D106: 0 | E106: 0 | F106: =VLOOKUP(B106,'23-24 Adjusted Formula counts'!$A$2:$L$319,8,FALSE) -> 700 | G106: =ROUND((F106/$F$5*Assumptions!$C$14*Assumptions!$C$29),0) -> 3773 | H106: =VLOOKUP(B106,'23-24 Adjusted Formula counts'!$A$2:$L$319,9,FALSE) -> 137 | I106: =ROUND((H106/$H$5*Assumptions!$C$14*Assumptions!$C$30),0) -> 26806 | K106: 30579 | N106: 30579 | O106: 0 | P106: 30579 | R106: 0 | S106: 30579 | U106: =IFERROR(VLOOKUP($A106, 'Allocation 2022-23 F'!$A$7:$U$321,21,FALSE),0) -> 28172 | W106: 2407 | X106: 0.08543944342 | Y106: 113 | Z106: 0 | AB106: 5303600 | AC106: HOOD CANAL
A107: =VLOOKUP(B107,CCDDD!$A$3:$B$319,2,FALSE) -> 14028 | B107: 5303660 | C107: HOQUIAM | D107: 0 | E107: 0 | F107: =VLOOKUP(B107,'23-24 Adjusted Formula counts'!$A$2:$L$319,8,FALSE) -> 1840 | G107: =ROUND((F107/$F$5*Assumptions!$C$14*Assumptions!$C$29),0) -> 9916 | H107: =VLOOKUP(B107,'23-24 Adjusted Formula counts'!$A$2:$L$319,9,FALSE) -> 403 | I107: =ROUND((H107/$H$5*Assumptions!$C$14*Assumptions!$C$30),0) -> 78851 | K107: 88767 | N107: 88767 | O107: 0 | P107: 88767 | R107: 0 | S107: 88767 | U107: =IFERROR(VLOOKUP($A107, 'Allocation 2022-23 F'!$A$7:$U$321,21,FALSE),0) -> 80393 | W107: 8374 | X107: 0.1041632978 | Y107: 63 | Z107: 0 | AB107: 5303660 | AC107: HOQUIAM
A108: =VLOOKUP(B108,CCDDD!$A$3:$B$319,2,FALSE) -> 27902 | B108: 5303705 | C108: IMPACT COMMENCEMENT BAY CHARTER | D108: 0 | E108: 0 | F108: =VLOOKUP(B108,'23-24 Adjusted Formula counts'!$A$2:$L$319,8,FALSE) -> 312.9343842 | G108: =ROUND((F108/$F$5*Assumptions!$C$14*Assumptions!$C$29),0) -> 1687 | H108: =VLOOKUP(B108,'23-24 Adjusted Formula counts'!$A$2:$L$319,9,FALSE) -> 45.81575898 | I108: =ROUND((H108/$H$5*Assumptions!$C$14*Assumptions!$C$30),0) -> 8964 | K108: 10651 | N108: 10651 | O108: 0 | P108: 10651 | R108: 0 | S108: 10651 | U108: =IFERROR(VLOOKUP($A108, 'Allocation 2022-23 F'!$A$7:$U$321,21,FALSE),0) -> 9763 | W108: 888 | X108: 0.09095564888 | Y108: 149 | Z108: 0 | AB108: 5303705 | AC108: IMPACT COMMENCEMENT BAY CHARTER
A109: =VLOOKUP(B109,CCDDD!$A$3:$B$319,2,FALSE) -> 17911 | B109: 5303700 | C109: IMPACT PUGET SOUND CHARTER | D109: 0 | E109: 0 | F109: =VLOOKUP(B109,'23-24 Adjusted Formula counts'!$A$2:$L$319,8,FALSE) -> 520.8452313 | G109: =ROUND((F109/$F$5*Assumptions!$C$14*Assumptions!$C$29),0) -> 2807 | H109: =VLOOKUP(B109,'23-24 Adjusted Formula counts'!$A$2:$L$319,9,FALSE) -> 104.4634843 | I109: =ROUND((H109/$H$5*Assumptions!$C$14*Assumptions!$C$30),0) -> 20439 | K109: 23246 | N109: 23246 | O109: 0 | P109: 23246 | R109: 0 | S109: 23246 | U109: =IFERROR(VLOOKUP($A109, 'Allocation 2022-23 F'!$A$7:$U$321,21,FALSE),0) -> 24616 | W109: -1370 | X109: -0.05565485863 | Y109: 224 | Z109: 0 | AB109: 5303700 | AC109: IMPACT PUGET SOUND CHARTER
A110: =VLOOKUP(B110,CCDDD!$A$3:$B$319,2,FALSE) -> 17916 | B110: 5303710 | C110: IMPACT SALISH SEA CHARTER | D110: 0 | E110: 0 | F110: =VLOOKUP(B110,'23-24 Adjusted Formula counts'!$A$2:$L$319,8,FALSE) -> 274.3118218 | G110: =ROUND((F110/$F$5*Assumptions!$C$14*Assumptions!$C$29),0) -> 1478 | H110: =VLOOKUP(B110,'23-24 Adjusted Formula counts'!$A$2:$L$319,9,FALSE) -> 50.25540596 | I110: =ROUND((H110/$H$5*Assumptions!$C$14*Assumptions!$C$30),0) -> 9833 | K110: 11311 | N110: 11311 | O110: 0 | P110: 11311 | R110: 0 | S110: 11311 | U110: =IFERROR(VLOOKUP($A110, 'Allocation 2022-23 F'!$A$7:$U$321,21,FALSE),0) -> 12070 | W110: -759 | X110: -0.06288318144 | Y110: 211 | Z110: 0 | AB110: 5303710 | AC110: IMPACT SALISH SEA CHARTER
A111: =VLOOKUP(B111,CCDDD!$A$3:$B$319,2,FALSE) -> 10070 | B111: 5300002 | C111: INCHELIUM | D111: 0 | E111: 0 | F111: =VLOOKUP(B111,'23-24 Adjusted Formula counts'!$A$2:$L$319,8,FALSE) -> 182 | G111: =ROUND((F111/$F$5*Assumptions!$C$14*Assumptions!$C$29),0) -> 981 | H111: =VLOOKUP(B111,'23-24 Adjusted Formula counts'!$A$2:$L$319,9,FALSE) -> 44 | I111: =ROUND((H111/$H$5*Assumptions!$C$14*Assumptions!$C$30),0) -> 8609 | K111: 9590 | N111: 9590 | O111: 0 | P111: 9590 | R111: 0 | S111: 9590 | U111: =IFERROR(VLOOKUP($A111, 'Allocation 2022-23 F'!$A$7:$U$321,21,FALSE),0) -> 11219 | W111: -1629 | X111: -0.145200107 | Y111: 229 | Z111: 0 | AB111: 5300002 | AC111: INCHELIUM
A112: =VLOOKUP(B112,CCDDD!$A$3:$B$319,2,FALSE) -> 31063 | B112: 5303720 | C112: INDEX | D112: 0 | E112: 0 | F112: =VLOOKUP(B112,'23-24 Adjusted Formula counts'!$A$2:$L$319,8,FALSE) -> 55 | G112: =ROUND((F112/$F$5*Assumptions!$C$14*Assumptions!$C$29),0) -> 296 | H112: =VLOOKUP(B112,'23-24 Adjusted Formula counts'!$A$2:$L$319,9,FALSE) -> 9 | I112: =ROUND((H112/$H$5*Assumptions!$C$14*Assumptions!$C$30),0) -> 1761 | K112: 2057 | N112: 2057 | O112: 0 | P112: 2057 | R112: 0 | S112: 2057 | U112: =IFERROR(VLOOKUP($A112, 'Allocation 2022-23 F'!$A$7:$U$321,21,FALSE),0) -> 2835 | W112: -778 | X112: -0.2744268078 | Y112: 212 | Z112: 0 | AB112: 5303720 | AC112: INDEX
A113: =VLOOKUP(B113,CCDDD!$A$3:$B$319,2,FALSE) -> 17411 | B113: 5303750 | C113: ISSAQUAH | D113: 0 | E113: 0 | F113: =VLOOKUP(B113,'23-24 Adjusted Formula counts'!$A$2:$L$319,8,FALSE) -> 23245 | G113: =ROUND((F113/$F$5*Assumptions!$C$14*Assumptions!$C$29),0) -> 125275 | H113: =VLOOKUP(B113,'23-24 Adjusted Formula counts'!$A$2:$L$319,9,FALSE) -> 936 | I113: =ROUND((H113/$H$5*Assumptions!$C$14*Assumptions!$C$30),0) -> 183139 | K113: 308414 | N113: 308414 | O113: 0 | P113: 308414 | R113: 0 | S113: 308414 | U113: =IFERROR(VLOOKUP($A113, 'Allocation 2022-23 F'!$A$7:$U$321,21,FALSE),0) -> 276048 | W113: 32366 | X113: 0.117247725 | Y113: 17 | Z113: 0 | AB113: 5303750 | AC113: ISSAQUAH
A114: =VLOOKUP(B114,CCDDD!$A$3:$B$319,2,FALSE) -> 11056 | B114: 5303780 | C114: KAHLOTUS | D114: 0 | E114: 0 | F114: =VLOOKUP(B114,'23-24 Adjusted Formula counts'!$A$2:$L$319,8,FALSE) -> 61 | G114: =ROUND((F114/$F$5*Assumptions!$C$14*Assumptions!$C$29),0) -> 329 | H114: =VLOOKUP(B114,'23-24 Adjusted Formula counts'!$A$2:$L$319,9,FALSE) -> 14 | I114: =ROUND((H114/$H$5*Assumptions!$C$14*Assumptions!$C$30),0) -> 2739 | K114: 3068 | N114: 3068 | O114: 0 | P114: 3068 | R114: 0 | S114: 3068 | U114: =IFERROR(VLOOKUP($A114, 'Allocation 2022-23 F'!$A$7:$U$321,21,FALSE),0) -> 2651 | W114: 417 | X114: 0.1572991324 | Y114: 168 | Z114: 0 | AB114: 5303780 | AC114: KAHLOTUS
A115: =VLOOKUP(B115,CCDDD!$A$3:$B$319,2,FALSE) -> 08402 | B115: 5303810 | C115: KALAMA | D115: 0 | E115: 0 | F115: =VLOOKUP(B115,'23-24 Adjusted Formula counts'!$A$2:$L$319,8,FALSE) -> 1360 | G115: =ROUND((F115/$F$5*Assumptions!$C$14*Assumptions!$C$29),0) -> 7329 | H115: =VLOOKUP(B115,'23-24 Adjusted Formula counts'!$A$2:$L$319,9,FALSE) -> 122 | I115: =ROUND((H115/$H$5*Assumptions!$C$14*Assumptions!$C$30),0) -> 23871 | K115: 31200 | N115: 31200 | O115: 0 | P115: 31200 | R115: 0 | S115: 31200 | U115: =IFERROR(VLOOKUP($A115, 'Allocation 2022-23 F'!$A$7:$U$321,21,FALSE),0) -> 26789 | W115: 4411 | X115: 0.1646571354 | Y115: 91 | Z115: 0 | AB115: 5303810 | AC115: KALAMA
A116: =VLOOKUP(B116,CCDDD!$A$3:$B$319,2,FALSE) -> 10003 | B116: 5303870 | C116: KELLER | D116: 0 | E116: 0 | F116: =VLOOKUP(B116,'23-24 Adjusted Formula counts'!$A$2:$L$319,8,FALSE) -> 100 | G116: =ROUND((F116/$F$5*Assumptions!$C$14*Assumptions!$C$29),0) -> 539 | H116: =VLOOKUP(B116,'23-24 Adjusted Formula counts'!$A$2:$L$319,9,FALSE) -> 30 | I116: =ROUND((H116/$H$5*Assumptions!$C$14*Assumptions!$C$30),0) -> 5870 | K116: 6409 | N116: 6409 | O116: 0 | P116: 6409 | R116: 0 | S116: 6409 | U116: =IFERROR(VLOOKUP($A116, 'Allocation 2022-23 F'!$A$7:$U$321,21,FALSE),0) -> 5601 | W116: 808 | X116: 0.1442599536 | Y116: 152 | Z116: 0 | AB116: 5303870 | AC116: KELLER
A117: =VLOOKUP(B117,CCDDD!$A$3:$B$319,2,FALSE) -> 08458 | B117: 5300003 | C117: KELSO | D117: 0 | E117: 0 | F117: =VLOOKUP(B117,'23-24 Adjusted Formula counts'!$A$2:$L$319,8,FALSE) -> 5497 | G117: =ROUND((F117/$F$5*Assumptions!$C$14*Assumptions!$C$29),0) -> 29625 | H117: =VLOOKUP(B117,'23-24 Adjusted Formula counts'!$A$2:$L$319,9,FALSE) -> 855 | I117: =ROUND((H117/$H$5*Assumptions!$C$14*Assumptions!$C$30),0) -> 167290 | K117: 196915 | N117: 196915 | O117: 0 | P117: 196915 | R117: 0 | S117: 196915 | U117: =IFERROR(VLOOKUP($A117, 'Allocation 2022-23 F'!$A$7:$U$321,21,FALSE),0) -> 191571 | W117: 5344 | X117: 0.0278956627 | Y117: 81 | Z117: 0 | AB117: 5300003 | AC117: KELSO
A118: =VLOOKUP(B118,CCDDD!$A$3:$B$319,2,FALSE) -> 03017 | B118: 5303930 | C118: KENNEWICK | D118: 0 | E118: 0 | F118: =VLOOKUP(B118,'23-24 Adjusted Formula counts'!$A$2:$L$319,8,FALSE) -> 20458 | G118: =ROUND((F118/$F$5*Assumptions!$C$14*Assumptions!$C$29),0) -> 110255 | H118: =VLOOKUP(B118,'23-24 Adjusted Formula counts'!$A$2:$L$319,9,FALSE) -> 2558 | I118: =ROUND((H118/$H$5*Assumptions!$C$14*Assumptions!$C$30),0) -> 500501 | K118: 610756 | N118: 610756 | O118: 0 | P118: 610756 | R118: 0 | S118: 610756 | U118: =IFERROR(VLOOKUP($A118, 'Allocation 2022-23 F'!$A$7:$U$321,21,FALSE),0) -> 591897 | W118: 18859 | X118: 0.03186196247 | Y118: 32 | Z118: 0 | AB118: 5303930 | AC118: KENNEWICK
A119: =VLOOKUP(B119,CCDDD!$A$3:$B$319,2,FALSE) -> 17415 | B119: 5303960 | C119: KENT | D119: 0 | E119: 0 | F119: =VLOOKUP(B119,'23-24 Adjusted Formula counts'!$A$2:$L$319,8,FALSE) -> 30689 | G119: =ROUND((F119/$F$5*Assumptions!$C$14*Assumptions!$C$29),0) -> 165393 | H119: =VLOOKUP(B119,'23-24 Adjusted Formula counts'!$A$2:$L$319,9,FALSE) -> 4485 | I119: =ROUND((H119/$H$5*Assumptions!$C$14*Assumptions!$C$30),0) -> 877540 | K119: 1042933 | N119: 1042933 | O119: 0 | P119: 1042933 | R119: 0 | S119: 1042933 | U119: =IFERROR(VLOOKUP($A119, 'Allocation 2022-23 F'!$A$7:$U$321,21,FALSE),0) -> 947798 | W119: 95135 | X119: 0.1003747634 | Y119: 5 | Z119: 0 | AB119: 5303960 | AC119: KENT
A120: =VLOOKUP(B120,CCDDD!$A$3:$B$319,2,FALSE) -> 33212 | B120: 5303990 | C120: KETTLE FALLS | D120: 0 | E120: 0 | F120: =VLOOKUP(B120,'23-24 Adjusted Formula counts'!$A$2:$L$319,8,FALSE) -> 940 | G120: =ROUND((F120/$F$5*Assumptions!$C$14*Assumptions!$C$29),0) -> 5066 | H120: =VLOOKUP(B120,'23-24 Adjusted Formula counts'!$A$2:$L$319,9,FALSE) -> 165 | I120: =ROUND((H120/$H$5*Assumptions!$C$14*Assumptions!$C$30),0) -> 32284 | K120: 37350 | N120: 37350 | O120: 0 | P120: 37350 | R120: 0 | S120: 37350 | U120: =IFERROR(VLOOKUP($A120, 'Allocation 2022-23 F'!$A$7:$U$321,21,FALSE),0) -> 37871 | W120: -521 | X120: -0.01375722849 | Y120: 202 | Z120: 0 | AB120: 5303990 | AC120: KETTLE FALLS
A121: =VLOOKUP(B121,CCDDD!$A$3:$B$319,2,FALSE) -> 03052 | B121: 5304020 | C121: KIONA-BENTON | D121: 0 | E121: 0 | F121: =VLOOKUP(B121,'23-24 Adjusted Formula counts'!$A$2:$L$319,8,FALSE) -> 1733 | G121: =ROUND((F121/$F$5*Assumptions!$C$14*Assumptions!$C$29),0) -> 9340 | H121: =VLOOKUP(B121,'23-24 Adjusted Formula counts'!$A$2:$L$319,9,FALSE) -> 266 | I121: =ROUND((H121/$H$5*Assumptions!$C$14*Assumptions!$C$30),0) -> 52046 | K121: 61386 | N121: 61386 | O121: 0 | P121: 61386 | R121: 0 | S121: 61386 | U121: =IFERROR(VLOOKUP($A121, 'Allocation 2022-23 F'!$A$7:$U$321,21,FALSE),0) -> 57336 | W121: 4050 | X121: 0.07063624948 | Y121: 95 | Z121: 0 | AB121: 5304020 | AC121: KIONA-BENTON
A122: =VLOOKUP(B122,CCDDD!$A$3:$B$319,2,FALSE) -> 19403 | B122: 5304050 | C122: KITTITAS | D122: 0 | E122: 0 | F122: =VLOOKUP(B122,'23-24 Adjusted Formula counts'!$A$2:$L$319,8,FALSE) -> 722 | G122: =ROUND((F122/$F$5*Assumptions!$C$14*Assumptions!$C$29),0) -> 3891 | H122: =VLOOKUP(B122,'23-24 Adjusted Formula counts'!$A$2:$L$319,9,FALSE) -> 58 | I122: =ROUND((H122/$H$5*Assumptions!$C$14*Assumptions!$C$30),0) -> 11348 | K122: 15239 | N122: 15239 | O122: 0 | P122: 15239 | R122: 0 | S122: 15239 | U122: =IFERROR(VLOOKUP($A122, 'Allocation 2022-23 F'!$A$7:$U$321,21,FALSE),0) -> 17111 | W122: -1872 | X122: -0.1094033078 | Y122: 230 | Z122: 0 | AB122: 5304050 | AC122: KITTITAS
A123: =VLOOKUP(B123,CCDDD!$A$3:$B$319,2,FALSE) -> 20402 | B123: 5304080 | C123: KLICKITAT | D123: 0 | E123: 0 | F123: =VLOOKUP(B123,'23-24 Adjusted Formula counts'!$A$2:$L$319,8,FALSE) -> 82 | G123: =ROUND((F123/$F$5*Assumptions!$C$14*Assumptions!$C$29),0) -> 442 | H123: =VLOOKUP(B123,'23-24 Adjusted Formula counts'!$A$2:$L$319,9,FALSE) -> 12 | I123: =ROUND((H123/$H$5*Assumptions!$C$14*Assumptions!$C$30),0) -> 2348 | K123: 2790 | N123: 2790 | O123: 0 | P123: 2790 | R123: 0 | S123: 2790 | U123: =IFERROR(VLOOKUP($A123, 'Allocation 2022-23 F'!$A$7:$U$321,21,FALSE),0) -> 2592 | W123: 198 | X123: 0.07638888889 | Y123: 172 | Z123: 0 | AB123: 5304080 | AC123: KLICKITAT
A124: =VLOOKUP(B124,CCDDD!$A$3:$B$319,2,FALSE) -> 06101 | B124: 5304170 | C124: LA CENTER | D124: 0 | E124: 0 | F124: =VLOOKUP(B124,'23-24 Adjusted Formula counts'!$A$2:$L$319,8,FALSE) -> 1970 | G124: =ROUND((F124/$F$5*Assumptions!$C$14*Assumptions!$C$29),0) -> 10617 | H124: =VLOOKUP(B124,'23-24 Adjusted Formula counts'!$A$2:$L$319,9,FALSE) -> 140 | I124: =ROUND((H124/$H$5*Assumptions!$C$14*Assumptions!$C$30),0) -> 27393 | K124: 38010 | N124: 38010 | O124: 0 | P124: 38010 | R124: 0 | S124: 38010 | U124: =IFERROR(VLOOKUP($A124, 'Allocation 2022-23 F'!$A$7:$U$321,21,FALSE),0) -> 28764 | W124: 9246 | X124: 0.321443471 | Y124: 56 | Z124: 0 | AB124: 5304170 | AC124: LA CENTER
A125: =VLOOKUP(B125,CCDDD!$A$3:$B$319,2,FALSE) -> 29311 | B125: 5304110 | C125: LA CONNER | D125: 0 | E125: 0 | F125: =VLOOKUP(B125,'23-24 Adjusted Formula counts'!$A$2:$L$319,8,FALSE) -> 602 | G125: =ROUND((F125/$F$5*Assumptions!$C$14*Assumptions!$C$29),0) -> 3244 | H125: =VLOOKUP(B125,'23-24 Adjusted Formula counts'!$A$2:$L$319,9,FALSE) -> 134 | I125: =ROUND((H125/$H$5*Assumptions!$C$14*Assumptions!$C$30),0) -> 26219 | K125: 29463 | N125: 29463 | O125: 0 | P125: 29463 | R125: 0 | S125: 29463 | U125: =IFERROR(VLOOKUP($A125, 'Allocation 2022-23 F'!$A$7:$U$321,21,FALSE),0) -> 17210 | W125: 12253 | X125: 0.711969785 | Y125: 43 | Z125: 0 | AB125: 5304110 | AC125: LA CONNER
A126: =VLOOKUP(B126,CCDDD!$A$3:$B$319,2,FALSE) -> 38126 | B126: 5304150 | C126: LACROSSE | D126: 0 | E126: 0 | F126: =VLOOKUP(B126,'23-24 Adjusted Formula counts'!$A$2:$L$319,8,FALSE) -> 87 | G126: =ROUND((F126/$F$5*Assumptions!$C$14*Assumptions!$C$29),0) -> 469 | H126: =VLOOKUP(B126,'23-24 Adjusted Formula counts'!$A$2:$L$319,9,FALSE) -> 9 | I126: =ROUND((H126/$H$5*Assumptions!$C$14*Assumptions!$C$30),0) -> 1761 | K126: 2230 | N126: 2230 | O126: 0 | P126: 2230 | R126: 0 | S126: 2230 | U126: =IFERROR(VLOOKUP($A126, 'Allocation 2022-23 F'!$A$7:$U$321,21,FALSE),0) -> 5163 | W126: -2933 | X126: -0.5680805733 | Y126: 245 | Z126: 0 | AB126: 5304150 | AC126: LACROSSE
A127: =VLOOKUP(B127,CCDDD!$A$3:$B$319,2,FALSE) -> 04129 | B127: 5301200 | C127: LAKE CHELAN | D127: 0 | E127: 0 | F127: =VLOOKUP(B127,'23-24 Adjusted Formula counts'!$A$2:$L$319,8,FALSE) -> 1264 | G127: =ROUND((F127/$F$5*Assumptions!$C$14*Assumptions!$C$29),0) -> 6812 | H127: =VLOOKUP(B127,'23-24 Adjusted Formula counts'!$A$2:$L$319,9,FALSE) -> 170 | I127: =ROUND((H127/$H$5*Assumptions!$C$14*Assumptions!$C$30),0) -> 33262 | K127: 40074 | N127: 40074 | O127: 0 | P127: 40074 | R127: 0 | S127: 40074 | U127: =IFERROR(VLOOKUP($A127, 'Allocation 2022-23 F'!$A$7:$U$321,21,FALSE),0) -> 36459 | W127: 3615 | X127: 0.09915247264 | Y127: 100 | Z127: 0 | AB127: 5301200 | AC127: LAKE CHELAN
A128: =VLOOKUP(B128,CCDDD!$A$3:$B$319,2,FALSE) -> 14097 | B128: 5307050 | C128: QUINAULT | D128: 0 | E128: 0 | F128: =VLOOKUP(B128,'23-24 Adjusted Formula counts'!$A$2:$L$319,8,FALSE) -> 176 | G128: =ROUND((F128/$F$5*Assumptions!$C$14*Assumptions!$C$29),0) -> 949 | H128: =VLOOKUP(B128,'23-24 Adjusted Formula counts'!$A$2:$L$319,9,FALSE) -> 41 | I128: =ROUND((H128/$H$5*Assumptions!$C$14*Assumptions!$C$30),0) -> 8022 | K128: 8971 | N128: 8971 | O128: 0 | P128: 8971 | R128: 0 | S128: 8971 | U128: =IFERROR(VLOOKUP($A128, 'Allocation 2022-23 F'!$A$7:$U$321,21,FALSE),0) -> 8254 | W128: 717 | X128: 0.08686697359 | Y128: 158 | Z128: 0 | AB128: 5307050 | AC128: QUINAULT
A129: =VLOOKUP(B129,CCDDD!$A$3:$B$319,2,FALSE) -> 31004 | B129: 5304200 | C129: LAKE STEVENS | D129: 0 | E129: 0 | F129: =VLOOKUP(B129,'23-24 Adjusted Formula counts'!$A$2:$L$319,8,FALSE) -> 10404 | G129: =ROUND((F129/$F$5*Assumptions!$C$14*Assumptions!$C$29),0) -> 56071 | H129: =VLOOKUP(B129,'23-24 Adjusted Formula counts'!$A$2:$L$319,9,FALSE) -> 521 | I129: =ROUND((H129/$H$5*Assumptions!$C$14*Assumptions!$C$30),0) -> 101939 | K129: 158010 | N129: 158010 | O129: 0 | P129: 158010 | R129: 0 | S129: 158010 | U129: =IFERROR(VLOOKUP($A129, 'Allocation 2022-23 F'!$A$7:$U$321,21,FALSE),0) -> 142424 | W129: 15586 | X129: 0.1094338033 | Y129: 41 | Z129: 0 | AB129: 5304200 | AC129: LAKE STEVENS
A130: =VLOOKUP(B130,CCDDD!$A$3:$B$319,2,FALSE) -> 17414 | B130: 5304230 | C130: LAKE WASHINGTON | D130: 0 | E130: 0 | F130: =VLOOKUP(B130,'23-24 Adjusted Formula counts'!$A$2:$L$319,8,FALSE) -> 36438 | G130: =ROUND((F130/$F$5*Assumptions!$C$14*Assumptions!$C$29),0) -> 196376 | H130: =VLOOKUP(B130,'23-24 Adjusted Formula counts'!$A$2:$L$319,9,FALSE) -> 1528 | I130: =ROUND((H130/$H$5*Assumptions!$C$14*Assumptions!$C$30),0) -> 298970 | K130: 495346 | N130: 495346 | O130: 0 | P130: 495346 | R130: 0 | S130: 495346 | U130: =IFERROR(VLOOKUP($A130, 'Allocation 2022-23 F'!$A$7:$U$321,21,FALSE),0) -> 399561 | W130: 95785 | X130: 0.2397255988 | Y130: 4 | Z130: 0 | AB130: 5304230 | AC130: LAKE WASHINGTON
A131: =VLOOKUP(B131,CCDDD!$A$3:$B$319,2,FALSE) -> 31306 | B131: 5304260 | C131: LAKEWOOD | D131: 0 | E131: 0 | F131: =VLOOKUP(B131,'23-24 Adjusted Formula counts'!$A$2:$L$319,8,FALSE) -> 2680 | G131: =ROUND((F131/$F$5*Assumptions!$C$14*Assumptions!$C$29),0) -> 14443 | H131: =VLOOKUP(B131,'23-24 Adjusted Formula counts'!$A$2:$L$319,9,FALSE) -> 297 | I131: =ROUND((H131/$H$5*Assumptions!$C$14*Assumptions!$C$30),0) -> 58111 | K131: 72554 | N131: 72554 | O131: 0 | P131: 72554 | R131: 0 | S131: 72554 | U131: =IFERROR(VLOOKUP($A131, 'Allocation 2022-23 F'!$A$7:$U$321,21,FALSE),0) -> 66301 | W131: 6253 | X131: 0.09431230298 | Y131: 76 | Z131: 0 | AB131: 5304260 | AC131: LAKEWOOD
A132: =VLOOKUP(B132,CCDDD!$A$3:$B$319,2,FALSE) -> 38264 | B132: 5304290 | C132: LAMONT | D132: 0 | E132: 0 | F132: =VLOOKUP(B132,'23-24 Adjusted Formula counts'!$A$2:$L$319,8,FALSE) -> 28 | G132: =ROUND((F132/$F$5*Assumptions!$C$14*Assumptions!$C$29),0) -> 151 | H132: =VLOOKUP(B132,'23-24 Adjusted Formula counts'!$A$2:$L$319,9,FALSE) -> 9 | I132: =ROUND((H132/$H$5*Assumptions!$C$14*Assumptions!$C$30),0) -> 1761 | K132: 1912 | N132: 1912 | O132: 0 | P132: 1912 | R132: 0 | S132: 1912 | U132: =IFERROR(VLOOKUP($A132, 'Allocation 2022-23 F'!$A$7:$U$321,21,FALSE),0) -> 1474 | W132: 438 | X132: 0.2971506106 | Y132: 167 | Z132: 0 | AB132: 5304290 | AC132: LAMONT
A133: =VLOOKUP(B133,CCDDD!$A$3:$B$319,2,FALSE) -> 32362 | B133: 5304380 | C133: LIBERTY | D133: 0 | E133: 0 | F133: =VLOOKUP(B133,'23-24 Adjusted Formula counts'!$A$2:$L$319,8,FALSE) -> 839 | G133: =ROUND((F133/$F$5*Assumptions!$C$14*Assumptions!$C$29),0) -> 4522 | H133: =VLOOKUP(B133,'23-24 Adjusted Formula counts'!$A$2:$L$319,9,FALSE) -> 67 | I133: =ROUND((H133/$H$5*Assumptions!$C$14*Assumptions!$C$30),0) -> 13109 | K133: 17631 | N133: 17631 | O133: 0 | P133: 17631 | R133: 0 | S133: 17631 | U133: =IFERROR(VLOOKUP($A133, 'Allocation 2022-23 F'!$A$7:$U$321,21,FALSE),0) -> 17794 | W133: -163 | X133: -0.009160391143 | Y133: 191 | Z133: 0 | AB133: 5304380 | AC133: LIBERTY
A134: =VLOOKUP(B134,CCDDD!$A$3:$B$319,2,FALSE) -> 01158 | B134: 5304410 | C134: LIND | D134: 0 | E134: 0 | F134: =VLOOKUP(B134,'23-24 Adjusted Formula counts'!$A$2:$L$319,8,FALSE) -> 310 | G134: =ROUND((F134/$F$5*Assumptions!$C$14*Assumptions!$C$29),0) -> 1671 | H134: =VLOOKUP(B134,'23-24 Adjusted Formula counts'!$A$2:$L$319,9,FALSE) -> 66 | I134: =ROUND((H134/$H$5*Assumptions!$C$14*Assumptions!$C$30),0) -> 12914 | K134: 14585 | N134: 14585 | O134: 0 | P134: 14585 | R134: 0 | S134: 14585 | U134: =IFERROR(VLOOKUP($A134, 'Allocation 2022-23 F'!$A$7:$U$321,21,FALSE),0) -> 7643 | W134: 6942 | X134: 0.9082820882 | Y134: 71 | Z134: 0 | AB134: 5304410 | AC134: LIND
A135: =VLOOKUP(B135,CCDDD!$A$3:$B$319,2,FALSE) -> 08122 | B135: 5304470 | C135: LONGVIEW | D135: 0 | E135: 0 | F135: =VLOOKUP(B135,'23-24 Adjusted Formula counts'!$A$2:$L$319,8,FALSE) -> 7250 | G135: =ROUND((F135/$F$5*Assumptions!$C$14*Assumptions!$C$29),0) -> 39073 | H135: =VLOOKUP(B135,'23-24 Adjusted Formula counts'!$A$2:$L$319,9,FALSE) -> 1186 | I135: =ROUND((H135/$H$5*Assumptions!$C$14*Assumptions!$C$30),0) -> 232054 | K135: =ROUNDDOWN(+I135+G135+E135+D135+J135,0) -> 271127 | N135: =K135 -> 271127 | O135: =-ROUND(N135/$N$5*$M$5,0) -> 0 | P135: =+K135+O135+M135 -> 271127 | R135: =-1*(P135*Q135) -> 0 | S135: =+P135+R135 -> 271127 | U135: =IFERROR(VLOOKUP($A135, 'Allocation 2022-23 F'!$A$7:$U$321,21,FALSE),0) -> 304118 | W135: =+S135-U135 -> -32991 | X135: =IF(U135>0,W135/U135,0) -> -0.1084809186 | Y135: 310 | Z135: =(SUM(D135:E135)/S135) -> 0 | AB135: =+B135 -> 5304470 | AC135: =+C135 -> LONGVIEW
A136: =VLOOKUP(B136,CCDDD!$A$3:$B$319,2,FALSE) -> 33183 | B136: 5304500 | C136: LOON LAKE | D136: 0 | E136: 0 | F136: =VLOOKUP(B136,'23-24 Adjusted Formula counts'!$A$2:$L$319,8,FALSE) -> 257 | G136: =ROUND((F136/$F$5*Assumptions!$C$14*Assumptions!$C$29),0) -> 1385 | H136: =VLOOKUP(B136,'23-24 Adjusted Formula counts'!$A$2:$L$319,9,FALSE) -> 44 | I136: =ROUND((H136/$H$5*Assumptions!$C$14*Assumptions!$C$30),0) -> 8609 | K136: 9994 | N136: 9994 | O136: 0 | P136: 9994 | R136: 0 | S136: 9994 | U136: =IFERROR(VLOOKUP($A136, 'Allocation 2022-23 F'!$A$7:$U$321,21,FALSE),0) -> 13033 | W136: -3039 | X136: -0.2331773191 | Y136: =RANK(W136,$W$7:$W$322,0) -> 247 | Z136: 0 | AB136: 5304500 | AC136: LOON LAKE
A137: =VLOOKUP(B137,CCDDD!$A$3:$B$319,2,FALSE) -> 28144 | B137: 5304530 | C137: LOPEZ | D137: 0 | E137: 0 | F137: =VLOOKUP(B137,'23-24 Adjusted Formula counts'!$A$2:$L$319,8,FALSE) -> 289 | G137: =ROUND((F137/$F$5*Assumptions!$C$14*Assumptions!$C$29),0) -> 1558 | H137: =VLOOKUP(B137,'23-24 Adjusted Formula counts'!$A$2:$L$319,9,FALSE) -> 57 | I137: =ROUND((H137/$H$5*Assumptions!$C$14*Assumptions!$C$30),0) -> 11153 | K137: 12711 | N137: 12711 | O137: 0 | P137: 12711 | R137: 0 | S137: 12711 | U137: =IFERROR(VLOOKUP($A137, 'Allocation 2022-23 F'!$A$7:$U$321,21,FALSE),0) -> 8080 | W137: 4631 | X137: 0.5731435644 | Y137: 89 | Z137: 0 | AB137: 5304530 | AC137: LOPEZ
A138: =VLOOKUP(B138,CCDDD!$A$3:$B$319,2,FALSE) -> 32903 | B138: 5304550 | C138: LUMEN CHARTER | D138: 0 | E138: 0 | F138: =VLOOKUP(B138,'23-24 Adjusted Formula counts'!$A$2:$L$319,8,FALSE) -> 42.14164232 | G138: =ROUND((F138/$F$5*Assumptions!$C$14*Assumptions!$C$29),0) -> 227 | H138: =VLOOKUP(B138,'23-24 Adjusted Formula counts'!$A$2:$L$319,9,FALSE) -> 9.162955466 | I138: =ROUND((H138/$H$5*Assumptions!$C$14*Assumptions!$C$30),0) -> 1793 | K138: 2020 | N138: 2020 | O138: 0 | P138: 2020 | R138: 0 | S138: 2020 | U138: =IFERROR(VLOOKUP($A138, 'Allocation 2022-23 F'!$A$7:$U$321,21,FALSE),0) -> 2817 | W138: -797 | X138: -0.2829250976 | Y138: 213 | Z138: 0 | AB138: 5304550 | AC138: LUMEN CHARTER
A139: =VLOOKUP(B139,CCDDD!$A$3:$B$319,2,FALSE) -> 20406 | B139: 5304590 | C139: LYLE | D139: 0 | E139: 0 | F139: =VLOOKUP(B139,'23-24 Adjusted Formula counts'!$A$2:$L$319,8,FALSE) -> 419 | G139: =ROUND((F139/$F$5*Assumptions!$C$14*Assumptions!$C$29),0) -> 2258 | H139: =VLOOKUP(B139,'23-24 Adjusted Formula counts'!$A$2:$L$319,9,FALSE) -> 69 | I139: =ROUND((H139/$H$5*Assumptions!$C$14*Assumptions!$C$30),0) -> 13501 | K139: 15759 | N139: 15759 | O139: 0 | P139: 15759 | R139: 0 | S139: 15759 | U139: =IFERROR(VLOOKUP($A139, 'Allocation 2022-23 F'!$A$7:$U$321,21,FALSE),0) -> 17991 | W139: -2232 | X139: -0.124062031 | Y139: 240 | Z139: 0 | AB139: 5304590 | AC139: LYLE
A140: =VLOOKUP(B140,CCDDD!$A$3:$B$319,2,FALSE) -> 37504 | B140: 5304620 | C140: LYNDEN | D140: 0 | E140: 0 | F140: =VLOOKUP(B140,'23-24 Adjusted Formula counts'!$A$2:$L$319,8,FALSE) -> 4435 | G140: =ROUND((F140/$F$5*Assumptions!$C$14*Assumptions!$C$29),0) -> 23902 | H140: =VLOOKUP(B140,'23-24 Adjusted Formula counts'!$A$2:$L$319,9,FALSE) -> 415 | I140: =ROUND((H140/$H$5*Assumptions!$C$14*Assumptions!$C$30),0) -> 81199 | K140: 105101 | N140: 105101 | O140: 0 | P140: 105101 | R140: 0 | S140: 105101 | U140: =IFERROR(VLOOKUP($A140, 'Allocation 2022-23 F'!$A$7:$U$321,21,FALSE),0) -> 70918 | W140: 34183 | X140: 0.4820073888 | Y140: 15 | Z140: 0 | AB140: 5304620 | AC140: LYNDEN
A141: =VLOOKUP(B141,CCDDD!$A$3:$B$319,2,FALSE) -> 39120 | B141: 5304650 | C141: MABTON | D141: 0 | E141: 0 | F141: =VLOOKUP(B141,'23-24 Adjusted Formula counts'!$A$2:$L$319,8,FALSE) -> 783 | G141: =ROUND((F141/$F$5*Assumptions!$C$14*Assumptions!$C$29),0) -> 4220 | H141: =VLOOKUP(B141,'23-24 Adjusted Formula counts'!$A$2:$L$319,9,FALSE) -> 164 | I141: =ROUND((H141/$H$5*Assumptions!$C$14*Assumptions!$C$30),0) -> 32088 | K141: 36308 | N141: 36308 | O141: 0 | P141: 36308 | R141: 0 | S141: 36308 | U141: =IFERROR(VLOOKUP($A141, 'Allocation 2022-23 F'!$A$7:$U$321,21,FALSE),0) -> 38445 | W141: -2137 | X141: -0.05558590194 | Y141: 235 | Z141: 0 | AB141: 5304650 | AC141: MABTON
A142: =VLOOKUP(B142,CCDDD!$A$3:$B$319,2,FALSE) -> 09207 | B142: 5304710 | C142: MANSFIELD | D142: 0 | E142: 0 | F142: =VLOOKUP(B142,'23-24 Adjusted Formula counts'!$A$2:$L$319,8,FALSE) -> 88 | G142: =ROUND((F142/$F$5*Assumptions!$C$14*Assumptions!$C$29),0) -> 474 | H142: =VLOOKUP(B142,'23-24 Adjusted Formula counts'!$A$2:$L$319,9,FALSE) -> 27 | I142: =ROUND((H142/$H$5*Assumptions!$C$14*Assumptions!$C$30),0) -> 5283 | K142: 5757 | N142: 5757 | O142: 0 | P142: 5757 | R142: 0 | S142: 5757 | U142: =IFERROR(VLOOKUP($A142, 'Allocation 2022-23 F'!$A$7:$U$321,21,FALSE),0) -> 4097 | W142: 1660 | X142: 0.4051745179 | Y142: 130 | Z142: 0 | AB142: 5304710 | AC142: MANSFIELD
A143: =VLOOKUP(B143,CCDDD!$A$3:$B$319,2,FALSE) -> 04019 | B143: 5304740 | C143: MANSON | D143: 0 | E143: 0 | F143: =VLOOKUP(B143,'23-24 Adjusted Formula counts'!$A$2:$L$319,8,FALSE) -> 623 | G143: =ROUND((F143/$F$5*Assumptions!$C$14*Assumptions!$C$29),0) -> 3358 | H143: =VLOOKUP(B143,'23-24 Adjusted Formula counts'!$A$2:$L$319,9,FALSE) -> 106 | I143: =ROUND((H143/$H$5*Assumptions!$C$14*Assumptions!$C$30),0) -> 20740 | K143: 24098 | N143: 24098 | O143: 0 | P143: 24098 | R143: 0 | S143: 24098 | U143: =IFERROR(VLOOKUP($A143, 'Allocation 2022-23 F'!$A$7:$U$321,21,FALSE),0) -> 24793 | W143: -695 | X143: -0.02803210584 | Y143: 209 | Z143: 0 | AB143: 5304740 | AC143: MANSON
A144: =VLOOKUP(B144,CCDDD!$A$3:$B$319,2,FALSE) -> 23311 | B144: 5304800 | C144: MARY M KNIGHT | D144: 0 | E144: 0 | F144: =VLOOKUP(B144,'23-24 Adjusted Formula counts'!$A$2:$L$319,8,FALSE) -> 207 | G144: =ROUND((F144/$F$5*Assumptions!$C$14*Assumptions!$C$29),0) -> 1116 | H144: =VLOOKUP(B144,'23-24 Adjusted Formula counts'!$A$2:$L$319,9,FALSE) -> 33 | I144: =ROUND((H144/$H$5*Assumptions!$C$14*Assumptions!$C$30),0) -> 6457 | K144: 7573 | N144: 7573 | O144: 0 | P144: 7573 | R144: 0 | S144: 7573 | U144: =IFERROR(VLOOKUP($A144, 'Allocation 2022-23 F'!$A$7:$U$321,21,FALSE),0) -> 11217 | W144: -3644 | X144: -0.3248640456 | Y144: 256 | Z144: 0 | AB144: 5304800 | AC144: MARY M KNIGHT
A145: =VLOOKUP(B145,CCDDD!$A$3:$B$319,2,FALSE) -> 33207 | B145: 5304830 | C145: MARY WALKER | D145: 0 | E145: 0 | F145: =VLOOKUP(B145,'23-24 Adjusted Formula counts'!$A$2:$L$319,8,FALSE) -> 646 | G145: =ROUND((F145/$F$5*Assumptions!$C$14*Assumptions!$C$29),0) -> 3482 | H145: =VLOOKUP(B145,'23-24 Adjusted Formula counts'!$A$2:$L$319,9,FALSE) -> 150 | I145: =ROUND((H145/$H$5*Assumptions!$C$14*Assumptions!$C$30),0) -> 29349 | K145: 32831 | N145: 32831 | O145: 0 | P145: 32831 | R145: 0 | S145: 32831 | U145: =IFERROR(VLOOKUP($A145, 'Allocation 2022-23 F'!$A$7:$U$321,21,FALSE),0) -> 34199 | W145: -1368 | X145: -0.04000116962 | Y145: 223 | Z145: 0 | AB145: 5304830 | AC145: MARY WALKER
A146: =VLOOKUP(B146,CCDDD!$A$3:$B$319,2,FALSE) -> 31025 | B146: 5304860 | C146: MARYSVILLE | D146: 0 | E146: 0 | F146: =VLOOKUP(B146,'23-24 Adjusted Formula counts'!$A$2:$L$319,8,FALSE) -> 12720 | G146: =ROUND((F146/$F$5*Assumptions!$C$14*Assumptions!$C$29),0) -> 68552 | H146: =VLOOKUP(B146,'23-24 Adjusted Formula counts'!$A$2:$L$319,9,FALSE) -> 1226 | I146: =ROUND((H146/$H$5*Assumptions!$C$14*Assumptions!$C$30),0) -> 239880 | K146: 308432 | N146: 308432 | O146: 0 | P146: 308432 | R146: 0 | S146: 308432 | U146: =IFERROR(VLOOKUP($A146, 'Allocation 2022-23 F'!$A$7:$U$321,21,FALSE),0) -> 313119 | W146: -4687 | X146: -0.0149687499 | Y146: 263 | Z146: 0 | AB146: 5304860 | AC146: MARYSVILLE
A147: =VLOOKUP(B147,CCDDD!$A$3:$B$319,2,FALSE) -> 14065 | B147: 5304890 | C147: MCCLEARY | D147: 0 | E147: 0 | F147: =VLOOKUP(B147,'23-24 Adjusted Formula counts'!$A$2:$L$319,8,FALSE) -> 579 | G147: =ROUND((F147/$F$5*Assumptions!$C$14*Assumptions!$C$29),0) -> 3120 | H147: =VLOOKUP(B147,'23-24 Adjusted Formula counts'!$A$2:$L$319,9,FALSE) -> 65 | I147: =ROUND((H147/$H$5*Assumptions!$C$14*Assumptions!$C$30),0) -> 12718 | K147: 15838 | N147: 15838 | O147: 0 | P147: 15838 | R147: 0 | S147: 15838 | U147: =IFERROR(VLOOKUP($A147, 'Allocation 2022-23 F'!$A$7:$U$321,21,FALSE),0) -> 13186 | W147: 2652 | X147: 0.2011224025 | Y147: 109 | Z147: 0 | AB147: 5304890 | AC147: MCCLEARY
A148: =VLOOKUP(B148,CCDDD!$A$3:$B$319,2,FALSE) -> 32354 | B148: 5304920 | C148: MEAD | D148: 0 | E148: 0 | F148: =VLOOKUP(B148,'23-24 Adjusted Formula counts'!$A$2:$L$319,8,FALSE) -> 12203 | G148: =ROUND((F148/$F$5*Assumptions!$C$14*Assumptions!$C$29),0) -> 65766 | H148: =VLOOKUP(B148,'23-24 Adjusted Formula counts'!$A$2:$L$319,9,FALSE) -> 985 | I148: =ROUND((H148/$H$5*Assumptions!$C$14*Assumptions!$C$30),0) -> 192726 | K148: 258492 | N148: 258492 | O148: 0 | P148: 258492 | R148: 0 | S148: 258492 | U148: =IFERROR(VLOOKUP($A148, 'Allocation 2022-23 F'!$A$7:$U$321,21,FALSE),0) -> 267623 | W148: -9131 | X148: -0.03411889113 | Y148: 277 | Z148: 0 | AB148: 5304920 | AC148: MEAD
A149: =VLOOKUP(B149,CCDDD!$A$3:$B$319,2,FALSE) -> 32326 | B149: 5304950 | C149: MEDICAL LAKE | D149: 0 | E149: 0 | F149: =VLOOKUP(B149,'23-24 Adjusted Formula counts'!$A$2:$L$319,8,FALSE) -> 1829 | G149: =ROUND((F149/$F$5*Assumptions!$C$14*Assumptions!$C$29),0) -> 9857 | H149: =VLOOKUP(B149,'23-24 Adjusted Formula counts'!$A$2:$L$319,9,FALSE) -> 173 | I149: =ROUND((H149/$H$5*Assumptions!$C$14*Assumptions!$C$30),0) -> 33849 | K149: 43706 | N149: 43706 | O149: 0 | P149: 43706 | R149: 0 | S149: 43706 | U149: =IFERROR(VLOOKUP($A149, 'Allocation 2022-23 F'!$A$7:$U$321,21,FALSE),0) -> 54287 | W149: -10581 | X149: -0.1949085416 | Y149: 280 | Z149: 0 | AB149: 5304950 | AC149: MEDICAL LAKE
A150: =VLOOKUP(B150,CCDDD!$A$3:$B$319,2,FALSE) -> 17400 | B150: 5304980 | C150: MERCER ISLAND | D150: 0 | E150: 0 | F150: =VLOOKUP(B150,'23-24 Adjusted Formula counts'!$A$2:$L$319,8,FALSE) -> 4992 | G150: =ROUND((F150/$F$5*Assumptions!$C$14*Assumptions!$C$29),0) -> 26904 | H150: =VLOOKUP(B150,'23-24 Adjusted Formula counts'!$A$2:$L$319,9,FALSE) -> 184 | I150: =ROUND((H150/$H$5*Assumptions!$C$14*Assumptions!$C$30),0) -> 36002 | K150: 62906 | N150: 62906 | O150: 0 | P150: 62906 | R150: 0 | S150: 62906 | U150: =IFERROR(VLOOKUP($A150, 'Allocation 2022-23 F'!$A$7:$U$321,21,FALSE),0) -> 59713 | W150: 3193 | X150: 0.05347244319 | Y150: 103 | Z150: 0 | AB150: 5304980 | AC150: MERCER ISLAND
A151: =VLOOKUP(B151,CCDDD!$A$3:$B$319,2,FALSE) -> 37505 | B151: 5305010 | C151: MERIDIAN | D151: 0 | E151: 0 | F151: =VLOOKUP(B151,'23-24 Adjusted Formula counts'!$A$2:$L$319,8,FALSE) -> 1737 | G151: =ROUND((F151/$F$5*Assumptions!$C$14*Assumptions!$C$29),0) -> 9361 | H151: =VLOOKUP(B151,'23-24 Adjusted Formula counts'!$A$2:$L$319,9,FALSE) -> 237 | I151: =ROUND((H151/$H$5*Assumptions!$C$14*Assumptions!$C$30),0) -> 46372 | K151: 55733 | N151: 55733 | O151: 0 | P151: 55733 | R151: 0 | S151: 55733 | U151: =IFERROR(VLOOKUP($A151, 'Allocation 2022-23 F'!$A$7:$U$321,21,FALSE),0) -> 45533 | W151: 10200 | X151: 0.224013353 | Y151: 51 | Z151: 0 | AB151: 5305010 | AC151: MERIDIAN
A152: =VLOOKUP(B152,CCDDD!$A$3:$B$319,2,FALSE) -> 24350 | B152: 5305020 | C152: METHOW VALLEY | D152: 0 | E152: 0 | F152: =VLOOKUP(B152,'23-24 Adjusted Formula counts'!$A$2:$L$319,8,FALSE) -> 860 | G152: =ROUND((F152/$F$5*Assumptions!$C$14*Assumptions!$C$29),0) -> 4635 | H152: =VLOOKUP(B152,'23-24 Adjusted Formula counts'!$A$2:$L$319,9,FALSE) -> 101 | I152: =ROUND((H152/$H$5*Assumptions!$C$14*Assumptions!$C$30),0) -> 19762 | K152: 24397 | N152: 24397 | O152: 0 | P152: 24397 | R152: 0 | S152: 24397 | U152: =IFERROR(VLOOKUP($A152, 'Allocation 2022-23 F'!$A$7:$U$321,21,FALSE),0) -> 26474 | W152: -2077 | X152: -0.07845433255 | Y152: 234 | Z152: 0 | AB152: 5305020 | AC152: METHOW VALLEY
A153: =VLOOKUP(B153,CCDDD!$A$3:$B$319,2,FALSE) -> 30031 | B153: 5305040 | C153: MILL A | D153: 0 | E153: 0 | F153: =VLOOKUP(B153,'23-24 Adjusted Formula counts'!$A$2:$L$319,8,FALSE) -> 74 | G153: =ROUND((F153/$F$5*Assumptions!$C$14*Assumptions!$C$29),0) -> 399 | H153: =VLOOKUP(B153,'23-24 Adjusted Formula counts'!$A$2:$L$319,9,FALSE) -> 12 | I153: =ROUND((H153/$H$5*Assumptions!$C$14*Assumptions!$C$30),0) -> 2348 | K153: 2747 | N153: 2747 | O153: 0 | P153: 2747 | R153: 0 | S153: 2747 | U153: =IFERROR(VLOOKUP($A153, 'Allocation 2022-23 F'!$A$7:$U$321,21,FALSE),0) -> 2480 | W153: 267 | X153: 0.1076612903 | Y153: 170 | Z153: 0 | AB153: 5305040 | AC153: MILL A
A154: =VLOOKUP(B154,CCDDD!$A$3:$B$319,2,FALSE) -> 31103 | B154: 5305130 | C154: MONROE | D154: 0 | E154: 0 | F154: =VLOOKUP(B154,'23-24 Adjusted Formula counts'!$A$2:$L$319,8,FALSE) -> 6741 | G154: =ROUND((F154/$F$5*Assumptions!$C$14*Assumptions!$C$29),0) -> 36329 | H154: =VLOOKUP(B154,'23-24 Adjusted Formula counts'!$A$2:$L$319,9,FALSE) -> 398 | I154: =ROUND((H154/$H$5*Assumptions!$C$14*Assumptions!$C$30),0) -> 77873 | K154: 114202 | N154: 114202 | O154: 0 | P154: 114202 | R154: 0 | S154: 114202 | U154: =IFERROR(VLOOKUP($A154, 'Allocation 2022-23 F'!$A$7:$U$321,21,FALSE),0) -> 111645 | W154: 2557 | X154: 0.02290295132 | Y154: 110 | Z154: 0 | AB154: 5305130 | AC154: MONROE
A155: =VLOOKUP(B155,CCDDD!$A$3:$B$319,2,FALSE) -> 14066 | B155: 5305160 | C155: MONTESANO | D155: 0 | E155: 0 | F155: =VLOOKUP(B155,'23-24 Adjusted Formula counts'!$A$2:$L$319,8,FALSE) -> 1351 | G155: =ROUND((F155/$F$5*Assumptions!$C$14*Assumptions!$C$29),0) -> 7281 | H155: =VLOOKUP(B155,'23-24 Adjusted Formula counts'!$A$2:$L$319,9,FALSE) -> 159 | I155: =ROUND((H155/$H$5*Assumptions!$C$14*Assumptions!$C$30),0) -> 31110 | K155: 38391 | N155: 38391 | O155: 0 | P155: 38391 | R155: 0 | S155: 38391 | U155: =IFERROR(VLOOKUP($A155, 'Allocation 2022-23 F'!$A$7:$U$321,21,FALSE),0) -> 37203 | W155: 1188 | X155: 0.03193290864 | Y155: 141 | Z155: 0 | AB155: 5305160 | AC155: MONTESANO
A156: =VLOOKUP(B156,CCDDD!$A$3:$B$319,2,FALSE) -> 21214 | B156: 5305190 | C156: MORTON | D156: 0 | E156: 0 | F156: =VLOOKUP(B156,'23-24 Adjusted Formula counts'!$A$2:$L$319,8,FALSE) -> 332 | G156: =ROUND((F156/$F$5*Assumptions!$C$14*Assumptions!$C$29),0) -> 1789 | H156: =VLOOKUP(B156,'23-24 Adjusted Formula counts'!$A$2:$L$319,9,FALSE) -> 66 | I156: =ROUND((H156/$H$5*Assumptions!$C$14*Assumptions!$C$30),0) -> 12914 | K156: 14703 | N156: 14703 | O156: 0 | P156: 14703 | R156: 0 | S156: 14703 | U156: =IFERROR(VLOOKUP($A156, 'Allocation 2022-23 F'!$A$7:$U$321,21,FALSE),0) -> 14631 | W156: 72 | X156: 0.004921058027 | Y156: 178 | Z156: 0 | AB156: 5305190 | AC156: MORTON
A157: =VLOOKUP(B157,CCDDD!$A$3:$B$319,2,FALSE) -> 13161 | B157: 5305220 | C157: MOSES LAKE | D157: 0 | E157: 0 | F157: =VLOOKUP(B157,'23-24 Adjusted Formula counts'!$A$2:$L$319,8,FALSE) -> 9920 | G157: =ROUND((F157/$F$5*Assumptions!$C$14*Assumptions!$C$29),0) -> 53462 | H157: =VLOOKUP(B157,'23-24 Adjusted Formula counts'!$A$2:$L$319,9,FALSE) -> 1242 | I157: =ROUND((H157/$H$5*Assumptions!$C$14*Assumptions!$C$30),0) -> 243011 | K157: 296473 | N157: 296473 | O157: 0 | P157: 296473 | R157: 0 | S157: 296473 | U157: =IFERROR(VLOOKUP($A157, 'Allocation 2022-23 F'!$A$7:$U$321,21,FALSE),0) -> 375254 | W157: -78781 | X157: -0.209940467 | Y157: 314 | Z157: 0 | AB157: 5305220 | AC157: MOSES LAKE
A158: =VLOOKUP(B158,CCDDD!$A$3:$B$319,2,FALSE) -> 21206 | B158: 5305250 | C158: MOSSYROCK | D158: 0 | E158: 0 | F158: =VLOOKUP(B158,'23-24 Adjusted Formula counts'!$A$2:$L$319,8,FALSE) -> 698 | G158: =ROUND((F158/$F$5*Assumptions!$C$14*Assumptions!$C$29),0) -> 3762 | H158: =VLOOKUP(B158,'23-24 Adjusted Formula counts'!$A$2:$L$319,9,FALSE) -> 106 | I158: =ROUND((H158/$H$5*Assumptions!$C$14*Assumptions!$C$30),0) -> 20740 | K158: 24502 | N158: 24502 | O158: 0 | P158: 24502 | R158: 0 | S158: 24502 | U158: =IFERROR(VLOOKUP($A158, 'Allocation 2022-23 F'!$A$7:$U$321,21,FALSE),0) -> 21182 | W158: 3320 | X158: 0.156736852 | Y158: 102 | Z158: 0 | AB158: 5305250 | AC158: MOSSYROCK
A159: =VLOOKUP(B159,CCDDD!$A$3:$B$319,2,FALSE) -> 39209 | B159: 5305280 | C159: MOUNT ADAMS | D159: 0 | E159: 0 | F159: =VLOOKUP(B159,'23-24 Adjusted Formula counts'!$A$2:$L$319,8,FALSE) -> 1015 | G159: =ROUND((F159/$F$5*Assumptions!$C$14*Assumptions!$C$29),0) -> 5470 | H159: =VLOOKUP(B159,'23-24 Adjusted Formula counts'!$A$2:$L$319,9,FALSE) -> 247 | I159: =ROUND((H159/$H$5*Assumptions!$C$14*Assumptions!$C$30),0) -> 48328 | K159: 53798 | N159: 53798 | O159: 0 | P159: 53798 | R159: 0 | S159: 53798 | U159: =IFERROR(VLOOKUP($A159, 'Allocation 2022-23 F'!$A$7:$U$321,21,FALSE),0) -> 43314 | W159: 10484 | X159: 0.2420464515 | Y159: 49 | Z159: 0 | AB159: 5305280 | AC159: MOUNT ADAMS
A160: =VLOOKUP(B160,CCDDD!$A$3:$B$319,2,FALSE) -> 37507 | B160: 5305310 | C160: MOUNT BAKER | D160: 0 | E160: 0 | F160: =VLOOKUP(B160,'23-24 Adjusted Formula counts'!$A$2:$L$319,8,FALSE) -> 2481 | G160: =ROUND((F160/$F$5*Assumptions!$C$14*Assumptions!$C$29),0) -> 13371 | H160: =VLOOKUP(B160,'23-24 Adjusted Formula counts'!$A$2:$L$319,9,FALSE) -> 416 | I160: =ROUND((H160/$H$5*Assumptions!$C$14*Assumptions!$C$30),0) -> 81395 | K160: 94766 | N160: 94766 | O160: 0 | P160: 94766 | R160: 0 | S160: 94766 | U160: =IFERROR(VLOOKUP($A160, 'Allocation 2022-23 F'!$A$7:$U$321,21,FALSE),0) -> 84763 | W160: 10003 | X160: 0.1180113965 | Y160: 54 | Z160: 0 | AB160: 5305310 | AC160: MOUNT BAKER
A161: =VLOOKUP(B161,CCDDD!$A$3:$B$319,2,FALSE) -> 30029 | B161: 5305340 | C161: MOUNT PLEASANT | D161: 0 | E161: 0 | F161: =VLOOKUP(B161,'23-24 Adjusted Formula counts'!$A$2:$L$319,8,FALSE) -> 41 | G161: =ROUND((F161/$F$5*Assumptions!$C$14*Assumptions!$C$29),0) -> 221 | H161: =VLOOKUP(B161,'23-24 Adjusted Formula counts'!$A$2:$L$319,9,FALSE) -> 6 | I161: =ROUND((H161/$H$5*Assumptions!$C$14*Assumptions!$C$30),0) -> 1174 | K161: 1395 | N161: 1395 | O161: 0 | P161: 1395 | R161: 0 | S161: 1395 | U161: =IFERROR(VLOOKUP($A161, 'Allocation 2022-23 F'!$A$7:$U$321,21,FALSE),0) -> 1125 | W161: 270 | X161: 0.24 | Y161: 169 | Z161: 0 | AB161: 5305340 | AC161: MOUNT PLEASANT
A162: =VLOOKUP(B162,CCDDD!$A$3:$B$319,2,FALSE) -> 29320 | B162: 5305400 | C162: MOUNT VERNON | D162: 0 | E162: 0 | F162: =VLOOKUP(B162,'23-24 Adjusted Formula counts'!$A$2:$L$319,8,FALSE) -> 6931 | G162: =ROUND((F162/$F$5*Assumptions!$C$14*Assumptions!$C$29),0) -> 37353 | H162: =VLOOKUP(B162,'23-24 Adjusted Formula counts'!$A$2:$L$319,9,FALSE) -> 948 | I162: =ROUND((H162/$H$5*Assumptions!$C$14*Assumptions!$C$30),0) -> 185487 | K162: 222840 | N162: 222840 | O162: 0 | P162: 222840 | R162: 0 | S162: 222840 | U162: =IFERROR(VLOOKUP($A162, 'Allocation 2022-23 F'!$A$7:$U$321,21,FALSE),0) -> 197385 | W162: 25455 | X162: 0.1289611673 | Y162: 24 | Z162: 0 | AB162: 5305400 | AC162: MOUNT VERNON
A163: =VLOOKUP(B163,CCDDD!$A$3:$B$319,2,FALSE) -> 31006 | B163: 5305430 | C163: MUKILTEO | D163: 0 | E163: 0 | F163: =VLOOKUP(B163,'23-24 Adjusted Formula counts'!$A$2:$L$319,8,FALSE) -> 17175 | G163: =ROUND((F163/$F$5*Assumptions!$C$14*Assumptions!$C$29),0) -> 92562 | H163: =VLOOKUP(B163,'23-24 Adjusted Formula counts'!$A$2:$L$319,9,FALSE) -> 1881 | I163: =ROUND((H163/$H$5*Assumptions!$C$14*Assumptions!$C$30),0) -> 368038 | K163: 460600 | N163: 460600 | O163: 0 | P163: 460600 | R163: 0 | S163: 460600 | U163: =IFERROR(VLOOKUP($A163, 'Allocation 2022-23 F'!$A$7:$U$321,21,FALSE),0) -> 460601 | W163: -1 | X163: -2.171076485e-06 | Y163: 184 | Z163: 0 | AB163: 5305430 | AC163: MUKILTEO
A164: =VLOOKUP(B164,CCDDD!$A$3:$B$319,2,FALSE) -> 39003 | B164: 5305460 | C164: NACHES VALLEY | D164: 0 | E164: 0 | F164: =VLOOKUP(B164,'23-24 Adjusted Formula counts'!$A$2:$L$319,8,FALSE) -> 1640 | G164: =ROUND((F164/$F$5*Assumptions!$C$14*Assumptions!$C$29),0) -> 8839 | H164: =VLOOKUP(B164,'23-24 Adjusted Formula counts'!$A$2:$L$319,9,FALSE) -> 202 | I164: =ROUND((H164/$H$5*Assumptions!$C$14*Assumptions!$C$30),0) -> 39524 | K164: 48363 | N164: 48363 | O164: 0 | P164: 48363 | R164: 0 | S164: 48363 | U164: =IFERROR(VLOOKUP($A164, 'Allocation 2022-23 F'!$A$7:$U$321,21,FALSE),0) -> 46537 | W164: 1826 | X164: 0.03923759589 | Y164: 122 | Z164: 0 | AB164: 5305460 | AC164: NACHES VALLEY
A165: =VLOOKUP(B165,CCDDD!$A$3:$B$319,2,FALSE) -> 21014 | B165: 5305490 | C165: NAPAVINE | D165: 0 | E165: 0 | F165: =VLOOKUP(B165,'23-24 Adjusted Formula counts'!$A$2:$L$319,8,FALSE) -> 774 | G165: =ROUND((F165/$F$5*Assumptions!$C$14*Assumptions!$C$29),0) -> 4171 | H165: =VLOOKUP(B165,'23-24 Adjusted Formula counts'!$A$2:$L$319,9,FALSE) -> 78 | I165: =ROUND((H165/$H$5*Assumptions!$C$14*Assumptions!$C$30),0) -> 15262 | K165: 19433 | N165: 19433 | O165: 0 | P165: 19433 | R165: 0 | S165: 19433 | U165: =IFERROR(VLOOKUP($A165, 'Allocation 2022-23 F'!$A$7:$U$321,21,FALSE),0) -> 25123 | W165: -5690 | X165: -0.2264856904 | Y165: 268 | Z165: 0 | AB165: 5305490 | AC165: NAPAVINE
A166: =VLOOKUP(B166,CCDDD!$A$3:$B$319,2,FALSE) -> 25155 | B166: 5305520 | C166: NASELLE-GRAYS | D166: 0 | E166: 0 | F166: =VLOOKUP(B166,'23-24 Adjusted Formula counts'!$A$2:$L$319,8,FALSE) -> 343 | G166: =ROUND((F166/$F$5*Assumptions!$C$14*Assumptions!$C$29),0) -> 1849 | H166: =VLOOKUP(B166,'23-24 Adjusted Formula counts'!$A$2:$L$319,9,FALSE) -> 48 | I166: =ROUND((H166/$H$5*Assumptions!$C$14*Assumptions!$C$30),0) -> 9392 | K166: 11241 | N166: 11241 | O166: 0 | P166: 11241 | R166: 0 | S166: 11241 | U166: =IFERROR(VLOOKUP($A166, 'Allocation 2022-23 F'!$A$7:$U$321,21,FALSE),0) -> 12428 | W166: -1187 | X166: -0.0955101384 | Y166: 220 | Z166: 0 | AB166: 5305520 | AC166: NASELLE-GRAYS
A167: =VLOOKUP(B167,CCDDD!$A$3:$B$319,2,FALSE) -> 24014 | B167: 5305550 | C167: NESPELEM | D167: 0 | E167: 0 | F167: =VLOOKUP(B167,'23-24 Adjusted Formula counts'!$A$2:$L$319,8,FALSE) -> 253 | G167: =ROUND((F167/$F$5*Assumptions!$C$14*Assumptions!$C$29),0) -> 1364 | H167: =VLOOKUP(B167,'23-24 Adjusted Formula counts'!$A$2:$L$319,9,FALSE) -> 57 | I167: =ROUND((H167/$H$5*Assumptions!$C$14*Assumptions!$C$30),0) -> 11153 | K167: 12517 | N167: 12517 | O167: 0 | P167: 12517 | R167: 0 | S167: 12517 | U167: =IFERROR(VLOOKUP($A167, 'Allocation 2022-23 F'!$A$7:$U$321,21,FALSE),0) -> 18744 | W167: -6227 | X167: -0.3322129748 | Y167: 270 | Z167: 0 | AB167: 5305550 | AC167: NESPELEM
A168: =VLOOKUP(B168,CCDDD!$A$3:$B$319,2,FALSE) -> 26056 | B168: 5305610 | C168: NEWPORT | D168: 0 | E168: 0 | F168: =VLOOKUP(B168,'23-24 Adjusted Formula counts'!$A$2:$L$319,8,FALSE) -> 1342 | G168: =ROUND((F168/$F$5*Assumptions!$C$14*Assumptions!$C$29),0) -> 7232 | H168: =VLOOKUP(B168,'23-24 Adjusted Formula counts'!$A$2:$L$319,9,FALSE) -> 310 | I168: =ROUND((H168/$H$5*Assumptions!$C$14*Assumptions!$C$30),0) -> 60655 | K168: 67887 | N168: 67887 | O168: 0 | P168: 67887 | R168: 0 | S168: 67887 | U168: =IFERROR(VLOOKUP($A168, 'Allocation 2022-23 F'!$A$7:$U$321,21,FALSE),0) -> 66962 | W168: 925 | X168: 0.01381380484 | Y168: 146 | Z168: 0 | AB168: 5305610 | AC168: NEWPORT
A169: =VLOOKUP(B169,CCDDD!$A$3:$B$319,2,FALSE) -> 32325 | B169: 5305640 | C169: NINE MILE FALLS | D169: 0 | E169: 0 | F169: =VLOOKUP(B169,'23-24 Adjusted Formula counts'!$A$2:$L$319,8,FALSE) -> 1580 | G169: =ROUND((F169/$F$5*Assumptions!$C$14*Assumptions!$C$29),0) -> 8515 | H169: =VLOOKUP(B169,'23-24 Adjusted Formula counts'!$A$2:$L$319,9,FALSE) -> 149 | I169: =ROUND((H169/$H$5*Assumptions!$C$14*Assumptions!$C$30),0) -> 29153 | K169: 37668 | N169: 37668 | O169: 0 | P169: 37668 | R169: 0 | S169: 37668 | U169: =IFERROR(VLOOKUP($A169, 'Allocation 2022-23 F'!$A$7:$U$321,21,FALSE),0) -> 69675 | W169: -32007 | X169: -0.4593756728 | Y169: 308 | Z169: 0 | AB169: 5305640 | AC169: NINE MILE FALLS
A170: =VLOOKUP(B170,CCDDD!$A$3:$B$319,2,FALSE) -> 37506 | B170: 5305670 | C170: NOOKSACK VALLEY | D170: 0 | E170: 0 | F170: =VLOOKUP(B170,'23-24 Adjusted Formula counts'!$A$2:$L$319,8,FALSE) -> 2252 | G170: =ROUND((F170/$F$5*Assumptions!$C$14*Assumptions!$C$29),0) -> 12137 | H170: =VLOOKUP(B170,'23-24 Adjusted Formula counts'!$A$2:$L$319,9,FALSE) -> 294 | I170: =ROUND((H170/$H$5*Assumptions!$C$14*Assumptions!$C$30),0) -> 57524 | K170: 69661 | N170: 69661 | O170: 0 | P170: 69661 | R170: 0 | S170: 69661 | U170: =IFERROR(VLOOKUP($A170, 'Allocation 2022-23 F'!$A$7:$U$321,21,FALSE),0) -> 52173 | W170: 17488 | X170: 0.3351925325 | Y170: 38 | Z170: 0 | AB170: 5305670 | AC170: NOOKSACK VALLEY
A171: =VLOOKUP(B171,CCDDD!$A$3:$B$319,2,FALSE) -> 14064 | B171: 5305700 | C171: NORTH BEACH | D171: 0 | E171: 0 | F171: =VLOOKUP(B171,'23-24 Adjusted Formula counts'!$A$2:$L$319,8,FALSE) -> 713 | G171: =ROUND((F171/$F$5*Assumptions!$C$14*Assumptions!$C$29),0) -> 3843 | H171: =VLOOKUP(B171,'23-24 Adjusted Formula counts'!$A$2:$L$319,9,FALSE) -> 161 | I171: =ROUND((H171/$H$5*Assumptions!$C$14*Assumptions!$C$30),0) -> 31501 | K171: 35344 | N171: 35344 | O171: 0 | P171: 35344 | R171: 0 | S171: 35344 | U171: =IFERROR(VLOOKUP($A171, 'Allocation 2022-23 F'!$A$7:$U$321,21,FALSE),0) -> 32559 | W171: 2785 | X171: 0.08553702509 | Y171: 105 | Z171: 0 | AB171: 5305700 | AC171: NORTH BEACH
A172: =VLOOKUP(B172,CCDDD!$A$3:$B$319,2,FALSE) -> 11051 | B172: 5305730 | C172: NORTH FRANKLIN | D172: 0 | E172: 0 | F172: =VLOOKUP(B172,'23-24 Adjusted Formula counts'!$A$2:$L$319,8,FALSE) -> 2246 | G172: =ROUND((F172/$F$5*Assumptions!$C$14*Assumptions!$C$29),0) -> 12104 | H172: =VLOOKUP(B172,'23-24 Adjusted Formula counts'!$A$2:$L$319,9,FALSE) -> 312 | I172: =ROUND((H172/$H$5*Assumptions!$C$14*Assumptions!$C$30),0) -> 61046 | K172: 73150 | N172: 73150 | O172: 0 | P172: 73150 | R172: 0 | S172: 73150 | U172: =IFERROR(VLOOKUP($A172, 'Allocation 2022-23 F'!$A$7:$U$321,21,FALSE),0) -> 92775 | W172: -19625 | X172: -0.2115332794 | Y172: 297 | Z172: 0 | AB172: 5305730 | AC172: NORTH FRANKLIN
A173: =VLOOKUP(B173,CCDDD!$A$3:$B$319,2,FALSE) -> 18400 | B173: 5305760 | C173: NORTH KITSAP | D173: 0 | E173: 0 | F173: =VLOOKUP(B173,'23-24 Adjusted Formula counts'!$A$2:$L$319,8,FALSE) -> 7279 | G173: =ROUND((F173/$F$5*Assumptions!$C$14*Assumptions!$C$29),0) -> 39229 | H173: =VLOOKUP(B173,'23-24 Adjusted Formula counts'!$A$2:$L$319,9,FALSE) -> 601 | I173: =ROUND((H173/$H$5*Assumptions!$C$14*Assumptions!$C$30),0) -> 117592 | K173: 156821 | N173: 156821 | O173: 0 | P173: 156821 | R173: 0 | S173: 156821 | U173: =IFERROR(VLOOKUP($A173, 'Allocation 2022-23 F'!$A$7:$U$321,21,FALSE),0) -> 160943 | W173: -4122 | X173: -0.02561155192 | Y173: 259 | Z173: 0 | AB173: 5305760 | AC173: NORTH KITSAP
A174: =VLOOKUP(B174,CCDDD!$A$3:$B$319,2,FALSE) -> 23403 | B174: 5305790 | C174: NORTH MASON | D174: 0 | E174: 0 | F174: =VLOOKUP(B174,'23-24 Adjusted Formula counts'!$A$2:$L$319,8,FALSE) -> 2465 | G174: =ROUND((F174/$F$5*Assumptions!$C$14*Assumptions!$C$29),0) -> 13285 | H174: =VLOOKUP(B174,'23-24 Adjusted Formula counts'!$A$2:$L$319,9,FALSE) -> 394 | I174: =ROUND((H174/$H$5*Assumptions!$C$14*Assumptions!$C$30),0) -> 77090 | K174: 90375 | N174: 90375 | O174: 0 | P174: 90375 | R174: 0 | S174: 90375 | U174: =IFERROR(VLOOKUP($A174, 'Allocation 2022-23 F'!$A$7:$U$321,21,FALSE),0) -> 81430 | W174: 8945 | X174: 0.10984895 | Y174: 58 | Z174: 0 | AB174: 5305790 | AC174: NORTH MASON
A175: =VLOOKUP(B175,CCDDD!$A$3:$B$319,2,FALSE) -> 25200 | B175: 5305820 | C175: NORTH RIVER | D175: 0 | E175: 0 | F175: =VLOOKUP(B175,'23-24 Adjusted Formula counts'!$A$2:$L$319,8,FALSE) -> 54 | G175: =ROUND((F175/$F$5*Assumptions!$C$14*Assumptions!$C$29),0) -> 291 | H175: =VLOOKUP(B175,'23-24 Adjusted Formula counts'!$A$2:$L$319,9,FALSE) -> 8 | I175: =ROUND((H175/$H$5*Assumptions!$C$14*Assumptions!$C$30),0) -> 1565 | K175: 1856 | N175: 1856 | O175: 0 | P175: 1856 | R175: 0 | S175: 1856 | U175: =IFERROR(VLOOKUP($A175, 'Allocation 2022-23 F'!$A$7:$U$321,21,FALSE),0) -> 1924 | W175: -68 | X175: -0.03534303534 | Y175: 186 | Z175: 0 | AB175: 5305820 | AC175: NORTH RIVER
A176: =VLOOKUP(B176,CCDDD!$A$3:$B$319,2,FALSE) -> 34003 | B176: 5305850 | C176: NORTH THURSTON | D176: 0 | E176: 0 | F176: =VLOOKUP(B176,'23-24 Adjusted Formula counts'!$A$2:$L$319,8,FALSE) -> 17329 | G176: =ROUND((F176/$F$5*Assumptions!$C$14*Assumptions!$C$29),0) -> 93392 | H176: =VLOOKUP(B176,'23-24 Adjusted Formula counts'!$A$2:$L$319,9,FALSE) -> 1789 | I176: =ROUND((H176/$H$5*Assumptions!$C$14*Assumptions!$C$30),0) -> 350038 | K176: 443430 | N176: 443430 | O176: 0 | P176: 443430 | R176: 0 | S176: 443430 | U176: =IFERROR(VLOOKUP($A176, 'Allocation 2022-23 F'!$A$7:$U$321,21,FALSE),0) -> 421672 | W176: 21758 | X176: 0.05159934736 | Y176: 26 | Z176: 0 | AB176: 5305850 | AC176: NORTH THURSTON
A177: =VLOOKUP(B177,CCDDD!$A$3:$B$319,2,FALSE) -> 33211 | B177: 5305880 | C177: NORTHPORT | D177: 0 | E177: 0 | F177: =VLOOKUP(B177,'23-24 Adjusted Formula counts'!$A$2:$L$319,8,FALSE) -> 227 | G177: =ROUND((F177/$F$5*Assumptions!$C$14*Assumptions!$C$29),0) -> 1223 | H177: =VLOOKUP(B177,'23-24 Adjusted Formula counts'!$A$2:$L$319,9,FALSE) -> 60 | I177: =ROUND((H177/$H$5*Assumptions!$C$14*Assumptions!$C$30),0) -> 11740 | K177: 12963 | N177: 12963 | O177: 0 | P177: 12963 | R177: 0 | S177: 12963 | U177: =IFERROR(VLOOKUP($A177, 'Allocation 2022-23 F'!$A$7:$U$321,21,FALSE),0) -> 11479 | W177: 1484 | X177: 0.129279554 | Y177: 135 | Z177: 0 | AB177: 5305880 | AC177: NORTHPORT
A178: =VLOOKUP(B178,CCDDD!$A$3:$B$319,2,FALSE) -> 17417 | B178: 5305910 | C178: NORTHSHORE | D178: 0 | E178: 0 | F178: =VLOOKUP(B178,'23-24 Adjusted Formula counts'!$A$2:$L$319,8,FALSE) -> 26739 | G178: =ROUND((F178/$F$5*Assumptions!$C$14*Assumptions!$C$29),0) -> 144105 | H178: =VLOOKUP(B178,'23-24 Adjusted Formula counts'!$A$2:$L$319,9,FALSE) -> 1028 | I178: =ROUND((H178/$H$5*Assumptions!$C$14*Assumptions!$C$30),0) -> 201140 | K178: 345245 | N178: 345245 | O178: 0 | P178: 345245 | R178: 0 | S178: 345245 | U178: =IFERROR(VLOOKUP($A178, 'Allocation 2022-23 F'!$A$7:$U$321,21,FALSE),0) -> 291805 | W178: 53440 | X178: 0.1831359984 | Y178: 10 | Z178: 0 | AB178: 5305910 | AC178: NORTHSHORE
A179: =VLOOKUP(B179,CCDDD!$A$3:$B$319,2,FALSE) -> 15201 | B179: 5305940 | C179: OAK HARBOR | D179: 0 | E179: 0 | F179: =VLOOKUP(B179,'23-24 Adjusted Formula counts'!$A$2:$L$319,8,FALSE) -> 6127 | G179: =ROUND((F179/$F$5*Assumptions!$C$14*Assumptions!$C$29),0) -> 33020 | H179: =VLOOKUP(B179,'23-24 Adjusted Formula counts'!$A$2:$L$319,9,FALSE) -> 554 | I179: =ROUND((H179/$H$5*Assumptions!$C$14*Assumptions!$C$30),0) -> 108396 | K179: 141416 | N179: 141416 | O179: 0 | P179: 141416 | R179: 0 | S179: 141416 | U179: =IFERROR(VLOOKUP($A179, 'Allocation 2022-23 F'!$A$7:$U$321,21,FALSE),0) -> 127429 | W179: 13987 | X179: 0.1097630838 | Y179: 42 | Z179: 0 | AB179: 5305940 | AC179: OAK HARBOR
A180: =VLOOKUP(B180,CCDDD!$A$3:$B$319,2,FALSE) -> 38324 | B180: 5305970 | C180: OAKESDALE | D180: 0 | E180: 0 | F180: =VLOOKUP(B180,'23-24 Adjusted Formula counts'!$A$2:$L$319,8,FALSE) -> 127 | G180: =ROUND((F180/$F$5*Assumptions!$C$14*Assumptions!$C$29),0) -> 684 | H180: =VLOOKUP(B180,'23-24 Adjusted Formula counts'!$A$2:$L$319,9,FALSE) -> 12 | I180: =ROUND((H180/$H$5*Assumptions!$C$14*Assumptions!$C$30),0) -> 2348 | K180: 3032 | N180: 3032 | O180: 0 | P180: 3032 | R180: 0 | S180: 3032 | U180: =IFERROR(VLOOKUP($A180, 'Allocation 2022-23 F'!$A$7:$U$321,21,FALSE),0) -> 2866 | W180: 166 | X180: 0.05792044662 | Y180: 173 | Z180: 0 | AB180: 5305970 | AC180: OAKESDALE
A181: =VLOOKUP(B181,CCDDD!$A$3:$B$319,2,FALSE) -> 14400 | B181: 5306000 | C181: OAKVILLE | D181: 0 | E181: 0 | F181: =VLOOKUP(B181,'23-24 Adjusted Formula counts'!$A$2:$L$319,8,FALSE) -> 456 | G181: =ROUND((F181/$F$5*Assumptions!$C$14*Assumptions!$C$29),0) -> 2458 | H181: =VLOOKUP(B181,'23-24 Adjusted Formula counts'!$A$2:$L$319,9,FALSE) -> 72 | I181: =ROUND((H181/$H$5*Assumptions!$C$14*Assumptions!$C$30),0) -> 14088 | K181: 16546 | N181: 16546 | O181: 0 | P181: 16546 | R181: 0 | S181: 16546 | U181: =IFERROR(VLOOKUP($A181, 'Allocation 2022-23 F'!$A$7:$U$321,21,FALSE),0) -> 18133 | W181: -1587 | X181: -0.08751999118 | Y181: 228 | Z181: 0 | AB181: 5306000 | AC181: OAKVILLE
A182: =VLOOKUP(B182,CCDDD!$A$3:$B$319,2,FALSE) -> 25101 | B182: 5306060 | C182: OCEAN BEACH | D182: 0 | E182: 0 | F182: =VLOOKUP(B182,'23-24 Adjusted Formula counts'!$A$2:$L$319,8,FALSE) -> 1066 | G182: =ROUND((F182/$F$5*Assumptions!$C$14*Assumptions!$C$29),0) -> 5745 | H182: =VLOOKUP(B182,'23-24 Adjusted Formula counts'!$A$2:$L$319,9,FALSE) -> 210 | I182: =ROUND((H182/$H$5*Assumptions!$C$14*Assumptions!$C$30),0) -> 41089 | K182: 46834 | N182: 46834 | O182: 0 | P182: 46834 | R182: 0 | S182: 46834 | U182: =IFERROR(VLOOKUP($A182, 'Allocation 2022-23 F'!$A$7:$U$321,21,FALSE),0) -> 44868 | W182: 1966 | X182: 0.04381741999 | Y182: 120 | Z182: 0 | AB182: 5306060 | AC182: OCEAN BEACH
A183: =VLOOKUP(B183,CCDDD!$A$3:$B$319,2,FALSE) -> 14172 | B183: 5306090 | C183: OCOSTA | D183: 0 | E183: 0 | F183: =VLOOKUP(B183,'23-24 Adjusted Formula counts'!$A$2:$L$319,8,FALSE) -> 669 | G183: =ROUND((F183/$F$5*Assumptions!$C$14*Assumptions!$C$29),0) -> 3605 | H183: =VLOOKUP(B183,'23-24 Adjusted Formula counts'!$A$2:$L$319,9,FALSE) -> 192 | I183: =ROUND((H183/$H$5*Assumptions!$C$14*Assumptions!$C$30),0) -> 37567 | K183: 41172 | N183: 41172 | O183: 0 | P183: 41172 | R183: 0 | S183: 41172 | U183: =IFERROR(VLOOKUP($A183, 'Allocation 2022-23 F'!$A$7:$U$321,21,FALSE),0) -> 36826 | W183: 4346 | X183: 0.1180144463 | Y183: 93 | Z183: 0 | AB183: 5306090 | AC183: OCOSTA
A184: =VLOOKUP(B184,CCDDD!$A$3:$B$319,2,FALSE) -> 22105 | B184: 5306120 | C184: ODESSA | D184: 0 | E184: 0 | F184: =VLOOKUP(B184,'23-24 Adjusted Formula counts'!$A$2:$L$319,8,FALSE) -> 304 | G184: =ROUND((F184/$F$5*Assumptions!$C$14*Assumptions!$C$29),0) -> 1638 | H184: =VLOOKUP(B184,'23-24 Adjusted Formula counts'!$A$2:$L$319,9,FALSE) -> 40 | I184: =ROUND((H184/$H$5*Assumptions!$C$14*Assumptions!$C$30),0) -> 7826 | K184: 9464 | N184: 9464 | O184: 0 | P184: 9464 | R184: 0 | S184: 9464 | U184: =IFERROR(VLOOKUP($A184, 'Allocation 2022-23 F'!$A$7:$U$321,21,FALSE),0) -> 10174 | W184: -710 | X184: -0.06978572833 | Y184: 210 | Z184: 0 | AB184: 5306120 | AC184: ODESSA
A185: =VLOOKUP(B185,CCDDD!$A$3:$B$319,2,FALSE) -> 24105 | B185: 5306150 | C185: OKANOGAN | D185: 0 | E185: 0 | F185: =VLOOKUP(B185,'23-24 Adjusted Formula counts'!$A$2:$L$319,8,FALSE) -> 982 | G185: =ROUND((F185/$F$5*Assumptions!$C$14*Assumptions!$C$29),0) -> 5292 | H185: =VLOOKUP(B185,'23-24 Adjusted Formula counts'!$A$2:$L$319,9,FALSE) -> 167 | I185: =ROUND((H185/$H$5*Assumptions!$C$14*Assumptions!$C$30),0) -> 32675 | K185: 37967 | N185: 37967 | O185: 0 | P185: 37967 | R185: 0 | S185: 37967 | U185: =IFERROR(VLOOKUP($A185, 'Allocation 2022-23 F'!$A$7:$U$321,21,FALSE),0) -> 61454 | W185: -23487 | X185: -0.3821883034 | Y185: 303 | Z185: 0 | AB185: 5306150 | AC185: OKANOGAN
A186: =VLOOKUP(B186,CCDDD!$A$3:$B$319,2,FALSE) -> 34111 | B186: 5306180 | C186: OLYMPIA | D186: 0 | E186: 0 | F186: =VLOOKUP(B186,'23-24 Adjusted Formula counts'!$A$2:$L$319,8,FALSE) -> 10589 | G186: =ROUND((F186/$F$5*Assumptions!$C$14*Assumptions!$C$29),0) -> 57068 | H186: =VLOOKUP(B186,'23-24 Adjusted Formula counts'!$A$2:$L$319,9,FALSE) -> 1159 | I186: =ROUND((H186/$H$5*Assumptions!$C$14*Assumptions!$C$30),0) -> 226771 | K186: 283839 | N186: 283839 | O186: 0 | P186: 283839 | R186: 0 | S186: 283839 | U186: =IFERROR(VLOOKUP($A186, 'Allocation 2022-23 F'!$A$7:$U$321,21,FALSE),0) -> 246383 | W186: 37456 | X186: 0.1520234756 | Y186: 13 | Z186: 0 | AB186: 5306180 | AC186: OLYMPIA
A187: =VLOOKUP(B187,CCDDD!$A$3:$B$319,2,FALSE) -> 24019 | B187: 5306220 | C187: OMAK | D187: 0 | E187: 0 | F187: =VLOOKUP(B187,'23-24 Adjusted Formula counts'!$A$2:$L$319,8,FALSE) -> 1933 | G187: =ROUND((F187/$F$5*Assumptions!$C$14*Assumptions!$C$29),0) -> 10418 | H187: =VLOOKUP(B187,'23-24 Adjusted Formula counts'!$A$2:$L$319,9,FALSE) -> 410 | I187: =ROUND((H187/$H$5*Assumptions!$C$14*Assumptions!$C$30),0) -> 80221 | K187: 90639 | N187: 90639 | O187: 0 | P187: 90639 | R187: 0 | S187: 90639 | U187: =IFERROR(VLOOKUP($A187, 'Allocation 2022-23 F'!$A$7:$U$321,21,FALSE),0) -> 116430 | W187: -25791 | X187: -0.2215150734 | Y187: 305 | Z187: 0 | AB187: 5306220 | AC187: OMAK
A188: =VLOOKUP(B188,CCDDD!$A$3:$B$319,2,FALSE) -> 21300 | B188: 5306240 | C188: ONALASKA | D188: 0 | E188: 0 | F188: =VLOOKUP(B188,'23-24 Adjusted Formula counts'!$A$2:$L$319,8,FALSE) -> 932 | G188: =ROUND((F188/$F$5*Assumptions!$C$14*Assumptions!$C$29),0) -> 5023 | H188: =VLOOKUP(B188,'23-24 Adjusted Formula counts'!$A$2:$L$319,9,FALSE) -> 142 | I188: =ROUND((H188/$H$5*Assumptions!$C$14*Assumptions!$C$30),0) -> 27784 | K188: 32807 | N188: 32807 | O188: 0 | P188: 32807 | R188: 0 | S188: 32807 | U188: =IFERROR(VLOOKUP($A188, 'Allocation 2022-23 F'!$A$7:$U$321,21,FALSE),0) -> 33178 | W188: -371 | X188: -0.01118210863 | Y188: 197 | Z188: 0 | AB188: 5306240 | AC188: ONALASKA
A189: =VLOOKUP(B189,CCDDD!$A$3:$B$319,2,FALSE) -> 33030 | B189: 5306270 | C189: ONION CREEK | D189: 0 | E189: 0 | F189: =VLOOKUP(B189,'23-24 Adjusted Formula counts'!$A$2:$L$319,8,FALSE) -> 63 | G189: =ROUND((F189/$F$5*Assumptions!$C$14*Assumptions!$C$29),0) -> 340 | H189: =VLOOKUP(B189,'23-24 Adjusted Formula counts'!$A$2:$L$319,9,FALSE) -> 15 | I189: =ROUND((H189/$H$5*Assumptions!$C$14*Assumptions!$C$30),0) -> 2935 | K189: 3275 | N189: 3275 | O189: 0 | P189: 3275 | R189: 0 | S189: 3275 | U189: =IFERROR(VLOOKUP($A189, 'Allocation 2022-23 F'!$A$7:$U$321,21,FALSE),0) -> 4192 | W189: -917 | X189: -0.21875 | Y189: 216 | Z189: 0 | AB189: 5306270 | AC189: ONION CREEK
A190: =VLOOKUP(B190,CCDDD!$A$3:$B$319,2,FALSE) -> 28137 | B190: 5306300 | C190: ORCAS ISLAND | D190: 0 | E190: 0 | F190: =VLOOKUP(B190,'23-24 Adjusted Formula counts'!$A$2:$L$319,8,FALSE) -> 592 | G190: =ROUND((F190/$F$5*Assumptions!$C$14*Assumptions!$C$29),0) -> 3190 | H190: =VLOOKUP(B190,'23-24 Adjusted Formula counts'!$A$2:$L$319,9,FALSE) -> 85 | I190: =ROUND((H190/$H$5*Assumptions!$C$14*Assumptions!$C$30),0) -> 16631 | K190: 19821 | N190: 19821 | O190: 0 | P190: 19821 | R190: 0 | S190: 19821 | U190: =IFERROR(VLOOKUP($A190, 'Allocation 2022-23 F'!$A$7:$U$321,21,FALSE),0) -> 13838 | W190: 5983 | X190: 0.4323601677 | Y190: 79 | Z190: 0 | AB190: 5306300 | AC190: ORCAS ISLAND
A191: =VLOOKUP(B191,CCDDD!$A$3:$B$319,2,FALSE) -> 32123 | B191: 5306330 | C191: ORCHARD PRAIRIE | D191: 0 | E191: 0 | F191: =VLOOKUP(B191,'23-24 Adjusted Formula counts'!$A$2:$L$319,8,FALSE) -> 180 | G191: =ROUND((F191/$F$5*Assumptions!$C$14*Assumptions!$C$29),0) -> 970 | H191: =VLOOKUP(B191,'23-24 Adjusted Formula counts'!$A$2:$L$319,9,FALSE) -> 7 | I191: =ROUND((H191/$H$5*Assumptions!$C$14*Assumptions!$C$30),0) -> 1370 | K191: 2340 | N191: 2340 | O191: 0 | P191: 2340 | R191: 0 | S191: 2340 | U191: =IFERROR(VLOOKUP($A191, 'Allocation 2022-23 F'!$A$7:$U$321,21,FALSE),0) -> 3564 | W191: -1224 | X191: -0.3434343434 | Y191: 222 | Z191: 0 | AB191: 5306330 | AC191: ORCHARD PRAIRIE
A192: =VLOOKUP(B192,CCDDD!$A$3:$B$319,2,FALSE) -> 10065 | B192: 5306360 | C192: ORIENT | D192: 0 | E192: 0 | F192: =VLOOKUP(B192,'23-24 Adjusted Formula counts'!$A$2:$L$319,8,FALSE) -> 127 | G192: =ROUND((F192/$F$5*Assumptions!$C$14*Assumptions!$C$29),0) -> 684 | H192: =VLOOKUP(B192,'23-24 Adjusted Formula counts'!$A$2:$L$319,9,FALSE) -> 31 | I192: =ROUND((H192/$H$5*Assumptions!$C$14*Assumptions!$C$30),0) -> 6065 | K192: 6749 | N192: 6749 | O192: 0 | P192: 6749 | R192: 0 | S192: 6749 | U192: =IFERROR(VLOOKUP($A192, 'Allocation 2022-23 F'!$A$7:$U$321,21,FALSE),0) -> 5941 | W192: 808 | X192: 0.1360040397 | Y192: 152 | Z192: 0 | AB192: 5306360 | AC192: ORIENT
A193: =VLOOKUP(B193,CCDDD!$A$3:$B$319,2,FALSE) -> 09013 | B193: 5306390 | C193: ORONDO | D193: 0 | E193: 0 | F193: =VLOOKUP(B193,'23-24 Adjusted Formula counts'!$A$2:$L$319,8,FALSE) -> 270 | G193: =ROUND((F193/$F$5*Assumptions!$C$14*Assumptions!$C$29),0) -> 1455 | H193: =VLOOKUP(B193,'23-24 Adjusted Formula counts'!$A$2:$L$319,9,FALSE) -> 51 | I193: =ROUND((H193/$H$5*Assumptions!$C$14*Assumptions!$C$30),0) -> 9979 | K193: 11434 | N193: 11434 | O193: 0 | P193: 11434 | R193: 0 | S193: 11434 | U193: =IFERROR(VLOOKUP($A193, 'Allocation 2022-23 F'!$A$7:$U$321,21,FALSE),0) -> 18240 | W193: -6806 | X193: -0.3731359649 | Y193: 273 | Z193: 0 | AB193: 5306390 | AC193: ORONDO
A194: =VLOOKUP(B194,CCDDD!$A$3:$B$319,2,FALSE) -> 24410 | B194: 5306420 | C194: OROVILLE | D194: 0 | E194: 0 | F194: =VLOOKUP(B194,'23-24 Adjusted Formula counts'!$A$2:$L$319,8,FALSE) -> 712 | G194: =ROUND((F194/$F$5*Assumptions!$C$14*Assumptions!$C$29),0) -> 3837 | H194: =VLOOKUP(B194,'23-24 Adjusted Formula counts'!$A$2:$L$319,9,FALSE) -> 208 | I194: =ROUND((H194/$H$5*Assumptions!$C$14*Assumptions!$C$30),0) -> 40697 | K194: 44534 | N194: 44534 | O194: 0 | P194: 44534 | R194: 0 | S194: 44534 | U194: =IFERROR(VLOOKUP($A194, 'Allocation 2022-23 F'!$A$7:$U$321,21,FALSE),0) -> 65856 | W194: -21322 | X194: -0.3237670068 | Y194: 301 | Z194: 0 | AB194: 5306420 | AC194: OROVILLE
A195: =VLOOKUP(B195,CCDDD!$A$3:$B$319,2,FALSE) -> 27344 | B195: 5306450 | C195: ORTING | D195: 0 | E195: 0 | F195: =VLOOKUP(B195,'23-24 Adjusted Formula counts'!$A$2:$L$319,8,FALSE) -> 3303 | G195: =ROUND((F195/$F$5*Assumptions!$C$14*Assumptions!$C$29),0) -> 17801 | H195: =VLOOKUP(B195,'23-24 Adjusted Formula counts'!$A$2:$L$319,9,FALSE) -> 198 | I195: =ROUND((H195/$H$5*Assumptions!$C$14*Assumptions!$C$30),0) -> 38741 | K195: 56542 | N195: 56542 | O195: 0 | P195: 56542 | R195: 0 | S195: 56542 | U195: =IFERROR(VLOOKUP($A195, 'Allocation 2022-23 F'!$A$7:$U$321,21,FALSE),0) -> 46433 | W195: 10109 | X195: 0.2177115414 | Y195: 53 | Z195: 0 | AB195: 5306450 | AC195: ORTING
A196: =VLOOKUP(B196,CCDDD!$A$3:$B$319,2,FALSE) -> 01147 | B196: 5306480 | C196: OTHELLO | D196: 0 | E196: 0 | F196: =VLOOKUP(B196,'23-24 Adjusted Formula counts'!$A$2:$L$319,8,FALSE) -> 4661 | G196: =ROUND((F196/$F$5*Assumptions!$C$14*Assumptions!$C$29),0) -> 25120 | H196: =VLOOKUP(B196,'23-24 Adjusted Formula counts'!$A$2:$L$319,9,FALSE) -> 883 | I196: =ROUND((H196/$H$5*Assumptions!$C$14*Assumptions!$C$30),0) -> 172769 | K196: 197889 | N196: 197889 | O196: 0 | P196: 197889 | R196: 0 | S196: 197889 | U196: =IFERROR(VLOOKUP($A196, 'Allocation 2022-23 F'!$A$7:$U$321,21,FALSE),0) -> 179013 | W196: 18876 | X196: 0.105444856 | Y196: 31 | Z196: 0 | AB196: 5306480 | AC196: OTHELLO
A197: =VLOOKUP(B197,CCDDD!$A$3:$B$319,2,FALSE) -> 09102 | B197: 5306510 | C197: PALISADES | D197: 0 | E197: 0 | F197: =VLOOKUP(B197,'23-24 Adjusted Formula counts'!$A$2:$L$319,8,FALSE) -> 48 | G197: =ROUND((F197/$F$5*Assumptions!$C$14*Assumptions!$C$29),0) -> 259 | H197: =VLOOKUP(B197,'23-24 Adjusted Formula counts'!$A$2:$L$319,9,FALSE) -> 10 | I197: =ROUND((H197/$H$5*Assumptions!$C$14*Assumptions!$C$30),0) -> 1957 | K197: 2216 | N197: 2216 | O197: 0 | P197: 2216 | R197: 0 | S197: 2216 | U197: =IFERROR(VLOOKUP($A197, 'Allocation 2022-23 F'!$A$7:$U$321,21,FALSE),0) -> 3164 | W197: -948 | X197: -0.2996207332 | Y197: 217 | Z197: 0 | AB197: 5306510 | AC197: PALISADES
A198: =VLOOKUP(B198,CCDDD!$A$3:$B$319,2,FALSE) -> 38301 | B198: 5306540 | C198: PALOUSE | D198: 0 | E198: 0 | F198: =VLOOKUP(B198,'23-24 Adjusted Formula counts'!$A$2:$L$319,8,FALSE) -> 240 | G198: =ROUND((F198/$F$5*Assumptions!$C$14*Assumptions!$C$29),0) -> 1293 | H198: =VLOOKUP(B198,'23-24 Adjusted Formula counts'!$A$2:$L$319,9,FALSE) -> 23 | I198: =ROUND((H198/$H$5*Assumptions!$C$14*Assumptions!$C$30),0) -> 4500 | K198: 5793 | N198: 5793 | O198: 0 | P198: 5793 | R198: 0 | S198: 5793 | U198: =IFERROR(VLOOKUP($A198, 'Allocation 2022-23 F'!$A$7:$U$321,21,FALSE),0) -> 5973 | W198: -180 | X198: -0.03013561025 | Y198: 192 | Z198: 0 | AB198: 5306540 | AC198: PALOUSE
A199: =VLOOKUP(B199,CCDDD!$A$3:$B$319,2,FALSE) -> 11001 | B199: 5306570 | C199: PASCO | D199: 0 | E199: 0 | F199: =VLOOKUP(B199,'23-24 Adjusted Formula counts'!$A$2:$L$319,8,FALSE) -> 20732 | G199: =ROUND((F199/$F$5*Assumptions!$C$14*Assumptions!$C$29),0) -> 111732 | H199: =VLOOKUP(B199,'23-24 Adjusted Formula counts'!$A$2:$L$319,9,FALSE) -> 2762 | I199: =ROUND((H199/$H$5*Assumptions!$C$14*Assumptions!$C$30),0) -> 540416 | K199: =ROUNDDOWN(+I199+G199+E199+D199+J199,0) -> 652148 | N199: =K199 -> 652148 | O199: =-ROUND(N199/$N$5*$M$5,0) -> 0 | P199: =+K199+O199+M199 -> 652148 | R199: =-1*(P199*Q199) -> 0 | S199: =+P199+R199 -> 652148 | U199: =IFERROR(VLOOKUP($A199, 'Allocation 2022-23 F'!$A$7:$U$321,21,FALSE),0) -> 712630 | W199: =+S199-U199 -> -60482 | X199: =IF(U199>0,W199/U199,0) -> -0.08487153221 | Y199: 313 | Z199: =(SUM(D199:E199)/S199) -> 0 | AB199: =+B199 -> 5306570 | AC199: =+C199 -> PASCO
A200: =VLOOKUP(B200,CCDDD!$A$3:$B$319,2,FALSE) -> 24122 | B200: 5306600 | C200: PATEROS | D200: 0 | E200: 0 | F200: =VLOOKUP(B200,'23-24 Adjusted Formula counts'!$A$2:$L$319,8,FALSE) -> 295 | G200: =ROUND((F200/$F$5*Assumptions!$C$14*Assumptions!$C$29),0) -> 1590 | H200: =VLOOKUP(B200,'23-24 Adjusted Formula counts'!$A$2:$L$319,9,FALSE) -> 36 | I200: =ROUND((H200/$H$5*Assumptions!$C$14*Assumptions!$C$30),0) -> 7044 | K200: 8634 | N200: 8634 | O200: 0 | P200: 8634 | R200: 0 | S200: 8634 | U200: =IFERROR(VLOOKUP($A200, 'Allocation 2022-23 F'!$A$7:$U$321,21,FALSE),0) -> 15327 | W200: -6693 | X200: -0.436680368 | Y200: =RANK(W200,$W$7:$W$322,0) -> 272 | Z200: 0 | AB200: 5306600 | AC200: PATEROS
... 122 more rows

Sheet Allocation 2022-23 F (hidden)
A1: 2021-22 | J1: =IF(J5=Assumptions!$E14+I5,"Rounding OK","Rounding Error = "&FIXED(J5-Assumptions!$E14-I5,TRUE)) -> Rounding OK | T1: =T5 -> 0 | U1: =IF(U5=Assumptions!$G14+T5,"Rounding OK","Rounding Error = "&FIXED(U5-(Assumptions!$E14+T5),TRUE)) -> Rounding Error = 0.0
A2: ESEA -- Title 2 Distributions | J2: Allocation including private participation | U2: \
A3: 1 | B3: 2 | C3: 3 | D3: 4 | E3: 5 | F3: 6 | G3: 7 | H3: 8 | I3: 9 | J3: 10 | K3: 11 | L3: 12 | M3: 13 | N3: 14 | U3: \ | W3: 18
A4: ccddd | B4: District Name | C4: Eisenhower 2001-02 Allocations | D4: Class Size Reduction Allocations 2001-02 | E4: Population Ages 5-17 | F4: 20% based on Total Pop | G4: Poverty Ages 5-17 | H4: 80% based on Low Inc Pop | I4: MOE | J4: Total Final Allocation | L4: Per Student Allocation | M4: P-105A District Enrollment WO PK | N4: Private School Partcipation Enroll | O4: Alloc to non-DOE Counts 22-23 P LEA | P4: Realloc Pool | Q4: Realloc | R4: Final Alloc Before MOE | S4: MOE | T4: MOE Reduction | U4: Final Alloc | W4: Prior Year Allocation | Y4: Change | AA4: Rank Order | AD4: do not delete Y & Z
B5: State Totals | C5: =SUM(C7:C312) -> 0 | D5: =SUM(D7:D312) -> 0 | E5: =SUM(E7:E321) -> 1215314 | F5: =SUM(F7:F321) -> 6481701 | G5: =SUM(G7:G321) -> 119396 | H5: =SUM(H7:H321) -> 25926836 | J5: =SUM(J7:J321) -> 32408547 | L5: =IFERROR(+J5/(+M5+N5),0) -> 0 | M5: =SUM(M7:M321) -> 0 | N5: 0 | O5: 0 | P5: 32408547 | Q5: 0 | R5: 32408547 | T5: =SUM(T7:T321) -> 0 | U5: =SUM(U7:U321) -> 32408547 | W5: =SUM(W7:W321) -> 0 | Y5: =SUM(Y7:Y321) -> 32408547 | Z5: =MIN(Z7:Z321) -> 0 | AA5: ="Lose = "& PROPER(VLOOKUP(Z5,$Z$7:$AE$321,6,FALSE)) -> Lose = Aberdeen | AD5: =+A5 -> 0 | AE5: =+B5 -> State Totals
Z6: =MAX(Z7:Z313) -> 0 | AA6: ="Win = "&PROPER(VLOOKUP(Z6,$Z$7:$AE$313,6,FALSE)) -> Win = Aberdeen
A7: 14005 | B7: ABERDEEN | C7: 0 | D7: 0 | E7: =IFERROR(VLOOKUP(A7,'22-23 DOE Formula counts'!$D$8:$T$325,10,FALSE),0) -> 3445 | F7: =ROUND(E7/$E$5*Assumptions!$E$14*Assumptions!$E$29,0) -> 18373 | G7: =IFERROR(VLOOKUP(A7,'22-23 DOE Formula counts'!$D$8:$T$325,4,FALSE),0) -> 663 | H7: =ROUND(G7/$G$5*Assumptions!$E$14*Assumptions!$E$30,0) -> 143970 | J7: =ROUNDDOWN(+H7+F7+D7+C7+I7,0) -> 162343 | L7: =IF((M7+N7=0),0,+J7/(+M7+N7)) -> 0 | M7: =IFERROR(VLOOKUP(A7,[1]ENROLLMENT!$A$5:$B$349,2,FALSE),0)*0 -> 0 | N7: =IFERROR(GETPIVOTDATA("Total W/O Preschool",'[1]Private 19-20'!$O$3,"District Code",A7),0)*0 -> 0 | P7: =J7 -> 162343 | Q7: =-ROUND(P7/$P$5*$O$5,0) -> 0 | R7: =+J7+Q7+O7 -> 162343 | T7: =IF(S7>0,-ROUND((R7*(0.9-S7)),0),0) -> 0 | U7: =+R7+T7 -> 162343 | W7: =IFERROR(VLOOKUP($A7,'Allocation 2023-24 Final'!$B$7:$S$312,18,FALSE),0) -> 0 | Y7: =+U7-W7 -> 162343 | Z7: =IF(W7>0,Y7/W7,0) -> 0 | AA7: =RANK(Y7,$Y$7:$Y$321,0) -> 54 | AB7: =(SUM(C7:D7)/U7) -> 0 | AD7: =+A7 -> 14005 | AE7: =+B7 -> ABERDEEN
A8: 21226 | B8: ADNA | C8: 0 | D8: 0 | E8: =IFERROR(VLOOKUP(A8,'22-23 DOE Formula counts'!$D$8:$T$325,10,FALSE),0) -> 791 | F8: =ROUND(E8/$E$5*Assumptions!$E$14*Assumptions!$E$29,0) -> 4219 | G8: =IFERROR(VLOOKUP(A8,'22-23 DOE Formula counts'!$D$8:$T$325,4,FALSE),0) -> 43 | H8: =ROUND(G8/$G$5*Assumptions!$E$14*Assumptions!$E$30,0) -> 9337 | J8: 13556 | L8: 0 | M8: =IFERROR(VLOOKUP(A8,[1]ENROLLMENT!$A$5:$B$349,2,FALSE),0)*0 -> 0 | N8: =IFERROR(GETPIVOTDATA("Total W/O Preschool",'[1]Private 19-20'!$O$3,"District Code",A8),0)*0 -> 0 | P8: 13556 | Q8: 0 | R8: 13556 | T8: 0 | U8: 13556 | W8: =IFERROR(VLOOKUP($A8,'Allocation 2023-24 Final'!$B$7:$S$312,18,FALSE),0) -> 0 | Y8: 13556 | Z8: 0 | AA8: 214 | AB8: 0 | AD8: 21226 | AE8: ADNA
A9: 22017 | B9: ALMIRA | C9: 0 | D9: 0 | E9: =IFERROR(VLOOKUP(A9,'22-23 DOE Formula counts'!$D$8:$T$325,10,FALSE),0) -> 90 | F9: =ROUND(E9/$E$5*Assumptions!$E$14*Assumptions!$E$29,0) -> 480 | G9: =IFERROR(VLOOKUP(A9,'22-23 DOE Formula counts'!$D$8:$T$325,4,FALSE),0) -> 10 | H9: =ROUND(G9/$G$5*Assumptions!$E$14*Assumptions!$E$30,0) -> 2171 | J9: 2651 | L9: 0 | M9: =IFERROR(VLOOKUP(A9,[1]ENROLLMENT!$A$5:$B$349,2,FALSE),0)*0 -> 0 | N9: =IFERROR(GETPIVOTDATA("Total W/O Preschool",'[1]Private 19-20'!$O$3,"District Code",A9),0)*0 -> 0 | P9: 2651 | Q9: 0 | R9: 2651 | T9: 0 | U9: 2651 | W9: =IFERROR(VLOOKUP($A9,'Allocation 2023-24 Final'!$B$7:$S$312,18,FALSE),0) -> 0 | Y9: 2651 | Z9: 0 | AA9: 291 | AB9: 0 | AD9: 22017 | AE9: ALMIRA
A10: 29103 | B10: ANACORTES | C10: 0 | D10: 0 | E10: =IFERROR(VLOOKUP(A10,'22-23 DOE Formula counts'!$D$8:$T$325,10,FALSE),0) -> 2805 | F10: =ROUND(E10/$E$5*Assumptions!$E$14*Assumptions!$E$29,0) -> 14960 | G10: =IFERROR(VLOOKUP(A10,'22-23 DOE Formula counts'!$D$8:$T$325,4,FALSE),0) -> 217 | H10: =ROUND(G10/$G$5*Assumptions!$E$14*Assumptions!$E$30,0) -> 47122 | J10: 62082 | L10: 0 | M10: =IFERROR(VLOOKUP(A10,[1]ENROLLMENT!$A$5:$B$349,2,FALSE),0)*0 -> 0 | N10: =IFERROR(GETPIVOTDATA("Total W/O Preschool",'[1]Private 19-20'!$O$3,"District Code",A10),0)*0 -> 0 | P10: 62082 | Q10: 0 | R10: 62082 | T10: 0 | U10: 62082 | W10: =IFERROR(VLOOKUP($A10,'Allocation 2023-24 Final'!$B$7:$S$312,18,FALSE),0) -> 0 | Y10: 62082 | Z10: 0 | AA10: 111 | AB10: 0 | AD10: 29103 | AE10: ANACORTES
A11: 31016 | B11: ARLINGTON | C11: 0 | D11: 0 | E11: =IFERROR(VLOOKUP(A11,'22-23 DOE Formula counts'!$D$8:$T$325,10,FALSE),0) -> 6040 | F11: =ROUND(E11/$E$5*Assumptions!$E$14*Assumptions!$E$29,0) -> 32214 | G11: =IFERROR(VLOOKUP(A11,'22-23 DOE Formula counts'!$D$8:$T$325,4,FALSE),0) -> 369 | H11: =ROUND(G11/$G$5*+Assumptions!$E$14*Assumptions!$E$30,0) -> 80128 | J11: 112342 | L11: 0 | M11: =IFERROR(VLOOKUP(A11,[1]ENROLLMENT!$A$5:$B$349,2,FALSE),0)*0 -> 0 | N11: =IFERROR(GETPIVOTDATA("Total W/O Preschool",'[1]Private 19-20'!$O$3,"District Code",A11),0)*0 -> 0 | P11: 112342 | Q11: 0 | R11: 112342 | T11: 0 | U11: 112342 | W11: =IFERROR(VLOOKUP($A11,'Allocation 2023-24 Final'!$B$7:$S$312,18,FALSE),0) -> 0 | Y11: 112342 | Z11: 0 | AA11: 73 | AB11: 0 | AD11: 31016 | AE11: ARLINGTON
A12: 02420 | B12: ASOTIN-ANATONE | C12: 0 | D12: 0 | E12: =IFERROR(VLOOKUP(A12,'22-23 DOE Formula counts'!$D$8:$T$325,10,FALSE),0) -> 567 | F12: =ROUND(E12/$E$5*Assumptions!$E$14*Assumptions!$E$29,0) -> 3024 | G12: =IFERROR(VLOOKUP(A12,'22-23 DOE Formula counts'!$D$8:$T$325,4,FALSE),0) -> 51 | H12: =ROUND(G12/$G$5*+Assumptions!$E$14*Assumptions!$E$30,0) -> 11075 | J12: 14099 | L12: 0 | M12: =IFERROR(VLOOKUP(A12,[1]ENROLLMENT!$A$5:$B$349,2,FALSE),0)*0 -> 0 | N12: =IFERROR(GETPIVOTDATA("Total W/O Preschool",'[1]Private 19-20'!$O$3,"District Code",A12),0)*0 -> 0 | P12: 14099 | Q12: 0 | R12: 14099 | T12: 0 | U12: 14099 | W12: =IFERROR(VLOOKUP($A12,'Allocation 2023-24 Final'!$B$7:$S$312,18,FALSE),0) -> 0 | Y12: 14099 | Z12: 0 | AA12: 210 | AB12: 0 | AD12: 02420 | AE12: ASOTIN-ANATONE
A13: 17408 | B13: AUBURN | C13: 0 | D13: 0 | E13: =IFERROR(VLOOKUP(A13,'22-23 DOE Formula counts'!$D$8:$T$325,10,FALSE),0) -> 17331 | F13: =ROUND(E13/$E$5*Assumptions!$E$14*Assumptions!$E$29,0) -> 92432 | G13: =IFERROR(VLOOKUP(A13,'22-23 DOE Formula counts'!$D$8:$T$325,4,FALSE),0) -> 1919 | H13: =ROUND(G13/$G$5*+Assumptions!$E$14*Assumptions!$E$30,0) -> 416711 | J13: 509143 | L13: 0 | M13: =IFERROR(VLOOKUP(A13,[1]ENROLLMENT!$A$5:$B$349,2,FALSE),0)*0 -> 0 | N13: =IFERROR(GETPIVOTDATA("Total W/O Preschool",'[1]Private 19-20'!$O$3,"District Code",A13),0)*0 -> 0 | P13: 509143 | Q13: 0 | R13: 509143 | T13: 0 | U13: 509143 | W13: =IFERROR(VLOOKUP($A13,'Allocation 2023-24 Final'!$B$7:$S$312,18,FALSE),0) -> 0 | Y13: 509143 | Z13: 0 | AA13: 14 | AB13: 0 | AD13: 17408 | AE13: AUBURN
A14: 18303 | B14: BAINBRIDGE ISLAND | C14: 0 | D14: 0 | E14: =IFERROR(VLOOKUP(A14,'22-23 DOE Formula counts'!$D$8:$T$325,10,FALSE),0) -> 4285 | F14: =ROUND(E14/$E$5*Assumptions!$E$14*Assumptions!$E$29,0) -> 22853 | G14: =IFERROR(VLOOKUP(A14,'22-23 DOE Formula counts'!$D$8:$T$325,4,FALSE),0) -> 147 | H14: =ROUND(G14/$G$5*+Assumptions!$E$14*Assumptions!$E$30,0) -> 31921 | J14: 54774 | L14: 0 | M14: =IFERROR(VLOOKUP(A14,[1]ENROLLMENT!$A$5:$B$349,2,FALSE),0)*0 -> 0 | N14: =IFERROR(GETPIVOTDATA("Total W/O Preschool",'[1]Private 19-20'!$O$3,"District Code",A14),0)*0 -> 0 | P14: 54774 | Q14: 0 | R14: 54774 | T14: 0 | U14: 54774 | W14: =IFERROR(VLOOKUP($A14,'Allocation 2023-24 Final'!$B$7:$S$312,18,FALSE),0) -> 0 | Y14: 54774 | Z14: 0 | AA14: 121 | AB14: 0 | AD14: 18303 | AE14: BAINBRIDGE ISLAND
A15: 06119 | B15: BATTLE GROUND | C15: 0 | D15: 0 | E15: =IFERROR(VLOOKUP(A15,'22-23 DOE Formula counts'!$D$8:$T$325,10,FALSE),0) -> 15222 | F15: =ROUND(E15/$E$5*Assumptions!$E$14*Assumptions!$E$29,0) -> 81184 | G15: =IFERROR(VLOOKUP(A15,'22-23 DOE Formula counts'!$D$8:$T$325,4,FALSE),0) -> 936 | H15: =ROUND(G15/$G$5*+Assumptions!$E$14*Assumptions!$E$30,0) -> 203252 | J15: 284436 | L15: 0 | M15: =IFERROR(VLOOKUP(A15,[1]ENROLLMENT!$A$5:$B$349,2,FALSE),0)*0 -> 0 | N15: =IFERROR(GETPIVOTDATA("Total W/O Preschool",'[1]Private 19-20'!$O$3,"District Code",A15),0)*0 -> 0 | P15: 284436 | Q15: 0 | R15: 284436 | T15: 0 | U15: 284436 | W15: =IFERROR(VLOOKUP($A15,'Allocation 2023-24 Final'!$B$7:$S$312,18,FALSE),0) -> 0 | Y15: 284436 | Z15: 0 | AA15: 33 | AB15: 0 | AD15: 06119 | AE15: BATTLE GROUND
A16: 17405 | B16: BELLEVUE | C16: 0 | D16: 0 | E16: =IFERROR(VLOOKUP(A16,'22-23 DOE Formula counts'!$D$8:$T$325,10,FALSE),0) -> 21607 | F16: =ROUND(E16/$E$5*Assumptions!$E$14*Assumptions!$E$29,0) -> 115238 | G16: =IFERROR(VLOOKUP(A16,'22-23 DOE Formula counts'!$D$8:$T$325,4,FALSE),0) -> 1067 | H16: =ROUND(G16/$G$5*+Assumptions!$E$14*Assumptions!$E$30,0) -> 231699 | J16: 346937 | L16: 0 | M16: =IFERROR(VLOOKUP(A16,[1]ENROLLMENT!$A$5:$B$349,2,FALSE),0)*0 -> 0 | N16: =IFERROR(GETPIVOTDATA("Total W/O Preschool",'[1]Private 19-20'!$O$3,"District Code",A16),0)*0 -> 0 | P16: 346937 | Q16: 0 | R16: 346937 | T16: 0 | U16: 346937 | W16: =IFERROR(VLOOKUP($A16,'Allocation 2023-24 Final'!$B$7:$S$312,18,FALSE),0) -> 0 | Y16: 346937 | Z16: 0 | AA16: 24 | AB16: 0 | AD16: 17405 | AE16: BELLEVUE
A17: 37501 | B17: BELLINGHAM | C17: 0 | D17: 0 | E17: =IFERROR(VLOOKUP(A17,'22-23 DOE Formula counts'!$D$8:$T$325,10,FALSE),0) -> 13046.66573 | F17: =ROUND(E17/$E$5*Assumptions!$E$14*Assumptions!$E$29,0) -> 69583 | G17: =IFERROR(VLOOKUP(A17,'22-23 DOE Formula counts'!$D$8:$T$325,4,FALSE),0) -> 1209.05318 | H17: =ROUND(G17/$G$5*+Assumptions!$E$14*Assumptions!$E$30,0) -> 262546 | J17: 332129 | L17: 0 | M17: =IFERROR(VLOOKUP(A17,[1]ENROLLMENT!$A$5:$B$349,2,FALSE),0)*0 -> 0 | N17: =IFERROR(GETPIVOTDATA("Total W/O Preschool",'[1]Private 19-20'!$O$3,"District Code",A17),0)*0 -> 0 | P17: 332129 | Q17: 0 | R17: 332129 | T17: 0 | U17: 332129 | W17: =IFERROR(VLOOKUP($A17,'Allocation 2023-24 Final'!$B$7:$S$312,18,FALSE),0) -> 0 | Y17: 332129 | Z17: 0 | AA17: 25 | AB17: 0 | AD17: 37501 | AE17: BELLINGHAM
A18: 01122 | B18: BENGE | C18: 0 | D18: 0 | E18: =IFERROR(VLOOKUP(A18,'22-23 DOE Formula counts'!$D$8:$T$325,10,FALSE),0) -> 6 | F18: =ROUND(E18/$E$5*Assumptions!$E$14*Assumptions!$E$29,0) -> 32 | G18: =IFERROR(VLOOKUP(A18,'22-23 DOE Formula counts'!$D$8:$T$325,4,FALSE),0) -> 1 | H18: =ROUND(G18/$G$5*+Assumptions!$E$14*Assumptions!$E$30,0) -> 217 | J18: 249 | L18: 0 | M18: =IFERROR(VLOOKUP(A18,[1]ENROLLMENT!$A$5:$B$349,2,FALSE),0)*0 -> 0 | N18: =IFERROR(GETPIVOTDATA("Total W/O Preschool",'[1]Private 19-20'!$O$3,"District Code",A18),0)*0 -> 0 | P18: 249 | Q18: 0 | R18: 249 | T18: 0 | U18: 249 | W18: =IFERROR(VLOOKUP($A18,'Allocation 2023-24 Final'!$B$7:$S$312,18,FALSE),0) -> 0 | Y18: 249 | Z18: 0 | AA18: 314 | AB18: 0 | AD18: 01122 | AE18: BENGE
A19: 27403 | B19: BETHEL | C19: 0 | D19: 0 | E19: =IFERROR(VLOOKUP(A19,'22-23 DOE Formula counts'!$D$8:$T$325,10,FALSE),0) -> 21599 | F19: =ROUND(E19/$E$5*Assumptions!$E$14*Assumptions!$E$29,0) -> 115195 | G19: =IFERROR(VLOOKUP(A19,'22-23 DOE Formula counts'!$D$8:$T$325,4,FALSE),0) -> 1719 | H19: =ROUND(G19/$G$5*+Assumptions!$E$14*Assumptions!$E$30,0) -> 373281 | J19: 488476 | L19: 0 | M19: =IFERROR(VLOOKUP(A19,[1]ENROLLMENT!$A$5:$B$349,2,FALSE),0)*0 -> 0 | N19: =IFERROR(GETPIVOTDATA("Total W/O Preschool",'[1]Private 19-20'!$O$3,"District Code",A19),0)*0 -> 0 | P19: 488476 | Q19: 0 | R19: 488476 | T19: 0 | U19: 488476 | W19: =IFERROR(VLOOKUP($A19,'Allocation 2023-24 Final'!$B$7:$S$312,18,FALSE),0) -> 0 | Y19: 488476 | Z19: 0 | AA19: 16 | AB19: 0 | AD19: 27403 | AE19: BETHEL
A20: 20203 | B20: BICKLETON | C20: 0 | D20: 0 | E20: =IFERROR(VLOOKUP(A20,'22-23 DOE Formula counts'!$D$8:$T$325,10,FALSE),0) -> 63 | F20: =ROUND(E20/$E$5*Assumptions!$E$14*Assumptions!$E$29,0) -> 336 | G20: =IFERROR(VLOOKUP(A20,'22-23 DOE Formula counts'!$D$8:$T$325,4,FALSE),0) -> 6 | H20: =ROUND(G20/$G$5*+Assumptions!$E$14*Assumptions!$E$30,0) -> 1303 | J20: 1639 | L20: 0 | M20: =IFERROR(VLOOKUP(A20,[1]ENROLLMENT!$A$5:$B$349,2,FALSE),0)*0 -> 0 | N20: =IFERROR(GETPIVOTDATA("Total W/O Preschool",'[1]Private 19-20'!$O$3,"District Code",A20),0)*0 -> 0 | P20: 1639 | Q20: 0 | R20: 1639 | T20: 0 | U20: 1639 | W20: =IFERROR(VLOOKUP($A20,'Allocation 2023-24 Final'!$B$7:$S$312,18,FALSE),0) -> 0 | Y20: 1639 | Z20: 0 | AA20: 302 | AB20: 0 | AD20: 20203 | AE20: BICKLETON
A21: 37503 | B21: BLAINE | C21: 0 | D21: 0 | E21: =IFERROR(VLOOKUP(A21,'22-23 DOE Formula counts'!$D$8:$T$325,10,FALSE),0) -> 2538 | F21: =ROUND(E21/$E$5*Assumptions!$E$14*Assumptions!$E$29,0) -> 13536 | G21: =IFERROR(VLOOKUP(A21,'22-23 DOE Formula counts'!$D$8:$T$325,4,FALSE),0) -> 260 | H21: =ROUND(G21/$G$5*+Assumptions!$E$14*Assumptions!$E$30,0) -> 56459 | J21: 69995 | L21: 0 | M21: =IFERROR(VLOOKUP(A21,[1]ENROLLMENT!$A$5:$B$349,2,FALSE),0)*0 -> 0 | N21: =IFERROR(GETPIVOTDATA("Total W/O Preschool",'[1]Private 19-20'!$O$3,"District Code",A21),0)*0 -> 0 | P21: 69995 | Q21: 0 | R21: 69995 | T21: 0 | U21: 69995 | W21: =IFERROR(VLOOKUP($A21,'Allocation 2023-24 Final'!$B$7:$S$312,18,FALSE),0) -> 0 | Y21: 69995 | Z21: 0 | AA21: 104 | AB21: 0 | AD21: 37503 | AE21: BLAINE
A22: 21234 | B22: BOISTFORT | C22: 0 | D22: 0 | E22: =IFERROR(VLOOKUP(A22,'22-23 DOE Formula counts'!$D$8:$T$325,10,FALSE),0) -> 155 | F22: =ROUND(E22/$E$5*Assumptions!$E$14*Assumptions!$E$29,0) -> 827 | G22: =IFERROR(VLOOKUP(A22,'22-23 DOE Formula counts'!$D$8:$T$325,4,FALSE),0) -> 16 | H22: =ROUND(G22/$G$5*+Assumptions!$E$14*Assumptions!$E$30,0) -> 3474 | J22: 4301 | L22: 0 | M22: =IFERROR(VLOOKUP(A22,[1]ENROLLMENT!$A$5:$B$349,2,FALSE),0)*0 -> 0 | N22: =IFERROR(GETPIVOTDATA("Total W/O Preschool",'[1]Private 19-20'!$O$3,"District Code",A22),0)*0 -> 0 | P22: 4301 | Q22: 0 | R22: 4301 | T22: 0 | U22: 4301 | W22: =IFERROR(VLOOKUP($A22,'Allocation 2023-24 Final'!$B$7:$S$312,18,FALSE),0) -> 0 | Y22: 4301 | Z22: 0 | AA22: 269 | AB22: 0 | AD22: 21234 | AE22: BOISTFORT
A23: 18100 | B23: BREMERTON | C23: 0 | D23: 0 | E23: =IFERROR(VLOOKUP(A23,'22-23 DOE Formula counts'!$D$8:$T$325,10,FALSE),0) -> 4979.064166 | F23: =ROUND(E23/$E$5*Assumptions!$E$14*Assumptions!$E$29,0) -> 26555 | G23: =IFERROR(VLOOKUP(A23,'22-23 DOE Formula counts'!$D$8:$T$325,4,FALSE),0) -> 795.8302073 | H23: =ROUND(G23/$G$5*+Assumptions!$E$14*Assumptions!$E$30,0) -> 172815 | J23: 199370 | L23: 0 | M23: =IFERROR(VLOOKUP(A23,[1]ENROLLMENT!$A$5:$B$349,2,FALSE),0)*0 -> 0 | N23: =IFERROR(GETPIVOTDATA("Total W/O Preschool",'[1]Private 19-20'!$O$3,"District Code",A23),0)*0 -> 0 | P23: 199370 | Q23: 0 | R23: 199370 | T23: 0 | U23: 199370 | W23: =IFERROR(VLOOKUP($A23,'Allocation 2023-24 Final'!$B$7:$S$312,18,FALSE),0) -> 0 | Y23: 199370 | Z23: 0 | AA23: 40 | AB23: 0 | AD23: 18100 | AE23: BREMERTON
A24: 24111 | B24: BREWSTER | C24: 0 | D24: 0 | E24: =IFERROR(VLOOKUP(A24,'22-23 DOE Formula counts'!$D$8:$T$325,10,FALSE),0) -> 1068 | F24: =ROUND(E24/$E$5*Assumptions!$E$14*Assumptions!$E$29,0) -> 5696 | G24: =IFERROR(VLOOKUP(A24,'22-23 DOE Formula counts'!$D$8:$T$325,4,FALSE),0) -> 276 | H24: =ROUND(G24/$G$5*+Assumptions!$E$14*Assumptions!$E$30,0) -> 59933 | J24: 65629 | L24: 0 | M24: =IFERROR(VLOOKUP(A24,[1]ENROLLMENT!$A$5:$B$349,2,FALSE),0)*0 -> 0 | N24: =IFERROR(GETPIVOTDATA("Total W/O Preschool",'[1]Private 19-20'!$O$3,"District Code",A24),0)*0 -> 0 | P24: 65629 | Q24: 0 | R24: 65629 | T24: 0 | U24: 65629 | W24: =IFERROR(VLOOKUP($A24,'Allocation 2023-24 Final'!$B$7:$S$312,18,FALSE),0) -> 0 | Y24: 65629 | Z24: 0 | AA24: 110 | AB24: 0 | AD24: 24111 | AE24: BREWSTER
A25: 09075 | B25: BRIDGEPORT | C25: 0 | D25: 0 | E25: =IFERROR(VLOOKUP(A25,'22-23 DOE Formula counts'!$D$8:$T$325,10,FALSE),0) -> 868 | F25: =ROUND(E25/$E$5*Assumptions!$E$14*Assumptions!$E$29,0) -> 4629 | G25: =IFERROR(VLOOKUP(A25,'22-23 DOE Formula counts'!$D$8:$T$325,4,FALSE),0) -> 205 | H25: =ROUND(G25/$G$5*+Assumptions!$E$14*Assumptions!$E$30,0) -> 44516 | J25: 49145 | L25: 0 | M25: =IFERROR(VLOOKUP(A25,[1]ENROLLMENT!$A$5:$B$349,2,FALSE),0)*0 -> 0 | N25: =IFERROR(GETPIVOTDATA("Total W/O Preschool",'[1]Private 19-20'!$O$3,"District Code",A25),0)*0 -> 0 | P25: 49145 | Q25: 0 | R25: 49145 | T25: 0 | U25: 49145 | W25: =IFERROR(VLOOKUP($A25,'Allocation 2023-24 Final'!$B$7:$S$312,18,FALSE),0) -> 0 | Y25: 49145 | Z25: 0 | AA25: 128 | AB25: 0 | AD25: 09075 | AE25: BRIDGEPORT
A26: 16046 | B26: BRINNON | C26: 0 | D26: 0 | E26: =IFERROR(VLOOKUP(A26,'22-23 DOE Formula counts'!$D$8:$T$325,10,FALSE),0) -> 86 | F26: =ROUND(E26/$E$5*Assumptions!$E$14*Assumptions!$E$29,0) -> 459 | G26: =IFERROR(VLOOKUP(A26,'22-23 DOE Formula counts'!$D$8:$T$325,4,FALSE),0) -> 24 | H26: =ROUND(G26/$G$5*+Assumptions!$E$14*Assumptions!$E$30,0) -> 5212 | J26: 5671 | L26: 0 | M26: =IFERROR(VLOOKUP(A26,[1]ENROLLMENT!$A$5:$B$349,2,FALSE),0)*0 -> 0 | N26: =IFERROR(GETPIVOTDATA("Total W/O Preschool",'[1]Private 19-20'!$O$3,"District Code",A26),0)*0 -> 0 | P26: 5671 | Q26: 0 | R26: 5671 | T26: 0 | U26: 5671 | W26: =IFERROR(VLOOKUP($A26,'Allocation 2023-24 Final'!$B$7:$S$312,18,FALSE),0) -> 0 | Y26: 5671 | Z26: 0 | AA26: 258 | AB26: 0 | AD26: 16046 | AE26: BRINNON
A27: 29100 | B27: BURLINGTON-EDISON | C27: 0 | D27: 0 | E27: =IFERROR(VLOOKUP(A27,'22-23 DOE Formula counts'!$D$8:$T$325,10,FALSE),0) -> 3892 | F27: =ROUND(E27/$E$5*Assumptions!$E$14*Assumptions!$E$29,0) -> 20757 | G27: =IFERROR(VLOOKUP(A27,'22-23 DOE Formula counts'!$D$8:$T$325,4,FALSE),0) -> 461 | H27: =ROUND(G27/$G$5*+Assumptions!$E$14*Assumptions!$E$30,0) -> 100106 | J27: 120863 | L27: 0 | M27: =IFERROR(VLOOKUP(A27,[1]ENROLLMENT!$A$5:$B$349,2,FALSE),0)*0 -> 0 | N27: =IFERROR(GETPIVOTDATA("Total W/O Preschool",'[1]Private 19-20'!$O$3,"District Code",A27),0)*0 -> 0 | P27: 120863 | Q27: 0 | R27: 120863 | T27: 0 | U27: 120863 | W27: =IFERROR(VLOOKUP($A27,'Allocation 2023-24 Final'!$B$7:$S$312,18,FALSE),0) -> 0 | Y27: 120863 | Z27: 0 | AA27: 69 | AB27: 0 | AD27: 29100 | AE27: BURLINGTON-EDISON
A28: 06117 | B28: CAMAS | C28: 0 | D28: 0 | E28: =IFERROR(VLOOKUP(A28,'22-23 DOE Formula counts'!$D$8:$T$325,10,FALSE),0) -> 6776 | F28: =ROUND(E28/$E$5*Assumptions!$E$14*Assumptions!$E$29,0) -> 36139 | G28: =IFERROR(VLOOKUP(A28,'22-23 DOE Formula counts'!$D$8:$T$325,4,FALSE),0) -> 265 | H28: =ROUND(G28/$G$5*+Assumptions!$E$14*Assumptions!$E$30,0) -> 57545 | J28: 93684 | L28: 0 | M28: =IFERROR(VLOOKUP(A28,[1]ENROLLMENT!$A$5:$B$349,2,FALSE),0)*0 -> 0 | N28: =IFERROR(GETPIVOTDATA("Total W/O Preschool",'[1]Private 19-20'!$O$3,"District Code",A28),0)*0 -> 0 | P28: 93684 | Q28: 0 | R28: 93684 | T28: 0 | U28: 93684 | W28: =IFERROR(VLOOKUP($A28,'Allocation 2023-24 Final'!$B$7:$S$312,18,FALSE),0) -> 0 | Y28: 93684 | Z28: 0 | AA28: 83 | AB28: 0 | AD28: 06117 | AE28: CAMAS
A29: 05401 | B29: CAPE FLATTERY | C29: 0 | D29: 0 | E29: =IFERROR(VLOOKUP(A29,'22-23 DOE Formula counts'!$D$8:$T$325,10,FALSE),0) -> 455 | F29: =ROUND(E29/$E$5*Assumptions!$E$14*Assumptions!$E$29,0) -> 2427 | G29: =IFERROR(VLOOKUP(A29,'22-23 DOE Formula counts'!$D$8:$T$325,4,FALSE),0) -> 80 | H29: =ROUND(G29/$G$5*+Assumptions!$E$14*Assumptions!$E$30,0) -> 17372 | J29: 19799 | L29: 0 | M29: =IFERROR(VLOOKUP(A29,[1]ENROLLMENT!$A$5:$B$349,2,FALSE),0)*0 -> 0 | N29: =IFERROR(GETPIVOTDATA("Total W/O Preschool",'[1]Private 19-20'!$O$3,"District Code",A29),0)*0 -> 0 | P29: 19799 | Q29: 0 | R29: 19799 | T29: 0 | U29: 19799 | W29: =IFERROR(VLOOKUP($A29,'Allocation 2023-24 Final'!$B$7:$S$312,18,FALSE),0) -> 0 | Y29: 19799 | Z29: 0 | AA29: 187 | AB29: 0 | AD29: 05401 | AE29: CAPE FLATTERY
A30: 27019 | B30: CARBONADO | C30: 0 | D30: 0 | E30: =IFERROR(VLOOKUP(A30,'22-23 DOE Formula counts'!$D$8:$T$325,10,FALSE),0) -> 195 | F30: =ROUND(E30/$E$5*Assumptions!$E$14*Assumptions!$E$29,0) -> 1040 | G30: =IFERROR(VLOOKUP(A30,'22-23 DOE Formula counts'!$D$8:$T$325,4,FALSE),0) -> 10 | H30: =ROUND(G30/$G$5*+Assumptions!$E$14*Assumptions!$E$30,0) -> 2171 | J30: 3211 | L30: 0 | M30: =IFERROR(VLOOKUP(A30,[1]ENROLLMENT!$A$5:$B$349,2,FALSE),0)*0 -> 0 | N30: =IFERROR(GETPIVOTDATA("Total W/O Preschool",'[1]Private 19-20'!$O$3,"District Code",A30),0)*0 -> 0 | P30: 3211 | Q30: 0 | R30: 3211 | T30: 0 | U30: 3211 | W30: =IFERROR(VLOOKUP($A30,'Allocation 2023-24 Final'!$B$7:$S$312,18,FALSE),0) -> 0 | Y30: 3211 | Z30: 0 | AA30: 280 | AB30: 0 | AD30: 27019 | AE30: CARBONADO
A31: 04228 | B31: CASCADE | C31: 0 | D31: 0 | E31: =IFERROR(VLOOKUP(A31,'22-23 DOE Formula counts'!$D$8:$T$325,10,FALSE),0) -> 1519 | F31: =ROUND(E31/$E$5*Assumptions!$E$14*Assumptions!$E$29,0) -> 8101 | G31: =IFERROR(VLOOKUP(A31,'22-23 DOE Formula counts'!$D$8:$T$325,4,FALSE),0) -> 157 | H31: =ROUND(G31/$G$5*+Assumptions!$E$14*Assumptions!$E$30,0) -> 34093 | J31: 42194 | L31: 0 | M31: =IFERROR(VLOOKUP(A31,[1]ENROLLMENT!$A$5:$B$349,2,FALSE),0)*0 -> 0 | N31: =IFERROR(GETPIVOTDATA("Total W/O Preschool",'[1]Private 19-20'!$O$3,"District Code",A31),0)*0 -> 0 | P31: 42194 | Q31: 0 | R31: 42194 | T31: 0 | U31: 42194 | W31: =IFERROR(VLOOKUP($A31,'Allocation 2023-24 Final'!$B$7:$S$312,18,FALSE),0) -> 0 | Y31: 42194 | Z31: 0 | AA31: 139 | AB31: 0 | AD31: 04228 | AE31: CASCADE
A32: 04222 | B32: CASHMERE | C32: 0 | D32: 0 | E32: =IFERROR(VLOOKUP(A32,'22-23 DOE Formula counts'!$D$8:$T$325,10,FALSE),0) -> 1400 | F32: =ROUND(E32/$E$5*Assumptions!$E$14*Assumptions!$E$29,0) -> 7467 | G32: =IFERROR(VLOOKUP(A32,'22-23 DOE Formula counts'!$D$8:$T$325,4,FALSE),0) -> 140 | H32: =ROUND(G32/$G$5*+Assumptions!$E$14*Assumptions!$E$30,0) -> 30401 | J32: 37868 | L32: 0 | M32: =IFERROR(VLOOKUP(A32,[1]ENROLLMENT!$A$5:$B$349,2,FALSE),0)*0 -> 0 | N32: =IFERROR(GETPIVOTDATA("Total W/O Preschool",'[1]Private 19-20'!$O$3,"District Code",A32),0)*0 -> 0 | P32: 37868 | Q32: 0 | R32: 37868 | T32: 0 | U32: 37868 | W32: =IFERROR(VLOOKUP($A32,'Allocation 2023-24 Final'!$B$7:$S$312,18,FALSE),0) -> 0 | Y32: 37868 | Z32: 0 | AA32: 149 | AB32: 0 | AD32: 04222 | AE32: CASHMERE
A33: 08401 | B33: CASTLE ROCK | C33: 0 | D33: 0 | E33: =IFERROR(VLOOKUP(A33,'22-23 DOE Formula counts'!$D$8:$T$325,10,FALSE),0) -> 1568 | F33: =ROUND(E33/$E$5*Assumptions!$E$14*Assumptions!$E$29,0) -> 8363 | G33: =IFERROR(VLOOKUP(A33,'22-23 DOE Formula counts'!$D$8:$T$325,4,FALSE),0) -> 207 | H33: =ROUND(G33/$G$5*+Assumptions!$E$14*Assumptions!$E$30,0) -> 44950 | J33: 53313 | L33: 0 | M33: =IFERROR(VLOOKUP(A33,[1]ENROLLMENT!$A$5:$B$349,2,FALSE),0)*0 -> 0 | N33: =IFERROR(GETPIVOTDATA("Total W/O Preschool",'[1]Private 19-20'!$O$3,"District Code",A33),0)*0 -> 0 | P33: 53313 | Q33: 0 | R33: 53313 | T33: 0 | U33: 53313 | W33: =IFERROR(VLOOKUP($A33,'Allocation 2023-24 Final'!$B$7:$S$312,18,FALSE),0) -> 0 | Y33: 53313 | Z33: 0 | AA33: 123 | AB33: 0 | AD33: 08401 | AE33: CASTLE ROCK
A34: 18901 | B34: CATALYST BREMERTON CHARTER | C34: 0 | D34: 0 | E34: =IFERROR(VLOOKUP(A34,'22-23 DOE Formula counts'!$D$8:$T$325,10,FALSE),0) -> 268.9960513 | F34: =ROUND(E34/$E$5*Assumptions!$E$14*Assumptions!$E$29,0) -> 1435 | G34: =IFERROR(VLOOKUP(A34,'22-23 DOE Formula counts'!$D$8:$T$325,4,FALSE),0) -> 42.99506417 | H34: =ROUND(G34/$G$5*+Assumptions!$E$14*Assumptions!$E$30,0) -> 9336 | J34: 10771 | L34: 0 | M34: =IFERROR(VLOOKUP(A34,[1]ENROLLMENT!$A$5:$B$349,2,FALSE),0)*0 -> 0 | N34: =IFERROR(GETPIVOTDATA("Total W/O Preschool",'[1]Private 19-20'!$O$3,"District Code",A34),0)*0 -> 0 | P34: 10771 | Q34: 0 | R34: 10771 | T34: 0 | U34: 10771 | W34: =IFERROR(VLOOKUP($A34,'Allocation 2023-24 Final'!$B$7:$S$312,18,FALSE),0) -> 0 | Y34: 10771 | Z34: 0 | AA34: 230 | AB34: 0 | AD34: 18901 | AE34: CATALYST BREMERTON CHARTER
A35: 20215 | B35: CENTERVILLE | C35: 0 | D35: 0 | E35: =IFERROR(VLOOKUP(A35,'22-23 DOE Formula counts'!$D$8:$T$325,10,FALSE),0) -> 78 | F35: =ROUND(E35/$E$5*Assumptions!$E$14*Assumptions!$E$29,0) -> 416 | G35: =IFERROR(VLOOKUP(A35,'22-23 DOE Formula counts'!$D$8:$T$325,4,FALSE),0) -> 11 | H35: =ROUND(G35/$G$5*+Assumptions!$E$14*Assumptions!$E$30,0) -> 2389 | J35: 2805 | L35: 0 | M35: =IFERROR(VLOOKUP(A35,[1]ENROLLMENT!$A$5:$B$349,2,FALSE),0)*0 -> 0 | N35: =IFERROR(GETPIVOTDATA("Total W/O Preschool",'[1]Private 19-20'!$O$3,"District Code",A35),0)*0 -> 0 | P35: 2805 | Q35: 0 | R35: 2805 | T35: 0 | U35: 2805 | W35: =IFERROR(VLOOKUP($A35,'Allocation 2023-24 Final'!$B$7:$S$312,18,FALSE),0) -> 0 | Y35: 2805 | Z35: 0 | AA35: 288 | AB35: 0 | AD35: 20215 | AE35: CENTERVILLE
A36: 18401 | B36: CENTRAL KITSAP | C36: 0 | D36: 0 | E36: =IFERROR(VLOOKUP(A36,'22-23 DOE Formula counts'!$D$8:$T$325,10,FALSE),0) -> 11145 | F36: =ROUND(E36/$E$5*Assumptions!$E$14*Assumptions!$E$29,0) -> 59440 | G36: =IFERROR(VLOOKUP(A36,'22-23 DOE Formula counts'!$D$8:$T$325,4,FALSE),0) -> 817 | H36: =ROUND(G36/$G$5*+Assumptions!$E$14*Assumptions!$E$30,0) -> 177412 | J36: 236852 | L36: 0 | M36: =IFERROR(VLOOKUP(A36,[1]ENROLLMENT!$A$5:$B$349,2,FALSE),0)*0 -> 0 | N36: =IFERROR(GETPIVOTDATA("Total W/O Preschool",'[1]Private 19-20'!$O$3,"District Code",A36),0)*0 -> 0 | P36: 236852 | Q36: 0 | R36: 236852 | T36: 0 | U36: 236852 | W36: =IFERROR(VLOOKUP($A36,'Allocation 2023-24 Final'!$B$7:$S$312,18,FALSE),0) -> 0 | Y36: 236852 | Z36: 0 | AA36: 37 | AB36: 0 | AD36: 18401 | AE36: CENTRAL KITSAP
A37: 32356 | B37: CENTRAL VALLEY | C37: 0 | D37: 0 | E37: =IFERROR(VLOOKUP(A37,'22-23 DOE Formula counts'!$D$8:$T$325,10,FALSE),0) -> 15190 | F37: =ROUND(E37/$E$5*Assumptions!$E$14*Assumptions!$E$29,0) -> 81014 | G37: =IFERROR(VLOOKUP(A37,'22-23 DOE Formula counts'!$D$8:$T$325,4,FALSE),0) -> 1451 | H37: =ROUND(G37/$G$5*+Assumptions!$E$14*Assumptions!$E$30,0) -> 315085 | J37: 396099 | L37: 0 | M37: =IFERROR(VLOOKUP(A37,[1]ENROLLMENT!$A$5:$B$349,2,FALSE),0)*0 -> 0 | N37: =IFERROR(GETPIVOTDATA("Total W/O Preschool",'[1]Private 19-20'!$O$3,"District Code",A37),0)*0 -> 0 | P37: 396099 | Q37: 0 | R37: 396099 | T37: 0 | U37: 396099 | W37: =IFERROR(VLOOKUP($A37,'Allocation 2023-24 Final'!$B$7:$S$312,18,FALSE),0) -> 0 | Y37: 396099 | Z37: 0 | AA37: 22 | AB37: 0 | AD37: 32356 | AE37: CENTRAL VALLEY
A38: 21401 | B38: CENTRALIA | C38: 0 | D38: 0 | E38: =IFERROR(VLOOKUP(A38,'22-23 DOE Formula counts'!$D$8:$T$325,10,FALSE),0) -> 3821 | F38: =ROUND(E38/$E$5*Assumptions!$E$14*Assumptions!$E$29,0) -> 20379 | G38: =IFERROR(VLOOKUP(A38,'22-23 DOE Formula counts'!$D$8:$T$325,4,FALSE),0) -> 710 | H38: =ROUND(G38/$G$5*+Assumptions!$E$14*Assumptions!$E$30,0) -> 154176 | J38: 174555 | L38: 0 | M38: =IFERROR(VLOOKUP(A38,[1]ENROLLMENT!$A$5:$B$349,2,FALSE),0)*0 -> 0 | N38: =IFERROR(GETPIVOTDATA("Total W/O Preschool",'[1]Private 19-20'!$O$3,"District Code",A38),0)*0 -> 0 | P38: 174555 | Q38: 0 | R38: 174555 | T38: 0 | U38: 174555 | W38: =IFERROR(VLOOKUP($A38,'Allocation 2023-24 Final'!$B$7:$S$312,18,FALSE),0) -> 0 | Y38: 174555 | Z38: 0 | AA38: 48 | AB38: 0 | AD38: 21401 | AE38: CENTRALIA
A39: 21302 | B39: CHEHALIS | C39: 0 | D39: 0 | E39: =IFERROR(VLOOKUP(A39,'22-23 DOE Formula counts'!$D$8:$T$325,10,FALSE),0) -> 2654 | F39: =ROUND(E39/$E$5*Assumptions!$E$14*Assumptions!$E$29,0) -> 14155 | G39: =IFERROR(VLOOKUP(A39,'22-23 DOE Formula counts'!$D$8:$T$325,4,FALSE),0) -> 286 | H39: =ROUND(G39/$G$5*+Assumptions!$E$14*Assumptions!$E$30,0) -> 62105 | J39: 76260 | L39: 0 | M39: =IFERROR(VLOOKUP(A39,[1]ENROLLMENT!$A$5:$B$349,2,FALSE),0)*0 -> 0 | N39: =IFERROR(GETPIVOTDATA("Total W/O Preschool",'[1]Private 19-20'!$O$3,"District Code",A39),0)*0 -> 0 | P39: 76260 | Q39: 0 | R39: 76260 | T39: 0 | U39: 76260 | W39: =IFERROR(VLOOKUP($A39,'Allocation 2023-24 Final'!$B$7:$S$312,18,FALSE),0) -> 0 | Y39: 76260 | Z39: 0 | AA39: 98 | AB39: 0 | AD39: 21302 | AE39: CHEHALIS
A40: 32360 | B40: CHENEY | C40: 0 | D40: 0 | E40: =IFERROR(VLOOKUP(A40,'22-23 DOE Formula counts'!$D$8:$T$325,10,FALSE),0) -> 4725 | F40: =ROUND(E40/$E$5*Assumptions!$E$14*Assumptions!$E$29,0) -> 25200 | G40: =IFERROR(VLOOKUP(A40,'22-23 DOE Formula counts'!$D$8:$T$325,4,FALSE),0) -> 616 | H40: =ROUND(G40/$G$5*+Assumptions!$E$14*Assumptions!$E$30,0) -> 133764 | J40: 158964 | L40: 0 | M40: =IFERROR(VLOOKUP(A40,[1]ENROLLMENT!$A$5:$B$349,2,FALSE),0)*0 -> 0 | N40: =IFERROR(GETPIVOTDATA("Total W/O Preschool",'[1]Private 19-20'!$O$3,"District Code",A40),0)*0 -> 0 | P40: 158964 | Q40: 0 | R40: 158964 | T40: 0 | U40: 158964 | W40: =IFERROR(VLOOKUP($A40,'Allocation 2023-24 Final'!$B$7:$S$312,18,FALSE),0) -> 0 | Y40: 158964 | Z40: 0 | AA40: 57 | AB40: 0 | AD40: 32360 | AE40: CHENEY
A41: 33036 | B41: CHEWELAH | C41: 0 | D41: 0 | E41: =IFERROR(VLOOKUP(A41,'22-23 DOE Formula counts'!$D$8:$T$325,10,FALSE),0) -> 980 | F41: =ROUND(E41/$E$5*Assumptions!$E$14*Assumptions!$E$29,0) -> 5227 | G41: =IFERROR(VLOOKUP(A41,'22-23 DOE Formula counts'!$D$8:$T$325,4,FALSE),0) -> 190 | H41: =ROUND(G41/$G$5*+Assumptions!$E$14*Assumptions!$E$30,0) -> 41258 | J41: 46485 | L41: 0 | M41: =IFERROR(VLOOKUP(A41,[1]ENROLLMENT!$A$5:$B$349,2,FALSE),0)*0 -> 0 | N41: =IFERROR(GETPIVOTDATA("Total W/O Preschool",'[1]Private 19-20'!$O$3,"District Code",A41),0)*0 -> 0 | P41: 46485 | Q41: 0 | R41: 46485 | T41: 0 | U41: 46485 | W41: =IFERROR(VLOOKUP($A41,'Allocation 2023-24 Final'!$B$7:$S$312,18,FALSE),0) -> 0 | Y41: 46485 | Z41: 0 | AA41: 132 | AB41: 0 | AD41: 33036 | AE41: CHEWELAH
A42: 16049 | B42: CHIMACUM | C42: 0 | D42: 0 | E42: =IFERROR(VLOOKUP(A42,'22-23 DOE Formula counts'!$D$8:$T$325,10,FALSE),0) -> 1096 | F42: =ROUND(E42/$E$5*Assumptions!$E$14*Assumptions!$E$29,0) -> 5845 | G42: =IFERROR(VLOOKUP(A42,'22-23 DOE Formula counts'!$D$8:$T$325,4,FALSE),0) -> 151 | H42: =ROUND(G42/$G$5*+Assumptions!$E$14*Assumptions!$E$30,0) -> 32790 | J42: 38635 | L42: 0 | M42: =IFERROR(VLOOKUP(A42,[1]ENROLLMENT!$A$5:$B$349,2,FALSE),0)*0 -> 0 | N42: =IFERROR(GETPIVOTDATA("Total W/O Preschool",'[1]Private 19-20'!$O$3,"District Code",A42),0)*0 -> 0 | P42: 38635 | Q42: 0 | R42: 38635 | T42: 0 | U42: 38635 | W42: =IFERROR(VLOOKUP($A42,'Allocation 2023-24 Final'!$B$7:$S$312,18,FALSE),0) -> 0 | Y42: 38635 | Z42: 0 | AA42: 145 | AB42: 0 | AD42: 16049 | AE42: CHIMACUM
A43: 02250 | B43: CLARKSTON | C43: 0 | D43: 0 | E43: =IFERROR(VLOOKUP(A43,'22-23 DOE Formula counts'!$D$8:$T$325,10,FALSE),0) -> 2861 | F43: =ROUND(E43/$E$5*Assumptions!$E$14*Assumptions!$E$29,0) -> 15259 | G43: =IFERROR(VLOOKUP(A43,'22-23 DOE Formula counts'!$D$8:$T$325,4,FALSE),0) -> 490 | H43: =ROUND(G43/$G$5*+Assumptions!$E$14*Assumptions!$E$30,0) -> 106403 | J43: 121662 | L43: 0 | M43: =IFERROR(VLOOKUP(A43,[1]ENROLLMENT!$A$5:$B$349,2,FALSE),0)*0 -> 0 | N43: =IFERROR(GETPIVOTDATA("Total W/O Preschool",'[1]Private 19-20'!$O$3,"District Code",A43),0)*0 -> 0 | P43: 121662 | Q43: 0 | R43: 121662 | T43: 0 | U43: 121662 | W43: =IFERROR(VLOOKUP($A43,'Allocation 2023-24 Final'!$B$7:$S$312,18,FALSE),0) -> 0 | Y43: 121662 | Z43: 0 | AA43: 68 | AB43: 0 | AD43: 02250 | AE43: CLARKSTON
A44: 19404 | B44: CLE ELUM-ROSLYN | C44: 0 | D44: 0 | E44: =IFERROR(VLOOKUP(A44,'22-23 DOE Formula counts'!$D$8:$T$325,10,FALSE),0) -> 1159 | F44: =ROUND(E44/$E$5*Assumptions!$E$14*Assumptions!$E$29,0) -> 6181 | G44: =IFERROR(VLOOKUP(A44,'22-23 DOE Formula counts'!$D$8:$T$325,4,FALSE),0) -> 162 | H44: =ROUND(G44/$G$5*+Assumptions!$E$14*Assumptions!$E$30,0) -> 35178 | J44: 41359 | L44: 0 | M44: =IFERROR(VLOOKUP(A44,[1]ENROLLMENT!$A$5:$B$349,2,FALSE),0)*0 -> 0 | N44: =IFERROR(GETPIVOTDATA("Total W/O Preschool",'[1]Private 19-20'!$O$3,"District Code",A44),0)*0 -> 0 | P44: 41359 | Q44: 0 | R44: 41359 | T44: 0 | U44: 41359 | W44: =IFERROR(VLOOKUP($A44,'Allocation 2023-24 Final'!$B$7:$S$312,18,FALSE),0) -> 0 | Y44: 41359 | Z44: 0 | AA44: 141 | AB44: 0 | AD44: 19404 | AE44: CLE ELUM-ROSLYN
A45: 27400 | B45: CLOVER PARK | C45: 0 | D45: 0 | E45: =IFERROR(VLOOKUP(A45,'22-23 DOE Formula counts'!$D$8:$T$325,10,FALSE),0) -> 13907 | F45: =ROUND(E45/$E$5*Assumptions!$E$14*Assumptions!$E$29,0) -> 74171 | G45: =IFERROR(VLOOKUP(A45,'22-23 DOE Formula counts'!$D$8:$T$325,4,FALSE),0) -> 1772 | H45: =ROUND(G45/$G$5*+Assumptions!$E$14*Assumptions!$E$30,0) -> 384790 | J45: 458961 | L45: 0 | M45: =IFERROR(VLOOKUP(A45,[1]ENROLLMENT!$A$5:$B$349,2,FALSE),0)*0 -> 0 | N45: =IFERROR(GETPIVOTDATA("Total W/O Preschool",'[1]Private 19-20'!$O$3,"District Code",A45),0)*0 -> 0 | P45: 458961 | Q45: 0 | R45: 458961 | T45: 0 | U45: 458961 | W45: =IFERROR(VLOOKUP($A45,'Allocation 2023-24 Final'!$B$7:$S$312,18,FALSE),0) -> 0 | Y45: 458961 | Z45: 0 | AA45: 18 | AB45: 0 | AD45: 27400 | AE45: CLOVER PARK
A46: 38300 | B46: COLFAX | C46: 0 | D46: 0 | E46: =IFERROR(VLOOKUP(A46,'22-23 DOE Formula counts'!$D$8:$T$325,10,FALSE),0) -> 773 | F46: =ROUND(E46/$E$5*Assumptions!$E$14*Assumptions!$E$29,0) -> 4123 | G46: =IFERROR(VLOOKUP(A46,'22-23 DOE Formula counts'!$D$8:$T$325,4,FALSE),0) -> 52 | H46: =ROUND(G46/$G$5*+Assumptions!$E$14*Assumptions!$E$30,0) -> 11292 | J46: 15415 | L46: 0 | M46: =IFERROR(VLOOKUP(A46,[1]ENROLLMENT!$A$5:$B$349,2,FALSE),0)*0 -> 0 | N46: =IFERROR(GETPIVOTDATA("Total W/O Preschool",'[1]Private 19-20'!$O$3,"District Code",A46),0)*0 -> 0 | P46: 15415 | Q46: 0 | R46: 15415 | T46: 0 | U46: 15415 | W46: =IFERROR(VLOOKUP($A46,'Allocation 2023-24 Final'!$B$7:$S$312,18,FALSE),0) -> 0 | Y46: 15415 | Z46: 0 | AA46: 200 | AB46: 0 | AD46: 38300 | AE46: COLFAX
A47: 36250 | B47: COLLEGE PLACE | C47: 0 | D47: 0 | E47: =IFERROR(VLOOKUP(A47,'22-23 DOE Formula counts'!$D$8:$T$325,10,FALSE),0) -> 1936 | F47: =ROUND(E47/$E$5*Assumptions!$E$14*Assumptions!$E$29,0) -> 10325 | G47: =IFERROR(VLOOKUP(A47,'22-23 DOE Formula counts'!$D$8:$T$325,4,FALSE),0) -> 227 | H47: =ROUND(G47/$G$5*+Assumptions!$E$14*Assumptions!$E$30,0) -> 49293 | J47: 59618 | L47: 0 | M47: =IFERROR(VLOOKUP(A47,[1]ENROLLMENT!$A$5:$B$349,2,FALSE),0)*0 -> 0 | N47: =IFERROR(GETPIVOTDATA("Total W/O Preschool",'[1]Private 19-20'!$O$3,"District Code",A47),0)*0 -> 0 | P47: 59618 | Q47: 0 | R47: 59618 | T47: 0 | U47: 59618 | W47: =IFERROR(VLOOKUP($A47,'Allocation 2023-24 Final'!$B$7:$S$312,18,FALSE),0) -> 0 | Y47: 59618 | Z47: 0 | AA47: 115 | AB47: 0 | AD47: 36250 | AE47: COLLEGE PLACE
A48: 38306 | B48: COLTON | C48: 0 | D48: 0 | E48: =IFERROR(VLOOKUP(A48,'22-23 DOE Formula counts'!$D$8:$T$325,10,FALSE),0) -> 250 | F48: =ROUND(E48/$E$5*Assumptions!$E$14*Assumptions!$E$29,0) -> 1333 | G48: =IFERROR(VLOOKUP(A48,'22-23 DOE Formula counts'!$D$8:$T$325,4,FALSE),0) -> 14 | H48: =ROUND(G48/$G$5*+Assumptions!$E$14*Assumptions!$E$30,0) -> 3040 | J48: 4373 | L48: 0 | M48: =IFERROR(VLOOKUP(A48,[1]ENROLLMENT!$A$5:$B$349,2,FALSE),0)*0 -> 0 | N48: =IFERROR(GETPIVOTDATA("Total W/O Preschool",'[1]Private 19-20'!$O$3,"District Code",A48),0)*0 -> 0 | P48: 4373 | Q48: 0 | R48: 4373 | T48: 0 | U48: 4373 | W48: =IFERROR(VLOOKUP($A48,'Allocation 2023-24 Final'!$B$7:$S$312,18,FALSE),0) -> 0 | Y48: 4373 | Z48: 0 | AA48: 267 | AB48: 0 | AD48: 38306 | AE48: COLTON
A49: 33206 | B49: COLUMBIA (STEV) | C49: 0 | D49: 0 | E49: =IFERROR(VLOOKUP(A49,'22-23 DOE Formula counts'!$D$8:$T$325,10,FALSE),0) -> 197 | F49: =ROUND(E49/$E$5*Assumptions!$E$14*Assumptions!$E$29,0) -> 1051 | G49: =IFERROR(VLOOKUP(A49,'22-23 DOE Formula counts'!$D$8:$T$325,4,FALSE),0) -> 37 | H49: =ROUND(G49/$G$5*+Assumptions!$E$14*Assumptions!$E$30,0) -> 8035 | J49: 9086 | L49: 0 | M49: =IFERROR(VLOOKUP(A49,[1]ENROLLMENT!$A$5:$B$349,2,FALSE),0)*0 -> 0 | N49: =IFERROR(GETPIVOTDATA("Total W/O Preschool",'[1]Private 19-20'!$O$3,"District Code",A49),0)*0 -> 0 | P49: 9086 | Q49: 0 | R49: 9086 | T49: 0 | U49: 9086 | W49: =IFERROR(VLOOKUP($A49,'Allocation 2023-24 Final'!$B$7:$S$312,18,FALSE),0) -> 0 | Y49: 9086 | Z49: 0 | AA49: 236 | AB49: 0 | AD49: 33206 | AE49: COLUMBIA (STEV)
A50: 36400 | B50: COLUMBIA (WALLA) | C50: 0 | D50: 0 | E50: =IFERROR(VLOOKUP(A50,'22-23 DOE Formula counts'!$D$8:$T$325,10,FALSE),0) -> 779 | F50: =ROUND(E50/$E$5*Assumptions!$E$14*Assumptions!$E$29,0) -> 4155 | G50: =IFERROR(VLOOKUP(A50,'22-23 DOE Formula counts'!$D$8:$T$325,4,FALSE),0) -> 128 | H50: =ROUND(G50/$G$5*+Assumptions!$E$14*Assumptions!$E$30,0) -> 27795 | J50: 31950 | L50: 0 | M50: =IFERROR(VLOOKUP(A50,[1]ENROLLMENT!$A$5:$B$349,2,FALSE),0)*0 -> 0 | N50: =IFERROR(GETPIVOTDATA("Total W/O Preschool",'[1]Private 19-20'!$O$3,"District Code",A50),0)*0 -> 0 | P50: 31950 | Q50: 0 | R50: 31950 | T50: 0 | U50: 31950 | W50: =IFERROR(VLOOKUP($A50,'Allocation 2023-24 Final'!$B$7:$S$312,18,FALSE),0) -> 0 | Y50: 31950 | Z50: 0 | AA50: 164 | AB50: 0 | AD50: 36400 | AE50: COLUMBIA (WALLA)
A51: 33115 | B51: COLVILLE | C51: 0 | D51: 0 | E51: =IFERROR(VLOOKUP(A51,'22-23 DOE Formula counts'!$D$8:$T$325,10,FALSE),0) -> 1859 | F51: =ROUND(E51/$E$5*Assumptions!$E$14*Assumptions!$E$29,0) -> 9915 | G51: =IFERROR(VLOOKUP(A51,'22-23 DOE Formula counts'!$D$8:$T$325,4,FALSE),0) -> 324 | H51: =ROUND(G51/$G$5*+Assumptions!$E$14*Assumptions!$E$30,0) -> 70357 | J51: 80272 | L51: 0 | M51: =IFERROR(VLOOKUP(A51,[1]ENROLLMENT!$A$5:$B$349,2,FALSE),0)*0 -> 0 | N51: =IFERROR(GETPIVOTDATA("Total W/O Preschool",'[1]Private 19-20'!$O$3,"District Code",A51),0)*0 -> 0 | P51: 80272 | Q51: 0 | R51: 80272 | T51: 0 | U51: 80272 | W51: =IFERROR(VLOOKUP($A51,'Allocation 2023-24 Final'!$B$7:$S$312,18,FALSE),0) -> 0 | Y51: 80272 | Z51: 0 | AA51: 95 | AB51: 0 | AD51: 33115 | AE51: COLVILLE
A52: 29011 | B52: CONCRETE | C52: 0 | D52: 0 | E52: =IFERROR(VLOOKUP(A52,'22-23 DOE Formula counts'!$D$8:$T$325,10,FALSE),0) -> 751 | F52: =ROUND(E52/$E$5*Assumptions!$E$14*Assumptions!$E$29,0) -> 4005 | G52: =IFERROR(VLOOKUP(A52,'22-23 DOE Formula counts'!$D$8:$T$325,4,FALSE),0) -> 103 | H52: =ROUND(G52/$G$5*+Assumptions!$E$14*Assumptions!$E$30,0) -> 22366 | J52: 26371 | L52: 0 | M52: =IFERROR(VLOOKUP(A52,[1]ENROLLMENT!$A$5:$B$349,2,FALSE),0)*0 -> 0 | N52: =IFERROR(GETPIVOTDATA("Total W/O Preschool",'[1]Private 19-20'!$O$3,"District Code",A52),0)*0 -> 0 | P52: 26371 | Q52: 0 | R52: 26371 | T52: 0 | U52: 26371 | W52: =IFERROR(VLOOKUP($A52,'Allocation 2023-24 Final'!$B$7:$S$312,18,FALSE),0) -> 0 | Y52: 26371 | Z52: 0 | AA52: 174 | AB52: 0 | AD52: 29011 | AE52: CONCRETE
A53: 29317 | B53: CONWAY | C53: 0 | D53: 0 | E53: =IFERROR(VLOOKUP(A53,'22-23 DOE Formula counts'!$D$8:$T$325,10,FALSE),0) -> 575 | F53: =ROUND(E53/$E$5*Assumptions!$E$14*Assumptions!$E$29,0) -> 3067 | G53: =IFERROR(VLOOKUP(A53,'22-23 DOE Formula counts'!$D$8:$T$325,4,FALSE),0) -> 31 | H53: =ROUND(G53/$G$5*+Assumptions!$E$14*Assumptions!$E$30,0) -> 6732 | J53: 9799 | L53: 0 | M53: =IFERROR(VLOOKUP(A53,[1]ENROLLMENT!$A$5:$B$349,2,FALSE),0)*0 -> 0 | N53: =IFERROR(GETPIVOTDATA("Total W/O Preschool",'[1]Private 19-20'!$O$3,"District Code",A53),0)*0 -> 0 | P53: 9799 | Q53: 0 | R53: 9799 | T53: 0 | U53: 9799 | W53: =IFERROR(VLOOKUP($A53,'Allocation 2023-24 Final'!$B$7:$S$312,18,FALSE),0) -> 0 | Y53: 9799 | Z53: 0 | AA53: 234 | AB53: 0 | AD53: 29317 | AE53: CONWAY
A54: 14099 | B54: COSMOPOLIS | C54: 0 | D54: 0 | E54: =IFERROR(VLOOKUP(A54,'22-23 DOE Formula counts'!$D$8:$T$325,10,FALSE),0) -> 336 | F54: =ROUND(E54/$E$5*Assumptions!$E$14*Assumptions!$E$29,0) -> 1792 | G54: =IFERROR(VLOOKUP(A54,'22-23 DOE Formula counts'!$D$8:$T$325,4,FALSE),0) -> 25 | H54: =ROUND(G54/$G$5*+Assumptions!$E$14*Assumptions!$E$30,0) -> 5429 | J54: 7221 | L54: 0 | M54: =IFERROR(VLOOKUP(A54,[1]ENROLLMENT!$A$5:$B$349,2,FALSE),0)*0 -> 0 | N54: =IFERROR(GETPIVOTDATA("Total W/O Preschool",'[1]Private 19-20'!$O$3,"District Code",A54),0)*0 -> 0 | P54: 7221 | Q54: 0 | R54: 7221 | T54: 0 | U54: 7221 | W54: =IFERROR(VLOOKUP($A54,'Allocation 2023-24 Final'!$B$7:$S$312,18,FALSE),0) -> 0 | Y54: 7221 | Z54: 0 | AA54: 250 | AB54: 0 | AD54: 14099 | AE54: COSMOPOLIS
A55: 13151 | B55: COULEE-HARTLINE | C55: 0 | D55: 0 | E55: =IFERROR(VLOOKUP(A55,'22-23 DOE Formula counts'!$D$8:$T$325,10,FALSE),0) -> 212 | F55: =ROUND(E55/$E$5*Assumptions!$E$14*Assumptions!$E$29,0) -> 1131 | G55: =IFERROR(VLOOKUP(A55,'22-23 DOE Formula counts'!$D$8:$T$325,4,FALSE),0) -> 40 | H55: =ROUND(G55/$G$5*+Assumptions!$E$14*Assumptions!$E$30,0) -> 8686 | J55: 9817 | L55: 0 | M55: =IFERROR(VLOOKUP(A55,[1]ENROLLMENT!$A$5:$B$349,2,FALSE),0)*0 -> 0 | N55: =IFERROR(GETPIVOTDATA("Total W/O Preschool",'[1]Private 19-20'!$O$3,"District Code",A55),0)*0 -> 0 | P55: 9817 | Q55: 0 | R55: 9817 | T55: 0 | U55: 9817 | W55: =IFERROR(VLOOKUP($A55,'Allocation 2023-24 Final'!$B$7:$S$312,18,FALSE),0) -> 0 | Y55: 9817 | Z55: 0 | AA55: 233 | AB55: 0 | AD55: 13151 | AE55: COULEE-HARTLINE
A56: 15204 | B56: COUPEVILLE | C56: 0 | D56: 0 | E56: =IFERROR(VLOOKUP(A56,'22-23 DOE Formula counts'!$D$8:$T$325,10,FALSE),0) -> 1074 | F56: =ROUND(E56/$E$5*Assumptions!$E$14*Assumptions!$E$29,0) -> 5728 | G56: =IFERROR(VLOOKUP(A56,'22-23 DOE Formula counts'!$D$8:$T$325,4,FALSE),0) -> 107 | H56: =ROUND(G56/$G$5*+Assumptions!$E$14*Assumptions!$E$30,0) -> 23235 | J56: 28963 | L56: 0 | M56: =IFERROR(VLOOKUP(A56,[1]ENROLLMENT!$A$5:$B$349,2,FALSE),0)*0 -> 0 | N56: =IFERROR(GETPIVOTDATA("Total W/O Preschool",'[1]Private 19-20'!$O$3,"District Code",A56),0)*0 -> 0 | P56: 28963 | Q56: 0 | R56: 28963 | T56: 0 | U56: 28963 | W56: =IFERROR(VLOOKUP($A56,'Allocation 2023-24 Final'!$B$7:$S$312,18,FALSE),0) -> 0 | Y56: 28963 | Z56: 0 | AA56: 167 | AB56: 0 | AD56: 15204 | AE56: COUPEVILLE
A57: 05313 | B57: CRESCENT | C57: 0 | D57: 0 | E57: =IFERROR(VLOOKUP(A57,'22-23 DOE Formula counts'!$D$8:$T$325,10,FALSE),0) -> 365 | F57: =ROUND(E57/$E$5*Assumptions!$E$14*Assumptions!$E$29,0) -> 1947 | G57: =IFERROR(VLOOKUP(A57,'22-23 DOE Formula counts'!$D$8:$T$325,4,FALSE),0) -> 56 | H57: =ROUND(G57/$G$5*+Assumptions!$E$14*Assumptions!$E$30,0) -> 12160 | J57: 14107 | L57: 0 | M57: =IFERROR(VLOOKUP(A57,[1]ENROLLMENT!$A$5:$B$349,2,FALSE),0)*0 -> 0 | N57: =IFERROR(GETPIVOTDATA("Total W/O Preschool",'[1]Private 19-20'!$O$3,"District Code",A57),0)*0 -> 0 | P57: 14107 | Q57: 0 | R57: 14107 | T57: 0 | U57: 14107 | W57: =IFERROR(VLOOKUP($A57,'Allocation 2023-24 Final'!$B$7:$S$312,18,FALSE),0) -> 0 | Y57: 14107 | Z57: 0 | AA57: 209 | AB57: 0 | AD57: 05313 | AE57: CRESCENT
A58: 22073 | B58: CRESTON | C58: 0 | D58: 0 | E58: =IFERROR(VLOOKUP(A58,'22-23 DOE Formula counts'!$D$8:$T$325,10,FALSE),0) -> 95 | F58: =ROUND(E58/$E$5*Assumptions!$E$14*Assumptions!$E$29,0) -> 507 | G58: =IFERROR(VLOOKUP(A58,'22-23 DOE Formula counts'!$D$8:$T$325,4,FALSE),0) -> 5 | H58: =ROUND(G58/$G$5*+Assumptions!$E$14*Assumptions!$E$30,0) -> 1086 | J58: 1593 | L58: 0 | M58: =IFERROR(VLOOKUP(A58,[1]ENROLLMENT!$A$5:$B$349,2,FALSE),0)*0 -> 0 | N58: =IFERROR(GETPIVOTDATA("Total W/O Preschool",'[1]Private 19-20'!$O$3,"District Code",A58),0)*0 -> 0 | P58: 1593 | Q58: 0 | R58: 1593 | T58: 0 | U58: 1593 | W58: =IFERROR(VLOOKUP($A58,'Allocation 2023-24 Final'!$B$7:$S$312,18,FALSE),0) -> 0 | Y58: 1593 | Z58: 0 | AA58: 305 | AB58: 0 | AD58: 22073 | AE58: CRESTON
A59: 10050 | B59: CURLEW | C59: 0 | D59: 0 | E59: =IFERROR(VLOOKUP(A59,'22-23 DOE Formula counts'!$D$8:$T$325,10,FALSE),0) -> 181 | F59: =ROUND(E59/$E$5*Assumptions!$E$14*Assumptions!$E$29,0) -> 965 | G59: =IFERROR(VLOOKUP(A59,'22-23 DOE Formula counts'!$D$8:$T$325,4,FALSE),0) -> 52 | H59: =ROUND(G59/$G$5*+Assumptions!$E$14*Assumptions!$E$30,0) -> 11292 | J59: 12257 | L59: 0 | M59: =IFERROR(VLOOKUP(A59,[1]ENROLLMENT!$A$5:$B$349,2,FALSE),0)*0 -> 0 | N59: =IFERROR(GETPIVOTDATA("Total W/O Preschool",'[1]Private 19-20'!$O$3,"District Code",A59),0)*0 -> 0 | P59: 12257 | Q59: 0 | R59: 12257 | T59: 0 | U59: 12257 | W59: =IFERROR(VLOOKUP($A59,'Allocation 2023-24 Final'!$B$7:$S$312,18,FALSE),0) -> 0 | Y59: 12257 | Z59: 0 | AA59: 219 | AB59: 0 | AD59: 10050 | AE59: CURLEW
A60: 26059 | B60: CUSICK | C60: 0 | D60: 0 | E60: =IFERROR(VLOOKUP(A60,'22-23 DOE Formula counts'!$D$8:$T$325,10,FALSE),0) -> 315 | F60: =ROUND(E60/$E$5*Assumptions!$E$14*Assumptions!$E$29,0) -> 1680 | G60: =IFERROR(VLOOKUP(A60,'22-23 DOE Formula counts'!$D$8:$T$325,4,FALSE),0) -> 73 | H60: =ROUND(G60/$G$5*+Assumptions!$E$14*Assumptions!$E$30,0) -> 15852 | J60: 17532 | L60: 0 | M60: =IFERROR(VLOOKUP(A60,[1]ENROLLMENT!$A$5:$B$349,2,FALSE),0)*0 -> 0 | N60: =IFERROR(GETPIVOTDATA("Total W/O Preschool",'[1]Private 19-20'!$O$3,"District Code",A60),0)*0 -> 0 | P60: 17532 | Q60: 0 | R60: 17532 | T60: 0 | U60: 17532 | W60: =IFERROR(VLOOKUP($A60,'Allocation 2023-24 Final'!$B$7:$S$312,18,FALSE),0) -> 0 | Y60: 17532 | Z60: 0 | AA60: 194 | AB60: 0 | AD60: 26059 | AE60: CUSICK
A61: 19007 | B61: DAMMAN | C61: 0 | D61: 0 | E61: =IFERROR(VLOOKUP(A61,'22-23 DOE Formula counts'!$D$8:$T$325,10,FALSE),0) -> 168 | F61: =ROUND(E61/$E$5*Assumptions!$E$14*Assumptions!$E$29,0) -> 896 | G61: =IFERROR(VLOOKUP(A61,'22-23 DOE Formula counts'!$D$8:$T$325,4,FALSE),0) -> 3 | H61: =ROUND(G61/$G$5*+Assumptions!$E$14*Assumptions!$E$30,0) -> 651 | J61: 1547 | L61: 0 | M61: =IFERROR(VLOOKUP(A61,[1]ENROLLMENT!$A$5:$B$349,2,FALSE),0)*0 -> 0 | N61: =IFERROR(GETPIVOTDATA("Total W/O Preschool",'[1]Private 19-20'!$O$3,"District Code",A61),0)*0 -> 0 | P61: 1547 | Q61: 0 | R61: 1547 | T61: 0 | U61: 1547 | W61: =IFERROR(VLOOKUP($A61,'Allocation 2023-24 Final'!$B$7:$S$312,18,FALSE),0) -> 0 | Y61: 1547 | Z61: 0 | AA61: 306 | AB61: 0 | AD61: 19007 | AE61: DAMMAN
A62: 31330 | B62: DARRINGTON | C62: 0 | D62: 0 | E62: =IFERROR(VLOOKUP(A62,'22-23 DOE Formula counts'!$D$8:$T$325,10,FALSE),0) -> 595 | F62: =ROUND(E62/$E$5*Assumptions!$E$14*Assumptions!$E$29,0) -> 3173 | G62: =IFERROR(VLOOKUP(A62,'22-23 DOE Formula counts'!$D$8:$T$325,4,FALSE),0) -> 41 | H62: =ROUND(G62/$G$5*+Assumptions!$E$14*Assumptions!$E$30,0) -> 8903 | J62: 12076 | L62: 0 | M62: =IFERROR(VLOOKUP(A62,[1]ENROLLMENT!$A$5:$B$349,2,FALSE),0)*0 -> 0 | N62: =IFERROR(GETPIVOTDATA("Total W/O Preschool",'[1]Private 19-20'!$O$3,"District Code",A62),0)*0 -> 0 | P62: 12076 | Q62: 0 | R62: 12076 | T62: 0 | U62: 12076 | W62: =IFERROR(VLOOKUP($A62,'Allocation 2023-24 Final'!$B$7:$S$312,18,FALSE),0) -> 0 | Y62: 12076 | Z62: 0 | AA62: 221 | AB62: 0 | AD62: 31330 | AE62: DARRINGTON
A63: 22207 | B63: DAVENPORT | C63: 0 | D63: 0 | E63: =IFERROR(VLOOKUP(A63,'22-23 DOE Formula counts'!$D$8:$T$325,10,FALSE),0) -> 602 | F63: =ROUND(E63/$E$5*Assumptions!$E$14*Assumptions!$E$29,0) -> 3211 | G63: =IFERROR(VLOOKUP(A63,'22-23 DOE Formula counts'!$D$8:$T$325,4,FALSE),0) -> 93 | H63: =ROUND(G63/$G$5*+Assumptions!$E$14*Assumptions!$E$30,0) -> 20195 | J63: 23406 | L63: 0 | M63: =IFERROR(VLOOKUP(A63,[1]ENROLLMENT!$A$5:$B$349,2,FALSE),0)*0 -> 0 | N63: =IFERROR(GETPIVOTDATA("Total W/O Preschool",'[1]Private 19-20'!$O$3,"District Code",A63),0)*0 -> 0 | P63: 23406 | Q63: 0 | R63: 23406 | T63: 0 | U63: 23406 | W63: =IFERROR(VLOOKUP($A63,'Allocation 2023-24 Final'!$B$7:$S$312,18,FALSE),0) -> 0 | Y63: 23406 | Z63: 0 | AA63: 181 | AB63: 0 | AD63: 22207 | AE63: DAVENPORT
A64: 07002 | B64: DAYTON | C64: 0 | D64: 0 | E64: =IFERROR(VLOOKUP(A64,'22-23 DOE Formula counts'!$D$8:$T$325,10,FALSE),0) -> 523 | F64: =ROUND(E64/$E$5*Assumptions!$E$14*Assumptions!$E$29,0) -> 2789 | G64: =IFERROR(VLOOKUP(A64,'22-23 DOE Formula counts'!$D$8:$T$325,4,FALSE),0) -> 84 | H64: =ROUND(G64/$G$5*+Assumptions!$E$14*Assumptions!$E$30,0) -> 18241 | J64: 21030 | L64: 0 | M64: =IFERROR(VLOOKUP(A64,[1]ENROLLMENT!$A$5:$B$349,2,FALSE),0)*0 -> 0 | N64: =IFERROR(GETPIVOTDATA("Total W/O Preschool",'[1]Private 19-20'!$O$3,"District Code",A64),0)*0 -> 0 | P64: 21030 | Q64: 0 | R64: 21030 | T64: 0 | U64: 21030 | W64: =IFERROR(VLOOKUP($A64,'Allocation 2023-24 Final'!$B$7:$S$312,18,FALSE),0) -> 0 | Y64: 21030 | Z64: 0 | AA64: 186 | AB64: 0 | AD64: 07002 | AE64: DAYTON
A65: 32414 | B65: DEER PARK | C65: 0 | D65: 0 | E65: =IFERROR(VLOOKUP(A65,'22-23 DOE Formula counts'!$D$8:$T$325,10,FALSE),0) -> 2249 | F65: =ROUND(E65/$E$5*Assumptions!$E$14*Assumptions!$E$29,0) -> 11995 | G65: =IFERROR(VLOOKUP(A65,'22-23 DOE Formula counts'!$D$8:$T$325,4,FALSE),0) -> 308 | H65: =ROUND(G65/$G$5*+Assumptions!$E$14*Assumptions!$E$30,0) -> 66882 | J65: 78877 | L65: 0 | M65: =IFERROR(VLOOKUP(A65,[1]ENROLLMENT!$A$5:$B$349,2,FALSE),0)*0 -> 0 | N65: =IFERROR(GETPIVOTDATA("Total W/O Preschool",'[1]Private 19-20'!$O$3,"District Code",A65),0)*0 -> 0 | P65: 78877 | Q65: 0 | R65: 78877 | T65: 0 | U65: 78877 | W65: =IFERROR(VLOOKUP($A65,'Allocation 2023-24 Final'!$B$7:$S$312,18,FALSE),0) -> 0 | Y65: 78877 | Z65: 0 | AA65: 97 | AB65: 0 | AD65: 32414 | AE65: DEER PARK
A66: 27343 | B66: DIERINGER | C66: 0 | D66: 0 | E66: =IFERROR(VLOOKUP(A66,'22-23 DOE Formula counts'!$D$8:$T$325,10,FALSE),0) -> 1949 | F66: =ROUND(E66/$E$5*Assumptions!$E$14*Assumptions!$E$29,0) -> 10395 | G66: =IFERROR(VLOOKUP(A66,'22-23 DOE Formula counts'!$D$8:$T$325,4,FALSE),0) -> 64 | H66: =ROUND(G66/$G$5*+Assumptions!$E$14*Assumptions!$E$30,0) -> 13898 | J66: 24293 | L66: 0 | M66: =IFERROR(VLOOKUP(A66,[1]ENROLLMENT!$A$5:$B$349,2,FALSE),0)*0 -> 0 | N66: =IFERROR(GETPIVOTDATA("Total W/O Preschool",'[1]Private 19-20'!$O$3,"District Code",A66),0)*0 -> 0 | P66: 24293 | Q66: 0 | R66: 24293 | T66: 0 | U66: 24293 | W66: =IFERROR(VLOOKUP($A66,'Allocation 2023-24 Final'!$B$7:$S$312,18,FALSE),0) -> 0 | Y66: 24293 | Z66: 0 | AA66: 180 | AB66: 0 | AD66: 27343 | AE66: DIERINGER
A67: 36101 | B67: DIXIE | C67: 0 | D67: 0 | E67: =IFERROR(VLOOKUP(A67,'22-23 DOE Formula counts'!$D$8:$T$325,10,FALSE),0) -> 67 | F67: =ROUND(E67/$E$5*Assumptions!$E$14*Assumptions!$E$29,0) -> 357 | G67: =IFERROR(VLOOKUP(A67,'22-23 DOE Formula counts'!$D$8:$T$325,4,FALSE),0) -> 9 | H67: =ROUND(G67/$G$5*+Assumptions!$E$14*Assumptions!$E$30,0) -> 1954 | J67: 2311 | L67: 0 | M67: =IFERROR(VLOOKUP(A67,[1]ENROLLMENT!$A$5:$B$349,2,FALSE),0)*0 -> 0 | N67: =IFERROR(GETPIVOTDATA("Total W/O Preschool",'[1]Private 19-20'!$O$3,"District Code",A67),0)*0 -> 0 | P67: 2311 | Q67: 0 | R67: 2311 | T67: 0 | U67: 2311 | W67: =IFERROR(VLOOKUP($A67,'Allocation 2023-24 Final'!$B$7:$S$312,18,FALSE),0) -> 0 | Y67: 2311 | Z67: 0 | AA67: 297 | AB67: 0 | AD67: 36101 | AE67: DIXIE
A68: 32361 | B68: EAST VALLEY (SPK) | C68: 0 | D68: 0 | E68: =IFERROR(VLOOKUP(A68,'22-23 DOE Formula counts'!$D$8:$T$325,10,FALSE),0) -> 4981 | F68: =ROUND(E68/$E$5*Assumptions!$E$14*Assumptions!$E$29,0) -> 26565 | G68: =IFERROR(VLOOKUP(A68,'22-23 DOE Formula counts'!$D$8:$T$325,4,FALSE),0) -> 703 | H68: =ROUND(G68/$G$5*+Assumptions!$E$14*Assumptions!$E$30,0) -> 152656 | J68: 179221 | L68: 0 | M68: =IFERROR(VLOOKUP(A68,[1]ENROLLMENT!$A$5:$B$349,2,FALSE),0)*0 -> 0 | N68: =IFERROR(GETPIVOTDATA("Total W/O Preschool",'[1]Private 19-20'!$O$3,"District Code",A68),0)*0 -> 0 | P68: 179221 | Q68: 0 | R68: 179221 | T68: 0 | U68: 179221 | W68: =IFERROR(VLOOKUP($A68,'Allocation 2023-24 Final'!$B$7:$S$312,18,FALSE),0) -> 0 | Y68: 179221 | Z68: 0 | AA68: 44 | AB68: 0 | AD68: 32361 | AE68: EAST VALLEY (SPK)
A69: 39090 | B69: EAST VALLEY (YAK) | C69: 0 | D69: 0 | E69: =IFERROR(VLOOKUP(A69,'22-23 DOE Formula counts'!$D$8:$T$325,10,FALSE),0) -> 3138 | F69: =ROUND(E69/$E$5*Assumptions!$E$14*Assumptions!$E$29,0) -> 16736 | G69: =IFERROR(VLOOKUP(A69,'22-23 DOE Formula counts'!$D$8:$T$325,4,FALSE),0) -> 379 | H69: =ROUND(G69/$G$5*+Assumptions!$E$14*Assumptions!$E$30,0) -> 82300 | J69: 99036 | L69: 0 | M69: =IFERROR(VLOOKUP(A69,[1]ENROLLMENT!$A$5:$B$349,2,FALSE),0)*0 -> 0 | N69: =IFERROR(GETPIVOTDATA("Total W/O Preschool",'[1]Private 19-20'!$O$3,"District Code",A69),0)*0 -> 0 | P69: 99036 | Q69: 0 | R69: 99036 | T69: 0 | U69: 99036 | W69: =IFERROR(VLOOKUP($A69,'Allocation 2023-24 Final'!$B$7:$S$312,18,FALSE),0) -> 0 | Y69: 99036 | Z69: 0 | AA69: 80 | AB69: 0 | AD69: 39090 | AE69: EAST VALLEY (YAK)
A70: 09206 | B70: EASTMONT | C70: 0 | D70: 0 | E70: =IFERROR(VLOOKUP(A70,'22-23 DOE Formula counts'!$D$8:$T$325,10,FALSE),0) -> 6303 | F70: =ROUND(E70/$E$5*Assumptions!$E$14*Assumptions!$E$29,0) -> 33616 | G70: =IFERROR(VLOOKUP(A70,'22-23 DOE Formula counts'!$D$8:$T$325,4,FALSE),0) -> 668 | H70: =ROUND(G70/$G$5*+Assumptions!$E$14*Assumptions!$E$30,0) -> 145056 | J70: 178672 | L70: 0 | M70: =IFERROR(VLOOKUP(A70,[1]ENROLLMENT!$A$5:$B$349,2,FALSE),0)*0 -> 0 | N70: =IFERROR(GETPIVOTDATA("Total W/O Preschool",'[1]Private 19-20'!$O$3,"District Code",A70),0)*0 -> 0 | P70: 178672 | Q70: 0 | R70: 178672 | T70: 0 | U70: 178672 | W70: =IFERROR(VLOOKUP($A70,'Allocation 2023-24 Final'!$B$7:$S$312,18,FALSE),0) -> 0 | Y70: 178672 | Z70: 0 | AA70: 47 | AB70: 0 | AD70: 09206 | AE70: EASTMONT
A71: 19028 | B71: EASTON | C71: 0 | D71: 0 | E71: =IFERROR(VLOOKUP(A71,'22-23 DOE Formula counts'!$D$8:$T$325,10,FALSE),0) -> 154 | F71: =ROUND(E71/$E$5*Assumptions!$E$14*Assumptions!$E$29,0) -> 821 | G71: =IFERROR(VLOOKUP(A71,'22-23 DOE Formula counts'!$D$8:$T$325,4,FALSE),0) -> 11 | H71: =ROUND(G71/$G$5*+Assumptions!$E$14*Assumptions!$E$30,0) -> 2389 | J71: =ROUNDDOWN(+H71+F71+D71+C71+I71,0) -> 3210 | L71: =IF((M71+N71=0),0,+J71/(+M71+N71)) -> 0 | M71: =IFERROR(VLOOKUP(A71,[1]ENROLLMENT!$A$5:$B$349,2,FALSE),0)*0 -> 0 | N71: =IFERROR(GETPIVOTDATA("Total W/O Preschool",'[1]Private 19-20'!$O$3,"District Code",A71),0)*0 -> 0 | P71: =J71 -> 3210 | Q71: =-ROUND(P71/$P$5*$O$5,0) -> 0 | R71: =+J71+Q71+O71 -> 3210 | T71: =IF(S71>0,-ROUND((R71*(0.9-S71)),0),0) -> 0 | U71: =+R71+T71 -> 3210 | W71: =IFERROR(VLOOKUP($A71,'Allocation 2023-24 Final'!$B$7:$S$312,18,FALSE),0) -> 0 | Y71: =+U71-W71 -> 3210 | Z71: =IF(W71>0,Y71/W71,0) -> 0 | AA71: =RANK(Y71,$Y$7:$Y$321,0) -> 281 | AB71: =(SUM(C71:D71)/U71) -> 0 | AD71: =+A71 -> 19028 | AE71: =+B71 -> EASTON
A72: 27404 | B72: EATONVILLE | C72: 0 | D72: 0 | E72: =IFERROR(VLOOKUP(A72,'22-23 DOE Formula counts'!$D$8:$T$325,10,FALSE),0) -> 2355 | F72: =ROUND(E72/$E$5*Assumptions!$E$14*Assumptions!$E$29,0) -> 12560 | G72: =IFERROR(VLOOKUP(A72,'22-23 DOE Formula counts'!$D$8:$T$325,4,FALSE),0) -> 169 | H72: =ROUND(G72/$G$5*+Assumptions!$E$14*Assumptions!$E$30,0) -> 36698 | J72: 49258 | L72: 0 | M72: =IFERROR(VLOOKUP(A72,[1]ENROLLMENT!$A$5:$B$349,2,FALSE),0)*0 -> 0 | N72: =IFERROR(GETPIVOTDATA("Total W/O Preschool",'[1]Private 19-20'!$O$3,"District Code",A72),0)*0 -> 0 | P72: 49258 | Q72: 0 | R72: 49258 | T72: 0 | U72: 49258 | W72: =IFERROR(VLOOKUP($A72,'Allocation 2023-24 Final'!$B$7:$S$312,18,FALSE),0) -> 0 | Y72: 49258 | Z72: 0 | AA72: 126 | AB72: 0 | AD72: 27404 | AE72: EATONVILLE
A73: 31015 | B73: EDMONDS | C73: 0 | D73: 0 | E73: =IFERROR(VLOOKUP(A73,'22-23 DOE Formula counts'!$D$8:$T$325,10,FALSE),0) -> 25255 | F73: =ROUND(E73/$E$5*Assumptions!$E$14*Assumptions!$E$29,0) -> 134694 | G73: =IFERROR(VLOOKUP(A73,'22-23 DOE Formula counts'!$D$8:$T$325,4,FALSE),0) -> 1787 | H73: =ROUND(G73/$G$5*+Assumptions!$E$14*Assumptions!$E$30,0) -> 388047 | J73: 522741 | L73: 0 | M73: =IFERROR(VLOOKUP(A73,[1]ENROLLMENT!$A$5:$B$349,2,FALSE),0)*0 -> 0 | N73: =IFERROR(GETPIVOTDATA("Total W/O Preschool",'[1]Private 19-20'!$O$3,"District Code",A73),0)*0 -> 0 | P73: 522741 | Q73: 0 | R73: 522741 | T73: 0 | U73: 522741 | W73: =IFERROR(VLOOKUP($A73,'Allocation 2023-24 Final'!$B$7:$S$312,18,FALSE),0) -> 0 | Y73: 522741 | Z73: 0 | AA73: 13 | AB73: 0 | AD73: 31015 | AE73: EDMONDS
A74: 19401 | B74: ELLENSBURG | C74: 0 | D74: 0 | E74: =IFERROR(VLOOKUP(A74,'22-23 DOE Formula counts'!$D$8:$T$325,10,FALSE),0) -> 3481 | F74: =ROUND(E74/$E$5*Assumptions!$E$14*Assumptions!$E$29,0) -> 18565 | G74: =IFERROR(VLOOKUP(A74,'22-23 DOE Formula counts'!$D$8:$T$325,4,FALSE),0) -> 343 | H74: =ROUND(G74/$G$5*+Assumptions!$E$14*Assumptions!$E$30,0) -> 74482 | J74: 93047 | L74: 0 | M74: =IFERROR(VLOOKUP(A74,[1]ENROLLMENT!$A$5:$B$349,2,FALSE),0)*0 -> 0 | N74: =IFERROR(GETPIVOTDATA("Total W/O Preschool",'[1]Private 19-20'!$O$3,"District Code",A74),0)*0 -> 0 | P74: 93047 | Q74: 0 | R74: 93047 | T74: 0 | U74: 93047 | W74: =IFERROR(VLOOKUP($A74,'Allocation 2023-24 Final'!$B$7:$S$312,18,FALSE),0) -> 0 | Y74: 93047 | Z74: 0 | AA74: 84 | AB74: 0 | AD74: 19401 | AE74: ELLENSBURG
A75: 14068 | B75: ELMA | C75: 0 | D75: 0 | E75: =IFERROR(VLOOKUP(A75,'22-23 DOE Formula counts'!$D$8:$T$325,10,FALSE),0) -> 1582 | F75: =ROUND(E75/$E$5*Assumptions!$E$14*Assumptions!$E$29,0) -> 8437 | G75: =IFERROR(VLOOKUP(A75,'22-23 DOE Formula counts'!$D$8:$T$325,4,FALSE),0) -> 224 | H75: =ROUND(G75/$G$5*+Assumptions!$E$14*Assumptions!$E$30,0) -> 48642 | J75: 57079 | L75: 0 | M75: =IFERROR(VLOOKUP(A75,[1]ENROLLMENT!$A$5:$B$349,2,FALSE),0)*0 -> 0 | N75: =IFERROR(GETPIVOTDATA("Total W/O Preschool",'[1]Private 19-20'!$O$3,"District Code",A75),0)*0 -> 0 | P75: 57079 | Q75: 0 | R75: 57079 | T75: 0 | U75: 57079 | W75: =IFERROR(VLOOKUP($A75,'Allocation 2023-24 Final'!$B$7:$S$312,18,FALSE),0) -> 0 | Y75: 57079 | Z75: 0 | AA75: 117 | AB75: 0 | AD75: 14068 | AE75: ELMA
A76: 38308 | B76: ENDICOTT | C76: 0 | D76: 0 | E76: =IFERROR(VLOOKUP(A76,'22-23 DOE Formula counts'!$D$8:$T$325,10,FALSE),0) -> 79 | F76: =ROUND(E76/$E$5*Assumptions!$E$14*Assumptions!$E$29,0) -> 421 | G76: =IFERROR(VLOOKUP(A76,'22-23 DOE Formula counts'!$D$8:$T$325,4,FALSE),0) -> 22 | H76: =ROUND(G76/$G$5*+Assumptions!$E$14*Assumptions!$E$30,0) -> 4777 | J76: 5198 | L76: 0 | M76: =IFERROR(VLOOKUP(A76,[1]ENROLLMENT!$A$5:$B$349,2,FALSE),0)*0 -> 0 | N76: =IFERROR(GETPIVOTDATA("Total W/O Preschool",'[1]Private 19-20'!$O$3,"District Code",A76),0)*0 -> 0 | P76: 5198 | Q76: 0 | R76: 5198 | T76: 0 | U76: 5198 | W76: =IFERROR(VLOOKUP($A76,'Allocation 2023-24 Final'!$B$7:$S$312,18,FALSE),0) -> 0 | Y76: 5198 | Z76: 0 | AA76: 262 | AB76: 0 | AD76: 38308 | AE76: ENDICOTT
A77: 04127 | B77: ENTIAT | C77: 0 | D77: 0 | E77: =IFERROR(VLOOKUP(A77,'22-23 DOE Formula counts'!$D$8:$T$325,10,FALSE),0) -> 392 | F77: =ROUND(E77/$E$5*Assumptions!$E$14*Assumptions!$E$29,0) -> 2091 | G77: =IFERROR(VLOOKUP(A77,'22-23 DOE Formula counts'!$D$8:$T$325,4,FALSE),0) -> 46 | H77: =ROUND(G77/$G$5*+Assumptions!$E$14*Assumptions!$E$30,0) -> 9989 | J77: 12080 | L77: 0 | M77: =IFERROR(VLOOKUP(A77,[1]ENROLLMENT!$A$5:$B$349,2,FALSE),0)*0 -> 0 | N77: =IFERROR(GETPIVOTDATA("Total W/O Preschool",'[1]Private 19-20'!$O$3,"District Code",A77),0)*0 -> 0 | P77: 12080 | Q77: 0 | R77: 12080 | T77: 0 | U77: 12080 | W77: =IFERROR(VLOOKUP($A77,'Allocation 2023-24 Final'!$B$7:$S$312,18,FALSE),0) -> 0 | Y77: 12080 | Z77: 0 | AA77: 220 | AB77: 0 | AD77: 04127 | AE77: ENTIAT
A78: 17216 | B78: ENUMCLAW | C78: 0 | D78: 0 | E78: =IFERROR(VLOOKUP(A78,'22-23 DOE Formula counts'!$D$8:$T$325,10,FALSE),0) -> 5047 | F78: =ROUND(E78/$E$5*Assumptions!$E$14*Assumptions!$E$29,0) -> 26917 | G78: =IFERROR(VLOOKUP(A78,'22-23 DOE Formula counts'!$D$8:$T$325,4,FALSE),0) -> 246 | H78: =ROUND(G78/$G$5*+Assumptions!$E$14*Assumptions!$E$30,0) -> 53419 | J78: 80336 | L78: 0 | M78: =IFERROR(VLOOKUP(A78,[1]ENROLLMENT!$A$5:$B$349,2,FALSE),0)*0 -> 0 | N78: =IFERROR(GETPIVOTDATA("Total W/O Preschool",'[1]Private 19-20'!$O$3,"District Code",A78),0)*0 -> 0 | P78: 80336 | Q78: 0 | R78: 80336 | T78: 0 | U78: 80336 | W78: =IFERROR(VLOOKUP($A78,'Allocation 2023-24 Final'!$B$7:$S$312,18,FALSE),0) -> 0 | Y78: 80336 | Z78: 0 | AA78: 94 | AB78: 0 | AD78: 17216 | AE78: ENUMCLAW
A79: 13165 | B79: EPHRATA | C79: 0 | D79: 0 | E79: =IFERROR(VLOOKUP(A79,'22-23 DOE Formula counts'!$D$8:$T$325,10,FALSE),0) -> 2660 | F79: =ROUND(E79/$E$5*Assumptions!$E$14*Assumptions!$E$29,0) -> 14187 | G79: =IFERROR(VLOOKUP(A79,'22-23 DOE Formula counts'!$D$8:$T$325,4,FALSE),0) -> 357 | H79: =ROUND(G79/$G$5*+Assumptions!$E$14*Assumptions!$E$30,0) -> 77523 | J79: 91710 | L79: 0 | M79: =IFERROR(VLOOKUP(A79,[1]ENROLLMENT!$A$5:$B$349,2,FALSE),0)*0 -> 0 | N79: =IFERROR(GETPIVOTDATA("Total W/O Preschool",'[1]Private 19-20'!$O$3,"District Code",A79),0)*0 -> 0 | P79: 91710 | Q79: 0 | R79: 91710 | T79: 0 | U79: 91710 | W79: =IFERROR(VLOOKUP($A79,'Allocation 2023-24 Final'!$B$7:$S$312,18,FALSE),0) -> 0 | Y79: 91710 | Z79: 0 | AA79: 86 | AB79: 0 | AD79: 13165 | AE79: EPHRATA
A80: 21036 | B80: EVALINE | C80: 0 | D80: 0 | E80: =IFERROR(VLOOKUP(A80,'22-23 DOE Formula counts'!$D$8:$T$325,10,FALSE),0) -> 147 | F80: =ROUND(E80/$E$5*Assumptions!$E$14*Assumptions!$E$29,0) -> 784 | G80: =IFERROR(VLOOKUP(A80,'22-23 DOE Formula counts'!$D$8:$T$325,4,FALSE),0) -> 33 | H80: =ROUND(G80/$G$5*+Assumptions!$E$14*Assumptions!$E$30,0) -> 7166 | J80: 7950 | L80: 0 | M80: =IFERROR(VLOOKUP(A80,[1]ENROLLMENT!$A$5:$B$349,2,FALSE),0)*0 -> 0 | N80: =IFERROR(GETPIVOTDATA("Total W/O Preschool",'[1]Private 19-20'!$O$3,"District Code",A80),0)*0 -> 0 | P80: 7950 | Q80: 0 | R80: 7950 | T80: 0 | U80: 7950 | W80: =IFERROR(VLOOKUP($A80,'Allocation 2023-24 Final'!$B$7:$S$312,18,FALSE),0) -> 0 | Y80: 7950 | Z80: 0 | AA80: 242 | AB80: 0 | AD80: 21036 | AE80: EVALINE
A81: 31002 | B81: EVERETT | C81: 0 | D81: 0 | E81: =IFERROR(VLOOKUP(A81,'22-23 DOE Formula counts'!$D$8:$T$325,10,FALSE),0) -> 22887 | F81: =ROUND(E81/$E$5*Assumptions!$E$14*Assumptions!$E$29,0) -> 122065 | G81: =IFERROR(VLOOKUP(A81,'22-23 DOE Formula counts'!$D$8:$T$325,4,FALSE),0) -> 1734 | H81: =ROUND(G81/$G$5*+Assumptions!$E$14*Assumptions!$E$30,0) -> 376538 | J81: 498603 | L81: 0 | M81: =IFERROR(VLOOKUP(A81,[1]ENROLLMENT!$A$5:$B$349,2,FALSE),0)*0 -> 0 | N81: =IFERROR(GETPIVOTDATA("Total W/O Preschool",'[1]Private 19-20'!$O$3,"District Code",A81),0)*0 -> 0 | P81: 498603 | Q81: 0 | R81: 498603 | T81: 0 | U81: 498603 | W81: =IFERROR(VLOOKUP($A81,'Allocation 2023-24 Final'!$B$7:$S$312,18,FALSE),0) -> 0 | Y81: 498603 | Z81: 0 | AA81: 15 | AB81: 0 | AD81: 31002 | AE81: EVERETT
A82: 06114 | B82: EVERGREEN (CLARK) | C82: 0 | D82: 0 | E82: =IFERROR(VLOOKUP(A82,'22-23 DOE Formula counts'!$D$8:$T$325,10,FALSE),0) -> 28739 | F82: =ROUND(E82/$E$5*Assumptions!$E$14*Assumptions!$E$29,0) -> 153275 | G82: =IFERROR(VLOOKUP(A82,'22-23 DOE Formula counts'!$D$8:$T$325,4,FALSE),0) -> 2865 | H82: =ROUND(G82/$G$5*+Assumptions!$E$14*Assumptions!$E$30,0) -> 622135 | J82: 775410 | L82: 0 | M82: =IFERROR(VLOOKUP(A82,[1]ENROLLMENT!$A$5:$B$349,2,FALSE),0)*0 -> 0 | N82: =IFERROR(GETPIVOTDATA("Total W/O Preschool",'[1]Private 19-20'!$O$3,"District Code",A82),0)*0 -> 0 | P82: 775410 | Q82: 0 | R82: 775410 | T82: 0 | U82: 775410 | W82: =IFERROR(VLOOKUP($A82,'Allocation 2023-24 Final'!$B$7:$S$312,18,FALSE),0) -> 0 | Y82: 775410 | Z82: 0 | AA82: 7 | AB82: 0 | AD82: 06114 | AE82: EVERGREEN (CLARK)
A83: 33205 | B83: EVERGREEN (STEV) | C83: 0 | D83: 0 | E83: =IFERROR(VLOOKUP(A83,'22-23 DOE Formula counts'!$D$8:$T$325,10,FALSE),0) -> 74 | F83: =ROUND(E83/$E$5*Assumptions!$E$14*Assumptions!$E$29,0) -> 395 | G83: =IFERROR(VLOOKUP(A83,'22-23 DOE Formula counts'!$D$8:$T$325,4,FALSE),0) -> 18 | H83: =ROUND(G83/$G$5*+Assumptions!$E$14*Assumptions!$E$30,0) -> 3909 | J83: 4304 | L83: 0 | M83: =IFERROR(VLOOKUP(A83,[1]ENROLLMENT!$A$5:$B$349,2,FALSE),0)*0 -> 0 | N83: =IFERROR(GETPIVOTDATA("Total W/O Preschool",'[1]Private 19-20'!$O$3,"District Code",A83),0)*0 -> 0 | P83: 4304 | Q83: 0 | R83: 4304 | T83: 0 | U83: 4304 | W83: =IFERROR(VLOOKUP($A83,'Allocation 2023-24 Final'!$B$7:$S$312,18,FALSE),0) -> 0 | Y83: 4304 | Z83: 0 | AA83: 268 | AB83: 0 | AD83: 33205 | AE83: EVERGREEN (STEV)
A84: 17210 | B84: FEDERAL WAY | C84: 0 | D84: 0 | E84: =IFERROR(VLOOKUP(A84,'22-23 DOE Formula counts'!$D$8:$T$325,10,FALSE),0) -> 26685 | F84: =ROUND(E84/$E$5*Assumptions!$E$14*Assumptions!$E$29,0) -> 142321 | G84: =IFERROR(VLOOKUP(A84,'22-23 DOE Formula counts'!$D$8:$T$325,4,FALSE),0) -> 2965 | H84: =ROUND(G84/$G$5*+Assumptions!$E$14*Assumptions!$E$30,0) -> 643850 | J84: 786171 | L84: 0 | M84: =IFERROR(VLOOKUP(A84,[1]ENROLLMENT!$A$5:$B$349,2,FALSE),0)*0 -> 0 | N84: =IFERROR(GETPIVOTDATA("Total W/O Preschool",'[1]Private 19-20'!$O$3,"District Code",A84),0)*0 -> 0 | P84: 786171 | Q84: 0 | R84: 786171 | T84: 0 | U84: 786171 | W84: =IFERROR(VLOOKUP($A84,'Allocation 2023-24 Final'!$B$7:$S$312,18,FALSE),0) -> 0 | Y84: 786171 | Z84: 0 | AA84: 6 | AB84: 0 | AD84: 17210 | AE84: FEDERAL WAY
A85: 37502 | B85: FERNDALE | C85: 0 | D85: 0 | E85: =IFERROR(VLOOKUP(A85,'22-23 DOE Formula counts'!$D$8:$T$325,10,FALSE),0) -> 6274 | F85: =ROUND(E85/$E$5*Assumptions!$E$14*Assumptions!$E$29,0) -> 33462 | G85: =IFERROR(VLOOKUP(A85,'22-23 DOE Formula counts'!$D$8:$T$325,4,FALSE),0) -> 698 | H85: =ROUND(G85/$G$5*+Assumptions!$E$14*Assumptions!$E$30,0) -> 151571 | J85: 185033 | L85: 0 | M85: =IFERROR(VLOOKUP(A85,[1]ENROLLMENT!$A$5:$B$349,2,FALSE),0)*0 -> 0 | N85: =IFERROR(GETPIVOTDATA("Total W/O Preschool",'[1]Private 19-20'!$O$3,"District Code",A85),0)*0 -> 0 | P85: 185033 | Q85: 0 | R85: 185033 | T85: 0 | U85: 185033 | W85: =IFERROR(VLOOKUP($A85,'Allocation 2023-24 Final'!$B$7:$S$312,18,FALSE),0) -> 0 | Y85: 185033 | Z85: 0 | AA85: 43 | AB85: 0 | AD85: 37502 | AE85: FERNDALE
A86: 27417 | B86: FIFE | C86: 0 | D86: 0 | E86: =IFERROR(VLOOKUP(A86,'22-23 DOE Formula counts'!$D$8:$T$325,10,FALSE),0) -> 3921 | F86: =ROUND(E86/$E$5*Assumptions!$E$14*Assumptions!$E$29,0) -> 20912 | G86: =IFERROR(VLOOKUP(A86,'22-23 DOE Formula counts'!$D$8:$T$325,4,FALSE),0) -> 317 | H86: =ROUND(G86/$G$5*+Assumptions!$E$14*Assumptions!$E$30,0) -> 68837 | J86: 89749 | L86: 0 | M86: =IFERROR(VLOOKUP(A86,[1]ENROLLMENT!$A$5:$B$349,2,FALSE),0)*0 -> 0 | N86: =IFERROR(GETPIVOTDATA("Total W/O Preschool",'[1]Private 19-20'!$O$3,"District Code",A86),0)*0 -> 0 | P86: 89749 | Q86: 0 | R86: 89749 | T86: 0 | U86: 89749 | W86: =IFERROR(VLOOKUP($A86,'Allocation 2023-24 Final'!$B$7:$S$312,18,FALSE),0) -> 0 | Y86: 89749 | Z86: 0 | AA86: 87 | AB86: 0 | AD86: 27417 | AE86: FIFE
A87: 03053 | B87: FINLEY | C87: 0 | D87: 0 | E87: =IFERROR(VLOOKUP(A87,'22-23 DOE Formula counts'!$D$8:$T$325,10,FALSE),0) -> 1189 | F87: =ROUND(E87/$E$5*Assumptions!$E$14*Assumptions!$E$29,0) -> 6341 | G87: =IFERROR(VLOOKUP(A87,'22-23 DOE Formula counts'!$D$8:$T$325,4,FALSE),0) -> 148 | H87: =ROUND(G87/$G$5*+Assumptions!$E$14*Assumptions!$E$30,0) -> 32138 | J87: 38479 | L87: 0 | M87: =IFERROR(VLOOKUP(A87,[1]ENROLLMENT!$A$5:$B$349,2,FALSE),0)*0 -> 0 | N87: =IFERROR(GETPIVOTDATA("Total W/O Preschool",'[1]Private 19-20'!$O$3,"District Code",A87),0)*0 -> 0 | P87: 38479 | Q87: 0 | R87: 38479 | T87: 0 | U87: 38479 | W87: =IFERROR(VLOOKUP($A87,'Allocation 2023-24 Final'!$B$7:$S$312,18,FALSE),0) -> 0 | Y87: 38479 | Z87: 0 | AA87: 146 | AB87: 0 | AD87: 03053 | AE87: FINLEY
A88: 27402 | B88: FRANKLIN PIERCE | C88: 0 | D88: 0 | E88: =IFERROR(VLOOKUP(A88,'22-23 DOE Formula counts'!$D$8:$T$325,10,FALSE),0) -> 9052 | F88: =ROUND(E88/$E$5*Assumptions!$E$14*Assumptions!$E$29,0) -> 48278 | G88: =IFERROR(VLOOKUP(A88,'22-23 DOE Formula counts'!$D$8:$T$325,4,FALSE),0) -> 1094 | H88: =ROUND(G88/$G$5*+Assumptions!$E$14*Assumptions!$E$30,0) -> 237562 | J88: 285840 | L88: 0 | M88: =IFERROR(VLOOKUP(A88,[1]ENROLLMENT!$A$5:$B$349,2,FALSE),0)*0 -> 0 | N88: =IFERROR(GETPIVOTDATA("Total W/O Preschool",'[1]Private 19-20'!$O$3,"District Code",A88),0)*0 -> 0 | P88: 285840 | Q88: 0 | R88: 285840 | T88: 0 | U88: 285840 | W88: =IFERROR(VLOOKUP($A88,'Allocation 2023-24 Final'!$B$7:$S$312,18,FALSE),0) -> 0 | Y88: 285840 | Z88: 0 | AA88: 32 | AB88: 0 | AD88: 27402 | AE88: FRANKLIN PIERCE
A89: 32358 | B89: FREEMAN | C89: 0 | D89: 0 | E89: =IFERROR(VLOOKUP(A89,'22-23 DOE Formula counts'!$D$8:$T$325,10,FALSE),0) -> 910 | F89: =ROUND(E89/$E$5*Assumptions!$E$14*Assumptions!$E$29,0) -> 4853 | G89: =IFERROR(VLOOKUP(A89,'22-23 DOE Formula counts'!$D$8:$T$325,4,FALSE),0) -> 49 | H89: =ROUND(G89/$G$5*+Assumptions!$E$14*Assumptions!$E$30,0) -> 10640 | J89: 15493 | L89: 0 | M89: =IFERROR(VLOOKUP(A89,[1]ENROLLMENT!$A$5:$B$349,2,FALSE),0)*0 -> 0 | N89: =IFERROR(GETPIVOTDATA("Total W/O Preschool",'[1]Private 19-20'!$O$3,"District Code",A89),0)*0 -> 0 | P89: 15493 | Q89: 0 | R89: 15493 | T89: 0 | U89: 15493 | W89: =IFERROR(VLOOKUP($A89,'Allocation 2023-24 Final'!$B$7:$S$312,18,FALSE),0) -> 0 | Y89: 15493 | Z89: 0 | AA89: 199 | AB89: 0 | AD89: 32358 | AE89: FREEMAN
A90: 38302 | B90: GARFIELD | C90: 0 | D90: 0 | E90: =IFERROR(VLOOKUP(A90,'22-23 DOE Formula counts'!$D$8:$T$325,10,FALSE),0) -> 133 | F90: =ROUND(E90/$E$5*Assumptions!$E$14*Assumptions!$E$29,0) -> 709 | G90: =IFERROR(VLOOKUP(A90,'22-23 DOE Formula counts'!$D$8:$T$325,4,FALSE),0) -> 27 | H90: =ROUND(G90/$G$5*+Assumptions!$E$14*Assumptions!$E$30,0) -> 5863 | J90: 6572 | L90: 0 | M90: =IFERROR(VLOOKUP(A90,[1]ENROLLMENT!$A$5:$B$349,2,FALSE),0)*0 -> 0 | N90: =IFERROR(GETPIVOTDATA("Total W/O Preschool",'[1]Private 19-20'!$O$3,"District Code",A90),0)*0 -> 0 | P90: 6572 | Q90: 0 | R90: 6572 | T90: 0 | U90: 6572 | W90: =IFERROR(VLOOKUP($A90,'Allocation 2023-24 Final'!$B$7:$S$312,18,FALSE),0) -> 0 | Y90: 6572 | Z90: 0 | AA90: 252 | AB90: 0 | AD90: 38302 | AE90: GARFIELD
A91: 20401 | B91: GLENWOOD | C91: 0 | D91: 0 | E91: =IFERROR(VLOOKUP(A91,'22-23 DOE Formula counts'!$D$8:$T$325,10,FALSE),0) -> 61 | F91: =ROUND(E91/$E$5*Assumptions!$E$14*Assumptions!$E$29,0) -> 325 | G91: =IFERROR(VLOOKUP(A91,'22-23 DOE Formula counts'!$D$8:$T$325,4,FALSE),0) -> 9 | H91: =ROUND(G91/$G$5*+Assumptions!$E$14*Assumptions!$E$30,0) -> 1954 | J91: 2279 | L91: 0 | M91: =IFERROR(VLOOKUP(A91,[1]ENROLLMENT!$A$5:$B$349,2,FALSE),0)*0 -> 0 | N91: =IFERROR(GETPIVOTDATA("Total W/O Preschool",'[1]Private 19-20'!$O$3,"District Code",A91),0)*0 -> 0 | P91: 2279 | Q91: 0 | R91: 2279 | T91: 0 | U91: 2279 | W91: =IFERROR(VLOOKUP($A91,'Allocation 2023-24 Final'!$B$7:$S$312,18,FALSE),0) -> 0 | Y91: 2279 | Z91: 0 | AA91: 298 | AB91: 0 | AD91: 20401 | AE91: GLENWOOD
A92: 20404 | B92: GOLDENDALE | C92: 0 | D92: 0 | E92: =IFERROR(VLOOKUP(A92,'22-23 DOE Formula counts'!$D$8:$T$325,10,FALSE),0) -> 1074 | F92: =ROUND(E92/$E$5*Assumptions!$E$14*Assumptions!$E$29,0) -> 5728 | G92: =IFERROR(VLOOKUP(A92,'22-23 DOE Formula counts'!$D$8:$T$325,4,FALSE),0) -> 209 | H92: =ROUND(G92/$G$5*+Assumptions!$E$14*Assumptions!$E$30,0) -> 45384 | J92: 51112 | L92: 0 | M92: =IFERROR(VLOOKUP(A92,[1]ENROLLMENT!$A$5:$B$349,2,FALSE),0)*0 -> 0 | N92: =IFERROR(GETPIVOTDATA("Total W/O Preschool",'[1]Private 19-20'!$O$3,"District Code",A92),0)*0 -> 0 | P92: 51112 | Q92: 0 | R92: 51112 | T92: 0 | U92: 51112 | W92: =IFERROR(VLOOKUP($A92,'Allocation 2023-24 Final'!$B$7:$S$312,18,FALSE),0) -> 0 | Y92: 51112 | Z92: 0 | AA92: 125 | AB92: 0 | AD92: 20404 | AE92: GOLDENDALE
A93: 13301 | B93: GRAND COULEE | C93: 0 | D93: 0 | E93: =IFERROR(VLOOKUP(A93,'22-23 DOE Formula counts'!$D$8:$T$325,10,FALSE),0) -> 645 | F93: =ROUND(E93/$E$5*Assumptions!$E$14*Assumptions!$E$29,0) -> 3440 | G93: =IFERROR(VLOOKUP(A93,'22-23 DOE Formula counts'!$D$8:$T$325,4,FALSE),0) -> 100 | H93: =ROUND(G93/$G$5*+Assumptions!$E$14*Assumptions!$E$30,0) -> 21715 | J93: 25155 | L93: 0 | M93: =IFERROR(VLOOKUP(A93,[1]ENROLLMENT!$A$5:$B$349,2,FALSE),0)*0 -> 0 | N93: =IFERROR(GETPIVOTDATA("Total W/O Preschool",'[1]Private 19-20'!$O$3,"District Code",A93),0)*0 -> 0 | P93: 25155 | Q93: 0 | R93: 25155 | T93: 0 | U93: 25155 | W93: =IFERROR(VLOOKUP($A93,'Allocation 2023-24 Final'!$B$7:$S$312,18,FALSE),0) -> 0 | Y93: 25155 | Z93: 0 | AA93: 176 | AB93: 0 | AD93: 13301 | AE93: GRAND COULEE
A94: 39200 | B94: GRANDVIEW | C94: 0 | D94: 0 | E94: =IFERROR(VLOOKUP(A94,'22-23 DOE Formula counts'!$D$8:$T$325,10,FALSE),0) -> 3825 | F94: =ROUND(E94/$E$5*Assumptions!$E$14*Assumptions!$E$29,0) -> 20400 | G94: =IFERROR(VLOOKUP(A94,'22-23 DOE Formula counts'!$D$8:$T$325,4,FALSE),0) -> 570 | H94: =ROUND(G94/$G$5*+Assumptions!$E$14*Assumptions!$E$30,0) -> 123775 | J94: 144175 | L94: 0 | M94: =IFERROR(VLOOKUP(A94,[1]ENROLLMENT!$A$5:$B$349,2,FALSE),0)*0 -> 0 | N94: =IFERROR(GETPIVOTDATA("Total W/O Preschool",'[1]Private 19-20'!$O$3,"District Code",A94),0)*0 -> 0 | P94: 144175 | Q94: 0 | R94: 144175 | T94: 0 | U94: 144175 | W94: =IFERROR(VLOOKUP($A94,'Allocation 2023-24 Final'!$B$7:$S$312,18,FALSE),0) -> 0 | Y94: 144175 | Z94: 0 | AA94: 62 | AB94: 0 | AD94: 39200 | AE94: GRANDVIEW
A95: 39204 | B95: GRANGER | C95: 0 | D95: 0 | E95: =IFERROR(VLOOKUP(A95,'22-23 DOE Formula counts'!$D$8:$T$325,10,FALSE),0) -> 1630 | F95: =ROUND(E95/$E$5*Assumptions!$E$14*Assumptions!$E$29,0) -> 8693 | G95: =IFERROR(VLOOKUP(A95,'22-23 DOE Formula counts'!$D$8:$T$325,4,FALSE),0) -> 369 | H95: =ROUND(G95/$G$5*+Assumptions!$E$14*Assumptions!$E$30,0) -> 80128 | J95: 88821 | L95: 0 | M95: =IFERROR(VLOOKUP(A95,[1]ENROLLMENT!$A$5:$B$349,2,FALSE),0)*0 -> 0 | N95: =IFERROR(GETPIVOTDATA("Total W/O Preschool",'[1]Private 19-20'!$O$3,"District Code",A95),0)*0 -> 0 | P95: 88821 | Q95: 0 | R95: 88821 | T95: 0 | U95: 88821 | W95: =IFERROR(VLOOKUP($A95,'Allocation 2023-24 Final'!$B$7:$S$312,18,FALSE),0) -> 0 | Y95: 88821 | Z95: 0 | AA95: 89 | AB95: 0 | AD95: 39204 | AE95: GRANGER
A96: 31332 | B96: GRANITE FALLS | C96: 0 | D96: 0 | E96: =IFERROR(VLOOKUP(A96,'22-23 DOE Formula counts'!$D$8:$T$325,10,FALSE),0) -> 2711 | F96: =ROUND(E96/$E$5*Assumptions!$E$14*Assumptions!$E$29,0) -> 14459 | G96: =IFERROR(VLOOKUP(A96,'22-23 DOE Formula counts'!$D$8:$T$325,4,FALSE),0) -> 190 | H96: =ROUND(G96/$G$5*+Assumptions!$E$14*Assumptions!$E$30,0) -> 41258 | J96: 55717 | L96: 0 | M96: =IFERROR(VLOOKUP(A96,[1]ENROLLMENT!$A$5:$B$349,2,FALSE),0)*0 -> 0 | N96: =IFERROR(GETPIVOTDATA("Total W/O Preschool",'[1]Private 19-20'!$O$3,"District Code",A96),0)*0 -> 0 | P96: 55717 | Q96: 0 | R96: 55717 | T96: 0 | U96: 55717 | W96: =IFERROR(VLOOKUP($A96,'Allocation 2023-24 Final'!$B$7:$S$312,18,FALSE),0) -> 0 | Y96: 55717 | Z96: 0 | AA96: 120 | AB96: 0 | AD96: 31332 | AE96: GRANITE FALLS
A97: 23054 | B97: GRAPEVIEW | C97: 0 | D97: 0 | E97: =IFERROR(VLOOKUP(A97,'22-23 DOE Formula counts'!$D$8:$T$325,10,FALSE),0) -> 316 | F97: =ROUND(E97/$E$5*Assumptions!$E$14*Assumptions!$E$29,0) -> 1685 | G97: =IFERROR(VLOOKUP(A97,'22-23 DOE Formula counts'!$D$8:$T$325,4,FALSE),0) -> 31 | H97: =ROUND(G97/$G$5*+Assumptions!$E$14*Assumptions!$E$30,0) -> 6732 | J97: 8417 | L97: 0 | M97: =IFERROR(VLOOKUP(A97,[1]ENROLLMENT!$A$5:$B$349,2,FALSE),0)*0 -> 0 | N97: =IFERROR(GETPIVOTDATA("Total W/O Preschool",'[1]Private 19-20'!$O$3,"District Code",A97),0)*0 -> 0 | P97: 8417 | Q97: 0 | R97: 8417 | T97: 0 | U97: 8417 | W97: =IFERROR(VLOOKUP($A97,'Allocation 2023-24 Final'!$B$7:$S$312,18,FALSE),0) -> 0 | Y97: 8417 | Z97: 0 | AA97: 239 | AB97: 0 | AD97: 23054 | AE97: GRAPEVIEW
A98: 32312 | B98: GREAT NORTHERN | C98: 0 | D98: 0 | E98: =IFERROR(VLOOKUP(A98,'22-23 DOE Formula counts'!$D$8:$T$325,10,FALSE),0) -> 136 | F98: =ROUND(E98/$E$5*Assumptions!$E$14*Assumptions!$E$29,0) -> 725 | G98: =IFERROR(VLOOKUP(A98,'22-23 DOE Formula counts'!$D$8:$T$325,4,FALSE),0) -> 30 | H98: =ROUND(G98/$G$5*+Assumptions!$E$14*Assumptions!$E$30,0) -> 6514 | J98: 7239 | L98: 0 | M98: =IFERROR(VLOOKUP(A98,[1]ENROLLMENT!$A$5:$B$349,2,FALSE),0)*0 -> 0 | N98: =IFERROR(GETPIVOTDATA("Total W/O Preschool",'[1]Private 19-20'!$O$3,"District Code",A98),0)*0 -> 0 | P98: 7239 | Q98: 0 | R98: 7239 | T98: 0 | U98: 7239 | W98: =IFERROR(VLOOKUP($A98,'Allocation 2023-24 Final'!$B$7:$S$312,18,FALSE),0) -> 0 | Y98: 7239 | Z98: 0 | AA98: 249 | AB98: 0 | AD98: 32312 | AE98: GREAT NORTHERN
A99: 17910 | B99: RAINIER VALLEY CHARTER | C99: 0 | D99: 0 | E99: =IFERROR(VLOOKUP(A99,'22-23 DOE Formula counts'!$D$8:$T$325,10,FALSE),0) -> 534.9325541 | F99: =ROUND(E99/$E$5*Assumptions!$E$14*Assumptions!$E$29,0) -> 2853 | G99: =IFERROR(VLOOKUP(A99,'22-23 DOE Formula counts'!$D$8:$T$325,4,FALSE),0) -> 38.43111707 | H99: =ROUND(G99/$G$5*+Assumptions!$E$14*Assumptions!$E$30,0) -> 8345 | J99: 11198 | L99: 0 | M99: =IFERROR(VLOOKUP(A99,[1]ENROLLMENT!$A$5:$B$349,2,FALSE),0)*0 -> 0 | N99: =IFERROR(GETPIVOTDATA("Total W/O Preschool",'[1]Private 19-20'!$O$3,"District Code",A99),0)*0 -> 0 | P99: 11198 | Q99: 0 | R99: 11198 | T99: 0 | U99: 11198 | W99: =IFERROR(VLOOKUP($A99,'Allocation 2023-24 Final'!$B$7:$S$312,18,FALSE),0) -> 0 | Y99: 11198 | Z99: 0 | AA99: 227 | AB99: 0 | AD99: 17910 | AE99: RAINIER VALLEY CHARTER
A100: 06103 | B100: GREEN MOUNTAIN | C100: 0 | D100: 0 | E100: =IFERROR(VLOOKUP(A100,'22-23 DOE Formula counts'!$D$8:$T$325,10,FALSE),0) -> 180 | F100: =ROUND(E100/$E$5*Assumptions!$E$14*Assumptions!$E$29,0) -> 960 | G100: =IFERROR(VLOOKUP(A100,'22-23 DOE Formula counts'!$D$8:$T$325,4,FALSE),0) -> 12 | H100: =ROUND(G100/$G$5*+Assumptions!$E$14*Assumptions!$E$30,0) -> 2606 | J100: 3566 | L100: 0 | M100: =IFERROR(VLOOKUP(A100,[1]ENROLLMENT!$A$5:$B$349,2,FALSE),0)*0 -> 0 | N100: =IFERROR(GETPIVOTDATA("Total W/O Preschool",'[1]Private 19-20'!$O$3,"District Code",A100),0)*0 -> 0 | P100: 3566 | Q100: 0 | R100: 3566 | T100: 0 | U100: 3566 | W100: =IFERROR(VLOOKUP($A100,'Allocation 2023-24 Final'!$B$7:$S$312,18,FALSE),0) -> 0 | Y100: 3566 | Z100: 0 | AA100: 275 | AB100: 0 | AD100: 06103 | AE100: GREEN MOUNTAIN
A101: 34324 | B101: GRIFFIN | C101: 0 | D101: 0 | E101: =IFERROR(VLOOKUP(A101,'22-23 DOE Formula counts'!$D$8:$T$325,10,FALSE),0) -> 953 | F101: =ROUND(E101/$E$5*Assumptions!$E$14*Assumptions!$E$29,0) -> 5083 | G101: =IFERROR(VLOOKUP(A101,'22-23 DOE Formula counts'!$D$8:$T$325,4,FALSE),0) -> 47 | H101: =ROUND(G101/$G$5*+Assumptions!$E$14*Assumptions!$E$30,0) -> 10206 | J101: 15289 | L101: 0 | M101: =IFERROR(VLOOKUP(A101,[1]ENROLLMENT!$A$5:$B$349,2,FALSE),0)*0 -> 0 | N101: =IFERROR(GETPIVOTDATA("Total W/O Preschool",'[1]Private 19-20'!$O$3,"District Code",A101),0)*0 -> 0 | P101: 15289 | Q101: 0 | R101: 15289 | T101: 0 | U101: 15289 | W101: =IFERROR(VLOOKUP($A101,'Allocation 2023-24 Final'!$B$7:$S$312,18,FALSE),0) -> 0 | Y101: 15289 | Z101: 0 | AA101: 203 | AB101: 0 | AD101: 34324 | AE101: GRIFFIN
A102: 22204 | B102: HARRINGTON | C102: 0 | D102: 0 | E102: =IFERROR(VLOOKUP(A102,'22-23 DOE Formula counts'!$D$8:$T$325,10,FALSE),0) -> 128 | F102: =ROUND(E102/$E$5*Assumptions!$E$14*Assumptions!$E$29,0) -> 683 | G102: =IFERROR(VLOOKUP(A102,'22-23 DOE Formula counts'!$D$8:$T$325,4,FALSE),0) -> 31 | H102: =ROUND(G102/$G$5*+Assumptions!$E$14*Assumptions!$E$30,0) -> 6732 | J102: 7415 | L102: 0 | M102: =IFERROR(VLOOKUP(A102,[1]ENROLLMENT!$A$5:$B$349,2,FALSE),0)*0 -> 0 | N102: =IFERROR(GETPIVOTDATA("Total W/O Preschool",'[1]Private 19-20'!$O$3,"District Code",A102),0)*0 -> 0 | P102: 7415 | Q102: 0 | R102: 7415 | T102: 0 | U102: 7415 | W102: =IFERROR(VLOOKUP($A102,'Allocation 2023-24 Final'!$B$7:$S$312,18,FALSE),0) -> 0 | Y102: 7415 | Z102: 0 | AA102: 248 | AB102: 0 | AD102: 22204 | AE102: HARRINGTON
A103: 39203 | B103: HIGHLAND | C103: 0 | D103: 0 | E103: =IFERROR(VLOOKUP(A103,'22-23 DOE Formula counts'!$D$8:$T$325,10,FALSE),0) -> 1331 | F103: =ROUND(E103/$E$5*Assumptions!$E$14*Assumptions!$E$29,0) -> 7099 | G103: =IFERROR(VLOOKUP(A103,'22-23 DOE Formula counts'!$D$8:$T$325,4,FALSE),0) -> 146 | H103: =ROUND(G103/$G$5*+Assumptions!$E$14*Assumptions!$E$30,0) -> 31704 | J103: 38803 | L103: 0 | M103: =IFERROR(VLOOKUP(A103,[1]ENROLLMENT!$A$5:$B$349,2,FALSE),0)*0 -> 0 | N103: =IFERROR(GETPIVOTDATA("Total W/O Preschool",'[1]Private 19-20'!$O$3,"District Code",A103),0)*0 -> 0 | P103: 38803 | Q103: 0 | R103: 38803 | T103: 0 | U103: 38803 | W103: =IFERROR(VLOOKUP($A103,'Allocation 2023-24 Final'!$B$7:$S$312,18,FALSE),0) -> 0 | Y103: 38803 | Z103: 0 | AA103: 144 | AB103: 0 | AD103: 39203 | AE103: HIGHLAND
A104: 17401 | B104: HIGHLINE | C104: 0 | D104: 0 | E104: =IFERROR(VLOOKUP(A104,'22-23 DOE Formula counts'!$D$8:$T$325,10,FALSE),0) -> 21530.28626 | F104: =ROUND(E104/$E$5*Assumptions!$E$14*Assumptions!$E$29,0) -> 114829 | G104: =IFERROR(VLOOKUP(A104,'22-23 DOE Formula counts'!$D$8:$T$325,4,FALSE),0) -> 2863.235806 | H104: =ROUND(G104/$G$5*+Assumptions!$E$14*Assumptions!$E$30,0) -> 621752 | J104: 736581 | L104: 0 | M104: =IFERROR(VLOOKUP(A104,[1]ENROLLMENT!$A$5:$B$349,2,FALSE),0)*0 -> 0 | N104: =IFERROR(GETPIVOTDATA("Total W/O Preschool",'[1]Private 19-20'!$O$3,"District Code",A104),0)*0 -> 0 | P104: 736581 | Q104: 0 | R104: 736581 | T104: 0 | U104: 736581 | W104: =IFERROR(VLOOKUP($A104,'Allocation 2023-24 Final'!$B$7:$S$312,18,FALSE),0) -> 0 | Y104: 736581 | Z104: 0 | AA104: 9 | AB104: 0 | AD104: 17401 | AE104: HIGHLINE
A105: 06098 | B105: HOCKINSON | C105: 0 | D105: 0 | E105: =IFERROR(VLOOKUP(A105,'22-23 DOE Formula counts'!$D$8:$T$325,10,FALSE),0) -> 2101 | F105: =ROUND(E105/$E$5*Assumptions!$E$14*Assumptions!$E$29,0) -> 11205 | G105: =IFERROR(VLOOKUP(A105,'22-23 DOE Formula counts'!$D$8:$T$325,4,FALSE),0) -> 108 | H105: =ROUND(G105/$G$5*+Assumptions!$E$14*Assumptions!$E$30,0) -> 23452 | J105: 34657 | L105: 0 | M105: =IFERROR(VLOOKUP(A105,[1]ENROLLMENT!$A$5:$B$349,2,FALSE),0)*0 -> 0 | N105: =IFERROR(GETPIVOTDATA("Total W/O Preschool",'[1]Private 19-20'!$O$3,"District Code",A105),0)*0 -> 0 | P105: 34657 | Q105: 0 | R105: 34657 | T105: 0 | U105: 34657 | W105: =IFERROR(VLOOKUP($A105,'Allocation 2023-24 Final'!$B$7:$S$312,18,FALSE),0) -> 0 | Y105: 34657 | Z105: 0 | AA105: 154 | AB105: 0 | AD105: 06098 | AE105: HOCKINSON
A106: 23404 | B106: HOOD CANAL | C106: 0 | D106: 0 | E106: =IFERROR(VLOOKUP(A106,'22-23 DOE Formula counts'!$D$8:$T$325,10,FALSE),0) -> 722 | F106: =ROUND(E106/$E$5*Assumptions!$E$14*Assumptions!$E$29,0) -> 3851 | G106: =IFERROR(VLOOKUP(A106,'22-23 DOE Formula counts'!$D$8:$T$325,4,FALSE),0) -> 112 | H106: =ROUND(G106/$G$5*+Assumptions!$E$14*Assumptions!$E$30,0) -> 24321 | J106: 28172 | L106: 0 | M106: =IFERROR(VLOOKUP(A106,[1]ENROLLMENT!$A$5:$B$349,2,FALSE),0)*0 -> 0 | N106: =IFERROR(GETPIVOTDATA("Total W/O Preschool",'[1]Private 19-20'!$O$3,"District Code",A106),0)*0 -> 0 | P106: 28172 | Q106: 0 | R106: 28172 | T106: 0 | U106: 28172 | W106: =IFERROR(VLOOKUP($A106,'Allocation 2023-24 Final'!$B$7:$S$312,18,FALSE),0) -> 0 | Y106: 28172 | Z106: 0 | AA106: 170 | AB106: 0 | AD106: 23404 | AE106: HOOD CANAL
A107: 14028 | B107: HOQUIAM | C107: 0 | D107: 0 | E107: =IFERROR(VLOOKUP(A107,'22-23 DOE Formula counts'!$D$8:$T$325,10,FALSE),0) -> 1841 | F107: =ROUND(E107/$E$5*Assumptions!$E$14*Assumptions!$E$29,0) -> 9819 | G107: =IFERROR(VLOOKUP(A107,'22-23 DOE Formula counts'!$D$8:$T$325,4,FALSE),0) -> 325 | H107: =ROUND(G107/$G$5*+Assumptions!$E$14*Assumptions!$E$30,0) -> 70574 | J107: 80393 | L107: 0 | M107: =IFERROR(VLOOKUP(A107,[1]ENROLLMENT!$A$5:$B$349,2,FALSE),0)*0 -> 0 | N107: =IFERROR(GETPIVOTDATA("Total W/O Preschool",'[1]Private 19-20'!$O$3,"District Code",A107),0)*0 -> 0 | P107: 80393 | Q107: 0 | R107: 80393 | T107: 0 | U107: 80393 | W107: =IFERROR(VLOOKUP($A107,'Allocation 2023-24 Final'!$B$7:$S$312,18,FALSE),0) -> 0 | Y107: 80393 | Z107: 0 | AA107: 93 | AB107: 0 | AD107: 14028 | AE107: HOQUIAM
A108: 27902 | B108: IMPACT COMMENCEMENT BAY CHARTER | C108: 0 | D108: 0 | E108: =IFERROR(VLOOKUP(A108,'22-23 DOE Formula counts'!$D$8:$T$325,10,FALSE),0) -> 338.5527671 | F108: =ROUND(E108/$E$5*Assumptions!$E$14*Assumptions!$E$29,0) -> 1806 | G108: =IFERROR(VLOOKUP(A108,'22-23 DOE Formula counts'!$D$8:$T$325,4,FALSE),0) -> 36.64092664 | H108: =ROUND(G108/$G$5*+Assumptions!$E$14*Assumptions!$E$30,0) -> 7957 | J108: 9763 | L108: 0 | M108: =IFERROR(VLOOKUP(A108,[1]ENROLLMENT!$A$5:$B$349,2,FALSE),0)*0 -> 0 | N108: =IFERROR(GETPIVOTDATA("Total W/O Preschool",'[1]Private 19-20'!$O$3,"District Code",A108),0)*0 -> 0 | P108: 9763 | Q108: 0 | R108: 9763 | T108: 0 | U108: 9763 | W108: =IFERROR(VLOOKUP($A108,'Allocation 2023-24 Final'!$B$7:$S$312,18,FALSE),0) -> 0 | Y108: 9763 | Z108: 0 | AA108: 235 | AB108: 0 | AD108: 27902 | AE108: IMPACT COMMENCEMENT BAY CHARTER
A109: 17911 | B109: IMPACT PUGET SOUND CHARTER | C109: 0 | D109: 0 | E109: =IFERROR(VLOOKUP(A109,'22-23 DOE Formula counts'!$D$8:$T$325,10,FALSE),0) -> 490.179935 | F109: =ROUND(E109/$E$5*Assumptions!$E$14*Assumptions!$E$29,0) -> 2614 | G109: =IFERROR(VLOOKUP(A109,'22-23 DOE Formula counts'!$D$8:$T$325,4,FALSE),0) -> 101.3204712 | H109: =ROUND(G109/$G$5*+Assumptions!$E$14*Assumptions!$E$30,0) -> 22002 | J109: 24616 | L109: 0 | M109: =IFERROR(VLOOKUP(A109,[1]ENROLLMENT!$A$5:$B$349,2,FALSE),0)*0 -> 0 | N109: =IFERROR(GETPIVOTDATA("Total W/O Preschool",'[1]Private 19-20'!$O$3,"District Code",A109),0)*0 -> 0 | P109: 24616 | Q109: 0 | R109: 24616 | T109: 0 | U109: 24616 | W109: =IFERROR(VLOOKUP($A109,'Allocation 2023-24 Final'!$B$7:$S$312,18,FALSE),0) -> 0 | Y109: 24616 | Z109: 0 | AA109: 179 | AB109: 0 | AD109: 17911 | AE109: IMPACT PUGET SOUND CHARTER
A110: 17916 | B110: IMPACT SALISH SEA CHARTER | C110: 0 | D110: 0 | E110: =IFERROR(VLOOKUP(A110,'22-23 DOE Formula counts'!$D$8:$T$325,10,FALSE),0) -> 240.3375305 | F110: =ROUND(E110/$E$5*Assumptions!$E$14*Assumptions!$E$29,0) -> 1282 | G110: =IFERROR(VLOOKUP(A110,'22-23 DOE Formula counts'!$D$8:$T$325,4,FALSE),0) -> 49.67790414 | H110: =ROUND(G110/$G$5*+Assumptions!$E$14*Assumptions!$E$30,0) -> 10788 | J110: 12070 | L110: 0 | M110: =IFERROR(VLOOKUP(A110,[1]ENROLLMENT!$A$5:$B$349,2,FALSE),0)*0 -> 0 | N110: =IFERROR(GETPIVOTDATA("Total W/O Preschool",'[1]Private 19-20'!$O$3,"District Code",A110),0)*0 -> 0 | P110: 12070 | Q110: 0 | R110: 12070 | T110: 0 | U110: 12070 | W110: =IFERROR(VLOOKUP($A110,'Allocation 2023-24 Final'!$B$7:$S$312,18,FALSE),0) -> 0 | Y110: 12070 | Z110: 0 | AA110: 222 | AB110: 0 | AD110: 17916 | AE110: IMPACT SALISH SEA CHARTER
A111: 10070 | B111: INCHELIUM | C111: 0 | D111: 0 | E111: =IFERROR(VLOOKUP(A111,'22-23 DOE Formula counts'!$D$8:$T$325,10,FALSE),0) -> 190 | F111: =ROUND(E111/$E$5*Assumptions!$E$14*Assumptions!$E$29,0) -> 1013 | G111: =IFERROR(VLOOKUP(A111,'22-23 DOE Formula counts'!$D$8:$T$325,4,FALSE),0) -> 47 | H111: =ROUND(G111/$G$5*+Assumptions!$E$14*Assumptions!$E$30,0) -> 10206 | J111: 11219 | L111: 0 | M111: =IFERROR(VLOOKUP(A111,[1]ENROLLMENT!$A$5:$B$349,2,FALSE),0)*0 -> 0 | N111: =IFERROR(GETPIVOTDATA("Total W/O Preschool",'[1]Private 19-20'!$O$3,"District Code",A111),0)*0 -> 0 | P111: 11219 | Q111: 0 | R111: 11219 | T111: 0 | U111: 11219 | W111: =IFERROR(VLOOKUP($A111,'Allocation 2023-24 Final'!$B$7:$S$312,18,FALSE),0) -> 0 | Y111: 11219 | Z111: 0 | AA111: 225 | AB111: 0 | AD111: 10070 | AE111: INCHELIUM
A112: 31063 | B112: INDEX | C112: 0 | D112: 0 | E112: =IFERROR(VLOOKUP(A112,'22-23 DOE Formula counts'!$D$8:$T$325,10,FALSE),0) -> 43 | F112: =ROUND(E112/$E$5*Assumptions!$E$14*Assumptions!$E$29,0) -> 229 | G112: =IFERROR(VLOOKUP(A112,'22-23 DOE Formula counts'!$D$8:$T$325,4,FALSE),0) -> 12 | H112: =ROUND(G112/$G$5*+Assumptions!$E$14*Assumptions!$E$30,0) -> 2606 | J112: 2835 | L112: 0 | M112: =IFERROR(VLOOKUP(A112,[1]ENROLLMENT!$A$5:$B$349,2,FALSE),0)*0 -> 0 | N112: =IFERROR(GETPIVOTDATA("Total W/O Preschool",'[1]Private 19-20'!$O$3,"District Code",A112),0)*0 -> 0 | P112: 2835 | Q112: 0 | R112: 2835 | T112: 0 | U112: 2835 | W112: =IFERROR(VLOOKUP($A112,'Allocation 2023-24 Final'!$B$7:$S$312,18,FALSE),0) -> 0 | Y112: 2835 | Z112: 0 | AA112: 286 | AB112: 0 | AD112: 31063 | AE112: INDEX
A113: 17411 | B113: ISSAQUAH | C113: 0 | D113: 0 | E113: =IFERROR(VLOOKUP(A113,'22-23 DOE Formula counts'!$D$8:$T$325,10,FALSE),0) -> 22118 | F113: =ROUND(E113/$E$5*Assumptions!$E$14*Assumptions!$E$29,0) -> 117963 | G113: =IFERROR(VLOOKUP(A113,'22-23 DOE Formula counts'!$D$8:$T$325,4,FALSE),0) -> 728 | H113: =ROUND(G113/$G$5*+Assumptions!$E$14*Assumptions!$E$30,0) -> 158085 | J113: 276048 | L113: 0 | M113: =IFERROR(VLOOKUP(A113,[1]ENROLLMENT!$A$5:$B$349,2,FALSE),0)*0 -> 0 | N113: =IFERROR(GETPIVOTDATA("Total W/O Preschool",'[1]Private 19-20'!$O$3,"District Code",A113),0)*0 -> 0 | P113: 276048 | Q113: 0 | R113: 276048 | T113: 0 | U113: 276048 | W113: =IFERROR(VLOOKUP($A113,'Allocation 2023-24 Final'!$B$7:$S$312,18,FALSE),0) -> 0 | Y113: 276048 | Z113: 0 | AA113: 34 | AB113: 0 | AD113: 17411 | AE113: ISSAQUAH
A114: 11056 | B114: KAHLOTUS | C114: 0 | D114: 0 | E114: =IFERROR(VLOOKUP(A114,'22-23 DOE Formula counts'!$D$8:$T$325,10,FALSE),0) -> 90 | F114: =ROUND(E114/$E$5*Assumptions!$E$14*Assumptions!$E$29,0) -> 480 | G114: =IFERROR(VLOOKUP(A114,'22-23 DOE Formula counts'!$D$8:$T$325,4,FALSE),0) -> 10 | H114: =ROUND(G114/$G$5*+Assumptions!$E$14*Assumptions!$E$30,0) -> 2171 | J114: 2651 | L114: 0 | M114: =IFERROR(VLOOKUP(A114,[1]ENROLLMENT!$A$5:$B$349,2,FALSE),0)*0 -> 0 | N114: =IFERROR(GETPIVOTDATA("Total W/O Preschool",'[1]Private 19-20'!$O$3,"District Code",A114),0)*0 -> 0 | P114: 2651 | Q114: 0 | R114: 2651 | T114: 0 | U114: 2651 | W114: =IFERROR(VLOOKUP($A114,'Allocation 2023-24 Final'!$B$7:$S$312,18,FALSE),0) -> 0 | Y114: 2651 | Z114: 0 | AA114: 291 | AB114: 0 | AD114: 11056 | AE114: KAHLOTUS
A115: 08402 | B115: KALAMA | C115: 0 | D115: 0 | E115: =IFERROR(VLOOKUP(A115,'22-23 DOE Formula counts'!$D$8:$T$325,10,FALSE),0) -> 1155 | F115: =ROUND(E115/$E$5*Assumptions!$E$14*Assumptions!$E$29,0) -> 6160 | G115: =IFERROR(VLOOKUP(A115,'22-23 DOE Formula counts'!$D$8:$T$325,4,FALSE),0) -> 95 | H115: =ROUND(G115/$G$5*+Assumptions!$E$14*Assumptions!$E$30,0) -> 20629 | J115: 26789 | L115: 0 | M115: =IFERROR(VLOOKUP(A115,[1]ENROLLMENT!$A$5:$B$349,2,FALSE),0)*0 -> 0 | N115: =IFERROR(GETPIVOTDATA("Total W/O Preschool",'[1]Private 19-20'!$O$3,"District Code",A115),0)*0 -> 0 | P115: 26789 | Q115: 0 | R115: 26789 | T115: 0 | U115: 26789 | W115: =IFERROR(VLOOKUP($A115,'Allocation 2023-24 Final'!$B$7:$S$312,18,FALSE),0) -> 0 | Y115: 26789 | Z115: 0 | AA115: 172 | AB115: 0 | AD115: 08402 | AE115: KALAMA
A116: 10003 | B116: KELLER | C116: 0 | D116: 0 | E116: =IFERROR(VLOOKUP(A116,'22-23 DOE Formula counts'!$D$8:$T$325,10,FALSE),0) -> 73 | F116: =ROUND(E116/$E$5*Assumptions!$E$14*Assumptions!$E$29,0) -> 389 | G116: =IFERROR(VLOOKUP(A116,'22-23 DOE Formula counts'!$D$8:$T$325,4,FALSE),0) -> 24 | H116: =ROUND(G116/$G$5*+Assumptions!$E$14*Assumptions!$E$30,0) -> 5212 | J116: 5601 | L116: 0 | M116: =IFERROR(VLOOKUP(A116,[1]ENROLLMENT!$A$5:$B$349,2,FALSE),0)*0 -> 0 | N116: =IFERROR(GETPIVOTDATA("Total W/O Preschool",'[1]Private 19-20'!$O$3,"District Code",A116),0)*0 -> 0 | P116: 5601 | Q116: 0 | R116: 5601 | T116: 0 | U116: 5601 | W116: =IFERROR(VLOOKUP($A116,'Allocation 2023-24 Final'!$B$7:$S$312,18,FALSE),0) -> 0 | Y116: 5601 | Z116: 0 | AA116: 259 | AB116: 0 | AD116: 10003 | AE116: KELLER
A117: 08458 | B117: KELSO | C117: 0 | D117: 0 | E117: =IFERROR(VLOOKUP(A117,'22-23 DOE Formula counts'!$D$8:$T$325,10,FALSE),0) -> 5505 | F117: =ROUND(E117/$E$5*Assumptions!$E$14*Assumptions!$E$29,0) -> 29360 | G117: =IFERROR(VLOOKUP(A117,'22-23 DOE Formula counts'!$D$8:$T$325,4,FALSE),0) -> 747 | H117: =ROUND(G117/$G$5*+Assumptions!$E$14*Assumptions!$E$30,0) -> 162211 | J117: 191571 | L117: 0 | M117: =IFERROR(VLOOKUP(A117,[1]ENROLLMENT!$A$5:$B$349,2,FALSE),0)*0 -> 0 | N117: =IFERROR(GETPIVOTDATA("Total W/O Preschool",'[1]Private 19-20'!$O$3,"District Code",A117),0)*0 -> 0 | P117: 191571 | Q117: 0 | R117: 191571 | T117: 0 | U117: 191571 | W117: =IFERROR(VLOOKUP($A117,'Allocation 2023-24 Final'!$B$7:$S$312,18,FALSE),0) -> 0 | Y117: 191571 | Z117: 0 | AA117: 42 | AB117: 0 | AD117: 08458 | AE117: KELSO
A118: 03017 | B118: KENNEWICK | C118: 0 | D118: 0 | E118: =IFERROR(VLOOKUP(A118,'22-23 DOE Formula counts'!$D$8:$T$325,10,FALSE),0) -> 19859 | F118: =ROUND(E118/$E$5*Assumptions!$E$14*Assumptions!$E$29,0) -> 105915 | G118: =IFERROR(VLOOKUP(A118,'22-23 DOE Formula counts'!$D$8:$T$325,4,FALSE),0) -> 2238 | H118: =ROUND(G118/$G$5*+Assumptions!$E$14*Assumptions!$E$30,0) -> 485982 | J118: 591897 | L118: 0 | M118: =IFERROR(VLOOKUP(A118,[1]ENROLLMENT!$A$5:$B$349,2,FALSE),0)*0 -> 0 | N118: =IFERROR(GETPIVOTDATA("Total W/O Preschool",'[1]Private 19-20'!$O$3,"District Code",A118),0)*0 -> 0 | P118: 591897 | Q118: 0 | R118: 591897 | T118: 0 | U118: 591897 | W118: =IFERROR(VLOOKUP($A118,'Allocation 2023-24 Final'!$B$7:$S$312,18,FALSE),0) -> 0 | Y118: 591897 | Z118: 0 | AA118: 11 | AB118: 0 | AD118: 03017 | AE118: KENNEWICK
A119: 17415 | B119: KENT | C119: 0 | D119: 0 | E119: =IFERROR(VLOOKUP(A119,'22-23 DOE Formula counts'!$D$8:$T$325,10,FALSE),0) -> 32968 | F119: =ROUND(E119/$E$5*Assumptions!$E$14*Assumptions!$E$29,0) -> 175830 | G119: =IFERROR(VLOOKUP(A119,'22-23 DOE Formula counts'!$D$8:$T$325,4,FALSE),0) -> 3555 | H119: =ROUND(G119/$G$5*+Assumptions!$E$14*Assumptions!$E$30,0) -> 771968 | J119: 947798 | L119: 0 | M119: =IFERROR(VLOOKUP(A119,[1]ENROLLMENT!$A$5:$B$349,2,FALSE),0)*0 -> 0 | N119: =IFERROR(GETPIVOTDATA("Total W/O Preschool",'[1]Private 19-20'!$O$3,"District Code",A119),0)*0 -> 0 | P119: 947798 | Q119: 0 | R119: 947798 | T119: 0 | U119: 947798 | W119: =IFERROR(VLOOKUP($A119,'Allocation 2023-24 Final'!$B$7:$S$312,18,FALSE),0) -> 0 | Y119: 947798 | Z119: 0 | AA119: 4 | AB119: 0 | AD119: 17415 | AE119: KENT
A120: 33212 | B120: KETTLE FALLS | C120: 0 | D120: 0 | E120: =IFERROR(VLOOKUP(A120,'22-23 DOE Formula counts'!$D$8:$T$325,10,FALSE),0) -> 790 | F120: =ROUND(E120/$E$5*Assumptions!$E$14*Assumptions!$E$29,0) -> 4213 | G120: =IFERROR(VLOOKUP(A120,'22-23 DOE Formula counts'!$D$8:$T$325,4,FALSE),0) -> 155 | H120: =ROUND(G120/$G$5*+Assumptions!$E$14*Assumptions!$E$30,0) -> 33658 | J120: 37871 | L120: 0 | M120: =IFERROR(VLOOKUP(A120,[1]ENROLLMENT!$A$5:$B$349,2,FALSE),0)*0 -> 0 | N120: =IFERROR(GETPIVOTDATA("Total W/O Preschool",'[1]Private 19-20'!$O$3,"District Code",A120),0)*0 -> 0 | P120: 37871 | Q120: 0 | R120: 37871 | T120: 0 | U120: 37871 | W120: =IFERROR(VLOOKUP($A120,'Allocation 2023-24 Final'!$B$7:$S$312,18,FALSE),0) -> 0 | Y120: 37871 | Z120: 0 | AA120: 148 | AB120: 0 | AD120: 33212 | AE120: KETTLE FALLS
A121: 03052 | B121: KIONA-BENTON | C121: 0 | D121: 0 | E121: =IFERROR(VLOOKUP(A121,'22-23 DOE Formula counts'!$D$8:$T$325,10,FALSE),0) -> 1956 | F121: =ROUND(E121/$E$5*Assumptions!$E$14*Assumptions!$E$29,0) -> 10432 | G121: =IFERROR(VLOOKUP(A121,'22-23 DOE Formula counts'!$D$8:$T$325,4,FALSE),0) -> 216 | H121: =ROUND(G121/$G$5*+Assumptions!$E$14*Assumptions!$E$30,0) -> 46904 | J121: 57336 | L121: 0 | M121: =IFERROR(VLOOKUP(A121,[1]ENROLLMENT!$A$5:$B$349,2,FALSE),0)*0 -> 0 | N121: =IFERROR(GETPIVOTDATA("Total W/O Preschool",'[1]Private 19-20'!$O$3,"District Code",A121),0)*0 -> 0 | P121: 57336 | Q121: 0 | R121: 57336 | T121: 0 | U121: 57336 | W121: =IFERROR(VLOOKUP($A121,'Allocation 2023-24 Final'!$B$7:$S$312,18,FALSE),0) -> 0 | Y121: 57336 | Z121: 0 | AA121: 116 | AB121: 0 | AD121: 03052 | AE121: KIONA-BENTON
A122: 19403 | B122: KITTITAS | C122: 0 | D122: 0 | E122: =IFERROR(VLOOKUP(A122,'22-23 DOE Formula counts'!$D$8:$T$325,10,FALSE),0) -> 806 | F122: =ROUND(E122/$E$5*Assumptions!$E$14*Assumptions!$E$29,0) -> 4299 | G122: =IFERROR(VLOOKUP(A122,'22-23 DOE Formula counts'!$D$8:$T$325,4,FALSE),0) -> 59 | H122: =ROUND(G122/$G$5*+Assumptions!$E$14*Assumptions!$E$30,0) -> 12812 | J122: 17111 | L122: 0 | M122: =IFERROR(VLOOKUP(A122,[1]ENROLLMENT!$A$5:$B$349,2,FALSE),0)*0 -> 0 | N122: =IFERROR(GETPIVOTDATA("Total W/O Preschool",'[1]Private 19-20'!$O$3,"District Code",A122),0)*0 -> 0 | P122: 17111 | Q122: 0 | R122: 17111 | T122: 0 | U122: 17111 | W122: =IFERROR(VLOOKUP($A122,'Allocation 2023-24 Final'!$B$7:$S$312,18,FALSE),0) -> 0 | Y122: 17111 | Z122: 0 | AA122: 196 | AB122: 0 | AD122: 19403 | AE122: KITTITAS
A123: 20402 | B123: KLICKITAT | C123: 0 | D123: 0 | E123: =IFERROR(VLOOKUP(A123,'22-23 DOE Formula counts'!$D$8:$T$325,10,FALSE),0) -> 79 | F123: =ROUND(E123/$E$5*Assumptions!$E$14*Assumptions!$E$29,0) -> 421 | G123: =IFERROR(VLOOKUP(A123,'22-23 DOE Formula counts'!$D$8:$T$325,4,FALSE),0) -> 10 | H123: =ROUND(G123/$G$5*+Assumptions!$E$14*Assumptions!$E$30,0) -> 2171 | J123: 2592 | L123: 0 | M123: =IFERROR(VLOOKUP(A123,[1]ENROLLMENT!$A$5:$B$349,2,FALSE),0)*0 -> 0 | N123: =IFERROR(GETPIVOTDATA("Total W/O Preschool",'[1]Private 19-20'!$O$3,"District Code",A123),0)*0 -> 0 | P123: 2592 | Q123: 0 | R123: 2592 | T123: 0 | U123: 2592 | W123: =IFERROR(VLOOKUP($A123,'Allocation 2023-24 Final'!$B$7:$S$312,18,FALSE),0) -> 0 | Y123: 2592 | Z123: 0 | AA123: 293 | AB123: 0 | AD123: 20402 | AE123: KLICKITAT
A124: 06101 | B124: LA CENTER | C124: 0 | D124: 0 | E124: =IFERROR(VLOOKUP(A124,'22-23 DOE Formula counts'!$D$8:$T$325,10,FALSE),0) -> 1851 | F124: =ROUND(E124/$E$5*Assumptions!$E$14*Assumptions!$E$29,0) -> 9872 | G124: =IFERROR(VLOOKUP(A124,'22-23 DOE Formula counts'!$D$8:$T$325,4,FALSE),0) -> 87 | H124: =ROUND(G124/$G$5*+Assumptions!$E$14*Assumptions!$E$30,0) -> 18892 | J124: 28764 | L124: 0 | M124: =IFERROR(VLOOKUP(A124,[1]ENROLLMENT!$A$5:$B$349,2,FALSE),0)*0 -> 0 | N124: =IFERROR(GETPIVOTDATA("Total W/O Preschool",'[1]Private 19-20'!$O$3,"District Code",A124),0)*0 -> 0 | P124: 28764 | Q124: 0 | R124: 28764 | T124: 0 | U124: 28764 | W124: =IFERROR(VLOOKUP($A124,'Allocation 2023-24 Final'!$B$7:$S$312,18,FALSE),0) -> 0 | Y124: 28764 | Z124: 0 | AA124: 168 | AB124: 0 | AD124: 06101 | AE124: LA CENTER
A125: 29311 | B125: LA CONNER | C125: 0 | D125: 0 | E125: =IFERROR(VLOOKUP(A125,'22-23 DOE Formula counts'!$D$8:$T$325,10,FALSE),0) -> 621 | F125: =ROUND(E125/$E$5*Assumptions!$E$14*Assumptions!$E$29,0) -> 3312 | G125: =IFERROR(VLOOKUP(A125,'22-23 DOE Formula counts'!$D$8:$T$325,4,FALSE),0) -> 64 | H125: =ROUND(G125/$G$5*+Assumptions!$E$14*Assumptions!$E$30,0) -> 13898 | J125: 17210 | L125: 0 | M125: =IFERROR(VLOOKUP(A125,[1]ENROLLMENT!$A$5:$B$349,2,FALSE),0)*0 -> 0 | N125: =IFERROR(GETPIVOTDATA("Total W/O Preschool",'[1]Private 19-20'!$O$3,"District Code",A125),0)*0 -> 0 | P125: 17210 | Q125: 0 | R125: 17210 | T125: 0 | U125: 17210 | W125: =IFERROR(VLOOKUP($A125,'Allocation 2023-24 Final'!$B$7:$S$312,18,FALSE),0) -> 0 | Y125: 17210 | Z125: 0 | AA125: 195 | AB125: 0 | AD125: 29311 | AE125: LA CONNER
A126: 38126 | B126: LACROSSE | C126: 0 | D126: 0 | E126: =IFERROR(VLOOKUP(A126,'22-23 DOE Formula counts'!$D$8:$T$325,10,FALSE),0) -> 113 | F126: =ROUND(E126/$E$5*Assumptions!$E$14*Assumptions!$E$29,0) -> 603 | G126: =IFERROR(VLOOKUP(A126,'22-23 DOE Formula counts'!$D$8:$T$325,4,FALSE),0) -> 21 | H126: =ROUND(G126/$G$5*+Assumptions!$E$14*Assumptions!$E$30,0) -> 4560 | J126: 5163 | L126: 0 | M126: =IFERROR(VLOOKUP(A126,[1]ENROLLMENT!$A$5:$B$349,2,FALSE),0)*0 -> 0 | N126: =IFERROR(GETPIVOTDATA("Total W/O Preschool",'[1]Private 19-20'!$O$3,"District Code",A126),0)*0 -> 0 | P126: 5163 | Q126: 0 | R126: 5163 | T126: 0 | U126: 5163 | W126: =IFERROR(VLOOKUP($A126,'Allocation 2023-24 Final'!$B$7:$S$312,18,FALSE),0) -> 0 | Y126: 5163 | Z126: 0 | AA126: 263 | AB126: 0 | AD126: 38126 | AE126: LACROSSE
A127: 04129 | B127: LAKE CHELAN | C127: 0 | D127: 0 | E127: =IFERROR(VLOOKUP(A127,'22-23 DOE Formula counts'!$D$8:$T$325,10,FALSE),0) -> 1258 | F127: =ROUND(E127/$E$5*Assumptions!$E$14*Assumptions!$E$29,0) -> 6709 | G127: =IFERROR(VLOOKUP(A127,'22-23 DOE Formula counts'!$D$8:$T$325,4,FALSE),0) -> 137 | H127: =ROUND(G127/$G$5*+Assumptions!$E$14*Assumptions!$E$30,0) -> 29750 | J127: 36459 | L127: 0 | M127: =IFERROR(VLOOKUP(A127,[1]ENROLLMENT!$A$5:$B$349,2,FALSE),0)*0 -> 0 | N127: =IFERROR(GETPIVOTDATA("Total W/O Preschool",'[1]Private 19-20'!$O$3,"District Code",A127),0)*0 -> 0 | P127: 36459 | Q127: 0 | R127: 36459 | T127: 0 | U127: 36459 | W127: =IFERROR(VLOOKUP($A127,'Allocation 2023-24 Final'!$B$7:$S$312,18,FALSE),0) -> 0 | Y127: 36459 | Z127: 0 | AA127: 153 | AB127: 0 | AD127: 04129 | AE127: LAKE CHELAN
A128: 14097 | B128: QUINAULT | C128: 0 | D128: 0 | E128: =IFERROR(VLOOKUP(A128,'22-23 DOE Formula counts'!$D$8:$T$325,10,FALSE),0) -> 204 | F128: =ROUND(E128/$E$5*Assumptions!$E$14*Assumptions!$E$29,0) -> 1088 | G128: =IFERROR(VLOOKUP(A128,'22-23 DOE Formula counts'!$D$8:$T$325,4,FALSE),0) -> 33 | H128: =ROUND(G128/$G$5*+Assumptions!$E$14*Assumptions!$E$30,0) -> 7166 | J128: 8254 | L128: 0 | M128: =IFERROR(VLOOKUP(A128,[1]ENROLLMENT!$A$5:$B$349,2,FALSE),0)*0 -> 0 | N128: =IFERROR(GETPIVOTDATA("Total W/O Preschool",'[1]Private 19-20'!$O$3,"District Code",A128),0)*0 -> 0 | P128: 8254 | Q128: 0 | R128: 8254 | T128: 0 | U128: 8254 | W128: =IFERROR(VLOOKUP($A128,'Allocation 2023-24 Final'!$B$7:$S$312,18,FALSE),0) -> 0 | Y128: 8254 | Z128: 0 | AA128: 240 | AB128: 0 | AD128: 14097 | AE128: QUINAULT
A129: 31004 | B129: LAKE STEVENS | C129: 0 | D129: 0 | E129: =IFERROR(VLOOKUP(A129,'22-23 DOE Formula counts'!$D$8:$T$325,10,FALSE),0) -> 9156 | F129: =ROUND(E129/$E$5*Assumptions!$E$14*Assumptions!$E$29,0) -> 48832 | G129: =IFERROR(VLOOKUP(A129,'22-23 DOE Formula counts'!$D$8:$T$325,4,FALSE),0) -> 431 | H129: =ROUND(G129/$G$5*+Assumptions!$E$14*Assumptions!$E$30,0) -> 93592 | J129: 142424 | L129: 0 | M129: =IFERROR(VLOOKUP(A129,[1]ENROLLMENT!$A$5:$B$349,2,FALSE),0)*0 -> 0 | N129: =IFERROR(GETPIVOTDATA("Total W/O Preschool",'[1]Private 19-20'!$O$3,"District Code",A129),0)*0 -> 0 | P129: 142424 | Q129: 0 | R129: 142424 | T129: 0 | U129: 142424 | W129: =IFERROR(VLOOKUP($A129,'Allocation 2023-24 Final'!$B$7:$S$312,18,FALSE),0) -> 0 | Y129: 142424 | Z129: 0 | AA129: 63 | AB129: 0 | AD129: 31004 | AE129: LAKE STEVENS
A130: 17414 | B130: LAKE WASHINGTON | C130: 0 | D130: 0 | E130: =IFERROR(VLOOKUP(A130,'22-23 DOE Formula counts'!$D$8:$T$325,10,FALSE),0) -> 32329 | F130: =ROUND(E130/$E$5*Assumptions!$E$14*Assumptions!$E$29,0) -> 172422 | G130: =IFERROR(VLOOKUP(A130,'22-23 DOE Formula counts'!$D$8:$T$325,4,FALSE),0) -> 1046 | H130: =ROUND(G130/$G$5*+Assumptions!$E$14*Assumptions!$E$30,0) -> 227139 | J130: 399561 | L130: 0 | M130: =IFERROR(VLOOKUP(A130,[1]ENROLLMENT!$A$5:$B$349,2,FALSE),0)*0 -> 0 | N130: =IFERROR(GETPIVOTDATA("Total W/O Preschool",'[1]Private 19-20'!$O$3,"District Code",A130),0)*0 -> 0 | P130: 399561 | Q130: 0 | R130: 399561 | T130: 0 | U130: 399561 | W130: =IFERROR(VLOOKUP($A130,'Allocation 2023-24 Final'!$B$7:$S$312,18,FALSE),0) -> 0 | Y130: 399561 | Z130: 0 | AA130: 21 | AB130: 0 | AD130: 17414 | AE130: LAKE WASHINGTON
A131: 31306 | B131: LAKEWOOD | C131: 0 | D131: 0 | E131: =IFERROR(VLOOKUP(A131,'22-23 DOE Formula counts'!$D$8:$T$325,10,FALSE),0) -> 2741 | F131: =ROUND(E131/$E$5*Assumptions!$E$14*Assumptions!$E$29,0) -> 14619 | G131: =IFERROR(VLOOKUP(A131,'22-23 DOE Formula counts'!$D$8:$T$325,4,FALSE),0) -> 238 | H131: =ROUND(G131/$G$5*+Assumptions!$E$14*Assumptions!$E$30,0) -> 51682 | J131: 66301 | L131: 0 | M131: =IFERROR(VLOOKUP(A131,[1]ENROLLMENT!$A$5:$B$349,2,FALSE),0)*0 -> 0 | N131: =IFERROR(GETPIVOTDATA("Total W/O Preschool",'[1]Private 19-20'!$O$3,"District Code",A131),0)*0 -> 0 | P131: 66301 | Q131: 0 | R131: 66301 | T131: 0 | U131: 66301 | W131: =IFERROR(VLOOKUP($A131,'Allocation 2023-24 Final'!$B$7:$S$312,18,FALSE),0) -> 0 | Y131: 66301 | Z131: 0 | AA131: 108 | AB131: 0 | AD131: 31306 | AE131: LAKEWOOD
A132: 38264 | B132: LAMONT | C132: 0 | D132: 0 | E132: =IFERROR(VLOOKUP(A132,'22-23 DOE Formula counts'!$D$8:$T$325,10,FALSE),0) -> 32 | F132: =ROUND(E132/$E$5*Assumptions!$E$14*Assumptions!$E$29,0) -> 171 | G132: =IFERROR(VLOOKUP(A132,'22-23 DOE Formula counts'!$D$8:$T$325,4,FALSE),0) -> 6 | H132: =ROUND(G132/$G$5*+Assumptions!$E$14*Assumptions!$E$30,0) -> 1303 | J132: 1474 | L132: 0 | M132: =IFERROR(VLOOKUP(A132,[1]ENROLLMENT!$A$5:$B$349,2,FALSE),0)*0 -> 0 | N132: =IFERROR(GETPIVOTDATA("Total W/O Preschool",'[1]Private 19-20'!$O$3,"District Code",A132),0)*0 -> 0 | P132: 1474 | Q132: 0 | R132: 1474 | T132: 0 | U132: 1474 | W132: =IFERROR(VLOOKUP($A132,'Allocation 2023-24 Final'!$B$7:$S$312,18,FALSE),0) -> 0 | Y132: 1474 | Z132: 0 | AA132: 308 | AB132: 0 | AD132: 38264 | AE132: LAMONT
A133: 32362 | B133: LIBERTY | C133: 0 | D133: 0 | E133: =IFERROR(VLOOKUP(A133,'22-23 DOE Formula counts'!$D$8:$T$325,10,FALSE),0) -> 812 | F133: =ROUND(E133/$E$5*Assumptions!$E$14*Assumptions!$E$29,0) -> 4331 | G133: =IFERROR(VLOOKUP(A133,'22-23 DOE Formula counts'!$D$8:$T$325,4,FALSE),0) -> 62 | H133: =ROUND(G133/$G$5*+Assumptions!$E$14*Assumptions!$E$30,0) -> 13463 | J133: 17794 | L133: 0 | M133: =IFERROR(VLOOKUP(A133,[1]ENROLLMENT!$A$5:$B$349,2,FALSE),0)*0 -> 0 | N133: =IFERROR(GETPIVOTDATA("Total W/O Preschool",'[1]Private 19-20'!$O$3,"District Code",A133),0)*0 -> 0 | P133: 17794 | Q133: 0 | R133: 17794 | T133: 0 | U133: 17794 | W133: =IFERROR(VLOOKUP($A133,'Allocation 2023-24 Final'!$B$7:$S$312,18,FALSE),0) -> 0 | Y133: 17794 | Z133: 0 | AA133: 193 | AB133: 0 | AD133: 32362 | AE133: LIBERTY
A134: 01158 | B134: LIND | C134: 0 | D134: 0 | E134: =IFERROR(VLOOKUP(A134,'22-23 DOE Formula counts'!$D$8:$T$325,10,FALSE),0) -> 293 | F134: =ROUND(E134/$E$5*Assumptions!$E$14*Assumptions!$E$29,0) -> 1563 | G134: =IFERROR(VLOOKUP(A134,'22-23 DOE Formula counts'!$D$8:$T$325,4,FALSE),0) -> 28 | H134: =ROUND(G134/$G$5*+Assumptions!$E$14*Assumptions!$E$30,0) -> 6080 | J134: 7643 | L134: 0 | M134: =IFERROR(VLOOKUP(A134,[1]ENROLLMENT!$A$5:$B$349,2,FALSE),0)*0 -> 0 | N134: =IFERROR(GETPIVOTDATA("Total W/O Preschool",'[1]Private 19-20'!$O$3,"District Code",A134),0)*0 -> 0 | P134: 7643 | Q134: 0 | R134: 7643 | T134: 0 | U134: 7643 | W134: =IFERROR(VLOOKUP($A134,'Allocation 2023-24 Final'!$B$7:$S$312,18,FALSE),0) -> 0 | Y134: 7643 | Z134: 0 | AA134: 244 | AB134: 0 | AD134: 01158 | AE134: LIND
A135: 08122 | B135: LONGVIEW | C135: 0 | D135: 0 | E135: =IFERROR(VLOOKUP(A135,'22-23 DOE Formula counts'!$D$8:$T$325,10,FALSE),0) -> 7634 | F135: =ROUND(E135/$E$5*Assumptions!$E$14*Assumptions!$E$29,0) -> 40715 | G135: =IFERROR(VLOOKUP(A135,'22-23 DOE Formula counts'!$D$8:$T$325,4,FALSE),0) -> 1213 | H135: =ROUND(G135/$G$5*+Assumptions!$E$14*Assumptions!$E$30,0) -> 263403 | J135: =ROUNDDOWN(+H135+F135+D135+C135+I135,0) -> 304118 | L135: =IF((M135+N135=0),0,+J135/(+M135+N135)) -> 0 | M135: =IFERROR(VLOOKUP(A135,[1]ENROLLMENT!$A$5:$B$349,2,FALSE),0)*0 -> 0 | N135: =IFERROR(GETPIVOTDATA("Total W/O Preschool",'[1]Private 19-20'!$O$3,"District Code",A135),0)*0 -> 0 | P135: =J135 -> 304118 | Q135: =-ROUND(P135/$P$5*$O$5,0) -> 0 | R135: =+J135+Q135+O135 -> 304118 | T135: =IF(S135>0,-ROUND((R135*(0.9-S135)),0),0) -> 0 | U135: =+R135+T135 -> 304118 | W135: =IFERROR(VLOOKUP($A135,'Allocation 2023-24 Final'!$B$7:$S$312,18,FALSE),0) -> 0 | Y135: =+U135-W135 -> 304118 | Z135: =IF(W135>0,Y135/W135,0) -> 0 | AA135: =RANK(Y135,$Y$7:$Y$321,0) -> 28 | AB135: =(SUM(C135:D135)/U135) -> 0 | AD135: =+A135 -> 08122 | AE135: =+B135 -> LONGVIEW
A136: 33183 | B136: LOON LAKE | C136: 0 | D136: 0 | E136: =IFERROR(VLOOKUP(A136,'22-23 DOE Formula counts'!$D$8:$T$325,10,FALSE),0) -> 245 | F136: =ROUND(E136/$E$5*Assumptions!$E$14*Assumptions!$E$29,0) -> 1307 | G136: =IFERROR(VLOOKUP(A136,'22-23 DOE Formula counts'!$D$8:$T$325,4,FALSE),0) -> 54 | H136: =ROUND(G136/$G$5*+Assumptions!$E$14*Assumptions!$E$30,0) -> 11726 | J136: 13033 | L136: 0 | M136: =IFERROR(VLOOKUP(A136,[1]ENROLLMENT!$A$5:$B$349,2,FALSE),0)*0 -> 0 | N136: =IFERROR(GETPIVOTDATA("Total W/O Preschool",'[1]Private 19-20'!$O$3,"District Code",A136),0)*0 -> 0 | P136: 13033 | Q136: 0 | R136: 13033 | T136: 0 | U136: 13033 | W136: =IFERROR(VLOOKUP($A136,'Allocation 2023-24 Final'!$B$7:$S$312,18,FALSE),0) -> 0 | Y136: 13033 | Z136: 0 | AA136: 216 | AB136: 0 | AD136: 33183 | AE136: LOON LAKE
A137: 28144 | B137: LOPEZ | C137: 0 | D137: 0 | E137: =IFERROR(VLOOKUP(A137,'22-23 DOE Formula counts'!$D$8:$T$325,10,FALSE),0) -> 212 | F137: =ROUND(E137/$E$5*Assumptions!$E$14*Assumptions!$E$29,0) -> 1131 | G137: =IFERROR(VLOOKUP(A137,'22-23 DOE Formula counts'!$D$8:$T$325,4,FALSE),0) -> 32 | H137: =ROUND(G137/$G$5*+Assumptions!$E$14*Assumptions!$E$30,0) -> 6949 | J137: 8080 | L137: 0 | M137: =IFERROR(VLOOKUP(A137,[1]ENROLLMENT!$A$5:$B$349,2,FALSE),0)*0 -> 0 | N137: =IFERROR(GETPIVOTDATA("Total W/O Preschool",'[1]Private 19-20'!$O$3,"District Code",A137),0)*0 -> 0 | P137: 8080 | Q137: 0 | R137: 8080 | T137: 0 | U137: 8080 | W137: =IFERROR(VLOOKUP($A137,'Allocation 2023-24 Final'!$B$7:$S$312,18,FALSE),0) -> 0 | Y137: 8080 | Z137: 0 | AA137: 241 | AB137: 0 | AD137: 28144 | AE137: LOPEZ
A138: 32903 | B138: LUMEN CHARTER | C138: 0 | D138: 0 | E138: =IFERROR(VLOOKUP(A138,'22-23 DOE Formula counts'!$D$8:$T$325,10,FALSE),0) -> 69.63175253 | F138: =ROUND(E138/$E$5*Assumptions!$E$14*Assumptions!$E$29,0) -> 371 | G138: =IFERROR(VLOOKUP(A138,'22-23 DOE Formula counts'!$D$8:$T$325,4,FALSE),0) -> 11.26566587 | H138: =ROUND(G138/$G$5*+Assumptions!$E$14*Assumptions!$E$30,0) -> 2446 | J138: 2817 | L138: 0 | M138: =IFERROR(VLOOKUP(A138,[1]ENROLLMENT!$A$5:$B$349,2,FALSE),0)*0 -> 0 | N138: =IFERROR(GETPIVOTDATA("Total W/O Preschool",'[1]Private 19-20'!$O$3,"District Code",A138),0)*0 -> 0 | P138: 2817 | Q138: 0 | R138: 2817 | T138: 0 | U138: 2817 | W138: =IFERROR(VLOOKUP($A138,'Allocation 2023-24 Final'!$B$7:$S$312,18,FALSE),0) -> 0 | Y138: 2817 | Z138: 0 | AA138: 287 | AB138: 0 | AD138: 32903 | AE138: LUMEN CHARTER
A139: 20406 | B139: LYLE | C139: 0 | D139: 0 | E139: =IFERROR(VLOOKUP(A139,'22-23 DOE Formula counts'!$D$8:$T$325,10,FALSE),0) -> 401 | F139: =ROUND(E139/$E$5*Assumptions!$E$14*Assumptions!$E$29,0) -> 2139 | G139: =IFERROR(VLOOKUP(A139,'22-23 DOE Formula counts'!$D$8:$T$325,4,FALSE),0) -> 73 | H139: =ROUND(G139/$G$5*+Assumptions!$E$14*Assumptions!$E$30,0) -> 15852 | J139: 17991 | L139: 0 | M139: =IFERROR(VLOOKUP(A139,[1]ENROLLMENT!$A$5:$B$349,2,FALSE),0)*0 -> 0 | N139: =IFERROR(GETPIVOTDATA("Total W/O Preschool",'[1]Private 19-20'!$O$3,"District Code",A139),0)*0 -> 0 | P139: 17991 | Q139: 0 | R139: 17991 | T139: 0 | U139: 17991 | W139: =IFERROR(VLOOKUP($A139,'Allocation 2023-24 Final'!$B$7:$S$312,18,FALSE),0) -> 0 | Y139: 17991 | Z139: 0 | AA139: 192 | AB139: 0 | AD139: 20406 | AE139: LYLE
A140: 37504 | B140: LYNDEN | C140: 0 | D140: 0 | E140: =IFERROR(VLOOKUP(A140,'22-23 DOE Formula counts'!$D$8:$T$325,10,FALSE),0) -> 3851 | F140: =ROUND(E140/$E$5*Assumptions!$E$14*Assumptions!$E$29,0) -> 20539 | G140: =IFERROR(VLOOKUP(A140,'22-23 DOE Formula counts'!$D$8:$T$325,4,FALSE),0) -> 232 | H140: =ROUND(G140/$G$5*+Assumptions!$E$14*Assumptions!$E$30,0) -> 50379 | J140: 70918 | L140: 0 | M140: =IFERROR(VLOOKUP(A140,[1]ENROLLMENT!$A$5:$B$349,2,FALSE),0)*0 -> 0 | N140: =IFERROR(GETPIVOTDATA("Total W/O Preschool",'[1]Private 19-20'!$O$3,"District Code",A140),0)*0 -> 0 | P140: 70918 | Q140: 0 | R140: 70918 | T140: 0 | U140: 70918 | W140: =IFERROR(VLOOKUP($A140,'Allocation 2023-24 Final'!$B$7:$S$312,18,FALSE),0) -> 0 | Y140: 70918 | Z140: 0 | AA140: 102 | AB140: 0 | AD140: 37504 | AE140: LYNDEN
A141: 39120 | B141: MABTON | C141: 0 | D141: 0 | E141: =IFERROR(VLOOKUP(A141,'22-23 DOE Formula counts'!$D$8:$T$325,10,FALSE),0) -> 979 | F141: =ROUND(E141/$E$5*Assumptions!$E$14*Assumptions!$E$29,0) -> 5221 | G141: =IFERROR(VLOOKUP(A141,'22-23 DOE Formula counts'!$D$8:$T$325,4,FALSE),0) -> 153 | H141: =ROUND(G141/$G$5*+Assumptions!$E$14*Assumptions!$E$30,0) -> 33224 | J141: 38445 | L141: 0 | M141: =IFERROR(VLOOKUP(A141,[1]ENROLLMENT!$A$5:$B$349,2,FALSE),0)*0 -> 0 | N141: =IFERROR(GETPIVOTDATA("Total W/O Preschool",'[1]Private 19-20'!$O$3,"District Code",A141),0)*0 -> 0 | P141: 38445 | Q141: 0 | R141: 38445 | T141: 0 | U141: 38445 | W141: =IFERROR(VLOOKUP($A141,'Allocation 2023-24 Final'!$B$7:$S$312,18,FALSE),0) -> 0 | Y141: 38445 | Z141: 0 | AA141: 147 | AB141: 0 | AD141: 39120 | AE141: MABTON
A142: 09207 | B142: MANSFIELD | C142: 0 | D142: 0 | E142: =IFERROR(VLOOKUP(A142,'22-23 DOE Formula counts'!$D$8:$T$325,10,FALSE),0) -> 76 | F142: =ROUND(E142/$E$5*Assumptions!$E$14*Assumptions!$E$29,0) -> 405 | G142: =IFERROR(VLOOKUP(A142,'22-23 DOE Formula counts'!$D$8:$T$325,4,FALSE),0) -> 17 | H142: =ROUND(G142/$G$5*+Assumptions!$E$14*Assumptions!$E$30,0) -> 3692 | J142: 4097 | L142: 0 | M142: =IFERROR(VLOOKUP(A142,[1]ENROLLMENT!$A$5:$B$349,2,FALSE),0)*0 -> 0 | N142: =IFERROR(GETPIVOTDATA("Total W/O Preschool",'[1]Private 19-20'!$O$3,"District Code",A142),0)*0 -> 0 | P142: 4097 | Q142: 0 | R142: 4097 | T142: 0 | U142: 4097 | W142: =IFERROR(VLOOKUP($A142,'Allocation 2023-24 Final'!$B$7:$S$312,18,FALSE),0) -> 0 | Y142: 4097 | Z142: 0 | AA142: 273 | AB142: 0 | AD142: 09207 | AE142: MANSFIELD
A143: 04019 | B143: MANSON | C143: 0 | D143: 0 | E143: =IFERROR(VLOOKUP(A143,'22-23 DOE Formula counts'!$D$8:$T$325,10,FALSE),0) -> 740 | F143: =ROUND(E143/$E$5*Assumptions!$E$14*Assumptions!$E$29,0) -> 3947 | G143: =IFERROR(VLOOKUP(A143,'22-23 DOE Formula counts'!$D$8:$T$325,4,FALSE),0) -> 96 | H143: =ROUND(G143/$G$5*+Assumptions!$E$14*Assumptions!$E$30,0) -> 20846 | J143: 24793 | L143: 0 | M143: =IFERROR(VLOOKUP(A143,[1]ENROLLMENT!$A$5:$B$349,2,FALSE),0)*0 -> 0 | N143: =IFERROR(GETPIVOTDATA("Total W/O Preschool",'[1]Private 19-20'!$O$3,"District Code",A143),0)*0 -> 0 | P143: 24793 | Q143: 0 | R143: 24793 | T143: 0 | U143: 24793 | W143: =IFERROR(VLOOKUP($A143,'Allocation 2023-24 Final'!$B$7:$S$312,18,FALSE),0) -> 0 | Y143: 24793 | Z143: 0 | AA143: 178 | AB143: 0 | AD143: 04019 | AE143: MANSON
A144: 23311 | B144: MARY M KNIGHT | C144: 0 | D144: 0 | E144: =IFERROR(VLOOKUP(A144,'22-23 DOE Formula counts'!$D$8:$T$325,10,FALSE),0) -> 271 | F144: =ROUND(E144/$E$5*Assumptions!$E$14*Assumptions!$E$29,0) -> 1445 | G144: =IFERROR(VLOOKUP(A144,'22-23 DOE Formula counts'!$D$8:$T$325,4,FALSE),0) -> 45 | H144: =ROUND(G144/$G$5*+Assumptions!$E$14*Assumptions!$E$30,0) -> 9772 | J144: 11217 | L144: 0 | M144: =IFERROR(VLOOKUP(A144,[1]ENROLLMENT!$A$5:$B$349,2,FALSE),0)*0 -> 0 | N144: =IFERROR(GETPIVOTDATA("Total W/O Preschool",'[1]Private 19-20'!$O$3,"District Code",A144),0)*0 -> 0 | P144: 11217 | Q144: 0 | R144: 11217 | T144: 0 | U144: 11217 | W144: =IFERROR(VLOOKUP($A144,'Allocation 2023-24 Final'!$B$7:$S$312,18,FALSE),0) -> 0 | Y144: 11217 | Z144: 0 | AA144: 226 | AB144: 0 | AD144: 23311 | AE144: MARY M KNIGHT
A145: 33207 | B145: MARY WALKER | C145: 0 | D145: 0 | E145: =IFERROR(VLOOKUP(A145,'22-23 DOE Formula counts'!$D$8:$T$325,10,FALSE),0) -> 590 | F145: =ROUND(E145/$E$5*Assumptions!$E$14*Assumptions!$E$29,0) -> 3147 | G145: =IFERROR(VLOOKUP(A145,'22-23 DOE Formula counts'!$D$8:$T$325,4,FALSE),0) -> 143 | H145: =ROUND(G145/$G$5*+Assumptions!$E$14*Assumptions!$E$30,0) -> 31052 | J145: 34199 | L145: 0 | M145: =IFERROR(VLOOKUP(A145,[1]ENROLLMENT!$A$5:$B$349,2,FALSE),0)*0 -> 0 | N145: =IFERROR(GETPIVOTDATA("Total W/O Preschool",'[1]Private 19-20'!$O$3,"District Code",A145),0)*0 -> 0 | P145: 34199 | Q145: 0 | R145: 34199 | T145: 0 | U145: 34199 | W145: =IFERROR(VLOOKUP($A145,'Allocation 2023-24 Final'!$B$7:$S$312,18,FALSE),0) -> 0 | Y145: 34199 | Z145: 0 | AA145: 155 | AB145: 0 | AD145: 33207 | AE145: MARY WALKER
A146: 31025 | B146: MARYSVILLE | C146: 0 | D146: 0 | E146: =IFERROR(VLOOKUP(A146,'22-23 DOE Formula counts'!$D$8:$T$325,10,FALSE),0) -> 14004 | F146: =ROUND(E146/$E$5*Assumptions!$E$14*Assumptions!$E$29,0) -> 74688 | G146: =IFERROR(VLOOKUP(A146,'22-23 DOE Formula counts'!$D$8:$T$325,4,FALSE),0) -> 1098 | H146: =ROUND(G146/$G$5*+Assumptions!$E$14*Assumptions!$E$30,0) -> 238431 | J146: 313119 | L146: 0 | M146: =IFERROR(VLOOKUP(A146,[1]ENROLLMENT!$A$5:$B$349,2,FALSE),0)*0 -> 0 | N146: =IFERROR(GETPIVOTDATA("Total W/O Preschool",'[1]Private 19-20'!$O$3,"District Code",A146),0)*0 -> 0 | P146: 313119 | Q146: 0 | R146: 313119 | T146: 0 | U146: 313119 | W146: =IFERROR(VLOOKUP($A146,'Allocation 2023-24 Final'!$B$7:$S$312,18,FALSE),0) -> 0 | Y146: 313119 | Z146: 0 | AA146: 26 | AB146: 0 | AD146: 31025 | AE146: MARYSVILLE
A147: 14065 | B147: MCCLEARY | C147: 0 | D147: 0 | E147: =IFERROR(VLOOKUP(A147,'22-23 DOE Formula counts'!$D$8:$T$325,10,FALSE),0) -> 518 | F147: =ROUND(E147/$E$5*Assumptions!$E$14*Assumptions!$E$29,0) -> 2763 | G147: =IFERROR(VLOOKUP(A147,'22-23 DOE Formula counts'!$D$8:$T$325,4,FALSE),0) -> 48 | H147: =ROUND(G147/$G$5*+Assumptions!$E$14*Assumptions!$E$30,0) -> 10423 | J147: 13186 | L147: 0 | M147: =IFERROR(VLOOKUP(A147,[1]ENROLLMENT!$A$5:$B$349,2,FALSE),0)*0 -> 0 | N147: =IFERROR(GETPIVOTDATA("Total W/O Preschool",'[1]Private 19-20'!$O$3,"District Code",A147),0)*0 -> 0 | P147: 13186 | Q147: 0 | R147: 13186 | T147: 0 | U147: 13186 | W147: =IFERROR(VLOOKUP($A147,'Allocation 2023-24 Final'!$B$7:$S$312,18,FALSE),0) -> 0 | Y147: 13186 | Z147: 0 | AA147: 215 | AB147: 0 | AD147: 14065 | AE147: MCCLEARY
A148: 32354 | B148: MEAD | C148: 0 | D148: 0 | E148: =IFERROR(VLOOKUP(A148,'22-23 DOE Formula counts'!$D$8:$T$325,10,FALSE),0) -> 11133 | F148: =ROUND(E148/$E$5*Assumptions!$E$14*Assumptions!$E$29,0) -> 59376 | G148: =IFERROR(VLOOKUP(A148,'22-23 DOE Formula counts'!$D$8:$T$325,4,FALSE),0) -> 959 | H148: =ROUND(G148/$G$5*+Assumptions!$E$14*Assumptions!$E$30,0) -> 208247 | J148: 267623 | L148: 0 | M148: =IFERROR(VLOOKUP(A148,[1]ENROLLMENT!$A$5:$B$349,2,FALSE),0)*0 -> 0 | N148: =IFERROR(GETPIVOTDATA("Total W/O Preschool",'[1]Private 19-20'!$O$3,"District Code",A148),0)*0 -> 0 | P148: 267623 | Q148: 0 | R148: 267623 | T148: 0 | U148: 267623 | W148: =IFERROR(VLOOKUP($A148,'Allocation 2023-24 Final'!$B$7:$S$312,18,FALSE),0) -> 0 | Y148: 267623 | Z148: 0 | AA148: 35 | AB148: 0 | AD148: 32354 | AE148: MEAD
A149: 32326 | B149: MEDICAL LAKE | C149: 0 | D149: 0 | E149: =IFERROR(VLOOKUP(A149,'22-23 DOE Formula counts'!$D$8:$T$325,10,FALSE),0) -> 2117 | F149: =ROUND(E149/$E$5*Assumptions!$E$14*Assumptions!$E$29,0) -> 11291 | G149: =IFERROR(VLOOKUP(A149,'22-23 DOE Formula counts'!$D$8:$T$325,4,FALSE),0) -> 198 | H149: =ROUND(G149/$G$5*+Assumptions!$E$14*Assumptions!$E$30,0) -> 42996 | J149: 54287 | L149: 0 | M149: =IFERROR(VLOOKUP(A149,[1]ENROLLMENT!$A$5:$B$349,2,FALSE),0)*0 -> 0 | N149: =IFERROR(GETPIVOTDATA("Total W/O Preschool",'[1]Private 19-20'!$O$3,"District Code",A149),0)*0 -> 0 | P149: 54287 | Q149: 0 | R149: 54287 | T149: 0 | U149: 54287 | W149: =IFERROR(VLOOKUP($A149,'Allocation 2023-24 Final'!$B$7:$S$312,18,FALSE),0) -> 0 | Y149: 54287 | Z149: 0 | AA149: 122 | AB149: 0 | AD149: 32326 | AE149: MEDICAL LAKE
A150: 17400 | B150: MERCER ISLAND | C150: 0 | D150: 0 | E150: =IFERROR(VLOOKUP(A150,'22-23 DOE Formula counts'!$D$8:$T$325,10,FALSE),0) -> 5048 | F150: =ROUND(E150/$E$5*Assumptions!$E$14*Assumptions!$E$29,0) -> 26923 | G150: =IFERROR(VLOOKUP(A150,'22-23 DOE Formula counts'!$D$8:$T$325,4,FALSE),0) -> 151 | H150: =ROUND(G150/$G$5*+Assumptions!$E$14*Assumptions!$E$30,0) -> 32790 | J150: 59713 | L150: 0 | M150: =IFERROR(VLOOKUP(A150,[1]ENROLLMENT!$A$5:$B$349,2,FALSE),0)*0 -> 0 | N150: =IFERROR(GETPIVOTDATA("Total W/O Preschool",'[1]Private 19-20'!$O$3,"District Code",A150),0)*0 -> 0 | P150: 59713 | Q150: 0 | R150: 59713 | T150: 0 | U150: 59713 | W150: =IFERROR(VLOOKUP($A150,'Allocation 2023-24 Final'!$B$7:$S$312,18,FALSE),0) -> 0 | Y150: 59713 | Z150: 0 | AA150: 114 | AB150: 0 | AD150: 17400 | AE150: MERCER ISLAND
A151: 37505 | B151: MERIDIAN | C151: 0 | D151: 0 | E151: =IFERROR(VLOOKUP(A151,'22-23 DOE Formula counts'!$D$8:$T$325,10,FALSE),0) -> 1738 | F151: =ROUND(E151/$E$5*Assumptions!$E$14*Assumptions!$E$29,0) -> 9269 | G151: =IFERROR(VLOOKUP(A151,'22-23 DOE Formula counts'!$D$8:$T$325,4,FALSE),0) -> 167 | H151: =ROUND(G151/$G$5*+Assumptions!$E$14*Assumptions!$E$30,0) -> 36264 | J151: 45533 | L151: 0 | M151: =IFERROR(VLOOKUP(A151,[1]ENROLLMENT!$A$5:$B$349,2,FALSE),0)*0 -> 0 | N151: =IFERROR(GETPIVOTDATA("Total W/O Preschool",'[1]Private 19-20'!$O$3,"District Code",A151),0)*0 -> 0 | P151: 45533 | Q151: 0 | R151: 45533 | T151: 0 | U151: 45533 | W151: =IFERROR(VLOOKUP($A151,'Allocation 2023-24 Final'!$B$7:$S$312,18,FALSE),0) -> 0 | Y151: 45533 | Z151: 0 | AA151: 134 | AB151: 0 | AD151: 37505 | AE151: MERIDIAN
A152: 24350 | B152: METHOW VALLEY | C152: 0 | D152: 0 | E152: =IFERROR(VLOOKUP(A152,'22-23 DOE Formula counts'!$D$8:$T$325,10,FALSE),0) -> 648 | F152: =ROUND(E152/$E$5*Assumptions!$E$14*Assumptions!$E$29,0) -> 3456 | G152: =IFERROR(VLOOKUP(A152,'22-23 DOE Formula counts'!$D$8:$T$325,4,FALSE),0) -> 106 | H152: =ROUND(G152/$G$5*+Assumptions!$E$14*Assumptions!$E$30,0) -> 23018 | J152: 26474 | L152: 0 | M152: =IFERROR(VLOOKUP(A152,[1]ENROLLMENT!$A$5:$B$349,2,FALSE),0)*0 -> 0 | N152: =IFERROR(GETPIVOTDATA("Total W/O Preschool",'[1]Private 19-20'!$O$3,"District Code",A152),0)*0 -> 0 | P152: 26474 | Q152: 0 | R152: 26474 | T152: 0 | U152: 26474 | W152: =IFERROR(VLOOKUP($A152,'Allocation 2023-24 Final'!$B$7:$S$312,18,FALSE),0) -> 0 | Y152: 26474 | Z152: 0 | AA152: 173 | AB152: 0 | AD152: 24350 | AE152: METHOW VALLEY
A153: 30031 | B153: MILL A | C153: 0 | D153: 0 | E153: =IFERROR(VLOOKUP(A153,'22-23 DOE Formula counts'!$D$8:$T$325,10,FALSE),0) -> 58 | F153: =ROUND(E153/$E$5*Assumptions!$E$14*Assumptions!$E$29,0) -> 309 | G153: =IFERROR(VLOOKUP(A153,'22-23 DOE Formula counts'!$D$8:$T$325,4,FALSE),0) -> 10 | H153: =ROUND(G153/$G$5*+Assumptions!$E$14*Assumptions!$E$30,0) -> 2171 | J153: 2480 | L153: 0 | M153: =IFERROR(VLOOKUP(A153,[1]ENROLLMENT!$A$5:$B$349,2,FALSE),0)*0 -> 0 | N153: =IFERROR(GETPIVOTDATA("Total W/O Preschool",'[1]Private 19-20'!$O$3,"District Code",A153),0)*0 -> 0 | P153: 2480 | Q153: 0 | R153: 2480 | T153: 0 | U153: 2480 | W153: =IFERROR(VLOOKUP($A153,'Allocation 2023-24 Final'!$B$7:$S$312,18,FALSE),0) -> 0 | Y153: 2480 | Z153: 0 | AA153: 294 | AB153: 0 | AD153: 30031 | AE153: MILL A
A154: 31103 | B154: MONROE | C154: 0 | D154: 0 | E154: =IFERROR(VLOOKUP(A154,'22-23 DOE Formula counts'!$D$8:$T$325,10,FALSE),0) -> 7538 | F154: =ROUND(E154/$E$5*Assumptions!$E$14*Assumptions!$E$29,0) -> 40203 | G154: =IFERROR(VLOOKUP(A154,'22-23 DOE Formula counts'!$D$8:$T$325,4,FALSE),0) -> 329 | H154: =ROUND(G154/$G$5*+Assumptions!$E$14*Assumptions!$E$30,0) -> 71442 | J154: 111645 | L154: 0 | M154: =IFERROR(VLOOKUP(A154,[1]ENROLLMENT!$A$5:$B$349,2,FALSE),0)*0 -> 0 | N154: =IFERROR(GETPIVOTDATA("Total W/O Preschool",'[1]Private 19-20'!$O$3,"District Code",A154),0)*0 -> 0 | P154: 111645 | Q154: 0 | R154: 111645 | T154: 0 | U154: 111645 | W154: =IFERROR(VLOOKUP($A154,'Allocation 2023-24 Final'!$B$7:$S$312,18,FALSE),0) -> 0 | Y154: 111645 | Z154: 0 | AA154: 74 | AB154: 0 | AD154: 31103 | AE154: MONROE
A155: 14066 | B155: MONTESANO | C155: 0 | D155: 0 | E155: =IFERROR(VLOOKUP(A155,'22-23 DOE Formula counts'!$D$8:$T$325,10,FALSE),0) -> 1316 | F155: =ROUND(E155/$E$5*Assumptions!$E$14*Assumptions!$E$29,0) -> 7019 | G155: =IFERROR(VLOOKUP(A155,'22-23 DOE Formula counts'!$D$8:$T$325,4,FALSE),0) -> 139 | H155: =ROUND(G155/$G$5*+Assumptions!$E$14*Assumptions!$E$30,0) -> 30184 | J155: 37203 | L155: 0 | M155: =IFERROR(VLOOKUP(A155,[1]ENROLLMENT!$A$5:$B$349,2,FALSE),0)*0 -> 0 | N155: =IFERROR(GETPIVOTDATA("Total W/O Preschool",'[1]Private 19-20'!$O$3,"District Code",A155),0)*0 -> 0 | P155: 37203 | Q155: 0 | R155: 37203 | T155: 0 | U155: 37203 | W155: =IFERROR(VLOOKUP($A155,'Allocation 2023-24 Final'!$B$7:$S$312,18,FALSE),0) -> 0 | Y155: 37203 | Z155: 0 | AA155: 151 | AB155: 0 | AD155: 14066 | AE155: MONTESANO
A156: 21214 | B156: MORTON | C156: 0 | D156: 0 | E156: =IFERROR(VLOOKUP(A156,'22-23 DOE Formula counts'!$D$8:$T$325,10,FALSE),0) -> 341 | F156: =ROUND(E156/$E$5*Assumptions!$E$14*Assumptions!$E$29,0) -> 1819 | G156: =IFERROR(VLOOKUP(A156,'22-23 DOE Formula counts'!$D$8:$T$325,4,FALSE),0) -> 59 | H156: =ROUND(G156/$G$5*+Assumptions!$E$14*Assumptions!$E$30,0) -> 12812 | J156: 14631 | L156: 0 | M156: =IFERROR(VLOOKUP(A156,[1]ENROLLMENT!$A$5:$B$349,2,FALSE),0)*0 -> 0 | N156: =IFERROR(GETPIVOTDATA("Total W/O Preschool",'[1]Private 19-20'!$O$3,"District Code",A156),0)*0 -> 0 | P156: 14631 | Q156: 0 | R156: 14631 | T156: 0 | U156: 14631 | W156: =IFERROR(VLOOKUP($A156,'Allocation 2023-24 Final'!$B$7:$S$312,18,FALSE),0) -> 0 | Y156: 14631 | Z156: 0 | AA156: 207 | AB156: 0 | AD156: 21214 | AE156: MORTON
A157: 13161 | B157: MOSES LAKE | C157: 0 | D157: 0 | E157: =IFERROR(VLOOKUP(A157,'22-23 DOE Formula counts'!$D$8:$T$325,10,FALSE),0) -> 9246 | F157: =ROUND(E157/$E$5*Assumptions!$E$14*Assumptions!$E$29,0) -> 49312 | G157: =IFERROR(VLOOKUP(A157,'22-23 DOE Formula counts'!$D$8:$T$325,4,FALSE),0) -> 1501 | H157: =ROUND(G157/$G$5*+Assumptions!$E$14*Assumptions!$E$30,0) -> 325942 | J157: 375254 | L157: 0 | M157: =IFERROR(VLOOKUP(A157,[1]ENROLLMENT!$A$5:$B$349,2,FALSE),0)*0 -> 0 | N157: =IFERROR(GETPIVOTDATA("Total W/O Preschool",'[1]Private 19-20'!$O$3,"District Code",A157),0)*0 -> 0 | P157: 375254 | Q157: 0 | R157: 375254 | T157: 0 | U157: 375254 | W157: =IFERROR(VLOOKUP($A157,'Allocation 2023-24 Final'!$B$7:$S$312,18,FALSE),0) -> 0 | Y157: 375254 | Z157: 0 | AA157: 23 | AB157: 0 | AD157: 13161 | AE157: MOSES LAKE
A158: 21206 | B158: MOSSYROCK | C158: 0 | D158: 0 | E158: =IFERROR(VLOOKUP(A158,'22-23 DOE Formula counts'!$D$8:$T$325,10,FALSE),0) -> 633 | F158: =ROUND(E158/$E$5*Assumptions!$E$14*Assumptions!$E$29,0) -> 3376 | G158: =IFERROR(VLOOKUP(A158,'22-23 DOE Formula counts'!$D$8:$T$325,4,FALSE),0) -> 82 | H158: =ROUND(G158/$G$5*+Assumptions!$E$14*Assumptions!$E$30,0) -> 17806 | J158: 21182 | L158: 0 | M158: =IFERROR(VLOOKUP(A158,[1]ENROLLMENT!$A$5:$B$349,2,FALSE),0)*0 -> 0 | N158: =IFERROR(GETPIVOTDATA("Total W/O Preschool",'[1]Private 19-20'!$O$3,"District Code",A158),0)*0 -> 0 | P158: 21182 | Q158: 0 | R158: 21182 | T158: 0 | U158: 21182 | W158: =IFERROR(VLOOKUP($A158,'Allocation 2023-24 Final'!$B$7:$S$312,18,FALSE),0) -> 0 | Y158: 21182 | Z158: 0 | AA158: 185 | AB158: 0 | AD158: 21206 | AE158: MOSSYROCK
A159: 39209 | B159: MOUNT ADAMS | C159: 0 | D159: 0 | E159: =IFERROR(VLOOKUP(A159,'22-23 DOE Formula counts'!$D$8:$T$325,10,FALSE),0) -> 1159 | F159: =ROUND(E159/$E$5*Assumptions!$E$14*Assumptions!$E$29,0) -> 6181 | G159: =IFERROR(VLOOKUP(A159,'22-23 DOE Formula counts'!$D$8:$T$325,4,FALSE),0) -> 171 | H159: =ROUND(G159/$G$5*+Assumptions!$E$14*Assumptions!$E$30,0) -> 37133 | J159: 43314 | L159: 0 | M159: =IFERROR(VLOOKUP(A159,[1]ENROLLMENT!$A$5:$B$349,2,FALSE),0)*0 -> 0 | N159: =IFERROR(GETPIVOTDATA("Total W/O Preschool",'[1]Private 19-20'!$O$3,"District Code",A159),0)*0 -> 0 | P159: 43314 | Q159: 0 | R159: 43314 | T159: 0 | U159: 43314 | W159: =IFERROR(VLOOKUP($A159,'Allocation 2023-24 Final'!$B$7:$S$312,18,FALSE),0) -> 0 | Y159: 43314 | Z159: 0 | AA159: 137 | AB159: 0 | AD159: 39209 | AE159: MOUNT ADAMS
A160: 37507 | B160: MOUNT BAKER | C160: 0 | D160: 0 | E160: =IFERROR(VLOOKUP(A160,'22-23 DOE Formula counts'!$D$8:$T$325,10,FALSE),0) -> 2742 | F160: =ROUND(E160/$E$5*Assumptions!$E$14*Assumptions!$E$29,0) -> 14624 | G160: =IFERROR(VLOOKUP(A160,'22-23 DOE Formula counts'!$D$8:$T$325,4,FALSE),0) -> 323 | H160: =ROUND(G160/$G$5*+Assumptions!$E$14*Assumptions!$E$30,0) -> 70139 | J160: 84763 | L160: 0 | M160: =IFERROR(VLOOKUP(A160,[1]ENROLLMENT!$A$5:$B$349,2,FALSE),0)*0 -> 0 | N160: =IFERROR(GETPIVOTDATA("Total W/O Preschool",'[1]Private 19-20'!$O$3,"District Code",A160),0)*0 -> 0 | P160: 84763 | Q160: 0 | R160: 84763 | T160: 0 | U160: 84763 | W160: =IFERROR(VLOOKUP($A160,'Allocation 2023-24 Final'!$B$7:$S$312,18,FALSE),0) -> 0 | Y160: 84763 | Z160: 0 | AA160: 90 | AB160: 0 | AD160: 37507 | AE160: MOUNT BAKER
A161: 30029 | B161: MOUNT PLEASANT | C161: 0 | D161: 0 | E161: =IFERROR(VLOOKUP(A161,'22-23 DOE Formula counts'!$D$8:$T$325,10,FALSE),0) -> 48 | F161: =ROUND(E161/$E$5*Assumptions!$E$14*Assumptions!$E$29,0) -> 256 | G161: =IFERROR(VLOOKUP(A161,'22-23 DOE Formula counts'!$D$8:$T$325,4,FALSE),0) -> 4 | H161: =ROUND(G161/$G$5*+Assumptions!$E$14*Assumptions!$E$30,0) -> 869 | J161: 1125 | L161: 0 | M161: =IFERROR(VLOOKUP(A161,[1]ENROLLMENT!$A$5:$B$349,2,FALSE),0)*0 -> 0 | N161: =IFERROR(GETPIVOTDATA("Total W/O Preschool",'[1]Private 19-20'!$O$3,"District Code",A161),0)*0 -> 0 | P161: 1125 | Q161: 0 | R161: 1125 | T161: 0 | U161: 1125 | W161: =IFERROR(VLOOKUP($A161,'Allocation 2023-24 Final'!$B$7:$S$312,18,FALSE),0) -> 0 | Y161: 1125 | Z161: 0 | AA161: 309 | AB161: 0 | AD161: 30029 | AE161: MOUNT PLEASANT
A162: 29320 | B162: MOUNT VERNON | C162: 0 | D162: 0 | E162: =IFERROR(VLOOKUP(A162,'22-23 DOE Formula counts'!$D$8:$T$325,10,FALSE),0) -> 7043 | F162: =ROUND(E162/$E$5*Assumptions!$E$14*Assumptions!$E$29,0) -> 37563 | G162: =IFERROR(VLOOKUP(A162,'22-23 DOE Formula counts'!$D$8:$T$325,4,FALSE),0) -> 736 | H162: =ROUND(G162/$G$5*+Assumptions!$E$14*Assumptions!$E$30,0) -> 159822 | J162: 197385 | L162: 0 | M162: =IFERROR(VLOOKUP(A162,[1]ENROLLMENT!$A$5:$B$349,2,FALSE),0)*0 -> 0 | N162: =IFERROR(GETPIVOTDATA("Total W/O Preschool",'[1]Private 19-20'!$O$3,"District Code",A162),0)*0 -> 0 | P162: 197385 | Q162: 0 | R162: 197385 | T162: 0 | U162: 197385 | W162: =IFERROR(VLOOKUP($A162,'Allocation 2023-24 Final'!$B$7:$S$312,18,FALSE),0) -> 0 | Y162: 197385 | Z162: 0 | AA162: 41 | AB162: 0 | AD162: 29320 | AE162: MOUNT VERNON
A163: 31006 | B163: MUKILTEO | C163: 0 | D163: 0 | E163: =IFERROR(VLOOKUP(A163,'22-23 DOE Formula counts'!$D$8:$T$325,10,FALSE),0) -> 16861 | F163: =ROUND(E163/$E$5*Assumptions!$E$14*Assumptions!$E$29,0) -> 89926 | G163: =IFERROR(VLOOKUP(A163,'22-23 DOE Formula counts'!$D$8:$T$325,4,FALSE),0) -> 1707 | H163: =ROUND(G163/$G$5*+Assumptions!$E$14*Assumptions!$E$30,0) -> 370675 | J163: 460601 | L163: 0 | M163: =IFERROR(VLOOKUP(A163,[1]ENROLLMENT!$A$5:$B$349,2,FALSE),0)*0 -> 0 | N163: =IFERROR(GETPIVOTDATA("Total W/O Preschool",'[1]Private 19-20'!$O$3,"District Code",A163),0)*0 -> 0 | P163: 460601 | Q163: 0 | R163: 460601 | T163: 0 | U163: 460601 | W163: =IFERROR(VLOOKUP($A163,'Allocation 2023-24 Final'!$B$7:$S$312,18,FALSE),0) -> 0 | Y163: 460601 | Z163: 0 | AA163: 17 | AB163: 0 | AD163: 31006 | AE163: MUKILTEO
A164: 39003 | B164: NACHES VALLEY | C164: 0 | D164: 0 | E164: =IFERROR(VLOOKUP(A164,'22-23 DOE Formula counts'!$D$8:$T$325,10,FALSE),0) -> 1519 | F164: =ROUND(E164/$E$5*Assumptions!$E$14*Assumptions!$E$29,0) -> 8101 | G164: =IFERROR(VLOOKUP(A164,'22-23 DOE Formula counts'!$D$8:$T$325,4,FALSE),0) -> 177 | H164: =ROUND(G164/$G$5*+Assumptions!$E$14*Assumptions!$E$30,0) -> 38436 | J164: 46537 | L164: 0 | M164: =IFERROR(VLOOKUP(A164,[1]ENROLLMENT!$A$5:$B$349,2,FALSE),0)*0 -> 0 | N164: =IFERROR(GETPIVOTDATA("Total W/O Preschool",'[1]Private 19-20'!$O$3,"District Code",A164),0)*0 -> 0 | P164: 46537 | Q164: 0 | R164: 46537 | T164: 0 | U164: 46537 | W164: =IFERROR(VLOOKUP($A164,'Allocation 2023-24 Final'!$B$7:$S$312,18,FALSE),0) -> 0 | Y164: 46537 | Z164: 0 | AA164: 131 | AB164: 0 | AD164: 39003 | AE164: NACHES VALLEY
A165: 21014 | B165: NAPAVINE | C165: 0 | D165: 0 | E165: =IFERROR(VLOOKUP(A165,'22-23 DOE Formula counts'!$D$8:$T$325,10,FALSE),0) -> 761 | F165: =ROUND(E165/$E$5*Assumptions!$E$14*Assumptions!$E$29,0) -> 4059 | G165: =IFERROR(VLOOKUP(A165,'22-23 DOE Formula counts'!$D$8:$T$325,4,FALSE),0) -> 97 | H165: =ROUND(G165/$G$5*+Assumptions!$E$14*Assumptions!$E$30,0) -> 21064 | J165: 25123 | L165: 0 | M165: =IFERROR(VLOOKUP(A165,[1]ENROLLMENT!$A$5:$B$349,2,FALSE),0)*0 -> 0 | N165: =IFERROR(GETPIVOTDATA("Total W/O Preschool",'[1]Private 19-20'!$O$3,"District Code",A165),0)*0 -> 0 | P165: 25123 | Q165: 0 | R165: 25123 | T165: 0 | U165: 25123 | W165: =IFERROR(VLOOKUP($A165,'Allocation 2023-24 Final'!$B$7:$S$312,18,FALSE),0) -> 0 | Y165: 25123 | Z165: 0 | AA165: 177 | AB165: 0 | AD165: 21014 | AE165: NAPAVINE
A166: 25155 | B166: NASELLE-GRAYS | C166: 0 | D166: 0 | E166: =IFERROR(VLOOKUP(A166,'22-23 DOE Formula counts'!$D$8:$T$325,10,FALSE),0) -> 376 | F166: =ROUND(E166/$E$5*Assumptions!$E$14*Assumptions!$E$29,0) -> 2005 | G166: =IFERROR(VLOOKUP(A166,'22-23 DOE Formula counts'!$D$8:$T$325,4,FALSE),0) -> 48 | H166: =ROUND(G166/$G$5*+Assumptions!$E$14*Assumptions!$E$30,0) -> 10423 | J166: 12428 | L166: 0 | M166: =IFERROR(VLOOKUP(A166,[1]ENROLLMENT!$A$5:$B$349,2,FALSE),0)*0 -> 0 | N166: =IFERROR(GETPIVOTDATA("Total W/O Preschool",'[1]Private 19-20'!$O$3,"District Code",A166),0)*0 -> 0 | P166: 12428 | Q166: 0 | R166: 12428 | T166: 0 | U166: 12428 | W166: =IFERROR(VLOOKUP($A166,'Allocation 2023-24 Final'!$B$7:$S$312,18,FALSE),0) -> 0 | Y166: 12428 | Z166: 0 | AA166: 217 | AB166: 0 | AD166: 25155 | AE166: NASELLE-GRAYS
A167: 24014 | B167: NESPELEM | C167: 0 | D167: 0 | E167: =IFERROR(VLOOKUP(A167,'22-23 DOE Formula counts'!$D$8:$T$325,10,FALSE),0) -> 298 | F167: =ROUND(E167/$E$5*Assumptions!$E$14*Assumptions!$E$29,0) -> 1589 | G167: =IFERROR(VLOOKUP(A167,'22-23 DOE Formula counts'!$D$8:$T$325,4,FALSE),0) -> 79 | H167: =ROUND(G167/$G$5*+Assumptions!$E$14*Assumptions!$E$30,0) -> 17155 | J167: 18744 | L167: 0 | M167: =IFERROR(VLOOKUP(A167,[1]ENROLLMENT!$A$5:$B$349,2,FALSE),0)*0 -> 0 | N167: =IFERROR(GETPIVOTDATA("Total W/O Preschool",'[1]Private 19-20'!$O$3,"District Code",A167),0)*0 -> 0 | P167: 18744 | Q167: 0 | R167: 18744 | T167: 0 | U167: 18744 | W167: =IFERROR(VLOOKUP($A167,'Allocation 2023-24 Final'!$B$7:$S$312,18,FALSE),0) -> 0 | Y167: 18744 | Z167: 0 | AA167: 189 | AB167: 0 | AD167: 24014 | AE167: NESPELEM
A168: 26056 | B168: NEWPORT | C168: 0 | D168: 0 | E168: =IFERROR(VLOOKUP(A168,'22-23 DOE Formula counts'!$D$8:$T$325,10,FALSE),0) -> 1277 | F168: =ROUND(E168/$E$5*Assumptions!$E$14*Assumptions!$E$29,0) -> 6811 | G168: =IFERROR(VLOOKUP(A168,'22-23 DOE Formula counts'!$D$8:$T$325,4,FALSE),0) -> 277 | H168: =ROUND(G168/$G$5*+Assumptions!$E$14*Assumptions!$E$30,0) -> 60151 | J168: 66962 | L168: 0 | M168: =IFERROR(VLOOKUP(A168,[1]ENROLLMENT!$A$5:$B$349,2,FALSE),0)*0 -> 0 | N168: =IFERROR(GETPIVOTDATA("Total W/O Preschool",'[1]Private 19-20'!$O$3,"District Code",A168),0)*0 -> 0 | P168: 66962 | Q168: 0 | R168: 66962 | T168: 0 | U168: 66962 | W168: =IFERROR(VLOOKUP($A168,'Allocation 2023-24 Final'!$B$7:$S$312,18,FALSE),0) -> 0 | Y168: 66962 | Z168: 0 | AA168: 107 | AB168: 0 | AD168: 26056 | AE168: NEWPORT
A169: 32325 | B169: NINE MILE FALLS | C169: 0 | D169: 0 | E169: =IFERROR(VLOOKUP(A169,'22-23 DOE Formula counts'!$D$8:$T$325,10,FALSE),0) -> 1745 | F169: =ROUND(E169/$E$5*Assumptions!$E$14*Assumptions!$E$29,0) -> 9307 | G169: =IFERROR(VLOOKUP(A169,'22-23 DOE Formula counts'!$D$8:$T$325,4,FALSE),0) -> 278 | H169: =ROUND(G169/$G$5*+Assumptions!$E$14*Assumptions!$E$30,0) -> 60368 | J169: 69675 | L169: 0 | M169: =IFERROR(VLOOKUP(A169,[1]ENROLLMENT!$A$5:$B$349,2,FALSE),0)*0 -> 0 | N169: =IFERROR(GETPIVOTDATA("Total W/O Preschool",'[1]Private 19-20'!$O$3,"District Code",A169),0)*0 -> 0 | P169: 69675 | Q169: 0 | R169: 69675 | T169: 0 | U169: 69675 | W169: =IFERROR(VLOOKUP($A169,'Allocation 2023-24 Final'!$B$7:$S$312,18,FALSE),0) -> 0 | Y169: 69675 | Z169: 0 | AA169: 105 | AB169: 0 | AD169: 32325 | AE169: NINE MILE FALLS
A170: 37506 | B170: NOOKSACK VALLEY | C170: 0 | D170: 0 | E170: =IFERROR(VLOOKUP(A170,'22-23 DOE Formula counts'!$D$8:$T$325,10,FALSE),0) -> 2128 | F170: =ROUND(E170/$E$5*Assumptions!$E$14*Assumptions!$E$29,0) -> 11349 | G170: =IFERROR(VLOOKUP(A170,'22-23 DOE Formula counts'!$D$8:$T$325,4,FALSE),0) -> 188 | H170: =ROUND(G170/$G$5*+Assumptions!$E$14*Assumptions!$E$30,0) -> 40824 | J170: 52173 | L170: 0 | M170: =IFERROR(VLOOKUP(A170,[1]ENROLLMENT!$A$5:$B$349,2,FALSE),0)*0 -> 0 | N170: =IFERROR(GETPIVOTDATA("Total W/O Preschool",'[1]Private 19-20'!$O$3,"District Code",A170),0)*0 -> 0 | P170: 52173 | Q170: 0 | R170: 52173 | T170: 0 | U170: 52173 | W170: =IFERROR(VLOOKUP($A170,'Allocation 2023-24 Final'!$B$7:$S$312,18,FALSE),0) -> 0 | Y170: 52173 | Z170: 0 | AA170: 124 | AB170: 0 | AD170: 37506 | AE170: NOOKSACK VALLEY
A171: 14064 | B171: NORTH BEACH | C171: 0 | D171: 0 | E171: =IFERROR(VLOOKUP(A171,'22-23 DOE Formula counts'!$D$8:$T$325,10,FALSE),0) -> 771 | F171: =ROUND(E171/$E$5*Assumptions!$E$14*Assumptions!$E$29,0) -> 4112 | G171: =IFERROR(VLOOKUP(A171,'22-23 DOE Formula counts'!$D$8:$T$325,4,FALSE),0) -> 131 | H171: =ROUND(G171/$G$5*+Assumptions!$E$14*Assumptions!$E$30,0) -> 28447 | J171: 32559 | L171: 0 | M171: =IFERROR(VLOOKUP(A171,[1]ENROLLMENT!$A$5:$B$349,2,FALSE),0)*0 -> 0 | N171: =IFERROR(GETPIVOTDATA("Total W/O Preschool",'[1]Private 19-20'!$O$3,"District Code",A171),0)*0 -> 0 | P171: 32559 | Q171: 0 | R171: 32559 | T171: 0 | U171: 32559 | W171: =IFERROR(VLOOKUP($A171,'Allocation 2023-24 Final'!$B$7:$S$312,18,FALSE),0) -> 0 | Y171: 32559 | Z171: 0 | AA171: 161 | AB171: 0 | AD171: 14064 | AE171: NORTH BEACH
A172: 11051 | B172: NORTH FRANKLIN | C172: 0 | D172: 0 | E172: =IFERROR(VLOOKUP(A172,'22-23 DOE Formula counts'!$D$8:$T$325,10,FALSE),0) -> 2534 | F172: =ROUND(E172/$E$5*Assumptions!$E$14*Assumptions!$E$29,0) -> 13515 | G172: =IFERROR(VLOOKUP(A172,'22-23 DOE Formula counts'!$D$8:$T$325,4,FALSE),0) -> 365 | H172: =ROUND(G172/$G$5*+Assumptions!$E$14*Assumptions!$E$30,0) -> 79260 | J172: 92775 | L172: 0 | M172: =IFERROR(VLOOKUP(A172,[1]ENROLLMENT!$A$5:$B$349,2,FALSE),0)*0 -> 0 | N172: =IFERROR(GETPIVOTDATA("Total W/O Preschool",'[1]Private 19-20'!$O$3,"District Code",A172),0)*0 -> 0 | P172: 92775 | Q172: 0 | R172: 92775 | T172: 0 | U172: 92775 | W172: =IFERROR(VLOOKUP($A172,'Allocation 2023-24 Final'!$B$7:$S$312,18,FALSE),0) -> 0 | Y172: 92775 | Z172: 0 | AA172: 85 | AB172: 0 | AD172: 11051 | AE172: NORTH FRANKLIN
A173: 18400 | B173: NORTH KITSAP | C173: 0 | D173: 0 | E173: =IFERROR(VLOOKUP(A173,'22-23 DOE Formula counts'!$D$8:$T$325,10,FALSE),0) -> 7539 | F173: =ROUND(E173/$E$5*Assumptions!$E$14*Assumptions!$E$29,0) -> 40208 | G173: =IFERROR(VLOOKUP(A173,'22-23 DOE Formula counts'!$D$8:$T$325,4,FALSE),0) -> 556 | H173: =ROUND(G173/$G$5*+Assumptions!$E$14*Assumptions!$E$30,0) -> 120735 | J173: 160943 | L173: 0 | M173: =IFERROR(VLOOKUP(A173,[1]ENROLLMENT!$A$5:$B$349,2,FALSE),0)*0 -> 0 | N173: =IFERROR(GETPIVOTDATA("Total W/O Preschool",'[1]Private 19-20'!$O$3,"District Code",A173),0)*0 -> 0 | P173: 160943 | Q173: 0 | R173: 160943 | T173: 0 | U173: 160943 | W173: =IFERROR(VLOOKUP($A173,'Allocation 2023-24 Final'!$B$7:$S$312,18,FALSE),0) -> 0 | Y173: 160943 | Z173: 0 | AA173: 55 | AB173: 0 | AD173: 18400 | AE173: NORTH KITSAP
A174: 23403 | B174: NORTH MASON | C174: 0 | D174: 0 | E174: =IFERROR(VLOOKUP(A174,'22-23 DOE Formula counts'!$D$8:$T$325,10,FALSE),0) -> 2402 | F174: =ROUND(E174/$E$5*Assumptions!$E$14*Assumptions!$E$29,0) -> 12811 | G174: =IFERROR(VLOOKUP(A174,'22-23 DOE Formula counts'!$D$8:$T$325,4,FALSE),0) -> 316 | H174: =ROUND(G174/$G$5*+Assumptions!$E$14*Assumptions!$E$30,0) -> 68619 | J174: 81430 | L174: 0 | M174: =IFERROR(VLOOKUP(A174,[1]ENROLLMENT!$A$5:$B$349,2,FALSE),0)*0 -> 0 | N174: =IFERROR(GETPIVOTDATA("Total W/O Preschool",'[1]Private 19-20'!$O$3,"District Code",A174),0)*0 -> 0 | P174: 81430 | Q174: 0 | R174: 81430 | T174: 0 | U174: 81430 | W174: =IFERROR(VLOOKUP($A174,'Allocation 2023-24 Final'!$B$7:$S$312,18,FALSE),0) -> 0 | Y174: 81430 | Z174: 0 | AA174: 92 | AB174: 0 | AD174: 23403 | AE174: NORTH MASON
A175: 25200 | B175: NORTH RIVER | C175: 0 | D175: 0 | E175: =IFERROR(VLOOKUP(A175,'22-23 DOE Formula counts'!$D$8:$T$325,10,FALSE),0) -> 35 | F175: =ROUND(E175/$E$5*Assumptions!$E$14*Assumptions!$E$29,0) -> 187 | G175: =IFERROR(VLOOKUP(A175,'22-23 DOE Formula counts'!$D$8:$T$325,4,FALSE),0) -> 8 | H175: =ROUND(G175/$G$5*+Assumptions!$E$14*Assumptions!$E$30,0) -> 1737 | J175: 1924 | L175: 0 | M175: =IFERROR(VLOOKUP(A175,[1]ENROLLMENT!$A$5:$B$349,2,FALSE),0)*0 -> 0 | N175: =IFERROR(GETPIVOTDATA("Total W/O Preschool",'[1]Private 19-20'!$O$3,"District Code",A175),0)*0 -> 0 | P175: 1924 | Q175: 0 | R175: 1924 | T175: 0 | U175: 1924 | W175: =IFERROR(VLOOKUP($A175,'Allocation 2023-24 Final'!$B$7:$S$312,18,FALSE),0) -> 0 | Y175: 1924 | Z175: 0 | AA175: 301 | AB175: 0 | AD175: 25200 | AE175: NORTH RIVER
A176: 34003 | B176: NORTH THURSTON | C176: 0 | D176: 0 | E176: =IFERROR(VLOOKUP(A176,'22-23 DOE Formula counts'!$D$8:$T$325,10,FALSE),0) -> 16850 | F176: =ROUND(E176/$E$5*Assumptions!$E$14*Assumptions!$E$29,0) -> 89867 | G176: =IFERROR(VLOOKUP(A176,'22-23 DOE Formula counts'!$D$8:$T$325,4,FALSE),0) -> 1528 | H176: =ROUND(G176/$G$5*+Assumptions!$E$14*Assumptions!$E$30,0) -> 331805 | J176: 421672 | L176: 0 | M176: =IFERROR(VLOOKUP(A176,[1]ENROLLMENT!$A$5:$B$349,2,FALSE),0)*0 -> 0 | N176: =IFERROR(GETPIVOTDATA("Total W/O Preschool",'[1]Private 19-20'!$O$3,"District Code",A176),0)*0 -> 0 | P176: 421672 | Q176: 0 | R176: 421672 | T176: 0 | U176: 421672 | W176: =IFERROR(VLOOKUP($A176,'Allocation 2023-24 Final'!$B$7:$S$312,18,FALSE),0) -> 0 | Y176: 421672 | Z176: 0 | AA176: 20 | AB176: 0 | AD176: 34003 | AE176: NORTH THURSTON
A177: 33211 | B177: NORTHPORT | C177: 0 | D177: 0 | E177: =IFERROR(VLOOKUP(A177,'22-23 DOE Formula counts'!$D$8:$T$325,10,FALSE),0) -> 198 | F177: =ROUND(E177/$E$5*Assumptions!$E$14*Assumptions!$E$29,0) -> 1056 | G177: =IFERROR(VLOOKUP(A177,'22-23 DOE Formula counts'!$D$8:$T$325,4,FALSE),0) -> 48 | H177: =ROUND(G177/$G$5*+Assumptions!$E$14*Assumptions!$E$30,0) -> 10423 | J177: 11479 | L177: 0 | M177: =IFERROR(VLOOKUP(A177,[1]ENROLLMENT!$A$5:$B$349,2,FALSE),0)*0 -> 0 | N177: =IFERROR(GETPIVOTDATA("Total W/O Preschool",'[1]Private 19-20'!$O$3,"District Code",A177),0)*0 -> 0 | P177: 11479 | Q177: 0 | R177: 11479 | T177: 0 | U177: 11479 | W177: =IFERROR(VLOOKUP($A177,'Allocation 2023-24 Final'!$B$7:$S$312,18,FALSE),0) -> 0 | Y177: 11479 | Z177: 0 | AA177: 224 | AB177: 0 | AD177: 33211 | AE177: NORTHPORT
A178: 17417 | B178: NORTHSHORE | C178: 0 | D178: 0 | E178: =IFERROR(VLOOKUP(A178,'22-23 DOE Formula counts'!$D$8:$T$325,10,FALSE),0) -> 23688 | F178: =ROUND(E178/$E$5*Assumptions!$E$14*Assumptions!$E$29,0) -> 126337 | G178: =IFERROR(VLOOKUP(A178,'22-23 DOE Formula counts'!$D$8:$T$325,4,FALSE),0) -> 762 | H178: =ROUND(G178/$G$5*+Assumptions!$E$14*Assumptions!$E$30,0) -> 165468 | J178: 291805 | L178: 0 | M178: =IFERROR(VLOOKUP(A178,[1]ENROLLMENT!$A$5:$B$349,2,FALSE),0)*0 -> 0 | N178: =IFERROR(GETPIVOTDATA("Total W/O Preschool",'[1]Private 19-20'!$O$3,"District Code",A178),0)*0 -> 0 | P178: 291805 | Q178: 0 | R178: 291805 | T178: 0 | U178: 291805 | W178: =IFERROR(VLOOKUP($A178,'Allocation 2023-24 Final'!$B$7:$S$312,18,FALSE),0) -> 0 | Y178: 291805 | Z178: 0 | AA178: 31 | AB178: 0 | AD178: 17417 | AE178: NORTHSHORE
A179: 15201 | B179: OAK HARBOR | C179: 0 | D179: 0 | E179: =IFERROR(VLOOKUP(A179,'22-23 DOE Formula counts'!$D$8:$T$325,10,FALSE),0) -> 5693 | F179: =ROUND(E179/$E$5*Assumptions!$E$14*Assumptions!$E$29,0) -> 30363 | G179: =IFERROR(VLOOKUP(A179,'22-23 DOE Formula counts'!$D$8:$T$325,4,FALSE),0) -> 447 | H179: =ROUND(G179/$G$5*+Assumptions!$E$14*Assumptions!$E$30,0) -> 97066 | J179: 127429 | L179: 0 | M179: =IFERROR(VLOOKUP(A179,[1]ENROLLMENT!$A$5:$B$349,2,FALSE),0)*0 -> 0 | N179: =IFERROR(GETPIVOTDATA("Total W/O Preschool",'[1]Private 19-20'!$O$3,"District Code",A179),0)*0 -> 0 | P179: 127429 | Q179: 0 | R179: 127429 | T179: 0 | U179: 127429 | W179: =IFERROR(VLOOKUP($A179,'Allocation 2023-24 Final'!$B$7:$S$312,18,FALSE),0) -> 0 | Y179: 127429 | Z179: 0 | AA179: 66 | AB179: 0 | AD179: 15201 | AE179: OAK HARBOR
A180: 38324 | B180: OAKESDALE | C180: 0 | D180: 0 | E180: =IFERROR(VLOOKUP(A180,'22-23 DOE Formula counts'!$D$8:$T$325,10,FALSE),0) -> 171 | F180: =ROUND(E180/$E$5*Assumptions!$E$14*Assumptions!$E$29,0) -> 912 | G180: =IFERROR(VLOOKUP(A180,'22-23 DOE Formula counts'!$D$8:$T$325,4,FALSE),0) -> 9 | H180: =ROUND(G180/$G$5*+Assumptions!$E$14*Assumptions!$E$30,0) -> 1954 | J180: 2866 | L180: 0 | M180: =IFERROR(VLOOKUP(A180,[1]ENROLLMENT!$A$5:$B$349,2,FALSE),0)*0 -> 0 | N180: =IFERROR(GETPIVOTDATA("Total W/O Preschool",'[1]Private 19-20'!$O$3,"District Code",A180),0)*0 -> 0 | P180: 2866 | Q180: 0 | R180: 2866 | T180: 0 | U180: 2866 | W180: =IFERROR(VLOOKUP($A180,'Allocation 2023-24 Final'!$B$7:$S$312,18,FALSE),0) -> 0 | Y180: 2866 | Z180: 0 | AA180: 285 | AB180: 0 | AD180: 38324 | AE180: OAKESDALE
A181: 14400 | B181: OAKVILLE | C181: 0 | D181: 0 | E181: =IFERROR(VLOOKUP(A181,'22-23 DOE Formula counts'!$D$8:$T$325,10,FALSE),0) -> 387 | F181: =ROUND(E181/$E$5*Assumptions!$E$14*Assumptions!$E$29,0) -> 2064 | G181: =IFERROR(VLOOKUP(A181,'22-23 DOE Formula counts'!$D$8:$T$325,4,FALSE),0) -> 74 | H181: =ROUND(G181/$G$5*+Assumptions!$E$14*Assumptions!$E$30,0) -> 16069 | J181: 18133 | L181: 0 | M181: =IFERROR(VLOOKUP(A181,[1]ENROLLMENT!$A$5:$B$349,2,FALSE),0)*0 -> 0 | N181: =IFERROR(GETPIVOTDATA("Total W/O Preschool",'[1]Private 19-20'!$O$3,"District Code",A181),0)*0 -> 0 | P181: 18133 | Q181: 0 | R181: 18133 | T181: 0 | U181: 18133 | W181: =IFERROR(VLOOKUP($A181,'Allocation 2023-24 Final'!$B$7:$S$312,18,FALSE),0) -> 0 | Y181: 18133 | Z181: 0 | AA181: 191 | AB181: 0 | AD181: 14400 | AE181: OAKVILLE
A182: 25101 | B182: OCEAN BEACH | C182: 0 | D182: 0 | E182: =IFERROR(VLOOKUP(A182,'22-23 DOE Formula counts'!$D$8:$T$325,10,FALSE),0) -> 921 | F182: =ROUND(E182/$E$5*Assumptions!$E$14*Assumptions!$E$29,0) -> 4912 | G182: =IFERROR(VLOOKUP(A182,'22-23 DOE Formula counts'!$D$8:$T$325,4,FALSE),0) -> 184 | H182: =ROUND(G182/$G$5*+Assumptions!$E$14*Assumptions!$E$30,0) -> 39956 | J182: 44868 | L182: 0 | M182: =IFERROR(VLOOKUP(A182,[1]ENROLLMENT!$A$5:$B$349,2,FALSE),0)*0 -> 0 | N182: =IFERROR(GETPIVOTDATA("Total W/O Preschool",'[1]Private 19-20'!$O$3,"District Code",A182),0)*0 -> 0 | P182: 44868 | Q182: 0 | R182: 44868 | T182: 0 | U182: 44868 | W182: =IFERROR(VLOOKUP($A182,'Allocation 2023-24 Final'!$B$7:$S$312,18,FALSE),0) -> 0 | Y182: 44868 | Z182: 0 | AA182: 135 | AB182: 0 | AD182: 25101 | AE182: OCEAN BEACH
A183: 14172 | B183: OCOSTA | C183: 0 | D183: 0 | E183: =IFERROR(VLOOKUP(A183,'22-23 DOE Formula counts'!$D$8:$T$325,10,FALSE),0) -> 716 | F183: =ROUND(E183/$E$5*Assumptions!$E$14*Assumptions!$E$29,0) -> 3819 | G183: =IFERROR(VLOOKUP(A183,'22-23 DOE Formula counts'!$D$8:$T$325,4,FALSE),0) -> 152 | H183: =ROUND(G183/$G$5*+Assumptions!$E$14*Assumptions!$E$30,0) -> 33007 | J183: 36826 | L183: 0 | M183: =IFERROR(VLOOKUP(A183,[1]ENROLLMENT!$A$5:$B$349,2,FALSE),0)*0 -> 0 | N183: =IFERROR(GETPIVOTDATA("Total W/O Preschool",'[1]Private 19-20'!$O$3,"District Code",A183),0)*0 -> 0 | P183: 36826 | Q183: 0 | R183: 36826 | T183: 0 | U183: 36826 | W183: =IFERROR(VLOOKUP($A183,'Allocation 2023-24 Final'!$B$7:$S$312,18,FALSE),0) -> 0 | Y183: 36826 | Z183: 0 | AA183: 152 | AB183: 0 | AD183: 14172 | AE183: OCOSTA
A184: 22105 | B184: ODESSA | C184: 0 | D184: 0 | E184: =IFERROR(VLOOKUP(A184,'22-23 DOE Formula counts'!$D$8:$T$325,10,FALSE),0) -> 279 | F184: =ROUND(E184/$E$5*Assumptions!$E$14*Assumptions!$E$29,0) -> 1488 | G184: =IFERROR(VLOOKUP(A184,'22-23 DOE Formula counts'!$D$8:$T$325,4,FALSE),0) -> 40 | H184: =ROUND(G184/$G$5*+Assumptions!$E$14*Assumptions!$E$30,0) -> 8686 | J184: 10174 | L184: 0 | M184: =IFERROR(VLOOKUP(A184,[1]ENROLLMENT!$A$5:$B$349,2,FALSE),0)*0 -> 0 | N184: =IFERROR(GETPIVOTDATA("Total W/O Preschool",'[1]Private 19-20'!$O$3,"District Code",A184),0)*0 -> 0 | P184: 10174 | Q184: 0 | R184: 10174 | T184: 0 | U184: 10174 | W184: =IFERROR(VLOOKUP($A184,'Allocation 2023-24 Final'!$B$7:$S$312,18,FALSE),0) -> 0 | Y184: 10174 | Z184: 0 | AA184: 232 | AB184: 0 | AD184: 22105 | AE184: ODESSA
A185: 24105 | B185: OKANOGAN | C185: 0 | D185: 0 | E185: =IFERROR(VLOOKUP(A185,'22-23 DOE Formula counts'!$D$8:$T$325,10,FALSE),0) -> 1018 | F185: =ROUND(E185/$E$5*Assumptions!$E$14*Assumptions!$E$29,0) -> 5429 | G185: =IFERROR(VLOOKUP(A185,'22-23 DOE Formula counts'!$D$8:$T$325,4,FALSE),0) -> 258 | H185: =ROUND(G185/$G$5*+Assumptions!$E$14*Assumptions!$E$30,0) -> 56025 | J185: 61454 | L185: 0 | M185: =IFERROR(VLOOKUP(A185,[1]ENROLLMENT!$A$5:$B$349,2,FALSE),0)*0 -> 0 | N185: =IFERROR(GETPIVOTDATA("Total W/O Preschool",'[1]Private 19-20'!$O$3,"District Code",A185),0)*0 -> 0 | P185: 61454 | Q185: 0 | R185: 61454 | T185: 0 | U185: 61454 | W185: =IFERROR(VLOOKUP($A185,'Allocation 2023-24 Final'!$B$7:$S$312,18,FALSE),0) -> 0 | Y185: 61454 | Z185: 0 | AA185: 113 | AB185: 0 | AD185: 24105 | AE185: OKANOGAN
A186: 34111 | B186: OLYMPIA | C186: 0 | D186: 0 | E186: =IFERROR(VLOOKUP(A186,'22-23 DOE Formula counts'!$D$8:$T$325,10,FALSE),0) -> 10204 | F186: =ROUND(E186/$E$5*Assumptions!$E$14*Assumptions!$E$29,0) -> 54422 | G186: =IFERROR(VLOOKUP(A186,'22-23 DOE Formula counts'!$D$8:$T$325,4,FALSE),0) -> 884 | H186: =ROUND(G186/$G$5*+Assumptions!$E$14*Assumptions!$E$30,0) -> 191961 | J186: 246383 | L186: 0 | M186: =IFERROR(VLOOKUP(A186,[1]ENROLLMENT!$A$5:$B$349,2,FALSE),0)*0 -> 0 | N186: =IFERROR(GETPIVOTDATA("Total W/O Preschool",'[1]Private 19-20'!$O$3,"District Code",A186),0)*0 -> 0 | P186: 246383 | Q186: 0 | R186: 246383 | T186: 0 | U186: 246383 | W186: =IFERROR(VLOOKUP($A186,'Allocation 2023-24 Final'!$B$7:$S$312,18,FALSE),0) -> 0 | Y186: 246383 | Z186: 0 | AA186: 36 | AB186: 0 | AD186: 34111 | AE186: OLYMPIA
A187: 24019 | B187: OMAK | C187: 0 | D187: 0 | E187: =IFERROR(VLOOKUP(A187,'22-23 DOE Formula counts'!$D$8:$T$325,10,FALSE),0) -> 1880 | F187: =ROUND(E187/$E$5*Assumptions!$E$14*Assumptions!$E$29,0) -> 10027 | G187: =IFERROR(VLOOKUP(A187,'22-23 DOE Formula counts'!$D$8:$T$325,4,FALSE),0) -> 490 | H187: =ROUND(G187/$G$5*+Assumptions!$E$14*Assumptions!$E$30,0) -> 106403 | J187: 116430 | L187: 0 | M187: =IFERROR(VLOOKUP(A187,[1]ENROLLMENT!$A$5:$B$349,2,FALSE),0)*0 -> 0 | N187: =IFERROR(GETPIVOTDATA("Total W/O Preschool",'[1]Private 19-20'!$O$3,"District Code",A187),0)*0 -> 0 | P187: 116430 | Q187: 0 | R187: 116430 | T187: 0 | U187: 116430 | W187: =IFERROR(VLOOKUP($A187,'Allocation 2023-24 Final'!$B$7:$S$312,18,FALSE),0) -> 0 | Y187: 116430 | Z187: 0 | AA187: 71 | AB187: 0 | AD187: 24019 | AE187: OMAK
A188: 21300 | B188: ONALASKA | C188: 0 | D188: 0 | E188: =IFERROR(VLOOKUP(A188,'22-23 DOE Formula counts'!$D$8:$T$325,10,FALSE),0) -> 887 | F188: =ROUND(E188/$E$5*Assumptions!$E$14*Assumptions!$E$29,0) -> 4731 | G188: =IFERROR(VLOOKUP(A188,'22-23 DOE Formula counts'!$D$8:$T$325,4,FALSE),0) -> 131 | H188: =ROUND(G188/$G$5*+Assumptions!$E$14*Assumptions!$E$30,0) -> 28447 | J188: 33178 | L188: 0 | M188: =IFERROR(VLOOKUP(A188,[1]ENROLLMENT!$A$5:$B$349,2,FALSE),0)*0 -> 0 | N188: =IFERROR(GETPIVOTDATA("Total W/O Preschool",'[1]Private 19-20'!$O$3,"District Code",A188),0)*0 -> 0 | P188: 33178 | Q188: 0 | R188: 33178 | T188: 0 | U188: 33178 | W188: =IFERROR(VLOOKUP($A188,'Allocation 2023-24 Final'!$B$7:$S$312,18,FALSE),0) -> 0 | Y188: 33178 | Z188: 0 | AA188: 157 | AB188: 0 | AD188: 21300 | AE188: ONALASKA
A189: 33030 | B189: ONION CREEK | C189: 0 | D189: 0 | E189: =IFERROR(VLOOKUP(A189,'22-23 DOE Formula counts'!$D$8:$T$325,10,FALSE),0) -> 53 | F189: =ROUND(E189/$E$5*Assumptions!$E$14*Assumptions!$E$29,0) -> 283 | G189: =IFERROR(VLOOKUP(A189,'22-23 DOE Formula counts'!$D$8:$T$325,4,FALSE),0) -> 18 | H189: =ROUND(G189/$G$5*+Assumptions!$E$14*Assumptions!$E$30,0) -> 3909 | J189: 4192 | L189: 0 | M189: =IFERROR(VLOOKUP(A189,[1]ENROLLMENT!$A$5:$B$349,2,FALSE),0)*0 -> 0 | N189: =IFERROR(GETPIVOTDATA("Total W/O Preschool",'[1]Private 19-20'!$O$3,"District Code",A189),0)*0 -> 0 | P189: 4192 | Q189: 0 | R189: 4192 | T189: 0 | U189: 4192 | W189: =IFERROR(VLOOKUP($A189,'Allocation 2023-24 Final'!$B$7:$S$312,18,FALSE),0) -> 0 | Y189: 4192 | Z189: 0 | AA189: 271 | AB189: 0 | AD189: 33030 | AE189: ONION CREEK
A190: 28137 | B190: ORCAS ISLAND | C190: 0 | D190: 0 | E190: =IFERROR(VLOOKUP(A190,'22-23 DOE Formula counts'!$D$8:$T$325,10,FALSE),0) -> 559 | F190: =ROUND(E190/$E$5*Assumptions!$E$14*Assumptions!$E$29,0) -> 2981 | G190: =IFERROR(VLOOKUP(A190,'22-23 DOE Formula counts'!$D$8:$T$325,4,FALSE),0) -> 50 | H190: =ROUND(G190/$G$5*+Assumptions!$E$14*Assumptions!$E$30,0) -> 10857 | J190: 13838 | L190: 0 | M190: =IFERROR(VLOOKUP(A190,[1]ENROLLMENT!$A$5:$B$349,2,FALSE),0)*0 -> 0 | N190: =IFERROR(GETPIVOTDATA("Total W/O Preschool",'[1]Private 19-20'!$O$3,"District Code",A190),0)*0 -> 0 | P190: 13838 | Q190: 0 | R190: 13838 | T190: 0 | U190: 13838 | W190: =IFERROR(VLOOKUP($A190,'Allocation 2023-24 Final'!$B$7:$S$312,18,FALSE),0) -> 0 | Y190: 13838 | Z190: 0 | AA190: 212 | AB190: 0 | AD190: 28137 | AE190: ORCAS ISLAND
A191: 32123 | B191: ORCHARD PRAIRIE | C191: 0 | D191: 0 | E191: =IFERROR(VLOOKUP(A191,'22-23 DOE Formula counts'!$D$8:$T$325,10,FALSE),0) -> 139 | F191: =ROUND(E191/$E$5*Assumptions!$E$14*Assumptions!$E$29,0) -> 741 | G191: =IFERROR(VLOOKUP(A191,'22-23 DOE Formula counts'!$D$8:$T$325,4,FALSE),0) -> 13 | H191: =ROUND(G191/$G$5*+Assumptions!$E$14*Assumptions!$E$30,0) -> 2823 | J191: 3564 | L191: 0 | M191: =IFERROR(VLOOKUP(A191,[1]ENROLLMENT!$A$5:$B$349,2,FALSE),0)*0 -> 0 | N191: =IFERROR(GETPIVOTDATA("Total W/O Preschool",'[1]Private 19-20'!$O$3,"District Code",A191),0)*0 -> 0 | P191: 3564 | Q191: 0 | R191: 3564 | T191: 0 | U191: 3564 | W191: =IFERROR(VLOOKUP($A191,'Allocation 2023-24 Final'!$B$7:$S$312,18,FALSE),0) -> 0 | Y191: 3564 | Z191: 0 | AA191: 276 | AB191: 0 | AD191: 32123 | AE191: ORCHARD PRAIRIE
A192: 10065 | B192: ORIENT | C192: 0 | D192: 0 | E192: =IFERROR(VLOOKUP(A192,'22-23 DOE Formula counts'!$D$8:$T$325,10,FALSE),0) -> 96 | F192: =ROUND(E192/$E$5*Assumptions!$E$14*Assumptions!$E$29,0) -> 512 | G192: =IFERROR(VLOOKUP(A192,'22-23 DOE Formula counts'!$D$8:$T$325,4,FALSE),0) -> 25 | H192: =ROUND(G192/$G$5*+Assumptions!$E$14*Assumptions!$E$30,0) -> 5429 | J192: 5941 | L192: 0 | M192: =IFERROR(VLOOKUP(A192,[1]ENROLLMENT!$A$5:$B$349,2,FALSE),0)*0 -> 0 | N192: =IFERROR(GETPIVOTDATA("Total W/O Preschool",'[1]Private 19-20'!$O$3,"District Code",A192),0)*0 -> 0 | P192: 5941 | Q192: 0 | R192: 5941 | T192: 0 | U192: 5941 | W192: =IFERROR(VLOOKUP($A192,'Allocation 2023-24 Final'!$B$7:$S$312,18,FALSE),0) -> 0 | Y192: 5941 | Z192: 0 | AA192: 255 | AB192: 0 | AD192: 10065 | AE192: ORIENT
A193: 09013 | B193: ORONDO | C193: 0 | D193: 0 | E193: =IFERROR(VLOOKUP(A193,'22-23 DOE Formula counts'!$D$8:$T$325,10,FALSE),0) -> 407 | F193: =ROUND(E193/$E$5*Assumptions!$E$14*Assumptions!$E$29,0) -> 2171 | G193: =IFERROR(VLOOKUP(A193,'22-23 DOE Formula counts'!$D$8:$T$325,4,FALSE),0) -> 74 | H193: =ROUND(G193/$G$5*+Assumptions!$E$14*Assumptions!$E$30,0) -> 16069 | J193: 18240 | L193: 0 | M193: =IFERROR(VLOOKUP(A193,[1]ENROLLMENT!$A$5:$B$349,2,FALSE),0)*0 -> 0 | N193: =IFERROR(GETPIVOTDATA("Total W/O Preschool",'[1]Private 19-20'!$O$3,"District Code",A193),0)*0 -> 0 | P193: 18240 | Q193: 0 | R193: 18240 | T193: 0 | U193: 18240 | W193: =IFERROR(VLOOKUP($A193,'Allocation 2023-24 Final'!$B$7:$S$312,18,FALSE),0) -> 0 | Y193: 18240 | Z193: 0 | AA193: 190 | AB193: 0 | AD193: 09013 | AE193: ORONDO
A194: 24410 | B194: OROVILLE | C194: 0 | D194: 0 | E194: =IFERROR(VLOOKUP(A194,'22-23 DOE Formula counts'!$D$8:$T$325,10,FALSE),0) -> 744 | F194: =ROUND(E194/$E$5*Assumptions!$E$14*Assumptions!$E$29,0) -> 3968 | G194: =IFERROR(VLOOKUP(A194,'22-23 DOE Formula counts'!$D$8:$T$325,4,FALSE),0) -> 285 | H194: =ROUND(G194/$G$5*+Assumptions!$E$14*Assumptions!$E$30,0) -> 61888 | J194: 65856 | L194: 0 | M194: =IFERROR(VLOOKUP(A194,[1]ENROLLMENT!$A$5:$B$349,2,FALSE),0)*0 -> 0 | N194: =IFERROR(GETPIVOTDATA("Total W/O Preschool",'[1]Private 19-20'!$O$3,"District Code",A194),0)*0 -> 0 | P194: 65856 | Q194: 0 | R194: 65856 | T194: 0 | U194: 65856 | W194: =IFERROR(VLOOKUP($A194,'Allocation 2023-24 Final'!$B$7:$S$312,18,FALSE),0) -> 0 | Y194: 65856 | Z194: 0 | AA194: 109 | AB194: 0 | AD194: 24410 | AE194: OROVILLE
